Workbook

Sheet Notes
A2: Maternity Friends and Family Test (FFT) data - July 2015 | I2: Show data for:

Sheet Region (Geography) Q1
B6: Sort data by:
A9: Region (Geo) Code | B9: Region (Geography) | C9: Total Responses | D9: Percentage Recommended | E9: Percentage Not Recommended | F9: Breakdown of Responses
F10: Extremely Likely | G10: Likely | H10: Neither | I10: Unlikely | J10: Extremely Unlikely | K10: Don't Know
B11: England | C11: 8401 | D11: 0.9456017141 | E11: 0.01928341864 | F11: 5866 | G11: 2078 | H11: 232 | I11: 73 | J11: 89 | K11: 63
B12: Selection (excluding suppressed data) | C12: =SUBTOTAL(9,C13:C37) -> 8401 | D12: =IFERROR((F12+G12)/SUM(F12:K12), "-") -> 0.9456017141 | E12: =IFERROR((I12+J12)/SUM(F12:K12), "-") -> 0.01928341864 | F12: =SUBTOTAL(9,F13:F37) -> 5866 | G12: =SUBTOTAL(9,G13:G37) -> 2078 | H12: 232 | I12: 73 | J12: 89 | K12: 63
A13: Q72 | B13: NHS England Yorkshire & Humber | C13: 1155 | D13: 0.9454545455 | E13: 0.01904761905 | F13: 814 | G13: 278 | H13: 40 | I13: 2 | J13: 20 | K13: 1
A14: Q73 | B14: NHS England Lancashire & Greater Manchester | C14: 435 | D14: 0.9517241379 | E14: 0.01609195402 | F14: 304 | G14: 110 | H14: 11 | I14: 3 | J14: 4 | K14: 3
A15: Q74 | B15: NHS England Cumbria & North East | C15: 401 | D15: 0.9850374065 | E15: 0.002493765586 | F15: 307 | G15: 88 | H15: 5 | I15: 0 | J15: 1 | K15: 0
A16: Q75 | B16: NHS England Cheshire & Merseyside | C16: 322 | D16: 0.9596273292 | E16: 0.009316770186 | F16: 235 | G16: 74 | H16: 4 | I16: 1 | J16: 2 | K16: 6
A17: Q76 | B17: NHS England North Midlands | C17: 507 | D17: 0.9566074951 | E17: 0.0157790927 | F17: 393 | G17: 92 | H17: 9 | I17: 4 | J17: 4 | K17: 5
A18: Q77 | B18: NHS England West Midlands | C18: 815 | D18: 0.9496932515 | E18: 0.01840490798 | F18: 554 | G18: 220 | H18: 20 | I18: 8 | J18: 7 | K18: 6
A19: Q78 | B19: NHS England Central Midlands | C19: 443 | D19: 0.934537246 | E19: 0.02708803612 | F19: 280 | G19: 134 | H19: 14 | I19: 5 | J19: 7 | K19: 3
A20: Q79 | B20: NHS England East | C20: 1000 | D20: 0.951 | E20: 0.013 | F20: 746 | G20: 205 | H20: 27 | I20: 3 | J20: 10 | K20: 9
A21: Q80 | B21: NHS England South West | C21: 417 | D21: 0.9664268585 | E21: 0.009592326139 | F21: 315 | G21: 88 | H21: 10 | I21: 4 | J21: 0 | K21: 0
A22: Q81 | B22: NHS England South East | C22: 471 | D22: 0.966029724 | E22: 0.01061571125 | F22: 396 | G22: 59 | H22: 10 | I22: 1 | J22: 4 | K22: 1
A23: Q82 | B23: NHS England South Central | C23: 245 | D23: 0.9591836735 | E23: 0.008163265306 | F23: 180 | G23: 55 | H23: 7 | I23: 0 | J23: 2 | K23: 1
A24: Q70 | B24: NHS England Wessex | C24: 395 | D24: 0.9367088608 | E24: 0.0253164557 | F24: 279 | G24: 91 | H24: 11 | I24: 5 | J24: 5 | K24: 4
A25: Q71 | B25: NHS England London | C25: 1795 | D25: 0.9175487465 | E25: 0.03342618384 | F25: 1063 | G25: 584 | H25: 64 | I25: 37 | J25: 23 | K25: 24

Sheet Trusts Q1
B6: Sort data by:
A9: Region (Geo) Code | B9: Trust Code | C9: Trust Name | D9: Total Responses | E9: Percentage Recommended | F9: Percentage Not Recommended | G9: Breakdown of Responses | M9: Mode of Collection
G10: Extremely Likely | H10: Likely | I10: Neither | J10: Unlikely | K10: Extremely Unlikely | L10: Don't Know | M10: SMS/Text / Smartphone App | N10: Electronic tablet/kiosk at point of discharge | O10: Paper / postcard at point of discharge | P10: Paper survey sent to the patients home | Q10: Telephone survey once patient is home | R10: Online survey once patient is home | S10: Other
C11: England | D11: 8401 | E11: 0.9456017141 | F11: 0.01928341864 | G11: 5866 | H11: 2078 | I11: 232 | J11: 73 | K11: 89 | L11: 63 | M11: 487 | N11: 1017 | O11: 6301 | P11: 153 | Q11: 2 | R11: 210 | S11: 231
C12: Selection (excluding suppressed data) | D12: =SUBTOTAL(9,D13:D299) -> 8401 | E12: =IFERROR((G12+H12)/SUM(G12:L12), "-") -> 0.9456051873 | F12: =IFERROR((J12+K12)/SUM(G12:L12), "-") -> 0.01921229587 | G12: =SUBTOTAL(9,G13:G299) -> 5812 | H12: =SUBTOTAL(9,H13:H299) -> 2063 | I12: 231 | J12: 73 | K12: 87 | L12: 62 | M12: 487 | N12: 1017 | O12: 6255 | P12: 129 | Q12: 2 | R12: 207 | S12: 231
A13: Q70 | B13: RBD | C13: DORSET COUNTY HOSPITAL NHS FOUNDATION TRUST | D13: 31 | E13: 0.8387096774 | F13: 0.06451612903 | G13: 23 | H13: 3 | I13: 3 | J13: 0 | K13: 2 | L13: 0 | M13: 31 | N13: 0 | O13: 0 | P13: 0 | Q13: 0 | R13: 0 | S13: 0
A14: Q70 | B14: RN5 | C14: HAMPSHIRE HOSPITALS NHS FOUNDATION TRUST | D14: 97 | E14: 0.9793814433 | F14: 0.01030927835 | G14: 69 | H14: 26 | I14: 1 | J14: 0 | K14: 1 | L14: 0 | M14: 26 | N14: 0 | O14: 71 | P14: 0 | Q14: 0 | R14: 0 | S14: 0
A15: Q70 | B15: R1F | C15: ISLE OF WIGHT NHS TRUST | D15: 31 | E15: 0.935483871 | F15: 0.06451612903 | G15: 24 | H15: 5 | I15: 0 | J15: 2 | K15: 0 | L15: 0 | M15: 0 | N15: 0 | O15: 31 | P15: 0 | Q15: 0 | R15: 0 | S15: 0
A16: Q70 | B16: RD3 | C16: POOLE HOSPITAL NHS FOUNDATION TRUST | D16: 41 | E16: 0.8292682927 | F16: 0.0487804878 | G16: 25 | H16: 9 | I16: 3 | J16: 1 | K16: 1 | L16: 2 | M16: 41 | N16: 0 | O16: 0 | P16: 0 | Q16: 0 | R16: 0 | S16: 0
A17: Q70 | B17: RHU | C17: PORTSMOUTH HOSPITALS NHS TRUST | D17: 52 | E17: 0.9615384615 | F17: 0 | G17: 44 | H17: 6 | I17: 2 | J17: 0 | K17: 0 | L17: 0 | M17: 0 | N17: 0 | O17: 52 | P17: 0 | Q17: 0 | R17: 0 | S17: 0
A18: Q70 | B18: RDZ | C18: THE ROYAL BOURNEMOUTH AND CHRISTCHURCH HOSPITALS NHS FOUNDATION TRUST | D18: 73 | E18: 0.9726027397 | F18: 0.01369863014 | G18: 57 | H18: 14 | I18: 1 | J18: 1 | K18: 0 | L18: 0 | M18: 0 | N18: 0 | O18: 73 | P18: 0 | Q18: 0 | R18: 0 | S18: 0
A19: Q70 | B19: RHM | C19: UNIVERSITY HOSPITAL SOUTHAMPTON NHS FOUNDATION TRUST | D19: 70 | E19: 0.9285714286 | F19: 0.02857142857 | G19: 37 | H19: 28 | I19: 1 | J19: 1 | K19: 1 | L19: 2 | M19: 0 | N19: 0 | O19: 70 | P19: 0 | Q19: 0 | R19: 0 | S19: 0
A20: Q71 | B20: RF4 | C20: BARKING, HAVERING AND REDBRIDGE UNIVERSITY HOSPITALS NHS TRUST | D20: 254 | E20: 0.9842519685 | F20: 0.003937007874 | G20: 193 | H20: 57 | I20: 3 | J20: 0 | K20: 1 | L20: 0 | M20: 0 | N20: 0 | O20: 254 | P20: 0 | Q20: 0 | R20: 0 | S20: 0
A21: Q71 | B21: R1H | C21: BARTS HEALTH NHS TRUST | D21: 38 | E21: 0.9736842105 | F21: 0.02631578947 | G21: 26 | H21: 11 | I21: 0 | J21: 1 | K21: 0 | L21: 0 | M21: 0 | N21: 0 | O21: 37 | P21: 0 | Q21: 0 | R21: 1 | S21: 0
A22: Q71 | B22: RQM | C22: CHELSEA AND WESTMINSTER HOSPITAL NHS FOUNDATION TRUST | D22: 64 | E22: 0.90625 | F22: 0.046875 | G22: 43 | H22: 15 | I22: 3 | J22: 2 | K22: 1 | L22: 0 | M22: 64 | N22: 0 | O22: 0 | P22: 0 | Q22: 0 | R22: 0 | S22: 0
A23: Q71 | B23: RJ6 | C23: CROYDON HEALTH SERVICES NHS TRUST | D23: 29 | E23: 0.9655172414 | F23: 0 | G23: 19 | H23: 9 | I23: 0 | J23: 0 | K23: 0 | L23: 1 | M23: 0 | N23: 0 | O23: 29 | P23: 0 | Q23: 0 | R23: 0 | S23: 0
A24: Q71 | B24: RVR | C24: EPSOM AND ST HELIER UNIVERSITY HOSPITALS NHS TRUST | D24: 137 | E24: 0.9051094891 | F24: 0.03649635036 | G24: 90 | H24: 34 | I24: 5 | J24: 3 | K24: 2 | L24: 3 | M24: 79 | N24: 0 | O24: 58 | P24: 0 | Q24: 0 | R24: 0 | S24: 0
A25: Q71 | B25: RJ1 | C25: GUY'S AND ST THOMAS' NHS FOUNDATION TRUST | D25: 12 | E25: 0.9166666667 | F25: 0 | G25: 8 | H25: 3 | I25: 1 | J25: 0 | K25: 0 | L25: 0 | M25: 0 | N25: 0 | O25: 11 | P25: 0 | Q25: 0 | R25: 1 | S25: 0
A26: Q71 | B26: RQX | C26: HOMERTON UNIVERSITY HOSPITAL NHS FOUNDATION TRUST | D26: 147 | E26: 0.9591836735 | F26: 0.02040816327 | G26: 87 | H26: 54 | I26: 2 | J26: 1 | K26: 2 | L26: 1 | M26: 0 | N26: 15 | O26: 131 | P26: 0 | Q26: 0 | R26: 1 | S26: 0
A27: Q71 | B27: RYJ | C27: IMPERIAL COLLEGE HEALTHCARE NHS TRUST | D27: 147 | E27: 0.8639455782 | F27: 0.07482993197 | G27: 59 | H27: 68 | I27: 5 | J27: 10 | K27: 1 | L27: 4 | M27: 0 | N27: 147 | O27: 0 | P27: 0 | Q27: 0 | R27: 0 | S27: 0
A28: Q71 | B28: RJZ | C28: KING'S COLLEGE HOSPITAL NHS FOUNDATION TRUST | D28: 110 | E28: 0.9363636364 | F28: 0.03636363636 | G28: 66 | H28: 37 | I28: 2 | J28: 3 | K28: 1 | L28: 1 | M28: 0 | N28: 0 | O28: 93 | P28: 0 | Q28: 0 | R28: 17 | S28: 0
A29: Q71 | B29: RAX | C29: KINGSTON HOSPITAL NHS FOUNDATION TRUST | D29: 88 | E29: 0.9545454545 | F29: 0 | G29: 57 | H29: 27 | I29: 4 | J29: 0 | K29: 0 | L29: 0 | M29: 0 | N29: 88 | O29: 0 | P29: 0 | Q29: 0 | R29: 0 | S29: 0
A30: Q71 | B30: RJ2 | C30: LEWISHAM AND GREENWICH NHS TRUST | D30: 139 | E30: 0.8705035971 | F30: 0.05035971223 | G30: 56 | H30: 65 | I30: 6 | J30: 1 | K30: 6 | L30: 5 | M30: 0 | N30: 0 | O30: 139 | P30: 0 | Q30: 0 | R30: 0 | S30: 0
A31: Q71 | B31: R1K | C31: LONDON NORTH WEST HEALTHCARE NHS TRUST | D31: 145 | E31: 0.8551724138 | F31: 0.07586206897 | G31: 68 | H31: 56 | I31: 7 | J31: 10 | K31: 1 | L31: 3 | M31: 0 | N31: 0 | O31: 145 | P31: 0 | Q31: 0 | R31: 0 | S31: 0
A32: Q71 | B32: RAP | C32: NORTH MIDDLESEX UNIVERSITY HOSPITAL NHS TRUST | D32: 102 | E32: 0.8725490196 | F32: 0.02941176471 | G32: 21 | H32: 68 | I32: 7 | J32: 2 | K32: 1 | L32: 3 | M32: 0 | N32: 102 | O32: 0 | P32: 0 | Q32: 0 | R32: 0 | S32: 0
A33: Q71 | B33: RAL | C33: ROYAL FREE LONDON NHS FOUNDATION TRUST | D33: 19 | E33: 0.8947368421 | F33: 0.05263157895 | G33: 14 | H33: 3 | I33: 1 | J33: 1 | K33: 0 | L33: 0 | M33: 0 | N33: 0 | O33: 19 | P33: 0 | Q33: 0 | R33: 0 | S33: 0
A34: Q71 | B34: RJ7 | C34: ST GEORGE'S UNIVERSITY HOSPITALS NHS FOUNDATION TRUST | D34: 24 | E34: 0.75 | F34: 0.1666666667 | G34: 14 | H34: 4 | I34: 2 | J34: 0 | K34: 4 | L34: 0 | M34: 0 | N34: 24 | O34: 0 | P34: 0 | Q34: 0 | R34: 0 | S34: 0
A35: Q71 | B35: RAS | C35: THE HILLINGDON HOSPITALS NHS FOUNDATION TRUST | D35: 11 | E35: 0.8181818182 | F35: 0.09090909091 | G35: 7 | H35: 2 | I35: 1 | J35: 0 | K35: 1 | L35: 0 | M35: 0 | N35: 0 | O35: 11 | P35: 0 | Q35: 0 | R35: 0 | S35: 0
A36: Q71 | B36: RKE | C36: THE WHITTINGTON HOSPITAL NHS TRUST | D36: 41 | E36: 0.9512195122 | F36: 0 | G36: 37 | H36: 2 | I36: 2 | J36: 0 | K36: 0 | L36: 0 | M36: 0 | N36: 41 | O36: 0 | P36: 0 | Q36: 0 | R36: 0 | S36: 0
A37: Q71 | B37: RRV | C37: UNIVERSITY COLLEGE LONDON HOSPITALS NHS FOUNDATION TRUST | D37: 221 | E37: 0.9547511312 | F37: 0 | G37: 159 | H37: 52 | I37: 8 | J37: 0 | K37: 0 | L37: 2 | M37: 0 | N37: 159 | O37: 0 | P37: 0 | Q37: 0 | R37: 62 | S37: 0
A38: Q71 | B38: RFW | C38: WEST MIDDLESEX UNIVERSITY HOSPITAL NHS TRUST | D38: 67 | E38: 0.8358208955 | F38: 0.07462686567 | G38: 39 | H38: 17 | I38: 5 | J38: 3 | K38: 2 | L38: 1 | M38: 65 | N38: 0 | O38: 0 | P38: 0 | Q38: 2 | R38: 0 | S38: 0
A39: Q72 | B39: RCF | C39: AIREDALE NHS FOUNDATION TRUST | D39: 21 | E39: 1 | F39: 0 | G39: 17 | H39: 4 | I39: 0 | J39: 0 | K39: 0 | L39: 0 | M39: 0 | N39: 0 | O39: 21 | P39: 0 | Q39: 0 | R39: 0 | S39: 0
A40: Q72 | B40: RFF | C40: BARNSLEY HOSPITAL NHS FOUNDATION TRUST | D40: 84 | E40: 0.9880952381 | F40: 0 | G40: 71 | H40: 12 | I40: 1 | J40: 0 | K40: 0 | L40: 0 | M40: 0 | N40: 0 | O40: 84 | P40: 0 | Q40: 0 | R40: 0 | S40: 0
A41: Q72 | B41: RAE | C41: BRADFORD TEACHING HOSPITALS NHS FOUNDATION TRUST | D41: 6 | E41: 1 | F41: 0 | G41: 6 | H41: 0 | I41: 0 | J41: 0 | K41: 0 | L41: 0 | M41: 0 | N41: 0 | O41: 6 | P41: 0 | Q41: 0 | R41: 0 | S41: 0
A42: Q72 | B42: RWY | C42: CALDERDALE AND HUDDERSFIELD NHS FOUNDATION TRUST | D42: 258 | E42: 0.9689922481 | F42: 0.01162790698 | G42: 191 | H42: 59 | I42: 4 | J42: 1 | K42: 2 | L42: 1 | M42: 114 | N42: 0 | O42: 144 | P42: 0 | Q42: 0 | R42: 0 | S42: 0
A43: Q72 | B43: RP5 | C43: DONCASTER AND BASSETLAW HOSPITALS NHS FOUNDATION TRUST | D43: 89 | E43: 0.9438202247 | F43: 0.02247191011 | G43: 58 | H43: 26 | I43: 3 | J43: 1 | K43: 1 | L43: 0 | M43: 0 | N43: 0 | O43: 89 | P43: 0 | Q43: 0 | R43: 0 | S43: 0
A44: Q72 | B44: RCD | C44: HARROGATE AND DISTRICT NHS FOUNDATION TRUST | D44: 34 | E44: 0.9411764706 | F44: 0 | G44: 27 | H44: 5 | I44: 2 | J44: 0 | K44: 0 | L44: 0 | M44: 0 | N44: 0 | O44: 34 | P44: 0 | Q44: 0 | R44: 0 | S44: 0
A45: Q72 | B45: RWA | C45: HULL AND EAST YORKSHIRE HOSPITALS NHS TRUST | D45: 45 | E45: 0.9777777778 | F45: 0 | G45: 40 | H45: 4 | I45: 1 | J45: 0 | K45: 0 | L45: 0 | M45: 0 | N45: 0 | O45: 45 | P45: 0 | Q45: 0 | R45: 0 | S45: 0
A46: Q72 | B46: RR8 | C46: LEEDS TEACHING HOSPITALS NHS TRUST | D46: 40 | E46: 0.975 | F46: 0 | G46: 32 | H46: 7 | I46: 1 | J46: 0 | K46: 0 | L46: 0 | M46: 0 | N46: 0 | O46: 40 | P46: 0 | Q46: 0 | R46: 0 | S46: 0
A47: Q72 | B47: RXF | C47: MID YORKSHIRE HOSPITALS NHS TRUST | D47: 142 | E47: 0.9366197183 | F47: 0.01408450704 | G47: 89 | H47: 44 | I47: 7 | J47: 0 | K47: 2 | L47: 0 | M47: 0 | N47: 0 | O47: 142 | P47: 0 | Q47: 0 | R47: 0 | S47: 0
A48: Q72 | B48: RJL | C48: NORTHERN LINCOLNSHIRE AND GOOLE NHS FOUNDATION TRUST | D48: 149 | E48: 0.7986577181 | F48: 0.1006711409 | G48: 53 | H48: 66 | I48: 15 | J48: 0 | K48: 15 | L48: 0 | M48: 0 | N48: 0 | O48: 149 | P48: 0 | Q48: 0 | R48: 0 | S48: 0
A49: Q72 | B49: RHQ | C49: SHEFFIELD TEACHING HOSPITALS NHS FOUNDATION TRUST | D49: 45 | E49: 1 | F49: 0 | G49: 38 | H49: 7 | I49: 0 | J49: 0 | K49: 0 | L49: 0 | M49: 0 | N49: 0 | O49: 45 | P49: 0 | Q49: 0 | R49: 0 | S49: 0
A50: Q72 | B50: RFR | C50: THE ROTHERHAM NHS FOUNDATION TRUST | D50: 113 | E50: 0.982300885 | F50: 0 | G50: 96 | H50: 15 | I50: 2 | J50: 0 | K50: 0 | L50: 0 | M50: 0 | N50: 2 | O50: 111 | P50: 0 | Q50: 0 | R50: 0 | S50: 0
A51: Q72 | B51: RCB | C51: YORK TEACHING HOSPITAL NHS FOUNDATION TRUST | D51: 129 | E51: 0.9689922481 | F51: 0 | G51: 96 | H51: 29 | I51: 4 | J51: 0 | K51: 0 | L51: 0 | M51: 0 | N51: 0 | O51: 125 | P51: 0 | Q51: 0 | R51: 4 | S51: 0
A52: Q73 | B52: RXL | C52: BLACKPOOL TEACHING HOSPITALS NHS FOUNDATION TRUST | D52: 18 | E52: 1 | F52: 0 | G52: 16 | H52: 2 | I52: 0 | J52: 0 | K52: 0 | L52: 0 | M52: 0 | N52: 0 | O52: 18 | P52: 0 | Q52: 0 | R52: 0 | S52: 0
A53: Q73 | B53: RMC | C53: BOLTON NHS FOUNDATION TRUST | D53: 2 | E53: * | F53: * | G53: * | H53: * | I53: * | J53: * | K53: * | L53: * | M53: * | N53: * | O53: * | P53: * | Q53: * | R53: * | S53: *
A54: Q73 | B54: RY2 | C54: BRIDGEWATER COMMUNITY HEALTHCARE NHS FOUNDATION TRUST | D54: 16 | E54: 1 | F54: 0 | G54: 13 | H54: 3 | I54: 0 | J54: 0 | K54: 0 | L54: 0 | M54: 0 | N54: 0 | O54: 16 | P54: 0 | Q54: 0 | R54: 0 | S54: 0
A55: Q73 | B55: RW3 | C55: CENTRAL MANCHESTER UNIVERSITY HOSPITALS NHS FOUNDATION TRUST | D55: 14 | E55: 0.7857142857 | F55: 0.07142857143 | G55: 7 | H55: 4 | I55: 2 | J55: 1 | K55: 0 | L55: 0 | M55: 0 | N55: 0 | O55: 14 | P55: 0 | Q55: 0 | R55: 0 | S55: 0
A56: Q73 | B56: RXR | C56: EAST LANCASHIRE HOSPITALS NHS TRUST | D56: 76 | E56: 0.9868421053 | F56: 0 | G56: 59 | H56: 16 | I56: 1 | J56: 0 | K56: 0 | L56: 0 | M56: 0 | N56: 0 | O56: 0 | P56: 0 | Q56: 0 | R56: 76 | S56: 0
A57: Q73 | B57: RXN | C57: LANCASHIRE TEACHING HOSPITALS NHS FOUNDATION TRUST | D57: 63 | E57: 0.873015873 | F57: 0.04761904762 | G57: 42 | H57: 13 | I57: 4 | J57: 1 | K57: 2 | L57: 1 | M57: 63 | N57: 0 | O57: 0 | P57: 0 | Q57: 0 | R57: 0 | S57: 0
A58: Q73 | B58: RW6 | C58: PENNINE ACUTE HOSPITALS NHS TRUST | D58: 80 | E58: 0.9875 | F58: 0 | G58: 65 | H58: 14 | I58: 0 | J58: 0 | K58: 0 | L58: 1 | M58: 0 | N58: 0 | O58: 80 | P58: 0 | Q58: 0 | R58: 0 | S58: 0
A59: Q73 | B59: RWJ | C59: STOCKPORT NHS FOUNDATION TRUST | D59: 91 | E59: 0.9450549451 | F59: 0.02197802198 | G59: 47 | H59: 39 | I59: 2 | J59: 1 | K59: 1 | L59: 1 | M59: 0 | N59: 0 | O59: 91 | P59: 0 | Q59: 0 | R59: 0 | S59: 0
A60: Q73 | B60: RMP | C60: TAMESIDE HOSPITAL NHS FOUNDATION TRUST | D60: 3 | E60: * | F60: * | G60: * | H60: * | I60: * | J60: * | K60: * | L60: * | M60: * | N60: * | O60: * | P60: * | Q60: * | R60: * | S60: *
A61: Q73 | B61: RM2 | C61: UNIVERSITY HOSPITAL OF SOUTH MANCHESTER NHS FOUNDATION TRUST | D61: 11 | E61: 0.9090909091 | F61: 0 | G61: 8 | H61: 2 | I61: 1 | J61: 0 | K61: 0 | L61: 0 | M61: 0 | N61: 0 | O61: 11 | P61: 0 | Q61: 0 | R61: 0 | S61: 0
A62: Q73 | B62: RRF | C62: WRIGHTINGTON, WIGAN AND LEIGH NHS FOUNDATION TRUST | D62: 61 | E62: 0.9672131148 | F62: 0.01639344262 | G62: 43 | H62: 16 | I62: 1 | J62: 0 | K62: 1 | L62: 0 | M62: 0 | N62: 0 | O62: 60 | P62: 0 | Q62: 0 | R62: 1 | S62: 0
A63: Q74 | B63: RLN | C63: CITY HOSPITALS SUNDERLAND NHS FOUNDATION TRUST | D63: 59 | E63: 0.9661016949 | F63: 0 | G63: 45 | H63: 12 | I63: 2 | J63: 0 | K63: 0 | L63: 0 | M63: 0 | N63: 0 | O63: 59 | P63: 0 | Q63: 0 | R63: 0 | S63: 0
A64: Q74 | B64: RXP | C64: COUNTY DURHAM AND DARLINGTON NHS FOUNDATION TRUST | D64: 62 | E64: 1 | F64: 0 | G64: 45 | H64: 17 | I64: 0 | J64: 0 | K64: 0 | L64: 0 | M64: 0 | N64: 0 | O64: 62 | P64: 0 | Q64: 0 | R64: 0 | S64: 0
A65: Q74 | B65: RR7 | C65: GATESHEAD HEALTH NHS FOUNDATION TRUST | D65: 19 | E65: 0.9473684211 | F65: 0 | G65: 17 | H65: 1 | I65: 1 | J65: 0 | K65: 0 | L65: 0 | M65: 0 | N65: 0 | O65: 19 | P65: 0 | Q65: 0 | R65: 0 | S65: 0
A66: Q74 | B66: RNL | C66: NORTH CUMBRIA UNIVERSITY HOSPITALS NHS TRUST | D66: 78 | E66: 0.9871794872 | F66: 0 | G66: 69 | H66: 8 | I66: 1 | J66: 0 | K66: 0 | L66: 0 | M66: 0 | N66: 0 | O66: 0 | P66: 0 | Q66: 0 | R66: 0 | S66: 78
A67: Q74 | B67: RVW | C67: NORTH TEES AND HARTLEPOOL NHS FOUNDATION TRUST | D67: 9 | E67: 0.8888888889 | F67: 0.1111111111 | G67: 5 | H67: 3 | I67: 0 | J67: 0 | K67: 1 | L67: 0 | M67: 0 | N67: 0 | O67: 9 | P67: 0 | Q67: 0 | R67: 0 | S67: 0
A68: Q74 | B68: RTF | C68: NORTHUMBRIA HEALTHCARE NHS FOUNDATION TRUST | D68: 48 | E68: 1 | F68: 0 | G68: 41 | H68: 7 | I68: 0 | J68: 0 | K68: 0 | L68: 0 | M68: 0 | N68: 0 | O68: 48 | P68: 0 | Q68: 0 | R68: 0 | S68: 0
A69: Q74 | B69: RTR | C69: SOUTH TEES HOSPITALS NHS FOUNDATION TRUST | D69: 7 | E69: 1 | F69: 0 | G69: * | H69: * | I69: * | J69: * | K69: * | L69: * | M69: * | N69: * | O69: * | P69: * | Q69: * | R69: * | S69: *
A70: Q74 | B70: RE9 | C70: SOUTH TYNESIDE NHS FOUNDATION TRUST | D70: 42 | E70: 0.9761904762 | F70: 0 | G70: 33 | H70: 8 | I70: 1 | J70: 0 | K70: 0 | L70: 0 | M70: 0 | N70: 0 | O70: 41 | P70: 0 | Q70: 0 | R70: 1 | S70: 0
A71: Q74 | B71: RTD | C71: THE NEWCASTLE UPON TYNE HOSPITALS NHS FOUNDATION TRUST | D71: 1 | E71: * | F71: * | G71: * | H71: * | I71: * | J71: * | K71: * | L71: * | M71: * | N71: * | O71: * | P71: * | Q71: * | R71: * | S71: *
A72: Q74 | B72: RTX | C72: UNIVERSITY HOSPITALS OF MORECAMBE BAY NHS FOUNDATION TRUST | D72: 76 | E72: 1 | F72: 0 | G72: 45 | H72: 31 | I72: 0 | J72: 0 | K72: 0 | L72: 0 | M72: 0 | N72: 0 | O72: 75 | P72: 0 | Q72: 0 | R72: 1 | S72: 0
A73: Q75 | B73: RJR | C73: COUNTESS OF CHESTER HOSPITAL NHS FOUNDATION TRUST | D73: 1 | E73: * | F73: * | G73: * | H73: * | I73: * | J73: * | K73: * | L73: * | M73: * | N73: * | O73: * | P73: * | Q73: * | R73: * | S73: *
A74: Q75 | B74: RJN | C74: EAST CHESHIRE NHS TRUST | D74: 45 | E74: 0.9777777778 | F74: 0 | G74: 38 | H74: 6 | I74: 0 | J74: 0 | K74: 0 | L74: 1 | M74: 0 | N74: 0 | O74: 45 | P74: 0 | Q74: 0 | R74: 0 | S74: 0
A75: Q75 | B75: REP | C75: LIVERPOOL WOMEN'S NHS FOUNDATION TRUST | D75: 15 | E75: 0.9333333333 | F75: 0.06666666667 | G75: 12 | H75: 2 | I75: 0 | J75: 0 | K75: 1 | L75: 0 | M75: 0 | N75: 0 | O75: 15 | P75: 0 | Q75: 0 | R75: 0 | S75: 0
A76: Q75 | B76: RBT | C76: MID CHESHIRE HOSPITALS NHS FOUNDATION TRUST | D76: 92 | E76: 0.9130434783 | F76: 0.02173913043 | G76: 61 | H76: 23 | I76: 2 | J76: 1 | K76: 1 | L76: 4 | M76: 0 | N76: 32 | O76: 60 | P76: 0 | Q76: 0 | R76: 0 | S76: 0
A77: Q75 | B77: RVY | C77: SOUTHPORT AND ORMSKIRK HOSPITAL NHS TRUST | D77: 22 | E77: 1 | F77: 0 | G77: 16 | H77: 6 | I77: 0 | J77: 0 | K77: 0 | L77: 0 | M77: 0 | N77: 0 | O77: 22 | P77: 0 | Q77: 0 | R77: 0 | S77: 0
A78: Q75 | B78: RBN | C78: ST HELENS AND KNOWSLEY HOSPITALS NHS TRUST | D78: 79 | E78: 0.9746835443 | F78: 0 | G78: 59 | H78: 18 | I78: 2 | J78: 0 | K78: 0 | L78: 0 | M78: 0 | N78: 0 | O78: 79 | P78: 0 | Q78: 0 | R78: 0 | S78: 0
A79: Q75 | B79: RWW | C79: WARRINGTON AND HALTON HOSPITALS NHS FOUNDATION TRUST | D79: 65 | E79: 0.9846153846 | F79: 0 | G79: 45 | H79: 19 | I79: 0 | J79: 0 | K79: 0 | L79: 1 | M79: 0 | N79: 0 | O79: 65 | P79: 0 | Q79: 0 | R79: 0 | S79: 0
A80: Q75 | B80: RBL | C80: WIRRAL UNIVERSITY TEACHING HOSPITAL NHS FOUNDATION TRUST | D80: 3 | E80: * | F80: * | G80: * | H80: * | I80: * | J80: * | K80: * | L80: * | M80: * | N80: * | O80: * | P80: * | Q80: * | R80: * | S80: *
A81: Q76 | B81: RJF | C81: BURTON HOSPITALS NHS FOUNDATION TRUST | D81: 18 | E81: 0.9444444444 | F81: 0.05555555556 | G81: 12 | H81: 5 | I81: 0 | J81: 1 | K81: 0 | L81: 0 | M81: 0 | N81: 0 | O81: 18 | P81: 0 | Q81: 0 | R81: 0 | S81: 0
A82: Q76 | B82: RFS | C82: CHESTERFIELD ROYAL HOSPITAL NHS FOUNDATION TRUST | D82: 149 | E82: 0.966442953 | F82: 0.006711409396 | G82: 110 | H82: 34 | I82: 3 | J82: 1 | K82: 0 | L82: 1 | M82: 0 | N82: 0 | O82: 149 | P82: 0 | Q82: 0 | R82: 0 | S82: 0
A83: Q76 | B83: RTG | C83: DERBY TEACHING HOSPITALS NHS FOUNDATION TRUST | D83: 32 | E83: 1 | F83: 0 | G83: 27 | H83: 5 | I83: 0 | J83: 0 | K83: 0 | L83: 0 | M83: 0 | N83: 0 | O83: 32 | P83: 0 | Q83: 0 | R83: 0 | S83: 0
A84: Q76 | B84: RX1 | C84: NOTTINGHAM UNIVERSITY HOSPITALS NHS TRUST | D84: 157 | E84: 0.9808917197 | F84: 0 | G84: 133 | H84: 21 | I84: 1 | J84: 0 | K84: 0 | L84: 2 | M84: 0 | N84: 0 | O84: 157 | P84: 0 | Q84: 0 | R84: 0 | S84: 0
A85: Q76 | B85: RK5 | C85: SHERWOOD FOREST HOSPITALS NHS FOUNDATION TRUST | D85: 60 | E85: 0.8666666667 | F85: 0.06666666667 | G85: 37 | H85: 15 | I85: 2 | J85: 1 | K85: 3 | L85: 2 | M85: 0 | N85: 0 | O85: 60 | P85: 0 | Q85: 0 | R85: 0 | S85: 0
A86: Q76 | B86: RXW | C86: SHREWSBURY AND TELFORD HOSPITAL NHS TRUST | D86: 34 | E86: 0.9117647059 | F86: 0.02941176471 | G86: 25 | H86: 6 | I86: 2 | J86: 0 | K86: 1 | L86: 0 | M86: 0 | N86: 0 | O86: 34 | P86: 0 | Q86: 0 | R86: 0 | S86: 0
A87: Q76 | B87: RJE | C87: UNIVERSITY HOSPITALS OF NORTH MIDLANDS NHS TRUST | D87: 57 | E87: 0.9649122807 | F87: 0.01754385965 | G87: 49 | H87: 6 | I87: 1 | J87: 1 | K87: 0 | L87: 0 | M87: 0 | N87: 0 | O87: 57 | P87: 0 | Q87: 0 | R87: 0 | S87: 0
A88: Q77 | B88: RLU | C88: BIRMINGHAM WOMEN'S NHS FOUNDATION TRUST | D88: 38 | E88: 0.9473684211 | F88: 0.02631578947 | G88: 21 | H88: 15 | I88: 1 | J88: 1 | K88: 0 | L88: 0 | M88: 0 | N88: 0 | O88: 35 | P88: 0 | Q88: 0 | R88: 3 | S88: 0
A89: Q77 | B89: RLT | C89: GEORGE ELIOT HOSPITAL NHS TRUST | D89: 23 | E89: 0.9565217391 | F89: 0 | G89: 20 | H89: 2 | I89: 1 | J89: 0 | K89: 0 | L89: 0 | M89: 0 | N89: 0 | O89: 23 | P89: 0 | Q89: 0 | R89: 0 | S89: 0
A90: Q77 | B90: RR1 | C90: HEART OF ENGLAND NHS FOUNDATION TRUST | D90: 27 | E90: 0.8888888889 | F90: 0.07407407407 | G90: 21 | H90: 3 | I90: 1 | J90: 0 | K90: 2 | L90: 0 | M90: 0 | N90: 0 | O90: 27 | P90: 0 | Q90: 0 | R90: 0 | S90: 0
A91: Q77 | B91: RXK | C91: SANDWELL AND WEST BIRMINGHAM HOSPITALS NHS TRUST | D91: 19 | E91: 0.8947368421 | F91: 0.05263157895 | G91: 9 | H91: 8 | I91: 0 | J91: 1 | K91: 0 | L91: 1 | M91: 0 | N91: 19 | O91: 0 | P91: 0 | Q91: 0 | R91: 0 | S91: 0
A92: Q77 | B92: RJC | C92: SOUTH WARWICKSHIRE NHS FOUNDATION TRUST | D92: 9 | E92: 1 | F92: 0 | G92: 9 | H92: 0 | I92: 0 | J92: 0 | K92: 0 | L92: 0 | M92: 0 | N92: 0 | O92: 8 | P92: 0 | Q92: 0 | R92: 1 | S92: 0
A93: Q77 | B93: RNA | C93: THE DUDLEY GROUP NHS FOUNDATION TRUST | D93: 85 | E93: 0.9294117647 | F93: 0.03529411765 | G93: 64 | H93: 15 | I93: 3 | J93: 0 | K93: 3 | L93: 0 | M93: 0 | N93: 0 | O93: 85 | P93: 0 | Q93: 0 | R93: 0 | S93: 0
A94: Q77 | B94: RL4 | C94: THE ROYAL WOLVERHAMPTON NHS TRUST | D94: 60 | E94: 0.9833333333 | F94: 0 | G94: 48 | H94: 11 | I94: 1 | J94: 0 | K94: 0 | L94: 0 | M94: 0 | N94: 0 | O94: 0 | P94: 60 | Q94: 0 | R94: 0 | S94: 0
A95: Q77 | B95: RKB | C95: UNIVERSITY HOSPITALS COVENTRY AND WARWICKSHIRE NHS TRUST | D95: 181 | E95: 0.9668508287 | F95: 0.005524861878 | G95: 138 | H95: 37 | I95: 3 | J95: 0 | K95: 1 | L95: 2 | M95: 0 | N95: 0 | O95: 181 | P95: 0 | Q95: 0 | R95: 0 | S95: 0
A96: Q77 | B96: RBK | C96: WALSALL HEALTHCARE NHS TRUST | D96: 231 | E96: 0.9177489177 | F96: 0.0303030303 | G96: 107 | H96: 105 | I96: 9 | J96: 6 | K96: 1 | L96: 3 | M96: 0 | N96: 0 | O96: 231 | P96: 0 | Q96: 0 | R96: 0 | S96: 0
A97: Q77 | B97: RWP | C97: WORCESTERSHIRE ACUTE HOSPITALS NHS TRUST | D97: 112 | E97: 0.9910714286 | F97: 0 | G97: 97 | H97: 14 | I97: 1 | J97: 0 | K97: 0 | L97: 0 | M97: 0 | N97: 0 | O97: 112 | P97: 0 | Q97: 0 | R97: 0 | S97: 0
A98: Q77 | B98: RLQ | C98: WYE VALLEY NHS TRUST | D98: 30 | E98: 1 | F98: 0 | G98: 20 | H98: 10 | I98: 0 | J98: 0 | K98: 0 | L98: 0 | M98: 0 | N98: 0 | O98: 30 | P98: 0 | Q98: 0 | R98: 0 | S98: 0
A99: Q78 | B99: RC1 | C99: BEDFORD HOSPITAL NHS TRUST | D99: 6 | E99: 1 | F99: 0 | G99: 4 | H99: 2 | I99: 0 | J99: 0 | K99: 0 | L99: 0 | M99: 0 | N99: 0 | O99: 0 | P99: 6 | Q99: 0 | R99: 0 | S99: 0
A100: Q78 | B100: RWH | C100: EAST AND NORTH HERTFORDSHIRE NHS TRUST | D100: 53 | E100: 0.9622641509 | F100: 0 | G100: 33 | H100: 18 | I100: 2 | J100: 0 | K100: 0 | L100: 0 | M100: 0 | N100: 0 | O100: 53 | P100: 0 | Q100: 0 | R100: 0 | S100: 0
A101: Q78 | B101: RNQ | C101: KETTERING GENERAL HOSPITAL NHS FOUNDATION TRUST | D101: 47 | E101: 0.9574468085 | F101: 0 | G101: 36 | H101: 9 | I101: 2 | J101: 0 | K101: 0 | L101: 0 | M101: 0 | N101: 0 | O101: 47 | P101: 0 | Q101: 0 | R101: 0 | S101: 0
A102: Q78 | B102: RC9 | C102: LUTON AND DUNSTABLE UNIVERSITY HOSPITAL NHS FOUNDATION TRUST | D102: 127 | E102: 0.8346456693 | F102: 0.08661417323 | G102: 53 | H102: 53 | I102: 8 | J102: 5 | K102: 6 | L102: 2 | M102: 0 | N102: 127 | O102: 0 | P102: 0 | Q102: 0 | R102: 0 | S102: 0
A103: Q78 | B103: RD8 | C103: MILTON KEYNES HOSPITAL NHS FOUNDATION TRUST | D103: 1 | E103: * | F103: * | G103: * | H103: * | I103: * | J103: * | K103: * | L103: * | M103: * | N103: * | O103: * | P103: * | Q103: * | R103: * | S103: *
A104: Q78 | B104: RNS | C104: NORTHAMPTON GENERAL HOSPITAL NHS TRUST | D104: 21 | E104: 1 | F104: 0 | G104: 15 | H104: 6 | I104: 0 | J104: 0 | K104: 0 | L104: 0 | M104: 3 | N104: 0 | O104: 0 | P104: 18 | Q104: 0 | R104: 0 | S104: 0
A105: Q78 | B105: RWD | C105: UNITED LINCOLNSHIRE HOSPITALS NHS TRUST | D105: 47 | E105: 1 | F105: 0 | G105: 40 | H105: 7 | I105: 0 | J105: 0 | K105: 0 | L105: 0 | M105: 0 | N105: 0 | O105: 47 | P105: 0 | Q105: 0 | R105: 0 | S105: 0
A106: Q78 | B106: RWE | C106: UNIVERSITY HOSPITALS OF LEICESTER NHS TRUST | D106: 136 | E106: 0.9779411765 | F106: 0.007352941176 | G106: 95 | H106: 38 | I106: 2 | J106: 0 | K106: 1 | L106: 0 | M106: 0 | N106: 32 | O106: 104 | P106: 0 | Q106: 0 | R106: 0 | S106: 0
A107: Q78 | B107: RWG | C107: WEST HERTFORDSHIRE HOSPITALS NHS TRUST | D107: 5 | E107: 1 | F107: 0 | G107: * | H107: * | I107: * | J107: * | K107: * | L107: * | M107: * | N107: * | O107: * | P107: * | Q107: * | R107: * | S107: *
A108: Q79 | B108: RDD | C108: BASILDON AND THURROCK UNIVERSITY HOSPITALS NHS FOUNDATION TRUST | D108: 5 | E108: 0.8 | F108: 0 | G108: 3 | H108: 1 | I108: 1 | J108: 0 | K108: 0 | L108: 0 | M108: 0 | N108: 0 | O108: 0 | P108: 0 | Q108: 0 | R108: 5 | S108: 0
A109: Q79 | B109: RGT | C109: CAMBRIDGE UNIVERSITY HOSPITALS NHS FOUNDATION TRUST | D109: 59 | E109: 0.8813559322 | F109: 0 | G109: 32 | H109: 20 | I109: 5 | J109: 0 | K109: 0 | L109: 2 | M109: 0 | N109: 59 | O109: 0 | P109: 0 | Q109: 0 | R109: 0 | S109: 0
A110: Q79 | B110: RDE | C110: COLCHESTER HOSPITAL UNIVERSITY NHS FOUNDATION TRUST | D110: 32 | E110: 1 | F110: 0 | G110: 23 | H110: 9 | I110: 0 | J110: 0 | K110: 0 | L110: 0 | M110: 0 | N110: 0 | O110: 32 | P110: 0 | Q110: 0 | R110: 0 | S110: 0
A111: Q79 | B111: RQQ | C111: HINCHINGBROOKE HEALTH CARE NHS TRUST | D111: 13 | E111: 0.9230769231 | F111: 0 | G111: 12 | H111: 0 | I111: 1 | J111: 0 | K111: 0 | L111: 0 | M111: 0 | N111: 0 | O111: 13 | P111: 0 | Q111: 0 | R111: 0 | S111: 0
A112: Q79 | B112: RGQ | C112: IPSWICH HOSPITAL NHS TRUST | D112: 200 | E112: 0.92 | F112: 0.035 | G112: 144 | H112: 40 | I112: 9 | J112: 1 | K112: 6 | L112: 0 | M112: 0 | N112: 24 | O112: 50 | P112: 0 | Q112: 0 | R112: 2 | S112: 124
A113: Q79 | B113: RGP | C113: JAMES PAGET UNIVERSITY HOSPITALS NHS FOUNDATION TRUST | D113: 228 | E113: 0.9780701754 | F113: 0.008771929825 | G113: 184 | H113: 39 | I113: 2 | J113: 1 | K113: 1 | L113: 1 | M113: 0 | N113: 0 | O113: 228 | P113: 0 | Q113: 0 | R113: 0 | S113: 0
A114: Q79 | B114: RQ8 | C114: MID ESSEX HOSPITAL SERVICES NHS TRUST | D114: 6 | E114: 1 | F114: 0 | G114: 6 | H114: 0 | I114: 0 | J114: 0 | K114: 0 | L114: 0 | M114: 0 | N114: 6 | O114: 0 | P114: 0 | Q114: 0 | R114: 0 | S114: 0
A115: Q79 | B115: RM1 | C115: NORFOLK AND NORWICH UNIVERSITY HOSPITALS NHS FOUNDATION TRUST | D115: 17 | E115: 0.9411764706 | F115: 0 | G115: 14 | H115: 2 | I115: 1 | J115: 0 | K115: 0 | L115: 0 | M115: 0 | N115: 0 | O115: 17 | P115: 0 | Q115: 0 | R115: 0 | S115: 0
A116: Q79 | B116: RGN | C116: PETERBOROUGH AND STAMFORD HOSPITALS NHS FOUNDATION TRUST | D116: 31 | E116: 0.935483871 | F116: 0 | G116: 21 | H116: 8 | I116: 1 | J116: 0 | K116: 0 | L116: 1 | M116: 0 | N116: 0 | O116: 30 | P116: 0 | Q116: 0 | R116: 1 | S116: 0
A117: Q79 | B117: RAJ | C117: SOUTHEND UNIVERSITY HOSPITAL NHS FOUNDATION TRUST | D117: 11 | E117: 1 | F117: 0 | G117: 10 | H117: 1 | I117: 0 | J117: 0 | K117: 0 | L117: 0 | M117: 0 | N117: 0 | O117: 11 | P117: 0 | Q117: 0 | R117: 0 | S117: 0
A118: Q79 | B118: RQW | C118: THE PRINCESS ALEXANDRA HOSPITAL NHS TRUST | D118: 28 | E118: 1 | F118: 0 | G118: 20 | H118: 8 | I118: 0 | J118: 0 | K118: 0 | L118: 0 | M118: 0 | N118: 0 | O118: 0 | P118: 0 | Q118: 0 | R118: 0 | S118: 28
A119: Q79 | B119: RCX | C119: THE QUEEN ELIZABETH HOSPITAL, KING'S LYNN, NHS FOUNDATION TRUST | D119: 267 | E119: 0.9438202247 | F119: 0.01498127341 | G119: 188 | H119: 64 | I119: 6 | J119: 1 | K119: 3 | L119: 5 | M119: 0 | N119: 0 | O119: 267 | P119: 0 | Q119: 0 | R119: 0 | S119: 0
A120: Q79 | B120: RGR | C120: WEST SUFFOLK NHS FOUNDATION TRUST | D120: 103 | E120: 0.9902912621 | F120: 0 | G120: 89 | H120: 13 | I120: 1 | J120: 0 | K120: 0 | L120: 0 | M120: 0 | N120: 103 | O120: 0 | P120: 0 | Q120: 0 | R120: 0 | S120: 0
A121: Q80 | B121: RVJ | C121: NORTH BRISTOL NHS TRUST | D121: 45 | E121: 0.9777777778 | F121: 0.02222222222 | G121: 32 | H121: 12 | I121: 0 | J121: 1 | K121: 0 | L121: 0 | M121: 0 | N121: 0 | O121: 0 | P121: 45 | Q121: 0 | R121: 0 | S121: 0
A122: Q80 | B122: RBZ | C122: NORTHERN DEVON HEALTHCARE NHS TRUST | D122: 6 | E122: 1 | F122: 0 | G122: * | H122: * | I122: * | J122: * | K122: * | L122: * | M122: * | N122: * | O122: * | P122: * | Q122: * | R122: * | S122: *
A123: Q80 | B123: RK9 | C123: PLYMOUTH HOSPITALS NHS TRUST | D123: 107 | E123: 0.9345794393 | F123: 0.009345794393 | G123: 77 | H123: 23 | I123: 6 | J123: 1 | K123: 0 | L123: 0 | M123: 0 | N123: 16 | O123: 90 | P123: 0 | Q123: 0 | R123: 1 | S123: 0
A124: Q80 | B124: REF | C124: ROYAL CORNWALL HOSPITALS NHS TRUST | D124: 40 | E124: 1 | F124: 0 | G124: 29 | H124: 11 | I124: 0 | J124: 0 | K124: 0 | L124: 0 | M124: 0 | N124: 0 | O124: 40 | P124: 0 | Q124: 0 | R124: 0 | S124: 0
A125: Q80 | B125: RH8 | C125: ROYAL DEVON AND EXETER NHS FOUNDATION TRUST | D125: 44 | E125: 0.9545454545 | F125: 0.02272727273 | G125: 35 | H125: 7 | I125: 1 | J125: 1 | K125: 0 | L125: 0 | M125: 0 | N125: 0 | O125: 44 | P125: 0 | Q125: 0 | R125: 0 | S125: 0
A126: Q80 | B126: RA9 | C126: SOUTH DEVON HEALTHCARE NHS FOUNDATION TRUST | D126: 34 | E126: 1 | F126: 0 | G126: 28 | H126: 6 | I126: 0 | J126: 0 | K126: 0 | L126: 0 | M126: 0 | N126: 0 | O126: 34 | P126: 0 | Q126: 0 | R126: 0 | S126: 0
A127: Q80 | B127: RBA | C127: TAUNTON AND SOMERSET NHS FOUNDATION TRUST | D127: 13 | E127: 0.9230769231 | F127: 0 | G127: 11 | H127: 1 | I127: 1 | J127: 0 | K127: 0 | L127: 0 | M127: 0 | N127: 0 | O127: 13 | P127: 0 | Q127: 0 | R127: 0 | S127: 0
A128: Q80 | B128: RA7 | C128: UNIVERSITY HOSPITALS BRISTOL NHS FOUNDATION TRUST | D128: 89 | E128: 0.9662921348 | F128: 0.01123595506 | G128: 69 | H128: 17 | I128: 2 | J128: 1 | K128: 0 | L128: 0 | M128: 0 | N128: 0 | O128: 89 | P128: 0 | Q128: 0 | R128: 0 | S128: 0
A129: Q80 | B129: RA3 | C129: WESTON AREA HEALTH NHS TRUST | D129: 37 | E129: 1 | F129: 0 | G129: 30 | H129: 7 | I129: 0 | J129: 0 | K129: 0 | L129: 0 | M129: 0 | N129: 0 | O129: 37 | P129: 0 | Q129: 0 | R129: 0 | S129: 0
A130: Q80 | B130: RA4 | C130: YEOVIL DISTRICT HOSPITAL NHS FOUNDATION TRUST | D130: 2 | E130: * | F130: * | G130: * | H130: * | I130: * | J130: * | K130: * | L130: * | M130: * | N130: * | O130: * | P130: * | Q130: * | R130: * | S130: *
A131: Q81 | B131: RTK | C131: ASHFORD AND ST PETER'S HOSPITALS NHS FOUNDATION TRUST | D131: 15 | E131: 1 | F131: 0 | G131: * | H131: * | I131: * | J131: * | K131: * | L131: * | M131: * | N131: * | O131: * | P131: * | Q131: * | R131: * | S131: *
A132: Q81 | B132: RXH | C132: BRIGHTON AND SUSSEX UNIVERSITY HOSPITALS NHS TRUST | D132: 32 | E132: 0.96875 | F132: 0 | G132: 28 | H132: 3 | I132: 1 | J132: 0 | K132: 0 | L132: 0 | M132: 0 | N132: 0 | O132: 31 | P132: 0 | Q132: 0 | R132: 0 | S132: 1
A133: Q81 | B133: RN7 | C133: DARTFORD AND GRAVESHAM NHS TRUST | D133: 1 | E133: * | F133: * | G133: * | H133: * | I133: * | J133: * | K133: * | L133: * | M133: * | N133: * | O133: * | P133: * | Q133: * | R133: * | S133: *
A134: Q81 | B134: RVV | C134: EAST KENT HOSPITALS UNIVERSITY NHS FOUNDATION TRUST | D134: 19 | E134: 0.8421052632 | F134: 0 | G134: 13 | H134: 3 | I134: 3 | J134: 0 | K134: 0 | L134: 0 | M134: 0 | N134: 0 | O134: 19 | P134: 0 | Q134: 0 | R134: 0 | S134: 0
A135: Q81 | B135: RXC | C135: EAST SUSSEX HEALTHCARE NHS TRUST | D135: 15 | E135: 1 | F135: 0 | G135: 13 | H135: 2 | I135: 0 | J135: 0 | K135: 0 | L135: 0 | M135: 0 | N135: 14 | O135: 0 | P135: 0 | Q135: 0 | R135: 1 | S135: 0
A136: Q81 | B136: RDU | C136: FRIMLEY HEALTH NHS FOUNDATION TRUST | D136: 202 | E136: 0.9900990099 | F136: 0.009900990099 | G136: 173 | H136: 27 | I136: 0 | J136: 0 | K136: 2 | L136: 0 | M136: 0 | N136: 7 | O136: 195 | P136: 0 | Q136: 0 | R136: 0 | S136: 0
A137: Q81 | B137: RWF | C137: MAIDSTONE AND TUNBRIDGE WELLS NHS TRUST | D137: 20 | E137: 0.85 | F137: 0.05 | G137: 16 | H137: 1 | I137: 2 | J137: 0 | K137: 1 | L137: 0 | M137: 0 | N137: 0 | O137: 19 | P137: 0 | Q137: 0 | R137: 1 | S137: 0
A138: Q81 | B138: RPA | C138: MEDWAY NHS FOUNDATION TRUST | D138: 37 | E138: 1 | F138: 0 | G138: 34 | H138: 3 | I138: 0 | J138: 0 | K138: 0 | L138: 0 | M138: 0 | N138: 0 | O138: 37 | P138: 0 | Q138: 0 | R138: 0 | S138: 0
A139: Q81 | B139: RA2 | C139: ROYAL SURREY COUNTY HOSPITAL NHS FOUNDATION TRUST | D139: 25 | E139: 0.96 | F139: 0 | G139: 20 | H139: 4 | I139: 1 | J139: 0 | K139: 0 | L139: 0 | M139: 1 | N139: 0 | O139: 24 | P139: 0 | Q139: 0 | R139: 0 | S139: 0
A140: Q81 | B140: RTP | C140: SURREY AND SUSSEX HEALTHCARE NHS TRUST | D140: 84 | E140: 0.9404761905 | F140: 0.0119047619 | G140: 65 | H140: 14 | I140: 3 | J140: 1 | K140: 0 | L140: 1 | M140: 0 | N140: 0 | O140: 84 | P140: 0 | Q140: 0 | R140: 0 | S140: 0
A141: Q81 | B141: RYR | C141: WESTERN SUSSEX HOSPITALS NHS FOUNDATION TRUST | D141: 21 | E141: 1 | F141: 0 | G141: 20 | H141: 1 | I141: 0 | J141: 0 | K141: 0 | L141: 0 | M141: 0 | N141: 0 | O141: 1 | P141: 0 | Q141: 0 | R141: 20 | S141: 0
A142: Q82 | B142: RXQ | C142: BUCKINGHAMSHIRE HEALTHCARE NHS TRUST | D142: 35 | E142: 0.9714285714 | F142: 0 | G142: 19 | H142: 15 | I142: 1 | J142: 0 | K142: 0 | L142: 0 | M142: 0 | N142: 0 | O142: 35 | P142: 0 | Q142: 0 | R142: 0 | S142: 0
A143: Q82 | B143: RTE | C143: GLOUCESTERSHIRE HOSPITALS NHS FOUNDATION TRUST | D143: 2 | E143: * | F143: * | G143: * | H143: * | I143: * | J143: * | K143: * | L143: * | M143: * | N143: * | O143: * | P143: * | Q143: * | R143: * | S143: *
A144: Q82 | B144: RN3 | C144: GREAT WESTERN HOSPITALS NHS FOUNDATION TRUST | D144: 31 | E144: 1 | F144: 0 | G144: 28 | H144: 3 | I144: 0 | J144: 0 | K144: 0 | L144: 0 | M144: 0 | N144: 0 | O144: 31 | P144: 0 | Q144: 0 | R144: 0 | S144: 0
A145: Q82 | B145: RTH | C145: OXFORD UNIVERSITY HOSPITALS NHS TRUST | D145: 57 | E145: 0.9122807018 | F145: 0 | G145: 40 | H145: 12 | I145: 4 | J145: 0 | K145: 0 | L145: 1 | M145: 0 | N145: 0 | O145: 52 | P145: 0 | Q145: 0 | R145: 5 | S145: 0
A146: Q82 | B146: RHW | C146: ROYAL BERKSHIRE NHS FOUNDATION TRUST | D146: 52 | E146: 0.9615384615 | F146: 0.01923076923 | G146: 41 | H146: 9 | I146: 1 | J146: 0 | K146: 1 | L146: 0 | M146: 0 | N146: 0 | O146: 50 | P146: 0 | Q146: 0 | R146: 2 | S146: 0
A147: Q82 | B147: RD1 | C147: ROYAL UNITED HOSPITALS BATH NHS FOUNDATION TRUST | D147: 44 | E147: 1 | F147: 0 | G147: 35 | H147: 9 | I147: 0 | J147: 0 | K147: 0 | L147: 0 | M147: 0 | N147: 0 | O147: 44 | P147: 0 | Q147: 0 | R147: 0 | S147: 0
A148: Q82 | B148: RNZ | C148: SALISBURY NHS FOUNDATION TRUST | D148: 24 | E148: 0.9166666667 | F148: 0.04166666667 | G148: * | H148: * | I148: * | J148: * | K148: * | L148: * | M148: * | N148: * | O148: * | P148: * | Q148: * | R148: * | S148: *

Sheet Sites Q1
B6: Sort data by:
A9: Region (Geo) Code | B9: Trust Code | C9: Trust Name | D9: Site Code | E9: Site Name | F9: Total Responses | G9: Percentage Recommended | H9: Percentage Not Recommended | I9: Breakdown of Responses
I10: Extremely Likely | J10: Likely | K10: Neither | L10: Unlikely | M10: Extremely Unlikely | N10: Don't Know
E11: England | F11: 8401 | G11: 0.9456017141 | H11: 0.01928341864 | I11: 5866 | J11: 2078 | K11: 232 | L11: 73 | M11: 89 | N11: 63
E12: Selection (excluding suppressed data) | F12: =SUBTOTAL(9,F13:F298) -> 8401 | G12: =IFERROR((I12+J12)/SUM(I12:N12), "-") -> 0.9449393714 | H12: =IFERROR((L12+M12)/SUM(I12:N12), "-") -> 0.01942588468 | I12: =SUBTOTAL(9,I13:I298) -> 5604 | J12: =SUBTOTAL(9,J13:J298) -> 2033 | K12: 226 | L12: 72 | M12: 85 | N12: 62
A13: Q70 | B13: RBD | C13: DORSET COUNTY HOSPITAL NHS FOUNDATION TRUST | D13: RBD01 | E13: Dorset County Hospital - RBD01 | F13: 31 | G13: 0.8387096774 | H13: 0.06451612903 | I13: 23 | J13: 3 | K13: 3 | L13: 0 | M13: 2 | N13: 0
A14: Q70 | B14: RN5 | C14: HAMPSHIRE HOSPITALS NHS FOUNDATION TRUST | D14: RN542 | E14: Andover War Memorial Hospital - RN542 | F14: 2 | G14: * | H14: * | I14: * | J14: * | K14: * | L14: * | M14: * | N14: *
A15: Q70 | B15: RN5 | C15: HAMPSHIRE HOSPITALS NHS FOUNDATION TRUST | D15: RN506 | E15: Basingstoke and North Hampshire Hospital - RN506 | F15: 77 | G15: 0.974025974 | H15: 0.01298701299 | I15: 52 | J15: 23 | K15: 1 | L15: 0 | M15: 1 | N15: 0
A16: Q70 | B16: RN5 | C16: HAMPSHIRE HOSPITALS NHS FOUNDATION TRUST | D16: RN541 | E16: Royal Hampshire County Hospital - RN541 | F16: 18 | G16: 1 | H16: 0 | I16: * | J16: * | K16: * | L16: * | M16: * | N16: *
A17: Q70 | B17: R1F | C17: ISLE OF WIGHT NHS TRUST | D17: R1F01 | E17: St Mary's Hospital - R1F01 | F17: 31 | G17: 0.935483871 | H17: 0.06451612903 | I17: 24 | J17: 5 | K17: 0 | L17: 2 | M17: 0 | N17: 0
A18: Q70 | B18: RD3 | C18: POOLE HOSPITAL NHS FOUNDATION TRUST | D18: RD304 | E18: Poole General Hospital NHS Trust HQ - RD304 | F18: 41 | G18: 0.8292682927 | H18: 0.0487804878 | I18: 25 | J18: 9 | K18: 3 | L18: 1 | M18: 1 | N18: 2
A19: Q70 | B19: RHU | C19: PORTSMOUTH HOSPITALS NHS TRUST | D19: RHU10 | E19: Gosport War Memorial Hospital - RHU10 | F19: 22 | G19: 1 | H19: 0 | I19: 20 | J19: 2 | K19: 0 | L19: 0 | M19: 0 | N19: 0
A20: Q70 | B20: RHU | C20: PORTSMOUTH HOSPITALS NHS TRUST | D20: RHU04 | E20: Petersfield Community Hospital - RHU04 | F20: 16 | G20: 0.9375 | H20: 0 | I20: 12 | J20: 3 | K20: 1 | L20: 0 | M20: 0 | N20: 0
A21: Q70 | B21: RHU | C21: PORTSMOUTH HOSPITALS NHS TRUST | D21: RHU03 | E21: Queen Alexandra Hospital - RHU03 | F21: 4 | G21: * | H21: * | I21: * | J21: * | K21: * | L21: * | M21: * | N21: *
A22: Q70 | B22: RHU | C22: PORTSMOUTH HOSPITALS NHS TRUST | D22: RHU02 | E22: St Mary's Hospital - RHU02 | F22: 10 | G22: 0.9 | H22: 0 | I22: * | J22: * | K22: * | L22: * | M22: * | N22: *
A23: Q70 | B23: RDZ | C23: THE ROYAL BOURNEMOUTH AND CHRISTCHURCH HOSPITALS NHS FOUNDATION TRUST | D23: RDZ20 | E23: Royal Bournemouth General Hospital - RDZ20 | F23: 73 | G23: 0.9726027397 | H23: 0.01369863014 | I23: 57 | J23: 14 | K23: 1 | L23: 1 | M23: 0 | N23: 0
A24: Q70 | B24: RHM | C24: UNIVERSITY HOSPITAL SOUTHAMPTON NHS FOUNDATION TRUST | D24: RHM12 | E24: Princess Anne Hospital - RHM12 | F24: 70 | G24: 0.9285714286 | H24: 0.02857142857 | I24: 37 | J24: 28 | K24: 1 | L24: 1 | M24: 1 | N24: 2
A25: Q71 | B25: RF4 | C25: BARKING, HAVERING AND REDBRIDGE UNIVERSITY HOSPITALS NHS TRUST | D25: RF4QH | E25: Queen's Hospital - RF4QH | F25: 254 | G25: 0.9842519685 | H25: 0.003937007874 | I25: 193 | J25: 57 | K25: 3 | L25: 0 | M25: 1 | N25: 0
A26: Q71 | B26: R1H | C26: BARTS HEALTH NHS TRUST | D26: R1H90 | E26: Blt Birth Centre - R1H90 | F26: 1 | G26: * | H26: * | I26: * | J26: * | K26: * | L26: * | M26: * | N26: *
A27: Q71 | B27: R1H | C27: BARTS HEALTH NHS TRUST | D27: R1HNH | E27: Newham General Hospital - R1HNH | F27: 1 | G27: * | H27: * | I27: * | J27: * | K27: * | L27: * | M27: * | N27: *
A28: Q71 | B28: R1H | C28: BARTS HEALTH NHS TRUST | D28: R1HXXX | E28: Non-hospital site - R1HXXX | F28: 7 | G28: 1 | H28: 0 | I28: 6 | J28: 1 | K28: 0 | L28: 0 | M28: 0 | N28: 0
A29: Q71 | B29: R1H | C29: BARTS HEALTH NHS TRUST | D29: R1H12 | E29: The Royal London Hospital - R1H12 | F29: 22 | G29: 1 | H29: 0 | I29: 13 | J29: 9 | K29: 0 | L29: 0 | M29: 0 | N29: 0
A30: Q71 | B30: R1H | C30: BARTS HEALTH NHS TRUST | D30: R1HKH | E30: Whipps Cross University Hospital - R1HKH | F30: 7 | G30: 1 | H30: 0 | I30: 6 | J30: 1 | K30: 0 | L30: 0 | M30: 0 | N30: 0
A31: Q71 | B31: RQM | C31: CHELSEA AND WESTMINSTER HOSPITAL NHS FOUNDATION TRUST | D31: RQM01 | E31: Chelsea and Westminster Hospital - RQM01 | F31: 64 | G31: 0.90625 | H31: 0.046875 | I31: 43 | J31: 15 | K31: 3 | L31: 2 | M31: 1 | N31: 0
A32: Q71 | B32: RJ6 | C32: CROYDON HEALTH SERVICES NHS TRUST | D32: RJ611 | E32: Mayday University Hospital - RJ611 | F32: 29 | G32: 0.9655172414 | H32: 0 | I32: 19 | J32: 9 | K32: 0 | L32: 0 | M32: 0 | N32: 1
A33: Q71 | B33: RVR | C33: EPSOM AND ST HELIER UNIVERSITY HOSPITALS NHS TRUST | D33: RVR50 | E33: Epsom Hospital - RVR50 | F33: 54 | G33: 0.8333333333 | H33: 0.07407407407 | I33: 31 | J33: 14 | K33: 2 | L33: 2 | M33: 2 | N33: 3
A34: Q71 | B34: RVR | C34: EPSOM AND ST HELIER UNIVERSITY HOSPITALS NHS TRUST | D34: RVRXXX | E34: Non-hospital site - RVRXXX | F34: 22 | G34: 1 | H34: 0 | I34: 16 | J34: 6 | K34: 0 | L34: 0 | M34: 0 | N34: 0
A35: Q71 | B35: RVR | C35: EPSOM AND ST HELIER UNIVERSITY HOSPITALS NHS TRUST | D35: RVR05 | E35: St Helier Hospital - RVR05 | F35: 61 | G35: 0.9344262295 | H35: 0.01639344262 | I35: 43 | J35: 14 | K35: 3 | L35: 1 | M35: 0 | N35: 0
A36: Q71 | B36: RJ1 | C36: GUY'S AND ST THOMAS' NHS FOUNDATION TRUST | D36: RJ122 | E36: St Thomas' Hospital - RJ122 | F36: 12 | G36: 0.9166666667 | H36: 0 | I36: 8 | J36: 3 | K36: 1 | L36: 0 | M36: 0 | N36: 0
A37: Q71 | B37: RQX | C37: HOMERTON UNIVERSITY HOSPITAL NHS FOUNDATION TRUST | D37: RQXM1 | E37: Homerton University Hospital - RQXM1 | F37: 147 | G37: 0.9591836735 | H37: 0.02040816327 | I37: 87 | J37: 54 | K37: 2 | L37: 1 | M37: 2 | N37: 1
A38: Q71 | B38: RYJ | C38: IMPERIAL COLLEGE HEALTHCARE NHS TRUST | D38: RYJ04 | E38: Queen Charlotte's Hospital - RYJ04 | F38: 26 | G38: 0.9230769231 | H38: 0 | I38: 12 | J38: 12 | K38: 1 | L38: 0 | M38: 0 | N38: 1
A39: Q71 | B39: RYJ | C39: IMPERIAL COLLEGE HEALTHCARE NHS TRUST | D39: RYJ01 | E39: St Mary's Hospital (HQ) - RYJ01 | F39: 121 | G39: 0.8512396694 | H39: 0.09090909091 | I39: 47 | J39: 56 | K39: 4 | L39: 10 | M39: 1 | N39: 3
A40: Q71 | B40: RJZ | C40: KING'S COLLEGE HOSPITAL NHS FOUNDATION TRUST | D40: RJZ01 | E40: King's College Hospital (Denmark Hill) - RJZ01 | F40: 62 | G40: 0.935483871 | H40: 0.04838709677 | I40: 44 | J40: 14 | K40: 1 | L40: 2 | M40: 1 | N40: 0
A41: Q71 | B41: RJZ | C41: KING'S COLLEGE HOSPITAL NHS FOUNDATION TRUST | D41: RJZ30 | E41: Princess Royal University Hospital - RJZ30 | F41: 48 | G41: 0.9375 | H41: 0.02083333333 | I41: 22 | J41: 23 | K41: 1 | L41: 1 | M41: 0 | N41: 1
A42: Q71 | B42: RAX | C42: KINGSTON HOSPITAL NHS FOUNDATION TRUST | D42: RAX01 | E42: Kingston Hospital - RAX01 | F42: 68 | G42: 0.9411764706 | H42: 0 | I42: 41 | J42: 23 | K42: 4 | L42: 0 | M42: 0 | N42: 0
A43: Q71 | B43: RAX | C43: KINGSTON HOSPITAL NHS FOUNDATION TRUST | D43: RAXXXX | E43: Non-hospital site - RAXXXX | F43: 20 | G43: 1 | H43: 0 | I43: 16 | J43: 4 | K43: 0 | L43: 0 | M43: 0 | N43: 0
A44: Q71 | B44: RJ2 | C44: LEWISHAM AND GREENWICH NHS TRUST | D44: RJ2XXX | E44: Non-hospital site - RJ2XXX | F44: 45 | G44: 1 | H44: 0 | I44: 37 | J44: 8 | K44: 0 | L44: 0 | M44: 0 | N44: 0
A45: Q71 | B45: RJ2 | C45: LEWISHAM AND GREENWICH NHS TRUST | D45: RJ231 | E45: Queen Elizabeth Hospital - RJ231 | F45: 32 | G45: 0.9375 | H45: 0.03125 | I45: 6 | J45: 24 | K45: 1 | L45: 0 | M45: 1 | N45: 0
A46: Q71 | B46: RJ2 | C46: LEWISHAM AND GREENWICH NHS TRUST | D46: RJ224 | E46: University Hospital Lewisham - RJ224 | F46: 62 | G46: 0.7419354839 | H46: 0.09677419355 | I46: 13 | J46: 33 | K46: 5 | L46: 1 | M46: 5 | N46: 5
A47: Q71 | B47: R1K | C47: LONDON NORTH WEST HEALTHCARE NHS TRUST | D47: R1K02 | E47: Central Middlesex Hospital - R1K02 | F47: 63 | G47: 0.9365079365 | H47: 0 | I47: 37 | J47: 22 | K47: 2 | L47: 0 | M47: 0 | N47: 2
A48: Q71 | B48: R1K | C48: LONDON NORTH WEST HEALTHCARE NHS TRUST | D48: R1KXXX | E48: Non-hospital site - R1KXXX | F48: 15 | G48: 0.5333333333 | H48: 0.4666666667 | I48: 8 | J48: 0 | K48: 0 | L48: 7 | M48: 0 | N48: 0
A49: Q71 | B49: R1K | C49: LONDON NORTH WEST HEALTHCARE NHS TRUST | D49: R1K01 | E49: Northwick Park Hospital - R1K01 | F49: 67 | G49: 0.8507462687 | H49: 0.05970149254 | I49: 23 | J49: 34 | K49: 5 | L49: 3 | M49: 1 | N49: 1
A50: Q71 | B50: RAP | C50: NORTH MIDDLESEX UNIVERSITY HOSPITAL NHS TRUST | D50: RAPNM | E50: North Middlesex Hospital - RAPNM | F50: 102 | G50: 0.8725490196 | H50: 0.02941176471 | I50: 21 | J50: 68 | K50: 7 | L50: 2 | M50: 1 | N50: 3
A51: Q71 | B51: RAL | C51: ROYAL FREE LONDON NHS FOUNDATION TRUST | D51: RAL26 | E51: Barnet Hospital - RAL26 | F51: 8 | G51: 1 | H51: 0 | I51: 7 | J51: 1 | K51: 0 | L51: 0 | M51: 0 | N51: 0
A52: Q71 | B52: RAL | C52: ROYAL FREE LONDON NHS FOUNDATION TRUST | D52: RAL01 | E52: Royal Free Hospital - RAL01 | F52: 11 | G52: 0.8181818182 | H52: 0.09090909091 | I52: 7 | J52: 2 | K52: 1 | L52: 1 | M52: 0 | N52: 0
A53: Q71 | B53: RJ7 | C53: ST GEORGE'S UNIVERSITY HOSPITALS NHS FOUNDATION TRUST | D53: RJ7XXX | E53: Non-hospital site - RJ7XXX | F53: 14 | G53: 1 | H53: 0 | I53: 12 | J53: 2 | K53: 0 | L53: 0 | M53: 0 | N53: 0
A54: Q71 | B54: RJ7 | C54: ST GEORGE'S UNIVERSITY HOSPITALS NHS FOUNDATION TRUST | D54: RJ701 | E54: St George's Hospital (Tooting) - RJ701 | F54: 10 | G54: 0.4 | H54: 0.4 | I54: 2 | J54: 2 | K54: 2 | L54: 0 | M54: 4 | N54: 0
A55: Q71 | B55: RAS | C55: THE HILLINGDON HOSPITALS NHS FOUNDATION TRUST | D55: RAS01 | E55: Hillingdon Hospital - RAS01 | F55: 11 | G55: 0.8181818182 | H55: 0.09090909091 | I55: 7 | J55: 2 | K55: 1 | L55: 0 | M55: 1 | N55: 0
A56: Q71 | B56: RKE | C56: THE WHITTINGTON HOSPITAL NHS TRUST | D56: RKEXXX | E56: Non-hospital site - RKEXXX | F56: 41 | G56: 0.9512195122 | H56: 0 | I56: 37 | J56: 2 | K56: 2 | L56: 0 | M56: 0 | N56: 0
A57: Q71 | B57: RKE | C57: THE WHITTINGTON HOSPITAL NHS TRUST | D57: RKEQ4 | E57: The Whittington Hospital - RKEQ4 | F57: 0 | G57: NA | H57: NA | I57: 0 | J57: 0 | K57: 0 | L57: 0 | M57: 0 | N57: 0
A58: Q71 | B58: RRV | C58: UNIVERSITY COLLEGE LONDON HOSPITALS NHS FOUNDATION TRUST | D58: RRV11 | E58: University College Hospital Elizabeth Garrett Anderson Wing - RRV11 | F58: 221 | G58: 0.9547511312 | H58: 0 | I58: 159 | J58: 52 | K58: 8 | L58: 0 | M58: 0 | N58: 2
A59: Q71 | B59: RFW | C59: WEST MIDDLESEX UNIVERSITY HOSPITAL NHS TRUST | D59: RFW01 | E59: West Middlesex University Hospital - RFW01 | F59: 67 | G59: 0.8358208955 | H59: 0.07462686567 | I59: 39 | J59: 17 | K59: 5 | L59: 3 | M59: 2 | N59: 1
A60: Q72 | B60: RCF | C60: AIREDALE NHS FOUNDATION TRUST | D60: RCF22 | E60: Airedale General Hospital - RCF22 | F60: 21 | G60: 1 | H60: 0 | I60: 17 | J60: 4 | K60: 0 | L60: 0 | M60: 0 | N60: 0
A61: Q72 | B61: RFF | C61: BARNSLEY HOSPITAL NHS FOUNDATION TRUST | D61: RFFAA | E61: Barnsley Hospital NHS Foundation Trust HQ - RFFAA | F61: 84 | G61: 0.9880952381 | H61: 0 | I61: 71 | J61: 12 | K61: 1 | L61: 0 | M61: 0 | N61: 0
A62: Q72 | B62: RAE | C62: BRADFORD TEACHING HOSPITALS NHS FOUNDATION TRUST | D62: RAE01 | E62: Bradford Royal Infirmary - RAE01 | F62: 0 | G62: NA | H62: NA | I62: 0 | J62: 0 | K62: 0 | L62: 0 | M62: 0 | N62: 0
A63: Q72 | B63: RAE | C63: BRADFORD TEACHING HOSPITALS NHS FOUNDATION TRUST | D63: RAEXXX | E63: Non-hospital site - RAEXXX | F63: 6 | G63: 1 | H63: 0 | I63: 6 | J63: 0 | K63: 0 | L63: 0 | M63: 0 | N63: 0
A64: Q72 | B64: RWY | C64: CALDERDALE AND HUDDERSFIELD NHS FOUNDATION TRUST | D64: RWYXXX | E64: Non-hospital site - RWYXXX | F64: 258 | G64: 0.9689922481 | H64: 0.01162790698 | I64: 191 | J64: 59 | K64: 4 | L64: 1 | M64: 2 | N64: 1
A65: Q72 | B65: RP5 | C65: DONCASTER AND BASSETLAW HOSPITALS NHS FOUNDATION TRUST | D65: RP5BA | E65: Bassetlaw Hospital - RP5BA | F65: 8 | G65: 0.75 | H65: 0.125 | I65: 1 | J65: 5 | K65: 1 | L65: 1 | M65: 0 | N65: 0
A66: Q72 | B66: RP5 | C66: DONCASTER AND BASSETLAW HOSPITALS NHS FOUNDATION TRUST | D66: RP5DR | E66: Doncaster Royal Infirmary - RP5DR | F66: 26 | G66: 0.9615384615 | H66: 0 | I66: 13 | J66: 12 | K66: 1 | L66: 0 | M66: 0 | N66: 0
A67: Q72 | B67: RP5 | C67: DONCASTER AND BASSETLAW HOSPITALS NHS FOUNDATION TRUST | D67: RP5XXX | E67: Non-hospital site - RP5XXX | F67: 55 | G67: 0.9636363636 | H67: 0.01818181818 | I67: 44 | J67: 9 | K67: 1 | L67: 0 | M67: 1 | N67: 0
A68: Q72 | B68: RCD | C68: HARROGATE AND DISTRICT NHS FOUNDATION TRUST | D68: RCD01 | E68: Harrogate District Hospital - RCD01 | F68: 8 | G68: 1 | H68: 0 | I68: 7 | J68: 1 | K68: 0 | L68: 0 | M68: 0 | N68: 0
A69: Q72 | B69: RCD | C69: HARROGATE AND DISTRICT NHS FOUNDATION TRUST | D69: RCDXXX | E69: Non-hospital site - RCDXXX | F69: 26 | G69: 0.9230769231 | H69: 0 | I69: 20 | J69: 4 | K69: 2 | L69: 0 | M69: 0 | N69: 0
A70: Q72 | B70: RWA | C70: HULL AND EAST YORKSHIRE HOSPITALS NHS TRUST | D70: RWA01 | E70: Hull Royal Infirmary - RWA01 | F70: 1 | G70: * | H70: * | I70: * | J70: * | K70: * | L70: * | M70: * | N70: *
A71: Q72 | B71: RWA | C71: HULL AND EAST YORKSHIRE HOSPITALS NHS TRUST | D71: RWAXXX | E71: Non-hospital site - RWAXXX | F71: 44 | G71: 0.9772727273 | H71: 0 | I71: * | J71: * | K71: * | L71: * | M71: * | N71: *
A72: Q72 | B72: RR8 | C72: LEEDS TEACHING HOSPITALS NHS TRUST | D72: RR801 | E72: Leeds General Infirmary - RR801 | F72: 17 | G72: 1 | H72: 0 | I72: * | J72: * | K72: * | L72: * | M72: * | N72: *
A73: Q72 | B73: RR8 | C73: LEEDS TEACHING HOSPITALS NHS TRUST | D73: RR8XXX | E73: Non-Hospital Site - RR8XXX | F73: 21 | G73: 0.9523809524 | H73: 0 | I73: 17 | J73: 3 | K73: 1 | L73: 0 | M73: 0 | N73: 0
A74: Q72 | B74: RR8 | C74: LEEDS TEACHING HOSPITALS NHS TRUST | D74: RR813 | E74: St James's University Hospital - RR813 | F74: 2 | G74: * | H74: * | I74: * | J74: * | K74: * | L74: * | M74: * | N74: *
A75: Q72 | B75: RXF | C75: MID YORKSHIRE HOSPITALS NHS TRUST | D75: RXF10 | E75: Dewsbury and District Hospital - RXF10 | F75: 16 | G75: 0.875 | H75: 0 | I75: 11 | J75: 3 | K75: 2 | L75: 0 | M75: 0 | N75: 0
A76: Q72 | B76: RXF | C76: MID YORKSHIRE HOSPITALS NHS TRUST | D76: RXFXXX | E76: Non-hospital site - RXFXXX | F76: 63 | G76: 0.9682539683 | H76: 0 | I76: 38 | J76: 23 | K76: 2 | L76: 0 | M76: 0 | N76: 0
A77: Q72 | B77: RXF | C77: MID YORKSHIRE HOSPITALS NHS TRUST | D77: RXF05 | E77: Pinderfields General Hospital - RXF05 | F77: 40 | G77: 0.875 | H77: 0.05 | I77: 25 | J77: 10 | K77: 3 | L77: 0 | M77: 2 | N77: 0
A78: Q72 | B78: RXF | C78: MID YORKSHIRE HOSPITALS NHS TRUST | D78: RXF03 | E78: Pontefract General Infirmary - RXF03 | F78: 23 | G78: 1 | H78: 0 | I78: 15 | J78: 8 | K78: 0 | L78: 0 | M78: 0 | N78: 0
A79: Q72 | B79: RJL | C79: NORTHERN LINCOLNSHIRE AND GOOLE NHS FOUNDATION TRUST | D79: RJL30 | E79: Diana, Princess Of Wales Hospital - RJL30 | F79: 32 | G79: 0.4375 | H79: 0.46875 | I79: 12 | J79: 2 | K79: 3 | L79: 0 | M79: 15 | N79: 0
A80: Q72 | B80: RJL | C80: NORTHERN LINCOLNSHIRE AND GOOLE NHS FOUNDATION TRUST | D80: RJL31 | E80: Goole and District Hospital (Acute) - RJL31 | F80: 0 | G80: NA | H80: NA | I80: 0 | J80: 0 | K80: 0 | L80: 0 | M80: 0 | N80: 0
A81: Q72 | B81: RJL | C81: NORTHERN LINCOLNSHIRE AND GOOLE NHS FOUNDATION TRUST | D81: RJL32 | E81: Scunthorpe General Hospital - RJL32 | F81: 117 | G81: 0.8974358974 | H81: 0 | I81: 41 | J81: 64 | K81: 12 | L81: 0 | M81: 0 | N81: 0
A82: Q72 | B82: RHQ | C82: SHEFFIELD TEACHING HOSPITALS NHS FOUNDATION TRUST | D82: RHQHH | E82: Royal Hallamshire Hospital - RHQHH | F82: 45 | G82: 1 | H82: 0 | I82: 38 | J82: 7 | K82: 0 | L82: 0 | M82: 0 | N82: 0
A83: Q72 | B83: RFR | C83: THE ROTHERHAM NHS FOUNDATION TRUST | D83: RFRPA | E83: Rotherham District General Hospital - RFRPA | F83: 113 | G83: 0.982300885 | H83: 0 | I83: 96 | J83: 15 | K83: 2 | L83: 0 | M83: 0 | N83: 0
A84: Q72 | B84: RCB | C84: YORK TEACHING HOSPITAL NHS FOUNDATION TRUST | D84: RCBCA | E84: Scarborough General Hospital - RCBCA | F84: 43 | G84: 0.9534883721 | H84: 0 | I84: 34 | J84: 7 | K84: 2 | L84: 0 | M84: 0 | N84: 0
A85: Q72 | B85: RCB | C85: YORK TEACHING HOSPITAL NHS FOUNDATION TRUST | D85: RCB55 | E85: York Hospital - RCB55 | F85: 86 | G85: 0.976744186 | H85: 0 | I85: 62 | J85: 22 | K85: 2 | L85: 0 | M85: 0 | N85: 0
A86: Q73 | B86: RXL | C86: BLACKPOOL TEACHING HOSPITALS NHS FOUNDATION TRUST | D86: RXL01 | E86: Blackpool Victoria Hospital - RXL01 | F86: 17 | G86: 1 | H86: 0 | I86: * | J86: * | K86: * | L86: * | M86: * | N86: *
A87: Q73 | B87: RXL | C87: BLACKPOOL TEACHING HOSPITALS NHS FOUNDATION TRUST | D87: RXLXXX | E87: Non-hospital site - RXLXXX | F87: 1 | G87: * | H87: * | I87: * | J87: * | K87: * | L87: * | M87: * | N87: *
A88: Q73 | B88: RMC | C88: BOLTON NHS FOUNDATION TRUST | D88: RMC01 | E88: Royal Bolton Hospital - RMC01 | F88: 2 | G88: * | H88: * | I88: * | J88: * | K88: * | L88: * | M88: * | N88: *
A89: Q73 | B89: RY2 | C89: BRIDGEWATER COMMUNITY HEALTHCARE NHS FOUNDATION TRUST | D89: RY28P | E89: Health Care Resource Centre - RY28P | F89: 4 | G89: * | H89: * | I89: * | J89: * | K89: * | L89: * | M89: * | N89: *
A90: Q73 | B90: RY2 | C90: BRIDGEWATER COMMUNITY HEALTHCARE NHS FOUNDATION TRUST | D90: RY2XXX | E90: Non-hospital site - RY2XXX | F90: 12 | G90: 1 | H90: 0 | I90: * | J90: * | K90: * | L90: * | M90: * | N90: *
A91: Q73 | B91: RW3 | C91: CENTRAL MANCHESTER UNIVERSITY HOSPITALS NHS FOUNDATION TRUST | D91: RW3SM | E91: St Mary's Hospital - RW3SM | F91: 14 | G91: 0.7857142857 | H91: 0.07142857143 | I91: 7 | J91: 4 | K91: 2 | L91: 1 | M91: 0 | N91: 0
A92: Q73 | B92: RXR | C92: EAST LANCASHIRE HOSPITALS NHS TRUST | D92: RXR20 | E92: Royal Blackburn Hospital - RXR20 | F92: 76 | G92: 0.9868421053 | H92: 0 | I92: 59 | J92: 16 | K92: 1 | L92: 0 | M92: 0 | N92: 0
A93: Q73 | B93: RXN | C93: LANCASHIRE TEACHING HOSPITALS NHS FOUNDATION TRUST | D93: RXN02 | E93: Royal Preston Hospital - RXN02 | F93: 63 | G93: 0.873015873 | H93: 0.04761904762 | I93: 42 | J93: 13 | K93: 4 | L93: 1 | M93: 2 | N93: 1
A94: Q73 | B94: RW6 | C94: PENNINE ACUTE HOSPITALS NHS TRUST | D94: RW6XXX | E94: Non-hospital site - RW6XXX | F94: 80 | G94: 0.9875 | H94: 0 | I94: 65 | J94: 14 | K94: 0 | L94: 0 | M94: 0 | N94: 1
A95: Q73 | B95: RWJ | C95: STOCKPORT NHS FOUNDATION TRUST | D95: RWJ09 | E95: Stepping Hill Hospital - RWJ09 | F95: 91 | G95: 0.9450549451 | H95: 0.02197802198 | I95: 47 | J95: 39 | K95: 2 | L95: 1 | M95: 1 | N95: 1
A96: Q73 | B96: RMP | C96: TAMESIDE HOSPITAL NHS FOUNDATION TRUST | D96: RMP01 | E96: Tameside General Hospital - RMP01 | F96: 3 | G96: * | H96: * | I96: * | J96: * | K96: * | L96: * | M96: * | N96: *
A97: Q73 | B97: RM2 | C97: UNIVERSITY HOSPITAL OF SOUTH MANCHESTER NHS FOUNDATION TRUST | D97: RM2XXX | E97: Non-hospital site - RM2XXX | F97: 11 | G97: 0.9090909091 | H97: 0 | I97: 8 | J97: 2 | K97: 1 | L97: 0 | M97: 0 | N97: 0
A98: Q73 | B98: RRF | C98: WRIGHTINGTON, WIGAN AND LEIGH NHS FOUNDATION TRUST | D98: RRF02 | E98: Royal Albert Edward Infirmary - RRF02 | F98: 61 | G98: 0.9672131148 | H98: 0.01639344262 | I98: 43 | J98: 16 | K98: 1 | L98: 0 | M98: 1 | N98: 0
A99: Q74 | B99: RLN | C99: CITY HOSPITALS SUNDERLAND NHS FOUNDATION TRUST | D99: RLNXXX | E99: Non-hospital site - RLNXXX | F99: 59 | G99: 0.9661016949 | H99: 0 | I99: 45 | J99: 12 | K99: 2 | L99: 0 | M99: 0 | N99: 0
A100: Q74 | B100: RXP | C100: COUNTY DURHAM AND DARLINGTON NHS FOUNDATION TRUST | D100: RXPDA | E100: Darlington Memorial Hospital - RXPDA | F100: 22 | G100: 1 | H100: 0 | I100: 14 | J100: 8 | K100: 0 | L100: 0 | M100: 0 | N100: 0
A101: Q74 | B101: RXP | C101: COUNTY DURHAM AND DARLINGTON NHS FOUNDATION TRUST | D101: RXPXXX | E101: Non-hospital site - RXPXXX | F101: 20 | G101: 1 | H101: 0 | I101: 18 | J101: 2 | K101: 0 | L101: 0 | M101: 0 | N101: 0
A102: Q74 | B102: RXP | C102: COUNTY DURHAM AND DARLINGTON NHS FOUNDATION TRUST | D102: RXPCP | E102: University Hospital Of North Durham - RXPCP | F102: 20 | G102: 1 | H102: 0 | I102: 13 | J102: 7 | K102: 0 | L102: 0 | M102: 0 | N102: 0
A103: Q74 | B103: RR7 | C103: GATESHEAD HEALTH NHS FOUNDATION TRUST | D103: RR7EN | E103: Queen Elizabeth Hospital - RR7EN | F103: 19 | G103: 0.9473684211 | H103: 0 | I103: 17 | J103: 1 | K103: 1 | L103: 0 | M103: 0 | N103: 0
A104: Q74 | B104: RNL | C104: NORTH CUMBRIA UNIVERSITY HOSPITALS NHS TRUST | D104: RNLXXX | E104: Non-hospital site - RNLXXX | F104: 78 | G104: 0.9871794872 | H104: 0 | I104: 69 | J104: 8 | K104: 1 | L104: 0 | M104: 0 | N104: 0
A105: Q74 | B105: RVW | C105: NORTH TEES AND HARTLEPOOL NHS FOUNDATION TRUST | D105: RVWXXX | E105: Non-hospital site - RVWXXX | F105: 9 | G105: 0.8888888889 | H105: 0.1111111111 | I105: 5 | J105: 3 | K105: 0 | L105: 0 | M105: 1 | N105: 0
A106: Q74 | B106: RTF | C106: NORTHUMBRIA HEALTHCARE NHS FOUNDATION TRUST | D106: RTFXXX | E106: Non-hospital site - RTFXXX | F106: 48 | G106: 1 | H106: 0 | I106: 41 | J106: 7 | K106: 0 | L106: 0 | M106: 0 | N106: 0
A107: Q74 | B107: RTR | C107: SOUTH TEES HOSPITALS NHS FOUNDATION TRUST | D107: RTRXXX | E107: Non-hospital site - RTRXXX | F107: 7 | G107: 1 | H107: 0 | I107: * | J107: * | K107: * | L107: * | M107: * | N107: *
A108: Q74 | B108: RE9 | C108: SOUTH TYNESIDE NHS FOUNDATION TRUST | D108: RE9XXX | E108: Non-hospital site - RE9XXX | F108: 23 | G108: 1 | H108: 0 | I108: 19 | J108: 4 | K108: 0 | L108: 0 | M108: 0 | N108: 0
A109: Q74 | B109: RE9 | C109: SOUTH TYNESIDE NHS FOUNDATION TRUST | D109: RE9GA | E109: South Tyneside District Hospital - RE9GA | F109: 19 | G109: 0.9473684211 | H109: 0 | I109: 14 | J109: 4 | K109: 1 | L109: 0 | M109: 0 | N109: 0
A110: Q74 | B110: RTD | C110: THE NEWCASTLE UPON TYNE HOSPITALS NHS FOUNDATION TRUST | D110: RTD02 | E110: The Royal Victoria Infirmary - RTD02 | F110: 1 | G110: * | H110: * | I110: * | J110: * | K110: * | L110: * | M110: * | N110: *
A111: Q74 | B111: RTX | C111: UNIVERSITY HOSPITALS OF MORECAMBE BAY NHS FOUNDATION TRUST | D111: RTXBU | E111: Furness General Hospital - RTXBU | F111: 28 | G111: 1 | H111: 0 | I111: 17 | J111: 11 | K111: 0 | L111: 0 | M111: 0 | N111: 0
A112: Q74 | B112: RTX | C112: UNIVERSITY HOSPITALS OF MORECAMBE BAY NHS FOUNDATION TRUST | D112: RTXXXX | E112: Non-hospital site - RTXXXX | F112: 5 | G112: 1 | H112: 0 | I112: 4 | J112: 1 | K112: 0 | L112: 0 | M112: 0 | N112: 0
A113: Q74 | B113: RTX | C113: UNIVERSITY HOSPITALS OF MORECAMBE BAY NHS FOUNDATION TRUST | D113: RTX02 | E113: Royal Lancaster Infirmary - RTX02 | F113: 31 | G113: 1 | H113: 0 | I113: 16 | J113: 15 | K113: 0 | L113: 0 | M113: 0 | N113: 0
A114: Q74 | B114: RTX | C114: UNIVERSITY HOSPITALS OF MORECAMBE BAY NHS FOUNDATION TRUST | D114: RTXBW | E114: Westmorland General Hospital - RTXBW | F114: 12 | G114: 1 | H114: 0 | I114: 8 | J114: 4 | K114: 0 | L114: 0 | M114: 0 | N114: 0
A115: Q75 | B115: RJR | C115: COUNTESS OF CHESTER HOSPITAL NHS FOUNDATION TRUST | D115: RJR05 | E115: Countess Of Chester Hospital - RJR05 | F115: 1 | G115: * | H115: * | I115: * | J115: * | K115: * | L115: * | M115: * | N115: *
A116: Q75 | B116: RJR | C116: COUNTESS OF CHESTER HOSPITAL NHS FOUNDATION TRUST | D116: RJRXXX | E116: Non-hospital site - RJRXXX | F116: 0 | G116: NA | H116: NA | I116: 0 | J116: 0 | K116: 0 | L116: 0 | M116: 0 | N116: 0
A117: Q75 | B117: RJN | C117: EAST CHESHIRE NHS TRUST | D117: RJN71 | E117: Macclesfield District General Hospital - RJN71 | F117: 0 | G117: NA | H117: NA | I117: 0 | J117: 0 | K117: 0 | L117: 0 | M117: 0 | N117: 0
A118: Q75 | B118: RJN | C118: EAST CHESHIRE NHS TRUST | D118: RJNXXX | E118: Non-hospital site - RJNXXX | F118: 45 | G118: 0.9777777778 | H118: 0 | I118: 38 | J118: 6 | K118: 0 | L118: 0 | M118: 0 | N118: 1
A119: Q75 | B119: REP | C119: LIVERPOOL WOMEN'S NHS FOUNDATION TRUST | D119: REP01 | E119: Liverpool Womens Hospital - REP01 | F119: 15 | G119: 0.9333333333 | H119: 0.06666666667 | I119: 12 | J119: 2 | K119: 0 | L119: 0 | M119: 1 | N119: 0
A120: Q75 | B120: RBT | C120: MID CHESHIRE HOSPITALS NHS FOUNDATION TRUST | D120: RBT20 | E120: Leighton Hospital - RBT20 | F120: 92 | G120: 0.9130434783 | H120: 0.02173913043 | I120: 61 | J120: 23 | K120: 2 | L120: 1 | M120: 1 | N120: 4
A121: Q75 | B121: RVY | C121: SOUTHPORT AND ORMSKIRK HOSPITAL NHS TRUST | D121: RVYXXX | E121: Non-hospital site - RVYXXX | F121: 22 | G121: 1 | H121: 0 | I121: 16 | J121: 6 | K121: 0 | L121: 0 | M121: 0 | N121: 0
A122: Q75 | B122: RBN | C122: ST HELENS AND KNOWSLEY HOSPITALS NHS TRUST | D122: RBN01 | E122: Whiston Hospital - RBN01 | F122: 79 | G122: 0.9746835443 | H122: 0 | I122: 59 | J122: 18 | K122: 2 | L122: 0 | M122: 0 | N122: 0
A123: Q75 | B123: RWW | C123: WARRINGTON AND HALTON HOSPITALS NHS FOUNDATION TRUST | D123: RWWWH | E123: Warrington Hospital - RWWWH | F123: 65 | G123: 0.9846153846 | H123: 0 | I123: 45 | J123: 19 | K123: 0 | L123: 0 | M123: 0 | N123: 1
A124: Q75 | B124: RBL | C124: WIRRAL UNIVERSITY TEACHING HOSPITAL NHS FOUNDATION TRUST | D124: RBL14 | E124: Arrowe Park Hospital - RBL14 | F124: 3 | G124: * | H124: * | I124: * | J124: * | K124: * | L124: * | M124: * | N124: *
A125: Q76 | B125: RJF | C125: BURTON HOSPITALS NHS FOUNDATION TRUST | D125: RJF02 | E125: Queen's Hospital, Burton Upon Trent - RJF02 | F125: 18 | G125: 0.9444444444 | H125: 0.05555555556 | I125: 12 | J125: 5 | K125: 0 | L125: 1 | M125: 0 | N125: 0
A126: Q76 | B126: RFS | C126: CHESTERFIELD ROYAL HOSPITAL NHS FOUNDATION TRUST | D126: RFSDA | E126: Chesterfield Royal Hospital - RFSDA | F126: 149 | G126: 0.966442953 | H126: 0.006711409396 | I126: 110 | J126: 34 | K126: 3 | L126: 1 | M126: 0 | N126: 1
A127: Q76 | B127: RTG | C127: DERBY TEACHING HOSPITALS NHS FOUNDATION TRUST | D127: RTGFG | E127: Royal Derby Hospital - RTGFG | F127: 32 | G127: 1 | H127: 0 | I127: 27 | J127: 5 | K127: 0 | L127: 0 | M127: 0 | N127: 0
A128: Q76 | B128: RX1 | C128: NOTTINGHAM UNIVERSITY HOSPITALS NHS TRUST | D128: RX1XXX | E128: Non-hospital site - RX1XXX | F128: 157 | G128: 0.9808917197 | H128: 0 | I128: 133 | J128: 21 | K128: 1 | L128: 0 | M128: 0 | N128: 2
A129: Q76 | B129: RK5 | C129: SHERWOOD FOREST HOSPITALS NHS FOUNDATION TRUST | D129: RK5BC | E129: King's Mill Hospital - RK5BC | F129: 60 | G129: 0.8666666667 | H129: 0.06666666667 | I129: 37 | J129: 15 | K129: 2 | L129: 1 | M129: 3 | N129: 2
A130: Q76 | B130: RXW | C130: SHREWSBURY AND TELFORD HOSPITAL NHS TRUST | D130: RXWXXX | E130: Non-hospital site - RXWXXX | F130: 34 | G130: 0.9117647059 | H130: 0.02941176471 | I130: 25 | J130: 6 | K130: 2 | L130: 0 | M130: 1 | N130: 0
A131: Q76 | B131: RJE | C131: UNIVERSITY HOSPITALS OF NORTH MIDLANDS NHS TRUST | D131: RJE01 | E131: Royal Stoke University Hospital - RJE01 | F131: 57 | G131: 0.9649122807 | H131: 0.01754385965 | I131: 49 | J131: 6 | K131: 1 | L131: 1 | M131: 0 | N131: 0
A132: Q77 | B132: RLU | C132: BIRMINGHAM WOMEN'S NHS FOUNDATION TRUST | D132: RLU01 | E132: Birmingham Women's Hospital - RLU01 | F132: 38 | G132: 0.9473684211 | H132: 0.02631578947 | I132: 21 | J132: 15 | K132: 1 | L132: 1 | M132: 0 | N132: 0
A133: Q77 | B133: RLT | C133: GEORGE ELIOT HOSPITAL NHS TRUST | D133: RLT01 | E133: George Eliot Hospital - Acute Services - RLT01 | F133: 23 | G133: 0.9565217391 | H133: 0 | I133: 20 | J133: 2 | K133: 1 | L133: 0 | M133: 0 | N133: 0
A134: Q77 | B134: RR1 | C134: HEART OF ENGLAND NHS FOUNDATION TRUST | D134: RR105 | E134: Good Hope Hospital - RR105 | F134: 26 | G134: 0.9230769231 | H134: 0.03846153846 | I134: * | J134: * | K134: * | L134: * | M134: * | N134: *
A135: Q77 | B135: RR1 | C135: HEART OF ENGLAND NHS FOUNDATION TRUST | D135: RR101 | E135: Heartlands Hospital - RR101 | F135: 1 | G135: * | H135: * | I135: * | J135: * | K135: * | L135: * | M135: * | N135: *
A136: Q77 | B136: RR1 | C136: HEART OF ENGLAND NHS FOUNDATION TRUST | D136: RR109 | E136: Solihull Hospital - RR109 | F136: 0 | G136: NA | H136: NA | I136: 0 | J136: 0 | K136: 0 | L136: 0 | M136: 0 | N136: 0
A137: Q77 | B137: RXK | C137: SANDWELL AND WEST BIRMINGHAM HOSPITALS NHS TRUST | D137: RXK02 | E137: City Hospital - RXK02 | F137: 19 | G137: 0.8947368421 | H137: 0.05263157895 | I137: 9 | J137: 8 | K137: 0 | L137: 1 | M137: 0 | N137: 1
A138: Q77 | B138: RJC | C138: SOUTH WARWICKSHIRE NHS FOUNDATION TRUST | D138: RJCXXX | E138: Non-hospital site - RJCXXX | F138: 9 | G138: 1 | H138: 0 | I138: 9 | J138: 0 | K138: 0 | L138: 0 | M138: 0 | N138: 0
A139: Q77 | B139: RJC | C139: SOUTH WARWICKSHIRE NHS FOUNDATION TRUST | D139: RJC02 | E139: Warwick Hospital - RJC02 | F139: 0 | G139: NA | H139: NA | I139: 0 | J139: 0 | K139: 0 | L139: 0 | M139: 0 | N139: 0
A140: Q77 | B140: RNA | C140: THE DUDLEY GROUP NHS FOUNDATION TRUST | D140: RNAXXX | E140: Non-hospital site - RNAXXX | F140: 16 | G140: 0.875 | H140: 0.0625 | I140: 11 | J140: 3 | K140: 1 | L140: 0 | M140: 1 | N140: 0
A141: Q77 | B141: RNA | C141: THE DUDLEY GROUP NHS FOUNDATION TRUST | D141: RNA01 | E141: Russells Hall Hospital - RNA01 | F141: 69 | G141: 0.9420289855 | H141: 0.02898550725 | I141: 53 | J141: 12 | K141: 2 | L141: 0 | M141: 2 | N141: 0
A142: Q77 | B142: RL4 | C142: THE ROYAL WOLVERHAMPTON NHS TRUST | D142: RL403 | E142: New Cross Hospital - RL403 | F142: 60 | G142: 0.9833333333 | H142: 0 | I142: 48 | J142: 11 | K142: 1 | L142: 0 | M142: 0 | N142: 0
A143: Q77 | B143: RKB | C143: UNIVERSITY HOSPITALS COVENTRY AND WARWICKSHIRE NHS TRUST | D143: RKB03 | E143: Hospital Of St Cross - RKB03 | F143: 0 | G143: NA | H143: NA | I143: 0 | J143: 0 | K143: 0 | L143: 0 | M143: 0 | N143: 0
A144: Q77 | B144: RKB | C144: UNIVERSITY HOSPITALS COVENTRY AND WARWICKSHIRE NHS TRUST | D144: RKBXXX | E144: Non-hospital site - RKBXXX | F144: 159 | G144: 0.9811320755 | H144: 0 | I144: 125 | J144: 31 | K144: 2 | L144: 0 | M144: 0 | N144: 1
A145: Q77 | B145: RKB | C145: UNIVERSITY HOSPITALS COVENTRY AND WARWICKSHIRE NHS TRUST | D145: RKB01 | E145: University Hospital (Coventry) - RKB01 | F145: 22 | G145: 0.8636363636 | H145: 0.04545454545 | I145: 13 | J145: 6 | K145: 1 | L145: 0 | M145: 1 | N145: 1
A146: Q77 | B146: RBK | C146: WALSALL HEALTHCARE NHS TRUST | D146: RBK02 | E146: Manor Hospital - RBK02 | F146: 231 | G146: 0.9177489177 | H146: 0.0303030303 | I146: 107 | J146: 105 | K146: 9 | L146: 6 | M146: 1 | N146: 3
A147: Q77 | B147: RWP | C147: WORCESTERSHIRE ACUTE HOSPITALS NHS TRUST | D147: RWP01 | E147: Alexandra Hospital - RWP01 | F147: 20 | G147: 1 | H147: 0 | I147: 15 | J147: 5 | K147: 0 | L147: 0 | M147: 0 | N147: 0
A148: Q77 | B148: RWP | C148: WORCESTERSHIRE ACUTE HOSPITALS NHS TRUST | D148: RWP31 | E148: Kidderminster Hospital - RWP31 | F148: 31 | G148: 0.9677419355 | H148: 0 | I148: 28 | J148: 2 | K148: 1 | L148: 0 | M148: 0 | N148: 0
A149: Q77 | B149: RWP | C149: WORCESTERSHIRE ACUTE HOSPITALS NHS TRUST | D149: RWP50 | E149: Worcestershire Royal Hospital - RWP50 | F149: 61 | G149: 1 | H149: 0 | I149: 54 | J149: 7 | K149: 0 | L149: 0 | M149: 0 | N149: 0
A150: Q77 | B150: RLQ | C150: WYE VALLEY NHS TRUST | D150: RLQ01 | E150: Hereford County Hospital - RLQ01 | F150: 30 | G150: 1 | H150: 0 | I150: 20 | J150: 10 | K150: 0 | L150: 0 | M150: 0 | N150: 0
A151: Q78 | B151: RC1 | C151: BEDFORD HOSPITAL NHS TRUST | D151: RC110 | E151: Bedford Hospital South Wing - RC110 | F151: 6 | G151: 1 | H151: 0 | I151: 4 | J151: 2 | K151: 0 | L151: 0 | M151: 0 | N151: 0
A152: Q78 | B152: RWH | C152: EAST AND NORTH HERTFORDSHIRE NHS TRUST | D152: RWH01 | E152: Lister Hospital - RWH01 | F152: 25 | G152: 0.92 | H152: 0 | I152: 15 | J152: 8 | K152: 2 | L152: 0 | M152: 0 | N152: 0
A153: Q78 | B153: RWH | C153: EAST AND NORTH HERTFORDSHIRE NHS TRUST | D153: RWHXXX | E153: Non-hospital site - RWHXXX | F153: 28 | G153: 1 | H153: 0 | I153: 18 | J153: 10 | K153: 0 | L153: 0 | M153: 0 | N153: 0
A154: Q78 | B154: RNQ | C154: KETTERING GENERAL HOSPITAL NHS FOUNDATION TRUST | D154: RNQ51 | E154: Kettering General Hospital - RNQ51 | F154: 47 | G154: 0.9574468085 | H154: 0 | I154: 36 | J154: 9 | K154: 2 | L154: 0 | M154: 0 | N154: 0
A155: Q78 | B155: RC9 | C155: LUTON AND DUNSTABLE UNIVERSITY HOSPITAL NHS FOUNDATION TRUST | D155: RC971 | E155: Luton and Dunstable Hospital - RC971 | F155: 127 | G155: 0.8346456693 | H155: 0.08661417323 | I155: 53 | J155: 53 | K155: 8 | L155: 5 | M155: 6 | N155: 2
A156: Q78 | B156: RD8 | C156: MILTON KEYNES HOSPITAL NHS FOUNDATION TRUST | D156: RD816 | E156: Milton Keynes Hospital - RD816 | F156: 1 | G156: * | H156: * | I156: * | J156: * | K156: * | L156: * | M156: * | N156: *
A157: Q78 | B157: RNS | C157: NORTHAMPTON GENERAL HOSPITAL NHS TRUST | D157: RNS01 | E157: Northampton General Hospital (Acute) - RNS01 | F157: 21 | G157: 1 | H157: 0 | I157: 15 | J157: 6 | K157: 0 | L157: 0 | M157: 0 | N157: 0
A158: Q78 | B158: RWD | C158: UNITED LINCOLNSHIRE HOSPITALS NHS TRUST | D158: RWDLP | E158: Grantham and District Hospital - RWDLP | F158: 0 | G158: NA | H158: NA | I158: 0 | J158: 0 | K158: 0 | L158: 0 | M158: 0 | N158: 0
A159: Q78 | B159: RWD | C159: UNITED LINCOLNSHIRE HOSPITALS NHS TRUST | D159: RWDDA | E159: Lincoln County Hospital - RWDDA | F159: 0 | G159: NA | H159: NA | I159: 0 | J159: 0 | K159: 0 | L159: 0 | M159: 0 | N159: 0
A160: Q78 | B160: RWD | C160: UNITED LINCOLNSHIRE HOSPITALS NHS TRUST | D160: RWDXXX | E160: Non-hospital site - RWDXXX | F160: 47 | G160: 1 | H160: 0 | I160: 40 | J160: 7 | K160: 0 | L160: 0 | M160: 0 | N160: 0
A161: Q78 | B161: RWD | C161: UNITED LINCOLNSHIRE HOSPITALS NHS TRUST | D161: RWDLA | E161: Pilgrim Hospital - RWDLA | F161: 0 | G161: NA | H161: NA | I161: 0 | J161: 0 | K161: 0 | L161: 0 | M161: 0 | N161: 0
A162: Q78 | B162: RWE | C162: UNIVERSITY HOSPITALS OF LEICESTER NHS TRUST | D162: RWEAK | E162: Leicester General Hospital - RWEAK | F162: 16 | G162: 0.9375 | H162: 0.0625 | I162: 9 | J162: 6 | K162: 0 | L162: 0 | M162: 1 | N162: 0
A163: Q78 | B163: RWE | C163: UNIVERSITY HOSPITALS OF LEICESTER NHS TRUST | D163: RWEAA | E163: Leicester Royal Infirmary - RWEAA | F163: 12 | G163: 1 | H163: 0 | I163: 6 | J163: 6 | K163: 0 | L163: 0 | M163: 0 | N163: 0
A164: Q78 | B164: RWE | C164: UNIVERSITY HOSPITALS OF LEICESTER NHS TRUST | D164: RWEXXX | E164: Non-hospital site - RWEXXX | F164: 108 | G164: 0.9814814815 | H164: 0 | I164: 80 | J164: 26 | K164: 2 | L164: 0 | M164: 0 | N164: 0
A165: Q78 | B165: RWG | C165: WEST HERTFORDSHIRE HOSPITALS NHS TRUST | D165: RWG02 | E165: Watford General Hospital - RWG02 | F165: 5 | G165: 1 | H165: 0 | I165: * | J165: * | K165: * | L165: * | M165: * | N165: *
A166: Q79 | B166: RDD | C166: BASILDON AND THURROCK UNIVERSITY HOSPITALS NHS FOUNDATION TRUST | D166: RDDH0 | E166: Basildon University Hospital - RDDH0 | F166: 5 | G166: 0.8 | H166: 0 | I166: 3 | J166: 1 | K166: 1 | L166: 0 | M166: 0 | N166: 0
A167: Q79 | B167: RGT | C167: CAMBRIDGE UNIVERSITY HOSPITALS NHS FOUNDATION TRUST | D167: RGT32 | E167: Rosie Hospital - RGT32 | F167: 59 | G167: 0.8813559322 | H167: 0 | I167: 32 | J167: 20 | K167: 5 | L167: 0 | M167: 0 | N167: 2
A168: Q79 | B168: RDE | C168: COLCHESTER HOSPITAL UNIVERSITY NHS FOUNDATION TRUST | D168: RDEE4 | E168: Colchester General Hospital - RDEE4 | F168: 32 | G168: 1 | H168: 0 | I168: 23 | J168: 9 | K168: 0 | L168: 0 | M168: 0 | N168: 0
A169: Q79 | B169: RQQ | C169: HINCHINGBROOKE HEALTH CARE NHS TRUST | D169: RQQ31 | E169: Hinchingbrooke Hospital - RQQ31 | F169: 13 | G169: 0.9230769231 | H169: 0 | I169: 12 | J169: 0 | K169: 1 | L169: 0 | M169: 0 | N169: 0
A170: Q79 | B170: RGQ | C170: IPSWICH HOSPITAL NHS TRUST | D170: RGQ02 | E170: The Ipswich Hospital NHS Trust - RGQ02 | F170: 200 | G170: 0.92 | H170: 0.035 | I170: 144 | J170: 40 | K170: 9 | L170: 1 | M170: 6 | N170: 0
A171: Q79 | B171: RGP | C171: JAMES PAGET UNIVERSITY HOSPITALS NHS FOUNDATION TRUST | D171: RGP75 | E171: James Paget University Hospital - RGP75 | F171: 228 | G171: 0.9780701754 | H171: 0.008771929825 | I171: 184 | J171: 39 | K171: 2 | L171: 1 | M171: 1 | N171: 1
A172: Q79 | B172: RQ8 | C172: MID ESSEX HOSPITAL SERVICES NHS TRUST | D172: RQ8L0 | E172: Broomfield Hospital - RQ8L0 | F172: 6 | G172: 1 | H172: 0 | I172: 6 | J172: 0 | K172: 0 | L172: 0 | M172: 0 | N172: 0
A173: Q79 | B173: RM1 | C173: NORFOLK AND NORWICH UNIVERSITY HOSPITALS NHS FOUNDATION TRUST | D173: RM102 | E173: Norfolk and Norwich University Hospital - RM102 | F173: 17 | G173: 0.9411764706 | H173: 0 | I173: 14 | J173: 2 | K173: 1 | L173: 0 | M173: 0 | N173: 0
A174: Q79 | B174: RGN | C174: PETERBOROUGH AND STAMFORD HOSPITALS NHS FOUNDATION TRUST | D174: RGN80 | E174: Peterborough City Hospital - RGN80 | F174: 31 | G174: 0.935483871 | H174: 0 | I174: 21 | J174: 8 | K174: 1 | L174: 0 | M174: 0 | N174: 1
A175: Q79 | B175: RAJ | C175: SOUTHEND UNIVERSITY HOSPITAL NHS FOUNDATION TRUST | D175: RAJ01 | E175: Southend Hospital - RAJ01 | F175: 11 | G175: 1 | H175: 0 | I175: 10 | J175: 1 | K175: 0 | L175: 0 | M175: 0 | N175: 0
A176: Q79 | B176: RQW | C176: THE PRINCESS ALEXANDRA HOSPITAL NHS TRUST | D176: RQWG0 | E176: Princess Alexandra Hospital - RQWG0 | F176: 28 | G176: 1 | H176: 0 | I176: 20 | J176: 8 | K176: 0 | L176: 0 | M176: 0 | N176: 0
A177: Q79 | B177: RCX | C177: THE QUEEN ELIZABETH HOSPITAL, KING'S LYNN, NHS FOUNDATION TRUST | D177: RCXXXX | E177: Non-hospital site - RCXXXX | F177: 63 | G177: 0.9841269841 | H177: 0 | I177: 50 | J177: 12 | K177: 0 | L177: 0 | M177: 0 | N177: 1
A178: Q79 | B178: RCX | C178: THE QUEEN ELIZABETH HOSPITAL, KING'S LYNN, NHS FOUNDATION TRUST | D178: RCX66 | E178: North Cambridgeshire Hospital - RCX66 | F178: 35 | G178: 1 | H178: 0 | I178: 29 | J178: 6 | K178: 0 | L178: 0 | M178: 0 | N178: 0
A179: Q79 | B179: RCX | C179: THE QUEEN ELIZABETH HOSPITAL, KING'S LYNN, NHS FOUNDATION TRUST | D179: RCX70 | E179: The Queen Elizabeth Hospital - RCX70 | F179: 169 | G179: 0.9171597633 | H179: 0.02366863905 | I179: 109 | J179: 46 | K179: 6 | L179: 1 | M179: 3 | N179: 4
A180: Q79 | B180: RGR | C180: WEST SUFFOLK NHS FOUNDATION TRUST | D180: RGR50 | E180: West Suffolk Hospital - RGR50 | F180: 103 | G180: 0.9902912621 | H180: 0 | I180: 89 | J180: 13 | K180: 1 | L180: 0 | M180: 0 | N180: 0
A181: Q80 | B181: RVJ | C181: NORTH BRISTOL NHS TRUST | D181: RVJ01 | E181: Southmead Hospital - RVJ01 | F181: 45 | G181: 0.9777777778 | H181: 0.02222222222 | I181: 32 | J181: 12 | K181: 0 | L181: 1 | M181: 0 | N181: 0
A182: Q80 | B182: RBZ | C182: NORTHERN DEVON HEALTHCARE NHS TRUST | D182: RBZ12 | E182: North Devon District Hospital - RBZ12 | F182: 6 | G182: 1 | H182: 0 | I182: * | J182: * | K182: * | L182: * | M182: * | N182: *
A183: Q80 | B183: RK9 | C183: PLYMOUTH HOSPITALS NHS TRUST | D183: RK950 | E183: Derriford Hospital - RK950 | F183: 51 | G183: 0.9215686275 | H183: 0 | I183: 41 | J183: 6 | K183: 4 | L183: 0 | M183: 0 | N183: 0
A184: Q80 | B184: RK9 | C184: PLYMOUTH HOSPITALS NHS TRUST | D184: RK9XXX | E184: Non-hospital site - RK9XXX | F184: 56 | G184: 0.9464285714 | H184: 0.01785714286 | I184: 36 | J184: 17 | K184: 2 | L184: 1 | M184: 0 | N184: 0
A185: Q80 | B185: REF | C185: ROYAL CORNWALL HOSPITALS NHS TRUST | D185: REF12 | E185: Royal Cornwall Hospital (Treliske) - REF12 | F185: 40 | G185: 1 | H185: 0 | I185: 29 | J185: 11 | K185: 0 | L185: 0 | M185: 0 | N185: 0
A186: Q80 | B186: RH8 | C186: ROYAL DEVON AND EXETER NHS FOUNDATION TRUST | D186: RH854 | E186: Honiton Hospital - RH 854 | F186: 0 | G186: NA | H186: NA | I186: 0 | J186: 0 | K186: 0 | L186: 0 | M186: 0 | N186: 0
A187: Q80 | B187: RH8 | C187: ROYAL DEVON AND EXETER NHS FOUNDATION TRUST | D187: RH833 | E187: Okehampton Community Hospital - RH833 | F187: 6 | G187: 1 | H187: 0 | I187: 6 | J187: 0 | K187: 0 | L187: 0 | M187: 0 | N187: 0
A188: Q80 | B188: RH8 | C188: ROYAL DEVON AND EXETER NHS FOUNDATION TRUST | D188: RH801 | E188: Royal Devon and Exeter Hospital (Wonford) - RH801 | F188: 38 | G188: 0.9473684211 | H188: 0.02631578947 | I188: 29 | J188: 7 | K188: 1 | L188: 1 | M188: 0 | N188: 0
A189: Q80 | B189: RH8 | C189: ROYAL DEVON AND EXETER NHS FOUNDATION TRUST | D189: RH853 | E189: Tiverton and District Hospital - RH853 | F189: 0 | G189: NA | H189: NA | I189: 0 | J189: 0 | K189: 0 | L189: 0 | M189: 0 | N189: 0
A190: Q80 | B190: RA9 | C190: SOUTH DEVON HEALTHCARE NHS FOUNDATION TRUST | D190: RA9XXX | E190: Non-hospital site - RA9XXX | F190: 34 | G190: 1 | H190: 0 | I190: 28 | J190: 6 | K190: 0 | L190: 0 | M190: 0 | N190: 0
A191: Q80 | B191: RBA | C191: TAUNTON AND SOMERSET NHS FOUNDATION TRUST | D191: RBA11 | E191: Musgrove Park Hospital - RBA11 | F191: 10 | G191: 0.9 | H191: 0 | I191: * | J191: * | K191: * | L191: * | M191: * | N191: *
A192: Q80 | B192: RBA | C192: TAUNTON AND SOMERSET NHS FOUNDATION TRUST | D192: RBAXXX | E192: Non-hospital site - RBAXXX | F192: 3 | G192: * | H192: * | I192: * | J192: * | K192: * | L192: * | M192: * | N192: *
A193: Q80 | B193: RA7 | C193: UNIVERSITY HOSPITALS BRISTOL NHS FOUNDATION TRUST | D193: RA707 | E193: St Michael's Hospital - RA707 | F193: 89 | G193: 0.9662921348 | H193: 0.01123595506 | I193: 69 | J193: 17 | K193: 2 | L193: 1 | M193: 0 | N193: 0
A194: Q80 | B194: RA3 | C194: WESTON AREA HEALTH NHS TRUST | D194: RA301 | E194: Weston General Hospital - RA301 | F194: 37 | G194: 1 | H194: 0 | I194: 30 | J194: 7 | K194: 0 | L194: 0 | M194: 0 | N194: 0
A195: Q80 | B195: RA4 | C195: YEOVIL DISTRICT HOSPITAL NHS FOUNDATION TRUST | D195: RA430 | E195: Yeovil District Hospital - RA430 | F195: 2 | G195: * | H195: * | I195: * | J195: * | K195: * | L195: * | M195: * | N195: *
A196: Q81 | B196: RTK | C196: ASHFORD AND ST PETER'S HOSPITALS NHS FOUNDATION TRUST | D196: RTK01 | E196: St Peter's Hospital - RTK01 | F196: 15 | G196: 1 | H196: 0 | I196: * | J196: * | K196: * | L196: * | M196: * | N196: *
A197: Q81 | B197: RXH | C197: BRIGHTON AND SUSSEX UNIVERSITY HOSPITALS NHS TRUST | D197: RXHXXX | E197: Non-hospital site - RXHXXX | F197: 31 | G197: 0.9677419355 | H197: 0 | I197: * | J197: * | K197: * | L197: * | M197: * | N197: *
A198: Q81 | B198: RXH | C198: BRIGHTON AND SUSSEX UNIVERSITY HOSPITALS NHS TRUST | D198: RXH09 | E198: Princess Royal Hospital - RXH09 | F198: 0 | G198: NA | H198: NA | I198: 0 | J198: 0 | K198: 0 | L198: 0 | M198: 0 | N198: 0
A199: Q81 | B199: RXH | C199: BRIGHTON AND SUSSEX UNIVERSITY HOSPITALS NHS TRUST | D199: RXH01 | E199: Royal Sussex County Hospital - RXH01 | F199: 1 | G199: * | H199: * | I199: * | J199: * | K199: * | L199: * | M199: * | N199: *
A200: Q81 | B200: RN7 | C200: DARTFORD AND GRAVESHAM NHS TRUST | D200: RN707 | E200: Darent Valley Hospital - RN707 | F200: 1 | G200: * | H200: * | I200: * | J200: * | K200: * | L200: * | M200: * | N200: *
A201: Q81 | B201: RVV | C201: EAST KENT HOSPITALS UNIVERSITY NHS FOUNDATION TRUST | D201: RVVXXX | E201: Non-hospital site - RVVXXX | F201: 19 | G201: 0.8421052632 | H201: 0 | I201: 13 | J201: 3 | K201: 3 | L201: 0 | M201: 0 | N201: 0
A202: Q81 | B202: RXC | C202: EAST SUSSEX HEALTHCARE NHS TRUST | D202: RXC01 | E202: Conquest Hospital - RXC01 | F202: 0 | G202: NA | H202: NA | I202: 0 | J202: 0 | K202: 0 | L202: 0 | M202: 0 | N202: 0
A203: Q81 | B203: RXC | C203: EAST SUSSEX HEALTHCARE NHS TRUST | D203: RXC14 | E203: Crowborough Birthing Centre - RXC14 | F203: 0 | G203: NA | H203: NA | I203: 0 | J203: 0 | K203: 0 | L203: 0 | M203: 0 | N203: 0
A204: Q81 | B204: RXC | C204: EAST SUSSEX HEALTHCARE NHS TRUST | D204: RXC02 | E204: Eastbourne District General Hospital - RXC02 | F204: 15 | G204: 1 | H204: 0 | I204: 13 | J204: 2 | K204: 0 | L204: 0 | M204: 0 | N204: 0
A205: Q81 | B205: RXC | C205: EAST SUSSEX HEALTHCARE NHS TRUST | D205: RXCXXX | E205: Non-hospital site - RXCXXX | F205: 0 | G205: NA | H205: NA | I205: 0 | J205: 0 | K205: 0 | L205: 0 | M205: 0 | N205: 0
A206: Q81 | B206: RDU | C206: FRIMLEY HEALTH NHS FOUNDATION TRUST | D206: RDU01 | E206: Frimley Park Hospital - RDU01 | F206: 13 | G206: 1 | H206: 0 | I206: 11 | J206: 2 | K206: 0 | L206: 0 | M206: 0 | N206: 0
A207: Q81 | B207: RDU | C207: FRIMLEY HEALTH NHS FOUNDATION TRUST | D207: RDUXXX | E207: Non-hospital site - RDUXXX | F207: 100 | G207: 1 | H207: 0 | I207: 92 | J207: 8 | K207: 0 | L207: 0 | M207: 0 | N207: 0
... 23 more rows

Sheet Region (Geography) Q2
B6: Sort data by:
A9: Region (Geo) Code | B9: Region (Geography) | C9: Total Responses | D9: Total Eligible | E9: Response Rate | F9: Percentage Recommended | G9: Percentage Not Recommended | H9: Breakdown of Responses
H10: Extremely Likely | I10: Likely | J10: Neither | K10: Unlikely | L10: Extremely Unlikely | M10: Don't Know
B11: England | C11: 12256 | D11: 54695 | E11: 0.2240789835 | F11: 0.9676077023 | G11: 0.01174934726 | H11: 9848 | I11: 2011 | J11: 144 | K11: 67 | L11: 77 | M11: 109
B12: Selection (excluding suppressed data) | C12: =SUBTOTAL(9,C13:C39) -> 12256 | D12: =SUBTOTAL(9,D13:D39) -> 54695 | E12: =IFERROR(C12/D12, "-") -> 0.2240789835 | F12: =IFERROR((H12+I12)/SUM(H12:M12), "-") -> 0.9676077023 | G12: =IFERROR((K12+L12)/SUM(H12:M12), "-") -> 0.01174934726 | H12: =SUBTOTAL(9,H13:H39) -> 9848 | I12: =SUBTOTAL(9,I13:I39) -> 2011 | J12: 144 | K12: 67 | L12: 77 | M12: 109
A13: Q72 | B13: NHS England Yorkshire & Humber | C13: 1307 | D13: 5462 | E13: 0.2392896375 | F13: 0.9693955624 | G13: 0.01071155318 | H13: 1058 | I13: 209 | J13: 10 | K13: 6 | L13: 8 | M13: 16
A14: Q73 | B14: NHS England Lancashire & Greater Manchester | C14: 748 | D14: 4386 | E14: 0.1705426357 | F14: 0.9598930481 | G14: 0.02005347594 | H14: 626 | I14: 92 | J14: 11 | K14: 4 | L14: 11 | M14: 4
A15: Q74 | B15: NHS England Cumbria & North East | C15: 922 | D15: 3086 | E15: 0.2987686325 | F15: 0.9728850325 | G15: 0.004338394794 | H15: 766 | I15: 131 | J15: 5 | K15: 3 | L15: 1 | M15: 16
A16: Q75 | B16: NHS England Cheshire & Merseyside | C16: 449 | D16: 2347 | E16: 0.1913080528 | F16: 0.9599109131 | G16: 0.01781737194 | H16: 346 | I16: 85 | J16: 3 | K16: 3 | L16: 5 | M16: 7
A17: Q76 | B17: NHS England North Midlands | C17: 724 | D17: 3075 | E17: 0.2354471545 | F17: 0.9861878453 | G17: 0.006906077348 | H17: 619 | I17: 95 | J17: 1 | K17: 2 | L17: 3 | M17: 4
A18: Q77 | B18: NHS England West Midlands | C18: 794 | D18: 4841 | E18: 0.1640156992 | F18: 0.9773299748 | G18: 0.008816120907 | H18: 678 | I18: 98 | J18: 8 | K18: 7 | L18: 0 | M18: 3
A19: Q78 | B19: NHS England Central Midlands | C19: 1348 | D19: 4047 | E19: 0.3330862367 | F19: 0.9591988131 | G19: 0.01928783383 | H19: 1017 | I19: 276 | J19: 23 | K19: 14 | L19: 12 | M19: 6
A20: Q79 | B20: NHS England East | C20: 854 | D20: 3974 | E20: 0.2148968294 | F20: 0.9777517564 | G20: 0.009367681499 | H20: 728 | I20: 107 | J20: 4 | K20: 2 | L20: 6 | M20: 7
A21: Q80 | B21: NHS England South West | C21: 646 | D21: 2708 | E21: 0.2385524372 | F21: 0.9814241486 | G21: 0.003095975232 | H21: 547 | I21: 87 | J21: 7 | K21: 2 | L21: 0 | M21: 3
A22: Q81 | B22: NHS England South East | C22: 1170 | D22: 5042 | E22: 0.2320507735 | F22: 0.9666666667 | G22: 0.007692307692 | H22: 1004 | I22: 127 | J22: 11 | K22: 4 | L22: 5 | M22: 19
A23: Q82 | B23: NHS England South Central | C23: 538 | D23: 3155 | E23: 0.1705229794 | F23: 0.9888475836 | G23: 0 | H23: 477 | I23: 55 | J23: 4 | K23: 0 | L23: 0 | M23: 2
A24: Q70 | B24: NHS England Wessex | C24: 443 | D24: 1846 | E24: 0.2399783315 | F24: 0.9796839729 | G24: 0.006772009029 | H24: 368 | I24: 66 | J24: 4 | K24: 1 | L24: 2 | M24: 2
A25: Q71 | B25: NHS England London | C25: 2313 | D25: 10726 | E25: 0.215644229 | F25: 0.9498486814 | G25: 0.01859057501 | H25: 1614 | I25: 583 | J25: 53 | K25: 19 | L25: 24 | M25: 20

Sheet Trusts Q2
B6: Sort data by:
A9: Region (Geo) Code | B9: Trust Code | C9: Trust Name | D9: Total Responses | E9: Total Eligible | F9: Response Rate | G9: Percentage Recommended | H9: Percentage Not Recommended | I9: Breakdown of Responses | O9: Mode of Collection
I10: Extremely Likely | J10: Likely | K10: Neither | L10: Unlikely | M10: Extremely Unlikely | N10: Don't Know | O10: SMS/Text / Smartphone App | P10: Electronic tablet/kiosk at point of discharge | Q10: Paper / postcard at point of discharge | R10: Paper survey sent to the patients home | S10: Telephone survey once patient is home | T10: Online survey once patient is home | U10: Other
C11: England | D11: 12256 | E11: 54695 | F11: 0.2240789835 | G11: 0.9676077023 | H11: 0.01174934726 | I11: 9848 | J11: 2011 | K11: 144 | L11: 67 | M11: 77 | N11: 109 | O11: 755 | P11: 1842 | Q11: 8924 | R11: 60 | S11: 13 | T11: 386 | U11: 276
C12: Selection (excluding suppressed data) | D12: =SUBTOTAL(9,D13:D299) -> 12256 | E12: =SUBTOTAL(9,E13:E299) -> 54695 | F12: =IFERROR(D12/E12, "-") -> 0.2240789835 | G12: =IFERROR((I12+J12)/SUM(I12:N12), "-") -> 0.9677710349 | H12: =IFERROR((L12+M12)/SUM(I12:N12), "-") -> 0.01180908644 | I12: =SUBTOTAL(9,I13:I299) -> 9794 | J12: =SUBTOTAL(9,J13:J299) -> 2007 | K12: 144 | L12: 67 | M12: 77 | N12: 105 | O12: 755 | P12: 1840 | Q12: 8864 | R12: 60 | S12: 13 | T12: 386 | U12: 276
A13: Q70 | B13: RBD | C13: DORSET COUNTY HOSPITAL NHS FOUNDATION TRUST | D13: 66 | E13: 162 | F13: 0.4074074074 | G13: 0.9696969697 | H13: 0.01515151515 | I13: 60 | J13: 4 | K13: 1 | L13: 1 | M13: 0 | N13: 0 | O13: 66 | P13: 0 | Q13: 0 | R13: 0 | S13: 0 | T13: 0 | U13: 0
A14: Q70 | B14: RN5 | C14: HAMPSHIRE HOSPITALS NHS FOUNDATION TRUST | D14: 82 | E14: 479 | F14: 0.1711899791 | G14: 0.9512195122 | H14: 0.01219512195 | I14: 62 | J14: 16 | K14: 2 | L14: 0 | M14: 1 | N14: 1 | O14: 0 | P14: 0 | Q14: 82 | R14: 0 | S14: 0 | T14: 0 | U14: 0
A15: Q70 | B15: R1F | C15: ISLE OF WIGHT NHS TRUST | D15: 31 | E15: 122 | F15: 0.2540983607 | G15: 1 | H15: 0 | I15: 29 | J15: 2 | K15: 0 | L15: 0 | M15: 0 | N15: 0 | O15: 0 | P15: 0 | Q15: 31 | R15: 0 | S15: 0 | T15: 0 | U15: 0
A16: Q70 | B16: RD3 | C16: POOLE HOSPITAL NHS FOUNDATION TRUST | D16: 6 | E16: 83 | F16: 0.07228915663 | G16: 1 | H16: 0 | I16: 5 | J16: 1 | K16: 0 | L16: 0 | M16: 0 | N16: 0 | O16: 0 | P16: 0 | Q16: 6 | R16: 0 | S16: 0 | T16: 0 | U16: 0
A17: Q70 | B17: RHU | C17: PORTSMOUTH HOSPITALS NHS TRUST | D17: 168 | E17: 463 | F17: 0.3628509719 | G17: 0.994047619 | H17: 0 | I17: 151 | J17: 16 | K17: 1 | L17: 0 | M17: 0 | N17: 0 | O17: 0 | P17: 0 | Q17: 168 | R17: 0 | S17: 0 | T17: 0 | U17: 0
A18: Q70 | B18: RDZ | C18: THE ROYAL BOURNEMOUTH AND CHRISTCHURCH HOSPITALS NHS FOUNDATION TRUST | D18: 20 | E18: 35 | F18: 0.5714285714 | G18: 1 | H18: 0 | I18: 20 | J18: 0 | K18: 0 | L18: 0 | M18: 0 | N18: 0 | O18: 0 | P18: 0 | Q18: 20 | R18: 0 | S18: 0 | T18: 0 | U18: 0
A19: Q70 | B19: RHM | C19: UNIVERSITY HOSPITAL SOUTHAMPTON NHS FOUNDATION TRUST | D19: 70 | E19: 502 | F19: 0.1394422311 | G19: 0.9714285714 | H19: 0.01428571429 | I19: 41 | J19: 27 | K19: 0 | L19: 0 | M19: 1 | N19: 1 | O19: 0 | P19: 0 | Q19: 70 | R19: 0 | S19: 0 | T19: 0 | U19: 0
A20: Q71 | B20: RF4 | C20: BARKING, HAVERING AND REDBRIDGE UNIVERSITY HOSPITALS NHS TRUST | D20: 171 | E20: 710 | F20: 0.2408450704 | G20: 0.9824561404 | H20: 0.01169590643 | I20: 135 | J20: 33 | K20: 0 | L20: 1 | M20: 1 | N20: 1 | O20: 0 | P20: 0 | Q20: 171 | R20: 0 | S20: 0 | T20: 0 | U20: 0
A21: Q71 | B21: R1H | C21: BARTS HEALTH NHS TRUST | D21: 62 | E21: 1423 | F21: 0.0435699227 | G21: 0.9677419355 | H21: 0.03225806452 | I21: 43 | J21: 17 | K21: 0 | L21: 1 | M21: 1 | N21: 0 | O21: 0 | P21: 0 | Q21: 62 | R21: 0 | S21: 0 | T21: 0 | U21: 0
A22: Q71 | B22: RQM | C22: CHELSEA AND WESTMINSTER HOSPITAL NHS FOUNDATION TRUST | D22: 85 | E22: 350 | F22: 0.2428571429 | G22: 0.9647058824 | H22: 0 | I22: 74 | J22: 8 | K22: 3 | L22: 0 | M22: 0 | N22: 0 | O22: 85 | P22: 0 | Q22: 0 | R22: 0 | S22: 0 | T22: 0 | U22: 0
A23: Q71 | B23: RJ6 | C23: CROYDON HEALTH SERVICES NHS TRUST | D23: 67 | E23: 281 | F23: 0.2384341637 | G23: 1 | H23: 0 | I23: 50 | J23: 17 | K23: 0 | L23: 0 | M23: 0 | N23: 0 | O23: 0 | P23: 0 | Q23: 67 | R23: 0 | S23: 0 | T23: 0 | U23: 0
A24: Q71 | B24: RVR | C24: EPSOM AND ST HELIER UNIVERSITY HOSPITALS NHS TRUST | D24: 103 | E24: 467 | F24: 0.2205567452 | G24: 0.9805825243 | H24: 0 | I24: 93 | J24: 8 | K24: 1 | L24: 0 | M24: 0 | N24: 1 | O24: 0 | P24: 0 | Q24: 103 | R24: 0 | S24: 0 | T24: 0 | U24: 0
A25: Q71 | B25: RJ1 | C25: GUY'S AND ST THOMAS' NHS FOUNDATION TRUST | D25: 206 | E25: 596 | F25: 0.3456375839 | G25: 0.9466019417 | H25: 0.01941747573 | I25: 139 | J25: 56 | K25: 5 | L25: 4 | M25: 0 | N25: 2 | O25: 0 | P25: 0 | Q25: 206 | R25: 0 | S25: 0 | T25: 0 | U25: 0
A26: Q71 | B26: RQX | C26: HOMERTON UNIVERSITY HOSPITAL NHS FOUNDATION TRUST | D26: 57 | E26: 523 | F26: 0.1089866157 | G26: 0.9649122807 | H26: 0 | I26: 43 | J26: 12 | K26: 1 | L26: 0 | M26: 0 | N26: 1 | O26: 0 | P26: 57 | Q26: 0 | R26: 0 | S26: 0 | T26: 0 | U26: 0
A27: Q71 | B27: RYJ | C27: IMPERIAL COLLEGE HEALTHCARE NHS TRUST | D27: 103 | E27: 756 | F27: 0.1362433862 | G27: 0.9514563107 | H27: 0 | I27: 77 | J27: 21 | K27: 4 | L27: 0 | M27: 0 | N27: 1 | O27: 0 | P27: 103 | Q27: 0 | R27: 0 | S27: 0 | T27: 0 | U27: 0
A28: Q71 | B28: RJZ | C28: KING'S COLLEGE HOSPITAL NHS FOUNDATION TRUST | D28: 68 | E28: 527 | F28: 0.1290322581 | G28: 0.9411764706 | H28: 0.01470588235 | I28: 40 | J28: 24 | K28: 3 | L28: 1 | M28: 0 | N28: 0 | O28: 0 | P28: 0 | Q28: 21 | R28: 0 | S28: 0 | T28: 47 | U28: 0
A29: Q71 | B29: RAX | C29: KINGSTON HOSPITAL NHS FOUNDATION TRUST | D29: 86 | E29: 435 | F29: 0.1977011494 | G29: 0.9186046512 | H29: 0.02325581395 | I29: 58 | J29: 21 | K29: 4 | L29: 1 | M29: 1 | N29: 1 | O29: 0 | P29: 86 | Q29: 0 | R29: 0 | S29: 0 | T29: 0 | U29: 0
A30: Q71 | B30: RJ2 | C30: LEWISHAM AND GREENWICH NHS TRUST | D30: 256 | E30: 704 | F30: 0.3636363636 | G30: 0.9765625 | H30: 0.00390625 | I30: 183 | J30: 67 | K30: 2 | L30: 1 | M30: 0 | N30: 3 | O30: 0 | P30: 0 | Q30: 256 | R30: 0 | S30: 0 | T30: 0 | U30: 0
A31: Q71 | B31: R1K | C31: LONDON NORTH WEST HEALTHCARE NHS TRUST | D31: 130 | E31: 487 | F31: 0.2669404517 | G31: 0.9538461538 | H31: 0.01538461538 | I31: 77 | J31: 47 | K31: 4 | L31: 1 | M31: 1 | N31: 0 | O31: 0 | P31: 0 | Q31: 130 | R31: 0 | S31: 0 | T31: 0 | U31: 0
A32: Q71 | B32: RAP | C32: NORTH MIDDLESEX UNIVERSITY HOSPITAL NHS TRUST | D32: 381 | E32: 439 | F32: 0.867881549 | G32: 0.9002624672 | H32: 0.04724409449 | I32: 203 | J32: 140 | K32: 13 | L32: 4 | M32: 14 | N32: 7 | O32: 0 | P32: 381 | Q32: 0 | R32: 0 | S32: 0 | T32: 0 | U32: 0
A33: Q71 | B33: RAL | C33: ROYAL FREE LONDON NHS FOUNDATION TRUST | D33: 111 | E33: 736 | F33: 0.1508152174 | G33: 0.963963964 | H33: 0.009009009009 | I33: 77 | J33: 30 | K33: 2 | L33: 1 | M33: 0 | N33: 1 | O33: 0 | P33: 0 | Q33: 111 | R33: 0 | S33: 0 | T33: 0 | U33: 0
A34: Q71 | B34: RJ7 | C34: ST GEORGE'S UNIVERSITY HOSPITALS NHS FOUNDATION TRUST | D34: 0 | E34: 440 | F34: 0 | G34: NA | H34: NA | I34: 0 | J34: 0 | K34: 0 | L34: 0 | M34: 0 | N34: 0 | O34: 0 | P34: 0 | Q34: 0 | R34: 0 | S34: 0 | T34: 0 | U34: 0
A35: Q71 | B35: RAS | C35: THE HILLINGDON HOSPITALS NHS FOUNDATION TRUST | D35: 61 | E35: 418 | F35: 0.1459330144 | G35: 0.9508196721 | H35: 0 | I35: 43 | J35: 15 | K35: 2 | L35: 0 | M35: 0 | N35: 1 | O35: 0 | P35: 0 | Q35: 58 | R35: 0 | S35: 0 | T35: 3 | U35: 0
A36: Q71 | B36: RKE | C36: THE WHITTINGTON HOSPITAL NHS TRUST | D36: 39 | E36: 322 | F36: 0.1211180124 | G36: 1 | H36: 0 | I36: 32 | J36: 7 | K36: 0 | L36: 0 | M36: 0 | N36: 0 | O36: 0 | P36: 36 | Q36: 3 | R36: 0 | S36: 0 | T36: 0 | U36: 0
A37: Q71 | B37: RRV | C37: UNIVERSITY COLLEGE LONDON HOSPITALS NHS FOUNDATION TRUST | D37: 166 | E37: 556 | F37: 0.2985611511 | G37: 0.9518072289 | H37: 0.03012048193 | I37: 131 | J37: 27 | K37: 3 | L37: 3 | M37: 2 | N37: 0 | O37: 0 | P37: 0 | Q37: 0 | R37: 0 | S37: 0 | T37: 166 | U37: 0
A38: Q71 | B38: RFW | C38: WEST MIDDLESEX UNIVERSITY HOSPITAL NHS TRUST | D38: 161 | E38: 556 | F38: 0.2895683453 | G38: 0.9254658385 | H38: 0.03105590062 | I38: 116 | J38: 33 | K38: 6 | L38: 1 | M38: 4 | N38: 1 | O38: 67 | P38: 0 | Q38: 94 | R38: 0 | S38: 0 | T38: 0 | U38: 0
A39: Q72 | B39: RCF | C39: AIREDALE NHS FOUNDATION TRUST | D39: 32 | E39: 211 | F39: 0.1516587678 | G39: 0.9375 | H39: 0.0625 | I39: 25 | J39: 5 | K39: 0 | L39: 2 | M39: 0 | N39: 0 | O39: 1 | P39: 0 | Q39: 31 | R39: 0 | S39: 0 | T39: 0 | U39: 0
A40: Q72 | B40: RFF | C40: BARNSLEY HOSPITAL NHS FOUNDATION TRUST | D40: 85 | E40: 227 | F40: 0.3744493392 | G40: 0.9882352941 | H40: 0 | I40: 68 | J40: 16 | K40: 0 | L40: 0 | M40: 0 | N40: 1 | O40: 0 | P40: 0 | Q40: 85 | R40: 0 | S40: 0 | T40: 0 | U40: 0
A41: Q72 | B41: RAE | C41: BRADFORD TEACHING HOSPITALS NHS FOUNDATION TRUST | D41: 126 | E41: 486 | F41: 0.2592592593 | G41: 0.9841269841 | H41: 0.007936507937 | I41: 109 | J41: 15 | K41: 1 | L41: 1 | M41: 0 | N41: 0 | O41: 0 | P41: 0 | Q41: 126 | R41: 0 | S41: 0 | T41: 0 | U41: 0
A42: Q72 | B42: RWY | C42: CALDERDALE AND HUDDERSFIELD NHS FOUNDATION TRUST | D42: 83 | E42: 456 | F42: 0.1820175439 | G42: 1 | H42: 0 | I42: 57 | J42: 26 | K42: 0 | L42: 0 | M42: 0 | N42: 0 | O42: 0 | P42: 0 | Q42: 83 | R42: 0 | S42: 0 | T42: 0 | U42: 0
A43: Q72 | B43: RP5 | C43: DONCASTER AND BASSETLAW HOSPITALS NHS FOUNDATION TRUST | D43: 311 | E43: 403 | F43: 0.7717121588 | G43: 0.961414791 | H43: 0 | I43: 258 | J43: 41 | K43: 2 | L43: 0 | M43: 0 | N43: 10 | O43: 0 | P43: 0 | Q43: 311 | R43: 0 | S43: 0 | T43: 0 | U43: 0
A44: Q72 | B44: RCD | C44: HARROGATE AND DISTRICT NHS FOUNDATION TRUST | D44: 54 | E44: 167 | F44: 0.3233532934 | G44: 1 | H44: 0 | I44: 45 | J44: 9 | K44: 0 | L44: 0 | M44: 0 | N44: 0 | O44: 0 | P44: 0 | Q44: 54 | R44: 0 | S44: 0 | T44: 0 | U44: 0
A45: Q72 | B45: RWA | C45: HULL AND EAST YORKSHIRE HOSPITALS NHS TRUST | D45: 4 | E45: 485 | F45: 0.00824742268 | G45: * | H45: * | I45: * | J45: * | K45: * | L45: * | M45: * | N45: * | O45: * | P45: * | Q45: * | R45: * | S45: * | T45: * | U45: *
A46: Q72 | B46: RR8 | C46: LEEDS TEACHING HOSPITALS NHS TRUST | D46: 291 | E46: 851 | F46: 0.3419506463 | G46: 0.9450171821 | H46: 0.03092783505 | I46: 247 | J46: 28 | K46: 5 | L46: 3 | M46: 6 | N46: 2 | O46: 96 | P46: 0 | Q46: 195 | R46: 0 | S46: 0 | T46: 0 | U46: 0
A47: Q72 | B47: RXF | C47: MID YORKSHIRE HOSPITALS NHS TRUST | D47: 79 | E47: 528 | F47: 0.1496212121 | G47: 1 | H47: 0 | I47: 57 | J47: 22 | K47: 0 | L47: 0 | M47: 0 | N47: 0 | O47: 0 | P47: 0 | Q47: 79 | R47: 0 | S47: 0 | T47: 0 | U47: 0
A48: Q72 | B48: RJL | C48: NORTHERN LINCOLNSHIRE AND GOOLE NHS FOUNDATION TRUST | D48: 8 | E48: 415 | F48: 0.01927710843 | G48: 1 | H48: 0 | I48: * | J48: * | K48: * | L48: * | M48: * | N48: * | O48: * | P48: * | Q48: * | R48: * | S48: * | T48: * | U48: *
A49: Q72 | B49: RHQ | C49: SHEFFIELD TEACHING HOSPITALS NHS FOUNDATION TRUST | D49: 20 | E49: 582 | F49: 0.03436426117 | G49: 0.85 | H49: 0.05 | I49: 11 | J49: 6 | K49: 1 | L49: 0 | M49: 1 | N49: 1 | O49: 0 | P49: 0 | Q49: 20 | R49: 0 | S49: 0 | T49: 0 | U49: 0
A50: Q72 | B50: RFR | C50: THE ROTHERHAM NHS FOUNDATION TRUST | D50: 89 | E50: 213 | F50: 0.4178403756 | G50: 1 | H50: 0 | I50: 72 | J50: 17 | K50: 0 | L50: 0 | M50: 0 | N50: 0 | O50: 0 | P50: 0 | Q50: 89 | R50: 0 | S50: 0 | T50: 0 | U50: 0
A51: Q72 | B51: RCB | C51: YORK TEACHING HOSPITAL NHS FOUNDATION TRUST | D51: 125 | E51: 438 | F51: 0.2853881279 | G51: 0.976 | H51: 0.008 | I51: 98 | J51: 24 | K51: 1 | L51: 0 | M51: 1 | N51: 1 | O51: 0 | P51: 0 | Q51: 125 | R51: 0 | S51: 0 | T51: 0 | U51: 0
A52: Q73 | B52: RXL | C52: BLACKPOOL TEACHING HOSPITALS NHS FOUNDATION TRUST | D52: 31 | E52: 266 | F52: 0.1165413534 | G52: 0.935483871 | H52: 0 | I52: * | J52: * | K52: * | L52: * | M52: * | N52: * | O52: * | P52: * | Q52: * | R52: * | S52: * | T52: * | U52: *
A53: Q73 | B53: RMC | C53: BOLTON NHS FOUNDATION TRUST | D53: 73 | E53: 440 | F53: 0.1659090909 | G53: 0.9178082192 | H53: 0.04109589041 | I53: 59 | J53: 8 | K53: 3 | L53: 0 | M53: 3 | N53: 0 | O53: 73 | P53: 0 | Q53: 0 | R53: 0 | S53: 0 | T53: 0 | U53: 0
A54: Q73 | B54: RY2 | C54: BRIDGEWATER COMMUNITY HEALTHCARE NHS FOUNDATION TRUST | D54: 0 | E54: 0 | F54: 0 | G54: NA | H54: NA | I54: 0 | J54: 0 | K54: 0 | L54: 0 | M54: 0 | N54: 0 | O54: 0 | P54: 0 | Q54: 0 | R54: 0 | S54: 0 | T54: 0 | U54: 0
A55: Q73 | B55: RW3 | C55: CENTRAL MANCHESTER UNIVERSITY HOSPITALS NHS FOUNDATION TRUST | D55: 51 | E55: 747 | F55: 0.06827309237 | G55: 0.9803921569 | H55: 0.01960784314 | I55: 45 | J55: 5 | K55: 0 | L55: 0 | M55: 1 | N55: 0 | O55: 0 | P55: 33 | Q55: 18 | R55: 0 | S55: 0 | T55: 0 | U55: 0
A56: Q73 | B56: RXR | C56: EAST LANCASHIRE HOSPITALS NHS TRUST | D56: 170 | E56: 558 | F56: 0.3046594982 | G56: 0.9647058824 | H56: 0.01764705882 | I56: 142 | J56: 22 | K56: 3 | L56: 1 | M56: 2 | N56: 0 | O56: 120 | P56: 0 | Q56: 0 | R56: 0 | S56: 0 | T56: 50 | U56: 0
A57: Q73 | B57: RXN | C57: LANCASHIRE TEACHING HOSPITALS NHS FOUNDATION TRUST | D57: 54 | E57: 313 | F57: 0.1725239617 | G57: 0.962962963 | H57: 0.01851851852 | I57: 43 | J57: 9 | K57: 1 | L57: 0 | M57: 1 | N57: 0 | O57: 54 | P57: 0 | Q57: 0 | R57: 0 | S57: 0 | T57: 0 | U57: 0
A58: Q73 | B58: RW6 | C58: PENNINE ACUTE HOSPITALS NHS TRUST | D58: 107 | E58: 894 | F58: 0.1196868009 | G58: 0.9439252336 | H58: 0.009345794393 | I58: 85 | J58: 16 | K58: 3 | L58: 1 | M58: 0 | N58: 2 | O58: 0 | P58: 0 | Q58: 107 | R58: 0 | S58: 0 | T58: 0 | U58: 0
A59: Q73 | B59: RWJ | C59: STOCKPORT NHS FOUNDATION TRUST | D59: 157 | E59: 336 | F59: 0.4672619048 | G59: 0.9681528662 | H59: 0.02547770701 | I59: 133 | J59: 19 | K59: 1 | L59: 1 | M59: 3 | N59: 0 | O59: 0 | P59: 0 | Q59: 157 | R59: 0 | S59: 0 | T59: 0 | U59: 0
A60: Q73 | B60: RMP | C60: TAMESIDE HOSPITAL NHS FOUNDATION TRUST | D60: 2 | E60: 219 | F60: 0.009132420091 | G60: * | H60: * | I60: * | J60: * | K60: * | L60: * | M60: * | N60: * | O60: * | P60: * | Q60: * | R60: * | S60: * | T60: * | U60: *
A61: Q73 | B61: RM2 | C61: UNIVERSITY HOSPITAL OF SOUTH MANCHESTER NHS FOUNDATION TRUST | D61: 59 | E61: 317 | F61: 0.1861198738 | G61: 0.9661016949 | H61: 0.03389830508 | I61: 55 | J61: 2 | K61: 0 | L61: 1 | M61: 1 | N61: 0 | O61: 0 | P61: 0 | Q61: 57 | R61: 0 | S61: 0 | T61: 2 | U61: 0
A62: Q73 | B62: RRF | C62: WRIGHTINGTON, WIGAN AND LEIGH NHS FOUNDATION TRUST | D62: 44 | E62: 296 | F62: 0.1486486486 | G62: 1 | H62: 0 | I62: 36 | J62: 8 | K62: 0 | L62: 0 | M62: 0 | N62: 0 | O62: 0 | P62: 0 | Q62: 44 | R62: 0 | S62: 0 | T62: 0 | U62: 0
A63: Q74 | B63: RLN | C63: CITY HOSPITALS SUNDERLAND NHS FOUNDATION TRUST | D63: 60 | E63: 263 | F63: 0.2281368821 | G63: 0.9833333333 | H63: 0 | I63: 53 | J63: 6 | K63: 1 | L63: 0 | M63: 0 | N63: 0 | O63: 0 | P63: 0 | Q63: 60 | R63: 0 | S63: 0 | T63: 0 | U63: 0
A64: Q74 | B64: RXP | C64: COUNTY DURHAM AND DARLINGTON NHS FOUNDATION TRUST | D64: 206 | E64: 411 | F64: 0.501216545 | G64: 0.9757281553 | H64: 0 | I64: 168 | J64: 33 | K64: 2 | L64: 0 | M64: 0 | N64: 3 | O64: 0 | P64: 0 | Q64: 204 | R64: 0 | S64: 0 | T64: 2 | U64: 0
A65: Q74 | B65: RR7 | C65: GATESHEAD HEALTH NHS FOUNDATION TRUST | D65: 36 | E65: 161 | F65: 0.2236024845 | G65: 0.9444444444 | H65: 0.02777777778 | I65: 30 | J65: 4 | K65: 0 | L65: 1 | M65: 0 | N65: 1 | O65: 0 | P65: 36 | Q65: 0 | R65: 0 | S65: 0 | T65: 0 | U65: 0
A66: Q74 | B66: RNL | C66: NORTH CUMBRIA UNIVERSITY HOSPITALS NHS TRUST | D66: 141 | E66: 237 | F66: 0.5949367089 | G66: 0.9929078014 | H66: 0 | I66: 106 | J66: 34 | K66: 0 | L66: 0 | M66: 0 | N66: 1 | O66: 0 | P66: 0 | Q66: 0 | R66: 0 | S66: 0 | T66: 0 | U66: 141
A67: Q74 | B67: RVW | C67: NORTH TEES AND HARTLEPOOL NHS FOUNDATION TRUST | D67: 9 | E67: 288 | F67: 0.03125 | G67: 0.7777777778 | H67: 0.1111111111 | I67: 6 | J67: 1 | K67: 0 | L67: 0 | M67: 1 | N67: 1 | O67: 0 | P67: 0 | Q67: 9 | R67: 0 | S67: 0 | T67: 0 | U67: 0
A68: Q74 | B68: RTF | C68: NORTHUMBRIA HEALTHCARE NHS FOUNDATION TRUST | D68: 91 | E68: 262 | F68: 0.3473282443 | G68: 0.989010989 | H68: 0.01098901099 | I68: 78 | J68: 12 | K68: 0 | L68: 1 | M68: 0 | N68: 0 | O68: 0 | P68: 0 | Q68: 91 | R68: 0 | S68: 0 | T68: 0 | U68: 0
A69: Q74 | B69: RTR | C69: SOUTH TEES HOSPITALS NHS FOUNDATION TRUST | D69: 93 | E69: 421 | F69: 0.2209026128 | G69: 0.9032258065 | H69: 0 | I69: 72 | J69: 12 | K69: 2 | L69: 0 | M69: 0 | N69: 7 | O69: 0 | P69: 0 | Q69: 93 | R69: 0 | S69: 0 | T69: 0 | U69: 0
A70: Q74 | B70: RE9 | C70: SOUTH TYNESIDE NHS FOUNDATION TRUST | D70: 20 | E70: 120 | F70: 0.1666666667 | G70: 0.95 | H70: 0 | I70: 19 | J70: 0 | K70: 0 | L70: 0 | M70: 0 | N70: 1 | O70: 0 | P70: 0 | Q70: 19 | R70: 0 | S70: 0 | T70: 1 | U70: 0
A71: Q74 | B71: RTD | C71: THE NEWCASTLE UPON TYNE HOSPITALS NHS FOUNDATION TRUST | D71: 245 | E71: 628 | F71: 0.3901273885 | G71: 0.987755102 | H71: 0.004081632653 | I71: 217 | J71: 25 | K71: 0 | L71: 1 | M71: 0 | N71: 2 | O71: 0 | P71: 0 | Q71: 245 | R71: 0 | S71: 0 | T71: 0 | U71: 0
A72: Q74 | B72: RTX | C72: UNIVERSITY HOSPITALS OF MORECAMBE BAY NHS FOUNDATION TRUST | D72: 21 | E72: 295 | F72: 0.07118644068 | G72: 1 | H72: 0 | I72: 17 | J72: 4 | K72: 0 | L72: 0 | M72: 0 | N72: 0 | O72: 0 | P72: 0 | Q72: 21 | R72: 0 | S72: 0 | T72: 0 | U72: 0
A73: Q75 | B73: RJR | C73: COUNTESS OF CHESTER HOSPITAL NHS FOUNDATION TRUST | D73: 77 | E73: 257 | F73: 0.2996108949 | G73: 0.9480519481 | H73: 0 | I73: 57 | J73: 16 | K73: 1 | L73: 0 | M73: 0 | N73: 3 | O73: 0 | P73: 0 | Q73: 77 | R73: 0 | S73: 0 | T73: 0 | U73: 0
A74: Q75 | B74: RJN | C74: EAST CHESHIRE NHS TRUST | D74: 40 | E74: 136 | F74: 0.2941176471 | G74: 0.95 | H74: 0 | I74: 27 | J74: 11 | K74: 0 | L74: 0 | M74: 0 | N74: 2 | O74: 0 | P74: 0 | Q74: 40 | R74: 0 | S74: 0 | T74: 0 | U74: 0
A75: Q75 | B75: REP | C75: LIVERPOOL WOMEN'S NHS FOUNDATION TRUST | D75: 49 | E75: 732 | F75: 0.06693989071 | G75: 0.9387755102 | H75: 0.0612244898 | I75: 37 | J75: 9 | K75: 0 | L75: 0 | M75: 3 | N75: 0 | O75: 0 | P75: 0 | Q75: 49 | R75: 0 | S75: 0 | T75: 0 | U75: 0
A76: Q75 | B76: RBT | C76: MID CHESHIRE HOSPITALS NHS FOUNDATION TRUST | D76: 50 | E76: 246 | F76: 0.2032520325 | G76: 1 | H76: 0 | I76: 41 | J76: 9 | K76: 0 | L76: 0 | M76: 0 | N76: 0 | O76: 0 | P76: 0 | Q76: 50 | R76: 0 | S76: 0 | T76: 0 | U76: 0
A77: Q75 | B77: RVY | C77: SOUTHPORT AND ORMSKIRK HOSPITAL NHS TRUST | D77: 44 | E77: 190 | F77: 0.2315789474 | G77: 0.8409090909 | H77: 0.09090909091 | I77: 23 | J77: 14 | K77: 1 | L77: 3 | M77: 1 | N77: 2 | O77: 0 | P77: 0 | Q77: 44 | R77: 0 | S77: 0 | T77: 0 | U77: 0
A78: Q75 | B78: RBN | C78: ST HELENS AND KNOWSLEY HOSPITALS NHS TRUST | D78: 58 | E78: 313 | F78: 0.1853035144 | G78: 1 | H78: 0 | I78: 50 | J78: 8 | K78: 0 | L78: 0 | M78: 0 | N78: 0 | O78: 0 | P78: 0 | Q78: 58 | R78: 0 | S78: 0 | T78: 0 | U78: 0
A79: Q75 | B79: RWW | C79: WARRINGTON AND HALTON HOSPITALS NHS FOUNDATION TRUST | D79: 45 | E79: 188 | F79: 0.2393617021 | G79: 0.9555555556 | H79: 0.02222222222 | I79: 33 | J79: 10 | K79: 1 | L79: 0 | M79: 1 | N79: 0 | O79: 0 | P79: 0 | Q79: 44 | R79: 0 | S79: 0 | T79: 1 | U79: 0
A80: Q75 | B80: RBL | C80: WIRRAL UNIVERSITY TEACHING HOSPITAL NHS FOUNDATION TRUST | D80: 86 | E80: 285 | F80: 0.301754386 | G80: 1 | H80: 0 | I80: 78 | J80: 8 | K80: 0 | L80: 0 | M80: 0 | N80: 0 | O80: 0 | P80: 0 | Q80: 86 | R80: 0 | S80: 0 | T80: 0 | U80: 0
A81: Q76 | B81: RJF | C81: BURTON HOSPITALS NHS FOUNDATION TRUST | D81: 137 | E81: 203 | F81: 0.6748768473 | G81: 0.9781021898 | H81: 0.02189781022 | I81: 117 | J81: 17 | K81: 0 | L81: 2 | M81: 1 | N81: 0 | O81: 0 | P81: 0 | Q81: 137 | R81: 0 | S81: 0 | T81: 0 | U81: 0
A82: Q76 | B82: RFS | C82: CHESTERFIELD ROYAL HOSPITAL NHS FOUNDATION TRUST | D82: 85 | E82: 267 | F82: 0.3183520599 | G82: 0.9764705882 | H82: 0.01176470588 | I82: 68 | J82: 15 | K82: 0 | L82: 0 | M82: 1 | N82: 1 | O82: 0 | P82: 0 | Q82: 85 | R82: 0 | S82: 0 | T82: 0 | U82: 0
A83: Q76 | B83: RTG | C83: DERBY TEACHING HOSPITALS NHS FOUNDATION TRUST | D83: 211 | E83: 527 | F83: 0.4003795066 | G83: 0.9857819905 | H83: 0 | I83: 164 | J83: 44 | K83: 1 | L83: 0 | M83: 0 | N83: 2 | O83: 0 | P83: 0 | Q83: 211 | R83: 0 | S83: 0 | T83: 0 | U83: 0
A84: Q76 | B84: RX1 | C84: NOTTINGHAM UNIVERSITY HOSPITALS NHS TRUST | D84: 142 | E84: 863 | F84: 0.1645422943 | G84: 0.9929577465 | H84: 0 | I84: 132 | J84: 9 | K84: 0 | L84: 0 | M84: 0 | N84: 1 | O84: 0 | P84: 0 | Q84: 142 | R84: 0 | S84: 0 | T84: 0 | U84: 0
A85: Q76 | B85: RK5 | C85: SHERWOOD FOREST HOSPITALS NHS FOUNDATION TRUST | D85: 11 | E85: 273 | F85: 0.04029304029 | G85: 1 | H85: 0 | I85: 10 | J85: 1 | K85: 0 | L85: 0 | M85: 0 | N85: 0 | O85: 0 | P85: 0 | Q85: 11 | R85: 0 | S85: 0 | T85: 0 | U85: 0
A86: Q76 | B86: RXW | C86: SHREWSBURY AND TELFORD HOSPITAL NHS TRUST | D86: 120 | E86: 397 | F86: 0.3022670025 | G86: 0.9916666667 | H86: 0.008333333333 | I86: 112 | J86: 7 | K86: 0 | L86: 0 | M86: 1 | N86: 0 | O86: 0 | P86: 0 | Q86: 120 | R86: 0 | S86: 0 | T86: 0 | U86: 0
A87: Q76 | B87: RJE | C87: UNIVERSITY HOSPITALS OF NORTH MIDLANDS NHS TRUST | D87: 18 | E87: 545 | F87: 0.03302752294 | G87: 1 | H87: 0 | I87: 16 | J87: 2 | K87: 0 | L87: 0 | M87: 0 | N87: 0 | O87: 0 | P87: 0 | Q87: 18 | R87: 0 | S87: 0 | T87: 0 | U87: 0
A88: Q77 | B88: RLU | C88: BIRMINGHAM WOMEN'S NHS FOUNDATION TRUST | D88: 162 | E88: 686 | F88: 0.2361516035 | G88: 0.950617284 | H88: 0.02469135802 | I88: 114 | J88: 40 | K88: 4 | L88: 4 | M88: 0 | N88: 0 | O88: 1 | P88: 0 | Q88: 125 | R88: 0 | S88: 0 | T88: 36 | U88: 0
A89: Q77 | B89: RLT | C89: GEORGE ELIOT HOSPITAL NHS TRUST | D89: 15 | E89: 189 | F89: 0.07936507937 | G89: 1 | H89: 0 | I89: * | J89: * | K89: * | L89: * | M89: * | N89: * | O89: * | P89: * | Q89: * | R89: * | S89: * | T89: * | U89: *
A90: Q77 | B90: RR1 | C90: HEART OF ENGLAND NHS FOUNDATION TRUST | D90: 43 | E90: 866 | F90: 0.04965357968 | G90: 0.9534883721 | H90: 0.02325581395 | I90: 37 | J90: 4 | K90: 1 | L90: 1 | M90: 0 | N90: 0 | O90: 0 | P90: 0 | Q90: 43 | R90: 0 | S90: 0 | T90: 0 | U90: 0
A91: Q77 | B91: RXK | C91: SANDWELL AND WEST BIRMINGHAM HOSPITALS NHS TRUST | D91: 2 | E91: 491 | F91: 0.004073319756 | G91: * | H91: * | I91: * | J91: * | K91: * | L91: * | M91: * | N91: * | O91: * | P91: * | Q91: * | R91: * | S91: * | T91: * | U91: *
A92: Q77 | B92: RJC | C92: SOUTH WARWICKSHIRE NHS FOUNDATION TRUST | D92: 24 | E92: 237 | F92: 0.1012658228 | G92: 0.9583333333 | H92: 0 | I92: 18 | J92: 5 | K92: 1 | L92: 0 | M92: 0 | N92: 0 | O92: 0 | P92: 0 | Q92: 22 | R92: 0 | S92: 0 | T92: 2 | U92: 0
A93: Q77 | B93: RNA | C93: THE DUDLEY GROUP NHS FOUNDATION TRUST | D93: 92 | E93: 416 | F93: 0.2211538462 | G93: 0.9891304348 | H93: 0 | I93: 83 | J93: 8 | K93: 1 | L93: 0 | M93: 0 | N93: 0 | O93: 0 | P93: 0 | Q93: 92 | R93: 0 | S93: 0 | T93: 0 | U93: 0
A94: Q77 | B94: RL4 | C94: THE ROYAL WOLVERHAMPTON NHS TRUST | D94: 72 | E94: 401 | F94: 0.1795511222 | G94: 1 | H94: 0 | I94: 72 | J94: 0 | K94: 0 | L94: 0 | M94: 0 | N94: 0 | O94: 0 | P94: 0 | Q94: 72 | R94: 0 | S94: 0 | T94: 0 | U94: 0
A95: Q77 | B95: RKB | C95: UNIVERSITY HOSPITALS COVENTRY AND WARWICKSHIRE NHS TRUST | D95: 131 | E95: 509 | F95: 0.257367387 | G95: 0.9923664122 | H95: 0.007633587786 | I95: 125 | J95: 5 | K95: 0 | L95: 1 | M95: 0 | N95: 0 | O95: 0 | P95: 0 | Q95: 131 | R95: 0 | S95: 0 | T95: 0 | U95: 0
A96: Q77 | B96: RBK | C96: WALSALL HEALTHCARE NHS TRUST | D96: 38 | E96: 419 | F96: 0.09069212411 | G96: 1 | H96: 0 | I96: 33 | J96: 5 | K96: 0 | L96: 0 | M96: 0 | N96: 0 | O96: 0 | P96: 0 | Q96: 38 | R96: 0 | S96: 0 | T96: 0 | U96: 0
A97: Q77 | B97: RWP | C97: WORCESTERSHIRE ACUTE HOSPITALS NHS TRUST | D97: 148 | E97: 502 | F97: 0.2948207171 | G97: 0.9932432432 | H97: 0 | I97: 136 | J97: 11 | K97: 0 | L97: 0 | M97: 0 | N97: 1 | O97: 0 | P97: 0 | Q97: 148 | R97: 0 | S97: 0 | T97: 0 | U97: 0
A98: Q77 | B98: RLQ | C98: WYE VALLEY NHS TRUST | D98: 67 | E98: 125 | F98: 0.536 | G98: 0.9552238806 | H98: 0.01492537313 | I98: 45 | J98: 19 | K98: 1 | L98: 1 | M98: 0 | N98: 1 | O98: 0 | P98: 0 | Q98: 67 | R98: 0 | S98: 0 | T98: 0 | U98: 0
A99: Q78 | B99: RC1 | C99: BEDFORD HOSPITAL NHS TRUST | D99: 43 | E99: 70 | F99: 0.6142857143 | G99: 1 | H99: 0 | I99: 36 | J99: 7 | K99: 0 | L99: 0 | M99: 0 | N99: 0 | O99: 43 | P99: 0 | Q99: 0 | R99: 0 | S99: 0 | T99: 0 | U99: 0
A100: Q78 | B100: RWH | C100: EAST AND NORTH HERTFORDSHIRE NHS TRUST | D100: 230 | E100: 491 | F100: 0.4684317719 | G100: 0.9695652174 | H100: 0.01739130435 | I100: 170 | J100: 53 | K100: 2 | L100: 1 | M100: 3 | N100: 1 | O100: 0 | P100: 0 | Q100: 230 | R100: 0 | S100: 0 | T100: 0 | U100: 0
A101: Q78 | B101: RNQ | C101: KETTERING GENERAL HOSPITAL NHS FOUNDATION TRUST | D101: 90 | E101: 301 | F101: 0.2990033223 | G101: 0.9777777778 | H101: 0 | I101: 79 | J101: 9 | K101: 2 | L101: 0 | M101: 0 | N101: 0 | O101: 0 | P101: 0 | Q101: 90 | R101: 0 | S101: 0 | T101: 0 | U101: 0
A102: Q78 | B102: RC9 | C102: LUTON AND DUNSTABLE UNIVERSITY HOSPITAL NHS FOUNDATION TRUST | D102: 137 | E102: 467 | F102: 0.2933618844 | G102: 0.9927007299 | H102: 0 | I102: 124 | J102: 12 | K102: 1 | L102: 0 | M102: 0 | N102: 0 | O102: 0 | P102: 137 | Q102: 0 | R102: 0 | S102: 0 | T102: 0 | U102: 0
A103: Q78 | B103: RD8 | C103: MILTON KEYNES HOSPITAL NHS FOUNDATION TRUST | D103: 25 | E103: 338 | F103: 0.07396449704 | G103: 0.84 | H103: 0.04 | I103: 13 | J103: 8 | K103: 2 | L103: 1 | M103: 0 | N103: 1 | O103: 0 | P103: 0 | Q103: 24 | R103: 0 | S103: 0 | T103: 1 | U103: 0
A104: Q78 | B104: RNS | C104: NORTHAMPTON GENERAL HOSPITAL NHS TRUST | D104: 180 | E104: 432 | F104: 0.4166666667 | G104: 0.9333333333 | H104: 0.05 | I104: 144 | J104: 24 | K104: 3 | L104: 4 | M104: 5 | N104: 0 | O104: 129 | P104: 0 | Q104: 46 | R104: 0 | S104: 5 | T104: 0 | U104: 0
A105: Q78 | B105: RWD | C105: UNITED LINCOLNSHIRE HOSPITALS NHS TRUST | D105: 72 | E105: 497 | F105: 0.1448692153 | G105: 0.9166666667 | H105: 0.02777777778 | I105: 52 | J105: 14 | K105: 3 | L105: 2 | M105: 0 | N105: 1 | O105: 0 | P105: 0 | Q105: 72 | R105: 0 | S105: 0 | T105: 0 | U105: 0
A106: Q78 | B106: RWE | C106: UNIVERSITY HOSPITALS OF LEICESTER NHS TRUST | D106: 406 | E106: 968 | F106: 0.4194214876 | G106: 0.9556650246 | H106: 0.01724137931 | I106: 272 | J106: 116 | K106: 9 | L106: 6 | M106: 1 | N106: 2 | O106: 0 | P106: 406 | Q106: 0 | R106: 0 | S106: 0 | T106: 0 | U106: 0
A107: Q78 | B107: RWG | C107: WEST HERTFORDSHIRE HOSPITALS NHS TRUST | D107: 165 | E107: 483 | F107: 0.3416149068 | G107: 0.9696969697 | H107: 0.01818181818 | I107: 127 | J107: 33 | K107: 1 | L107: 0 | M107: 3 | N107: 1 | O107: 0 | P107: 0 | Q107: 165 | R107: 0 | S107: 0 | T107: 0 | U107: 0
A108: Q79 | B108: RDD | C108: BASILDON AND THURROCK UNIVERSITY HOSPITALS NHS FOUNDATION TRUST | D108: 40 | E108: 157 | F108: 0.2547770701 | G108: 0.975 | H108: 0.025 | I108: 34 | J108: 5 | K108: 0 | L108: 0 | M108: 1 | N108: 0 | O108: 0 | P108: 0 | Q108: 40 | R108: 0 | S108: 0 | T108: 0 | U108: 0
A109: Q79 | B109: RGT | C109: CAMBRIDGE UNIVERSITY HOSPITALS NHS FOUNDATION TRUST | D109: 145 | E109: 292 | F109: 0.4965753425 | G109: 0.9931034483 | H109: 0.006896551724 | I109: 124 | J109: 20 | K109: 0 | L109: 0 | M109: 1 | N109: 0 | O109: 0 | P109: 142 | Q109: 3 | R109: 0 | S109: 0 | T109: 0 | U109: 0
A110: Q79 | B110: RDE | C110: COLCHESTER HOSPITAL UNIVERSITY NHS FOUNDATION TRUST | D110: 33 | E110: 295 | F110: 0.1118644068 | G110: 0.9393939394 | H110: 0 | I110: 27 | J110: 4 | K110: 2 | L110: 0 | M110: 0 | N110: 0 | O110: 0 | P110: 0 | Q110: 33 | R110: 0 | S110: 0 | T110: 0 | U110: 0
A111: Q79 | B111: RQQ | C111: HINCHINGBROOKE HEALTH CARE NHS TRUST | D111: 15 | E111: 223 | F111: 0.06726457399 | G111: 1 | H111: 0 | I111: 14 | J111: 1 | K111: 0 | L111: 0 | M111: 0 | N111: 0 | O111: 0 | P111: 0 | Q111: 15 | R111: 0 | S111: 0 | T111: 0 | U111: 0
A112: Q79 | B112: RGQ | C112: IPSWICH HOSPITAL NHS TRUST | D112: 118 | E112: 341 | F112: 0.3460410557 | G112: 0.9915254237 | H112: 0 | I112: 92 | J112: 25 | K112: 0 | L112: 0 | M112: 0 | N112: 1 | O112: 0 | P112: 116 | Q112: 2 | R112: 0 | S112: 0 | T112: 0 | U112: 0
A113: Q79 | B113: RGP | C113: JAMES PAGET UNIVERSITY HOSPITALS NHS FOUNDATION TRUST | D113: 77 | E113: 151 | F113: 0.5099337748 | G113: 0.9480519481 | H113: 0.02597402597 | I113: 62 | J113: 11 | K113: 1 | L113: 1 | M113: 1 | N113: 1 | O113: 0 | P113: 0 | Q113: 77 | R113: 0 | S113: 0 | T113: 0 | U113: 0
A114: Q79 | B114: RQ8 | C114: MID ESSEX HOSPITAL SERVICES NHS TRUST | D114: 89 | E114: 412 | F114: 0.2160194175 | G114: 0.9325842697 | H114: 0.04494382022 | I114: 73 | J114: 10 | K114: 0 | L114: 1 | M114: 3 | N114: 2 | O114: 0 | P114: 89 | Q114: 0 | R114: 0 | S114: 0 | T114: 0 | U114: 0
A115: Q79 | B115: RM1 | C115: NORFOLK AND NORWICH UNIVERSITY HOSPITALS NHS FOUNDATION TRUST | D115: 39 | E115: 516 | F115: 0.07558139535 | G115: 1 | H115: 0 | I115: 37 | J115: 2 | K115: 0 | L115: 0 | M115: 0 | N115: 0 | O115: 0 | P115: 39 | Q115: 0 | R115: 0 | S115: 0 | T115: 0 | U115: 0
A116: Q79 | B116: RGN | C116: PETERBOROUGH AND STAMFORD HOSPITALS NHS FOUNDATION TRUST | D116: 41 | E116: 445 | F116: 0.09213483146 | G116: 0.9756097561 | H116: 0 | I116: 39 | J116: 1 | K116: 0 | L116: 0 | M116: 0 | N116: 1 | O116: 0 | P116: 0 | Q116: 40 | R116: 0 | S116: 0 | T116: 1 | U116: 0
A117: Q79 | B117: RAJ | C117: SOUTHEND UNIVERSITY HOSPITAL NHS FOUNDATION TRUST | D117: 63 | E117: 322 | F117: 0.1956521739 | G117: 0.9682539683 | H117: 0 | I117: 52 | J117: 9 | K117: 1 | L117: 0 | M117: 0 | N117: 1 | O117: 0 | P117: 0 | Q117: 55 | R117: 0 | S117: 8 | T117: 0 | U117: 0
A118: Q79 | B118: RQW | C118: THE PRINCESS ALEXANDRA HOSPITAL NHS TRUST | D118: 135 | E118: 358 | F118: 0.3770949721 | G118: 1 | H118: 0 | I118: 121 | J118: 14 | K118: 0 | L118: 0 | M118: 0 | N118: 0 | O118: 0 | P118: 0 | Q118: 0 | R118: 0 | S118: 0 | T118: 0 | U118: 135
A119: Q79 | B119: RCX | C119: THE QUEEN ELIZABETH HOSPITAL, KING'S LYNN, NHS FOUNDATION TRUST | D119: 29 | E119: 188 | F119: 0.1542553191 | G119: 0.9655172414 | H119: 0 | I119: 24 | J119: 4 | K119: 0 | L119: 0 | M119: 0 | N119: 1 | O119: 0 | P119: 0 | Q119: 29 | R119: 0 | S119: 0 | T119: 0 | U119: 0
A120: Q79 | B120: RGR | C120: WEST SUFFOLK NHS FOUNDATION TRUST | D120: 30 | E120: 274 | F120: 0.1094890511 | G120: 1 | H120: 0 | I120: 29 | J120: 1 | K120: 0 | L120: 0 | M120: 0 | N120: 0 | O120: 0 | P120: 0 | Q120: 30 | R120: 0 | S120: 0 | T120: 0 | U120: 0
A121: Q80 | B121: RVJ | C121: NORTH BRISTOL NHS TRUST | D121: 104 | E121: 534 | F121: 0.1947565543 | G121: 0.9903846154 | H121: 0 | I121: 83 | J121: 20 | K121: 1 | L121: 0 | M121: 0 | N121: 0 | O121: 0 | P121: 0 | Q121: 104 | R121: 0 | S121: 0 | T121: 0 | U121: 0
A122: Q80 | B122: RBZ | C122: NORTHERN DEVON HEALTHCARE NHS TRUST | D122: 5 | E122: 137 | F122: 0.03649635036 | G122: 1 | H122: 0 | I122: 5 | J122: 0 | K122: 0 | L122: 0 | M122: 0 | N122: 0 | O122: 0 | P122: 0 | Q122: 5 | R122: 0 | S122: 0 | T122: 0 | U122: 0
A123: Q80 | B123: RK9 | C123: PLYMOUTH HOSPITALS NHS TRUST | D123: 170 | E123: 409 | F123: 0.4156479218 | G123: 0.9705882353 | H123: 0.005882352941 | I123: 141 | J123: 24 | K123: 3 | L123: 1 | M123: 0 | N123: 1 | O123: 0 | P123: 1 | Q123: 169 | R123: 0 | S123: 0 | T123: 0 | U123: 0
A124: Q80 | B124: REF | C124: ROYAL CORNWALL HOSPITALS NHS TRUST | D124: 52 | E124: 368 | F124: 0.1413043478 | G124: 0.9615384615 | H124: 0.01923076923 | I124: 44 | J124: 6 | K124: 1 | L124: 1 | M124: 0 | N124: 0 | O124: 0 | P124: 0 | Q124: 52 | R124: 0 | S124: 0 | T124: 0 | U124: 0
A125: Q80 | B125: RH8 | C125: ROYAL DEVON AND EXETER NHS FOUNDATION TRUST | D125: 42 | E125: 240 | F125: 0.175 | G125: 0.9523809524 | H125: 0 | I125: 37 | J125: 3 | K125: 1 | L125: 0 | M125: 0 | N125: 1 | O125: 0 | P125: 0 | Q125: 42 | R125: 0 | S125: 0 | T125: 0 | U125: 0
A126: Q80 | B126: RA9 | C126: SOUTH DEVON HEALTHCARE NHS FOUNDATION TRUST | D126: 54 | E126: 181 | F126: 0.2983425414 | G126: 1 | H126: 0 | I126: 48 | J126: 6 | K126: 0 | L126: 0 | M126: 0 | N126: 0 | O126: 0 | P126: 0 | Q126: 54 | R126: 0 | S126: 0 | T126: 0 | U126: 0
A127: Q80 | B127: RBA | C127: TAUNTON AND SOMERSET NHS FOUNDATION TRUST | D127: 67 | E127: 267 | F127: 0.2509363296 | G127: 0.9850746269 | H127: 0 | I127: 58 | J127: 8 | K127: 1 | L127: 0 | M127: 0 | N127: 0 | O127: 0 | P127: 0 | Q127: 67 | R127: 0 | S127: 0 | T127: 0 | U127: 0
A128: Q80 | B128: RA7 | C128: UNIVERSITY HOSPITALS BRISTOL NHS FOUNDATION TRUST | D128: 68 | E128: 437 | F128: 0.1556064073 | G128: 1 | H128: 0 | I128: 62 | J128: 6 | K128: 0 | L128: 0 | M128: 0 | N128: 0 | O128: 0 | P128: 0 | Q128: 67 | R128: 0 | S128: 0 | T128: 1 | U128: 0
A129: Q80 | B129: RA3 | C129: WESTON AREA HEALTH NHS TRUST | D129: 16 | E129: 21 | F129: 0.7619047619 | G129: 1 | H129: 0 | I129: 12 | J129: 4 | K129: 0 | L129: 0 | M129: 0 | N129: 0 | O129: 0 | P129: 0 | Q129: 16 | R129: 0 | S129: 0 | T129: 0 | U129: 0
A130: Q80 | B130: RA4 | C130: YEOVIL DISTRICT HOSPITAL NHS FOUNDATION TRUST | D130: 68 | E130: 114 | F130: 0.5964912281 | G130: 0.9852941176 | H130: 0 | I130: 57 | J130: 10 | K130: 0 | L130: 0 | M130: 0 | N130: 1 | O130: 0 | P130: 68 | Q130: 0 | R130: 0 | S130: 0 | T130: 0 | U130: 0
A131: Q81 | B131: RTK | C131: ASHFORD AND ST PETER'S HOSPITALS NHS FOUNDATION TRUST | D131: 45 | E131: 336 | F131: 0.1339285714 | G131: 1 | H131: 0 | I131: 44 | J131: 1 | K131: 0 | L131: 0 | M131: 0 | N131: 0 | O131: 0 | P131: 0 | Q131: 45 | R131: 0 | S131: 0 | T131: 0 | U131: 0
A132: Q81 | B132: RXH | C132: BRIGHTON AND SUSSEX UNIVERSITY HOSPITALS NHS TRUST | D132: 97 | E132: 509 | F132: 0.1905697446 | G132: 0.9793814433 | H132: 0 | I132: 91 | J132: 4 | K132: 0 | L132: 0 | M132: 0 | N132: 2 | O132: 5 | P132: 0 | Q132: 92 | R132: 0 | S132: 0 | T132: 0 | U132: 0
A133: Q81 | B133: RN7 | C133: DARTFORD AND GRAVESHAM NHS TRUST | D133: 149 | E133: 434 | F133: 0.3433179724 | G133: 0.9932885906 | H133: 0.006711409396 | I133: 132 | J133: 16 | K133: 0 | L133: 0 | M133: 1 | N133: 0 | O133: 0 | P133: 0 | Q133: 149 | R133: 0 | S133: 0 | T133: 0 | U133: 0
A134: Q81 | B134: RVV | C134: EAST KENT HOSPITALS UNIVERSITY NHS FOUNDATION TRUST | D134: 105 | E134: 611 | F134: 0.1718494272 | G134: 0.9238095238 | H134: 0.02857142857 | I134: 79 | J134: 18 | K134: 3 | L134: 1 | M134: 2 | N134: 2 | O134: 0 | P134: 0 | Q134: 105 | R134: 0 | S134: 0 | T134: 0 | U134: 0
A135: Q81 | B135: RXC | C135: EAST SUSSEX HEALTHCARE NHS TRUST | D135: 80 | E135: 296 | F135: 0.2702702703 | G135: 0.95 | H135: 0.025 | I135: 62 | J135: 14 | K135: 2 | L135: 1 | M135: 1 | N135: 0 | O135: 0 | P135: 79 | Q135: 0 | R135: 0 | S135: 0 | T135: 1 | U135: 0
A136: Q81 | B136: RDU | C136: FRIMLEY HEALTH NHS FOUNDATION TRUST | D136: 323 | E136: 836 | F136: 0.3863636364 | G136: 0.9628482972 | H136: 0.003095975232 | I136: 283 | J136: 28 | K136: 2 | L136: 1 | M136: 0 | N136: 9 | O136: 0 | P136: 0 | Q136: 321 | R136: 0 | S136: 0 | T136: 2 | U136: 0
A137: Q81 | B137: RWF | C137: MAIDSTONE AND TUNBRIDGE WELLS NHS TRUST | D137: 58 | E137: 538 | F137: 0.1078066914 | G137: 0.9310344828 | H137: 0 | I137: 51 | J137: 3 | K137: 1 | L137: 0 | M137: 0 | N137: 3 | O137: 0 | P137: 0 | Q137: 58 | R137: 0 | S137: 0 | T137: 0 | U137: 0
A138: Q81 | B138: RPA | C138: MEDWAY NHS FOUNDATION TRUST | D138: 150 | E138: 328 | F138: 0.4573170732 | G138: 1 | H138: 0 | I138: 131 | J138: 19 | K138: 0 | L138: 0 | M138: 0 | N138: 0 | O138: 0 | P138: 0 | Q138: 150 | R138: 0 | S138: 0 | T138: 0 | U138: 0
A139: Q81 | B139: RA2 | C139: ROYAL SURREY COUNTY HOSPITAL NHS FOUNDATION TRUST | D139: 56 | E139: 274 | F139: 0.204379562 | G139: 0.9821428571 | H139: 0 | I139: 51 | J139: 4 | K139: 1 | L139: 0 | M139: 0 | N139: 0 | O139: 14 | P139: 0 | Q139: 41 | R139: 0 | S139: 0 | T139: 1 | U139: 0
A140: Q81 | B140: RTP | C140: SURREY AND SUSSEX HEALTHCARE NHS TRUST | D140: 64 | E140: 404 | F140: 0.1584158416 | G140: 0.9375 | H140: 0 | I140: 46 | J140: 14 | K140: 2 | L140: 0 | M140: 0 | N140: 2 | O140: 0 | P140: 0 | Q140: 3 | R140: 0 | S140: 0 | T140: 61 | U140: 0
A141: Q81 | B141: RYR | C141: WESTERN SUSSEX HOSPITALS NHS FOUNDATION TRUST | D141: 43 | E141: 476 | F141: 0.09033613445 | G141: 0.9302325581 | H141: 0.04651162791 | I141: 34 | J141: 6 | K141: 0 | L141: 1 | M141: 1 | N141: 1 | O141: 1 | P141: 26 | Q141: 14 | R141: 0 | S141: 0 | T141: 2 | U141: 0
A142: Q82 | B142: RXQ | C142: BUCKINGHAMSHIRE HEALTHCARE NHS TRUST | D142: 63 | E142: 498 | F142: 0.1265060241 | G142: 0.9365079365 | H142: 0 | I142: 51 | J142: 8 | K142: 3 | L142: 0 | M142: 0 | N142: 1 | O142: 0 | P142: 0 | Q142: 63 | R142: 0 | S142: 0 | T142: 0 | U142: 0
A143: Q82 | B143: RTE | C143: GLOUCESTERSHIRE HOSPITALS NHS FOUNDATION TRUST | D143: 47 | E143: 530 | F143: 0.08867924528 | G143: 1 | H143: 0 | I143: 44 | J143: 3 | K143: 0 | L143: 0 | M143: 0 | N143: 0 | O143: 0 | P143: 0 | Q143: 44 | R143: 0 | S143: 0 | T143: 3 | U143: 0
A144: Q82 | B144: RN3 | C144: GREAT WESTERN HOSPITALS NHS FOUNDATION TRUST | D144: 75 | E144: 375 | F144: 0.2 | G144: 1 | H144: 0 | I144: 69 | J144: 6 | K144: 0 | L144: 0 | M144: 0 | N144: 0 | O144: 0 | P144: 0 | Q144: 75 | R144: 0 | S144: 0 | T144: 0 | U144: 0
A145: Q82 | B145: RTH | C145: OXFORD UNIVERSITY HOSPITALS NHS TRUST | D145: 56 | E145: 691 | F145: 0.08104196816 | G145: 1 | H145: 0 | I145: 47 | J145: 9 | K145: 0 | L145: 0 | M145: 0 | N145: 0 | O145: 0 | P145: 0 | Q145: 56 | R145: 0 | S145: 0 | T145: 0 | U145: 0
A146: Q82 | B146: RHW | C146: ROYAL BERKSHIRE NHS FOUNDATION TRUST | D146: 153 | E146: 442 | F146: 0.3461538462 | G146: 0.9934640523 | H146: 0 | I146: 132 | J146: 20 | K146: 1 | L146: 0 | M146: 0 | N146: 0 | O146: 0 | P146: 5 | Q146: 146 | R146: 0 | S146: 0 | T146: 2 | U146: 0
A147: Q82 | B147: RD1 | C147: ROYAL UNITED HOSPITALS BATH NHS FOUNDATION TRUST | D147: 84 | E147: 420 | F147: 0.2 | G147: 1 | H147: 0 | I147: 77 | J147: 7 | K147: 0 | L147: 0 | M147: 0 | N147: 0 | O147: 0 | P147: 0 | Q147: 83 | R147: 0 | S147: 0 | T147: 1 | U147: 0
A148: Q82 | B148: RNZ | C148: SALISBURY NHS FOUNDATION TRUST | D148: 60 | E148: 199 | F148: 0.3015075377 | G148: 0.9833333333 | H148: 0 | I148: 57 | J148: 2 | K148: 0 | L148: 0 | M148: 0 | N148: 1 | O148: 0 | P148: 0 | Q148: 0 | R148: 60 | S148: 0 | T148: 0 | U148: 0

Sheet Sites Q2
B6: Sort data by:
A9: Region (Geo) Code | B9: Trust Code | C9: Trust Name | D9: Site Code | E9: Site Name | F9: Total Responses | G9: Total Eligible | H9: Response Rate | I9: Percentage Recommended | J9: Percentage Not Recommended | K9: Breakdown of Responses
K10: Extremely Likely | L10: Likely | M10: Neither | N10: Unlikely | O10: Extremely Unlikely | P10: Don't Know
E11: England | F11: 12256 | G11: 54695 | H11: 0.2240789835 | I11: 0.9676077023 | J11: 0.01174934726 | K11: 9848 | L11: 2011 | M11: 144 | N11: 67 | O11: 77 | P11: 109
E12: Selection (excluding suppressed data) | F12: =SUBTOTAL(9,F13:F298) -> 12256 | G12: =SUBTOTAL(9,G13:G298) -> 54695 | H12: =IFERROR(F12/G12, "-") -> 0.2240789835 | I12: =IFERROR((K12+L12)/SUM(K12:P12), "-") -> 0.9687615527 | J12: =IFERROR((N12+O12)/SUM(K12:P12), "-") -> 0.01164510166 | K12: =SUBTOTAL(9,K13:K298) -> 8722 | L12: =SUBTOTAL(9,L13:L298) -> 1760 | M12: 116 | N12: 56 | O12: 70 | P12: 96
A13: Q70 | B13: RBD | C13: DORSET COUNTY HOSPITAL NHS FOUNDATION TRUST | D13: RBD01 | E13: Dorset County Hospital - RBD01 | F13: 66 | G13: 162 | H13: 0.4074074074 | I13: 0.9696969697 | J13: 0.01515151515 | K13: 60 | L13: 4 | M13: 1 | N13: 1 | O13: 0 | P13: 0
A14: Q70 | B14: RN5 | C14: HAMPSHIRE HOSPITALS NHS FOUNDATION TRUST | D14: RN506 | E14: Basingstoke and North Hampshire Hospital - RN506 | F14: 60 | G14: 240 | H14: 0.25 | I14: 0.9666666667 | J14: 0 | K14: 44 | L14: 14 | M14: 1 | N14: 0 | O14: 0 | P14: 1
A15: Q70 | B15: RN5 | C15: HAMPSHIRE HOSPITALS NHS FOUNDATION TRUST | D15: RN541 | E15: Royal Hampshire County Hospital - RN541 | F15: 22 | G15: 239 | H15: 0.09205020921 | I15: 0.9090909091 | J15: 0.04545454545 | K15: 18 | L15: 2 | M15: 1 | N15: 0 | O15: 1 | P15: 0
A16: Q70 | B16: R1F | C16: ISLE OF WIGHT NHS TRUST | D16: R1F01 | E16: St Mary's Hospital - R1F01 | F16: 31 | G16: 122 | H16: 0.2540983607 | I16: 1 | J16: 0 | K16: 29 | L16: 2 | M16: 0 | N16: 0 | O16: 0 | P16: 0
A17: Q70 | B17: RD3 | C17: POOLE HOSPITAL NHS FOUNDATION TRUST | D17: RD304 | E17: Poole General Hospital NHS Trust HQ - RD304 | F17: 6 | G17: 83 | H17: 0.07228915663 | I17: 1 | J17: 0 | K17: 5 | L17: 1 | M17: 0 | N17: 0 | O17: 0 | P17: 0
A18: Q70 | B18: RHU | C18: PORTSMOUTH HOSPITALS NHS TRUST | D18: RHU10 | E18: Gosport War Memorial Hospital - RHU10 | F18: 2 | G18: 1 | H18: 2 | I18: * | J18: * | K18: * | L18: * | M18: * | N18: * | O18: * | P18: *
A19: Q70 | B19: RHU | C19: PORTSMOUTH HOSPITALS NHS TRUST | D19: RHU04 | E19: Petersfield Community Hospital - RHU04 | F19: 0 | G19: 0 | H19: 0 | I19: NA | J19: NA | K19: 0 | L19: 0 | M19: 0 | N19: 0 | O19: 0 | P19: 0
A20: Q70 | B20: RHU | C20: PORTSMOUTH HOSPITALS NHS TRUST | D20: RHU03 | E20: Queen Alexandra Hospital - RHU03 | F20: 165 | G20: 457 | H20: 0.3610503282 | I20: 0.9939393939 | J20: 0 | K20: 148 | L20: 16 | M20: 1 | N20: 0 | O20: 0 | P20: 0
A21: Q70 | B21: RHU | C21: PORTSMOUTH HOSPITALS NHS TRUST | D21: RHU02 | E21: St Mary's Hospital - RHU02 | F21: 1 | G21: 5 | H21: 0.2 | I21: * | J21: * | K21: * | L21: * | M21: * | N21: * | O21: * | P21: *
A22: Q70 | B22: RDZ | C22: THE ROYAL BOURNEMOUTH AND CHRISTCHURCH HOSPITALS NHS FOUNDATION TRUST | D22: RDZ20 | E22: Royal Bournemouth General Hospital - RDZ20 | F22: 20 | G22: 35 | H22: 0.5714285714 | I22: 1 | J22: 0 | K22: 20 | L22: 0 | M22: 0 | N22: 0 | O22: 0 | P22: 0
A23: Q70 | B23: RHM | C23: UNIVERSITY HOSPITAL SOUTHAMPTON NHS FOUNDATION TRUST | D23: RHM12 | E23: Princess Anne Hospital - RHM12 | F23: 70 | G23: 502 | H23: 0.1394422311 | I23: 0.9714285714 | J23: 0.01428571429 | K23: 41 | L23: 27 | M23: 0 | N23: 0 | O23: 1 | P23: 1
A24: Q71 | B24: RF4 | C24: BARKING, HAVERING AND REDBRIDGE UNIVERSITY HOSPITALS NHS TRUST | D24: RF4QH | E24: Queen's Hospital - RF4QH | F24: 171 | G24: 710 | H24: 0.2408450704 | I24: 0.9824561404 | J24: 0.01169590643 | K24: 135 | L24: 33 | M24: 0 | N24: 1 | O24: 1 | P24: 1
A25: Q71 | B25: R1H | C25: BARTS HEALTH NHS TRUST | D25: R1H90 | E25: Blt Birth Centre - R1H90 | F25: 0 | G25: 52 | H25: 0 | I25: NA | J25: NA | K25: 0 | L25: 0 | M25: 0 | N25: 0 | O25: 0 | P25: 0
A26: Q71 | B26: R1H | C26: BARTS HEALTH NHS TRUST | D26: R1HNH | E26: Newham General Hospital - R1HNH | F26: 13 | G26: 577 | H26: 0.02253032929 | I26: 1 | J26: 0 | K26: 10 | L26: 3 | M26: 0 | N26: 0 | O26: 0 | P26: 0
A27: Q71 | B27: R1H | C27: BARTS HEALTH NHS TRUST | D27: R1HXXX | E27: Non-hospital site - R1HXXX | F27: 1 | G27: 15 | H27: 0.06666666667 | I27: * | J27: * | K27: * | L27: * | M27: * | N27: * | O27: * | P27: *
A28: Q71 | B28: R1H | C28: BARTS HEALTH NHS TRUST | D28: R1H12 | E28: The Royal London Hospital - R1H12 | F28: 38 | G28: 394 | H28: 0.09644670051 | I28: 0.9473684211 | J28: 0.05263157895 | K28: 22 | L28: 14 | M28: 0 | N28: 1 | O28: 1 | P28: 0
A29: Q71 | B29: R1H | C29: BARTS HEALTH NHS TRUST | D29: R1HKH | E29: Whipps Cross University Hospital - R1HKH | F29: 10 | G29: 385 | H29: 0.02597402597 | I29: 1 | J29: 0 | K29: * | L29: * | M29: * | N29: * | O29: * | P29: *
A30: Q71 | B30: RQM | C30: CHELSEA AND WESTMINSTER HOSPITAL NHS FOUNDATION TRUST | D30: RQM01 | E30: Chelsea and Westminster Hospital - RQM01 | F30: 85 | G30: 350 | H30: 0.2428571429 | I30: 0.9647058824 | J30: 0 | K30: 74 | L30: 8 | M30: 3 | N30: 0 | O30: 0 | P30: 0
A31: Q71 | B31: RJ6 | C31: CROYDON HEALTH SERVICES NHS TRUST | D31: RJ611 | E31: Mayday University Hospital - RJ611 | F31: 67 | G31: 281 | H31: 0.2384341637 | I31: 1 | J31: 0 | K31: 50 | L31: 17 | M31: 0 | N31: 0 | O31: 0 | P31: 0
A32: Q71 | B32: RVR | C32: EPSOM AND ST HELIER UNIVERSITY HOSPITALS NHS TRUST | D32: RVR50 | E32: Epsom Hospital - RVR50 | F32: 31 | G32: 179 | H32: 0.1731843575 | I32: 0.9677419355 | J32: 0 | K32: * | L32: * | M32: * | N32: * | O32: * | P32: *
A33: Q71 | B33: RVR | C33: EPSOM AND ST HELIER UNIVERSITY HOSPITALS NHS TRUST | D33: RVRXXX | E33: Non-hospital site - RVRXXX | F33: 4 | G33: 10 | H33: 0.4 | I33: * | J33: * | K33: * | L33: * | M33: * | N33: * | O33: * | P33: *
A34: Q71 | B34: RVR | C34: EPSOM AND ST HELIER UNIVERSITY HOSPITALS NHS TRUST | D34: RVR05 | E34: St Helier Hospital - RVR05 | F34: 68 | G34: 278 | H34: 0.2446043165 | I34: 1 | J34: 0 | K34: 62 | L34: 6 | M34: 0 | N34: 0 | O34: 0 | P34: 0
A35: Q71 | B35: RJ1 | C35: GUY'S AND ST THOMAS' NHS FOUNDATION TRUST | D35: RJ1XXX | E35: Non-hospital site - RJ1XXX | F35: 1 | G35: 10 | H35: 0.1 | I35: * | J35: * | K35: * | L35: * | M35: * | N35: * | O35: * | P35: *
A36: Q71 | B36: RJ1 | C36: GUY'S AND ST THOMAS' NHS FOUNDATION TRUST | D36: RJ122 | E36: St Thomas' Hospital - RJ122 | F36: 205 | G36: 586 | H36: 0.3498293515 | I36: 0.9463414634 | J36: 0.01951219512 | K36: * | L36: * | M36: * | N36: * | O36: * | P36: *
A37: Q71 | B37: RQX | C37: HOMERTON UNIVERSITY HOSPITAL NHS FOUNDATION TRUST | D37: RQXM1 | E37: Homerton University Hospital - RQXM1 | F37: 57 | G37: 523 | H37: 0.1089866157 | I37: 0.9649122807 | J37: 0 | K37: 43 | L37: 12 | M37: 1 | N37: 0 | O37: 0 | P37: 1
A38: Q71 | B38: RYJ | C38: IMPERIAL COLLEGE HEALTHCARE NHS TRUST | D38: RYJ04 | E38: Queen Charlotte's Hospital - RYJ04 | F38: 61 | G38: 468 | H38: 0.1303418803 | I38: 0.9508196721 | J38: 0 | K38: 44 | L38: 14 | M38: 2 | N38: 0 | O38: 0 | P38: 1
A39: Q71 | B39: RYJ | C39: IMPERIAL COLLEGE HEALTHCARE NHS TRUST | D39: RYJ01 | E39: St Mary's Hospital (HQ) - RYJ01 | F39: 42 | G39: 288 | H39: 0.1458333333 | I39: 0.9523809524 | J39: 0 | K39: 33 | L39: 7 | M39: 2 | N39: 0 | O39: 0 | P39: 0
A40: Q71 | B40: RJZ | C40: KING'S COLLEGE HOSPITAL NHS FOUNDATION TRUST | D40: RJZ01 | E40: King's College Hospital (Denmark Hill) - RJZ01 | F40: 18 | G40: 394 | H40: 0.04568527919 | I40: 0.9444444444 | J40: 0.05555555556 | K40: 12 | L40: 5 | M40: 0 | N40: 1 | O40: 0 | P40: 0
A41: Q71 | B41: RJZ | C41: KING'S COLLEGE HOSPITAL NHS FOUNDATION TRUST | D41: RJZ30 | E41: Princess Royal University Hospital - RJZ30 | F41: 50 | G41: 133 | H41: 0.3759398496 | I41: 0.94 | J41: 0 | K41: 28 | L41: 19 | M41: 3 | N41: 0 | O41: 0 | P41: 0
A42: Q71 | B42: RAX | C42: KINGSTON HOSPITAL NHS FOUNDATION TRUST | D42: RAX01 | E42: Kingston Hospital - RAX01 | F42: 86 | G42: 435 | H42: 0.1977011494 | I42: 0.9186046512 | J42: 0.02325581395 | K42: 58 | L42: 21 | M42: 4 | N42: 1 | O42: 1 | P42: 1
A43: Q71 | B43: RJ2 | C43: LEWISHAM AND GREENWICH NHS TRUST | D43: RJ2XXX | E43: Non-hospital site - RJ2XXX | F43: 1 | G43: 7 | H43: 0.1428571429 | I43: * | J43: * | K43: * | L43: * | M43: * | N43: * | O43: * | P43: *
A44: Q71 | B44: RJ2 | C44: LEWISHAM AND GREENWICH NHS TRUST | D44: RJ231 | E44: Queen Elizabeth Hospital - RJ231 | F44: 154 | G44: 388 | H44: 0.3969072165 | I44: 0.974025974 | J44: 0 | K44: 105 | L44: 45 | M44: 1 | N44: 0 | O44: 0 | P44: 3
A45: Q71 | B45: RJ2 | C45: LEWISHAM AND GREENWICH NHS TRUST | D45: RJ224 | E45: University Hospital Lewisham - RJ224 | F45: 101 | G45: 309 | H45: 0.3268608414 | I45: 0.9801980198 | J45: 0.009900990099 | K45: * | L45: * | M45: * | N45: * | O45: * | P45: *
A46: Q71 | B46: R1K | C46: LONDON NORTH WEST HEALTHCARE NHS TRUST | D46: R1KXXX | E46: Non-hospital site - R1KXXX | F46: 2 | G46: 2 | H46: 1 | I46: * | J46: * | K46: * | L46: * | M46: * | N46: * | O46: * | P46: *
A47: Q71 | B47: R1K | C47: LONDON NORTH WEST HEALTHCARE NHS TRUST | D47: R1K01 | E47: Northwick Park Hospital - R1K01 | F47: 128 | G47: 485 | H47: 0.2639175258 | I47: 0.953125 | J47: 0.015625 | K47: * | L47: * | M47: * | N47: * | O47: * | P47: *
A48: Q71 | B48: RAP | C48: NORTH MIDDLESEX UNIVERSITY HOSPITAL NHS TRUST | D48: RAPNM | E48: North Middlesex Hospital - RAPNM | F48: 381 | G48: 439 | H48: 0.867881549 | I48: 0.9002624672 | J48: 0.04724409449 | K48: 203 | L48: 140 | M48: 13 | N48: 4 | O48: 14 | P48: 7
A49: Q71 | B49: RAL | C49: ROYAL FREE LONDON NHS FOUNDATION TRUST | D49: RAL26 | E49: Barnet Hospital - RAL26 | F49: 38 | G49: 459 | H49: 0.08278867102 | I49: 0.9473684211 | J49: 0 | K49: 29 | L49: 7 | M49: 1 | N49: 0 | O49: 0 | P49: 1
A50: Q71 | B50: RAL | C50: ROYAL FREE LONDON NHS FOUNDATION TRUST | D50: RAL01 | E50: Royal Free Hospital - RAL01 | F50: 73 | G50: 277 | H50: 0.2635379061 | I50: 0.9726027397 | J50: 0.01369863014 | K50: 48 | L50: 23 | M50: 1 | N50: 1 | O50: 0 | P50: 0
A51: Q71 | B51: RJ7 | C51: ST GEORGE'S UNIVERSITY HOSPITALS NHS FOUNDATION TRUST | D51: RJ7XXX | E51: Non-hospital site - RJ7XXX | F51: 0 | G51: 0 | H51: 0 | I51: NA | J51: NA | K51: 0 | L51: 0 | M51: 0 | N51: 0 | O51: 0 | P51: 0
A52: Q71 | B52: RJ7 | C52: ST GEORGE'S UNIVERSITY HOSPITALS NHS FOUNDATION TRUST | D52: RJ701 | E52: St George's Hospital (Tooting) - RJ701 | F52: 0 | G52: 440 | H52: 0 | I52: NA | J52: NA | K52: 0 | L52: 0 | M52: 0 | N52: 0 | O52: 0 | P52: 0
A53: Q71 | B53: RAS | C53: THE HILLINGDON HOSPITALS NHS FOUNDATION TRUST | D53: RAS01 | E53: Hillingdon Hospital - RAS01 | F53: 59 | G53: 411 | H53: 0.1435523114 | I53: 0.9491525424 | J53: 0 | K53: * | L53: * | M53: * | N53: * | O53: * | P53: *
A54: Q71 | B54: RAS | C54: THE HILLINGDON HOSPITALS NHS FOUNDATION TRUST | D54: RASXXX | E54: Non-hospital site - RASXXX | F54: 2 | G54: 7 | H54: 0.2857142857 | I54: * | J54: * | K54: * | L54: * | M54: * | N54: * | O54: * | P54: *
A55: Q71 | B55: RKE | C55: THE WHITTINGTON HOSPITAL NHS TRUST | D55: RKEXXX | E55: Non-hospital site - RKEXXX | F55: 0 | G55: 3 | H55: 0 | I55: NA | J55: NA | K55: 0 | L55: 0 | M55: 0 | N55: 0 | O55: 0 | P55: 0
A56: Q71 | B56: RKE | C56: THE WHITTINGTON HOSPITAL NHS TRUST | D56: RKEQ4 | E56: The Whittington Hospital - RKEQ4 | F56: 39 | G56: 319 | H56: 0.1222570533 | I56: 1 | J56: 0 | K56: 32 | L56: 7 | M56: 0 | N56: 0 | O56: 0 | P56: 0
A57: Q71 | B57: RRV | C57: UNIVERSITY COLLEGE LONDON HOSPITALS NHS FOUNDATION TRUST | D57: RRV11 | E57: University College Hospital Elizabeth Garrett Anderson Wing - RRV11 | F57: 166 | G57: 556 | H57: 0.2985611511 | I57: 0.9518072289 | J57: 0.03012048193 | K57: 131 | L57: 27 | M57: 3 | N57: 3 | O57: 2 | P57: 0
A58: Q71 | B58: RFW | C58: WEST MIDDLESEX UNIVERSITY HOSPITAL NHS TRUST | D58: RFW01 | E58: West Middlesex University Hospital - RFW01 | F58: 161 | G58: 556 | H58: 0.2895683453 | I58: 0.9254658385 | J58: 0.03105590062 | K58: 116 | L58: 33 | M58: 6 | N58: 1 | O58: 4 | P58: 1
A59: Q72 | B59: RCF | C59: AIREDALE NHS FOUNDATION TRUST | D59: RCF22 | E59: Airedale General Hospital - RCF22 | F59: 32 | G59: 211 | H59: 0.1516587678 | I59: 0.9375 | J59: 0.0625 | K59: 25 | L59: 5 | M59: 0 | N59: 2 | O59: 0 | P59: 0
A60: Q72 | B60: RFF | C60: BARNSLEY HOSPITAL NHS FOUNDATION TRUST | D60: RFFAA | E60: Barnsley Hospital NHS Foundation Trust HQ - RFFAA | F60: 85 | G60: 227 | H60: 0.3744493392 | I60: 0.9882352941 | J60: 0 | K60: 68 | L60: 16 | M60: 0 | N60: 0 | O60: 0 | P60: 1
A61: Q72 | B61: RAE | C61: BRADFORD TEACHING HOSPITALS NHS FOUNDATION TRUST | D61: RAE01 | E61: Bradford Royal Infirmary - RAE01 | F61: 126 | G61: 486 | H61: 0.2592592593 | I61: 0.9841269841 | J61: 0.007936507937 | K61: 109 | L61: 15 | M61: 1 | N61: 1 | O61: 0 | P61: 0
A62: Q72 | B62: RWY | C62: CALDERDALE AND HUDDERSFIELD NHS FOUNDATION TRUST | D62: RWY02 | E62: Calderdale Royal Hospital - RWY02 | F62: 77 | G62: 425 | H62: 0.1811764706 | I62: 1 | J62: 0 | K62: 52 | L62: 25 | M62: 0 | N62: 0 | O62: 0 | P62: 0
A63: Q72 | B63: RWY | C63: CALDERDALE AND HUDDERSFIELD NHS FOUNDATION TRUST | D63: RWY01 | E63: Huddersfield Royal Infirmary - RWY01 | F63: 6 | G63: 31 | H63: 0.1935483871 | I63: 1 | J63: 0 | K63: 5 | L63: 1 | M63: 0 | N63: 0 | O63: 0 | P63: 0
A64: Q72 | B64: RP5 | C64: DONCASTER AND BASSETLAW HOSPITALS NHS FOUNDATION TRUST | D64: RP5BA | E64: Bassetlaw Hospital - RP5BA | F64: 96 | G64: 132 | H64: 0.7272727273 | I64: 1 | J64: 0 | K64: * | L64: * | M64: * | N64: * | O64: * | P64: *
A65: Q72 | B65: RP5 | C65: DONCASTER AND BASSETLAW HOSPITALS NHS FOUNDATION TRUST | D65: RP5DR | E65: Doncaster Royal Infirmary - RP5DR | F65: 214 | G65: 263 | H65: 0.8136882129 | I65: 0.9439252336 | J65: 0 | K65: 175 | L65: 27 | M65: 2 | N65: 0 | O65: 0 | P65: 10
A66: Q72 | B66: RP5 | C66: DONCASTER AND BASSETLAW HOSPITALS NHS FOUNDATION TRUST | D66: RP5XXX | E66: Non-hospital site - RP5XXX | F66: 1 | G66: 8 | H66: 0.125 | I66: * | J66: * | K66: * | L66: * | M66: * | N66: * | O66: * | P66: *
A67: Q72 | B67: RCD | C67: HARROGATE AND DISTRICT NHS FOUNDATION TRUST | D67: RCD01 | E67: Harrogate District Hospital - RCD01 | F67: 54 | G67: 167 | H67: 0.3233532934 | I67: 1 | J67: 0 | K67: 45 | L67: 9 | M67: 0 | N67: 0 | O67: 0 | P67: 0
A68: Q72 | B68: RWA | C68: HULL AND EAST YORKSHIRE HOSPITALS NHS TRUST | D68: RWA01 | E68: Hull Royal Infirmary - RWA01 | F68: 4 | G68: 485 | H68: 0.00824742268 | I68: * | J68: * | K68: * | L68: * | M68: * | N68: * | O68: * | P68: *
A69: Q72 | B69: RWA | C69: HULL AND EAST YORKSHIRE HOSPITALS NHS TRUST | D69: RWAXXX | E69: Non-hospital site - RWAXXX | F69: 0 | G69: 0 | H69: 0 | I69: NA | J69: NA | K69: 0 | L69: 0 | M69: 0 | N69: 0 | O69: 0 | P69: 0
A70: Q72 | B70: RR8 | C70: LEEDS TEACHING HOSPITALS NHS TRUST | D70: RR801 | E70: Leeds General Infirmary - RR801 | F70: 219 | G70: 401 | H70: 0.5461346633 | I70: 0.9863013699 | J70: 0.009132420091 | K70: 196 | L70: 20 | M70: 0 | N70: 0 | O70: 2 | P70: 1
A71: Q72 | B71: RR8 | C71: LEEDS TEACHING HOSPITALS NHS TRUST | D71: RR8XXX | E71: Non-Hospital Site - RR8XXX | F71: 1 | G71: 15 | H71: 0.06666666667 | I71: * | J71: * | K71: * | L71: * | M71: * | N71: * | O71: * | P71: *
A72: Q72 | B72: RR8 | C72: LEEDS TEACHING HOSPITALS NHS TRUST | D72: RR813 | E72: St James's University Hospital - RR813 | F72: 71 | G72: 435 | H72: 0.1632183908 | I72: 0.8169014085 | J72: 0.0985915493 | K72: * | L72: * | M72: * | N72: * | O72: * | P72: *
A73: Q72 | B73: RXF | C73: MID YORKSHIRE HOSPITALS NHS TRUST | D73: RXF10 | E73: Dewsbury and District Hospital - RXF10 | F73: 19 | G73: 187 | H73: 0.1016042781 | I73: 1 | J73: 0 | K73: 16 | L73: 3 | M73: 0 | N73: 0 | O73: 0 | P73: 0
A74: Q72 | B74: RXF | C74: MID YORKSHIRE HOSPITALS NHS TRUST | D74: RXFXXX | E74: Non-hospital site - RXFXXX | F74: 0 | G74: 7 | H74: 0 | I74: NA | J74: NA | K74: 0 | L74: 0 | M74: 0 | N74: 0 | O74: 0 | P74: 0
A75: Q72 | B75: RXF | C75: MID YORKSHIRE HOSPITALS NHS TRUST | D75: RXF05 | E75: Pinderfields General Hospital - RXF05 | F75: 50 | G75: 317 | H75: 0.1577287066 | I75: 1 | J75: 0 | K75: 32 | L75: 18 | M75: 0 | N75: 0 | O75: 0 | P75: 0
A76: Q72 | B76: RXF | C76: MID YORKSHIRE HOSPITALS NHS TRUST | D76: RXF03 | E76: Pontefract General Infirmary - RXF03 | F76: 10 | G76: 17 | H76: 0.5882352941 | I76: 1 | J76: 0 | K76: 9 | L76: 1 | M76: 0 | N76: 0 | O76: 0 | P76: 0
A77: Q72 | B77: RJL | C77: NORTHERN LINCOLNSHIRE AND GOOLE NHS FOUNDATION TRUST | D77: RJL30 | E77: Diana, Princess Of Wales Hospital - RJL30 | F77: 0 | G77: 253 | H77: 0 | I77: NA | J77: NA | K77: 0 | L77: 0 | M77: 0 | N77: 0 | O77: 0 | P77: 0
A78: Q72 | B78: RJL | C78: NORTHERN LINCOLNSHIRE AND GOOLE NHS FOUNDATION TRUST | D78: RJL31 | E78: Goole and District Hospital (Acute) - RJL31 | F78: 0 | G78: 1 | H78: 0 | I78: NA | J78: NA | K78: 0 | L78: 0 | M78: 0 | N78: 0 | O78: 0 | P78: 0
A79: Q72 | B79: RJL | C79: NORTHERN LINCOLNSHIRE AND GOOLE NHS FOUNDATION TRUST | D79: RJL32 | E79: Scunthorpe General Hospital - RJL32 | F79: 8 | G79: 161 | H79: 0.04968944099 | I79: 1 | J79: 0 | K79: * | L79: * | M79: * | N79: * | O79: * | P79: *
A80: Q72 | B80: RHQ | C80: SHEFFIELD TEACHING HOSPITALS NHS FOUNDATION TRUST | D80: RHQHH | E80: Royal Hallamshire Hospital - RHQHH | F80: 20 | G80: 582 | H80: 0.03436426117 | I80: 0.85 | J80: 0.05 | K80: 11 | L80: 6 | M80: 1 | N80: 0 | O80: 1 | P80: 1
A81: Q72 | B81: RFR | C81: THE ROTHERHAM NHS FOUNDATION TRUST | D81: RFRPA | E81: Rotherham District General Hospital - RFRPA | F81: 89 | G81: 213 | H81: 0.4178403756 | I81: 1 | J81: 0 | K81: 72 | L81: 17 | M81: 0 | N81: 0 | O81: 0 | P81: 0
A82: Q72 | B82: RCB | C82: YORK TEACHING HOSPITAL NHS FOUNDATION TRUST | D82: RCBCA | E82: Scarborough General Hospital - RCBCA | F82: 50 | G82: 134 | H82: 0.3731343284 | I82: 0.96 | J82: 0.02 | K82: 42 | L82: 6 | M82: 0 | N82: 0 | O82: 1 | P82: 1
A83: Q72 | B83: RCB | C83: YORK TEACHING HOSPITAL NHS FOUNDATION TRUST | D83: RCB55 | E83: York Hospital - RCB55 | F83: 75 | G83: 304 | H83: 0.2467105263 | I83: 0.9866666667 | J83: 0 | K83: 56 | L83: 18 | M83: 1 | N83: 0 | O83: 0 | P83: 0
A84: Q73 | B84: RXL | C84: BLACKPOOL TEACHING HOSPITALS NHS FOUNDATION TRUST | D84: RXL01 | E84: Blackpool Victoria Hospital - RXL01 | F84: 31 | G84: 266 | H84: 0.1165413534 | I84: 0.935483871 | J84: 0 | K84: * | L84: * | M84: * | N84: * | O84: * | P84: *
A85: Q73 | B85: RXL | C85: BLACKPOOL TEACHING HOSPITALS NHS FOUNDATION TRUST | D85: RXLXXX | E85: Non-hospital site - RXLXXX | F85: 0 | G85: 0 | H85: 0 | I85: NA | J85: NA | K85: 0 | L85: 0 | M85: 0 | N85: 0 | O85: 0 | P85: 0
A86: Q73 | B86: RMC | C86: BOLTON NHS FOUNDATION TRUST | D86: RMC01 | E86: Royal Bolton Hospital - RMC01 | F86: 73 | G86: 440 | H86: 0.1659090909 | I86: 0.9178082192 | J86: 0.04109589041 | K86: 59 | L86: 8 | M86: 3 | N86: 0 | O86: 3 | P86: 0
A87: Q73 | B87: RY2 | C87: BRIDGEWATER COMMUNITY HEALTHCARE NHS FOUNDATION TRUST | D87: RY28P | E87: Health Care Resource Centre - RY28P | F87: 0 | G87: 0 | H87: 0 | I87: NA | J87: NA | K87: 0 | L87: 0 | M87: 0 | N87: 0 | O87: 0 | P87: 0
A88: Q73 | B88: RY2 | C88: BRIDGEWATER COMMUNITY HEALTHCARE NHS FOUNDATION TRUST | D88: RY2XXX | E88: Non-hospital site - RY2XXX | F88: 0 | G88: 0 | H88: 0 | I88: NA | J88: NA | K88: 0 | L88: 0 | M88: 0 | N88: 0 | O88: 0 | P88: 0
A89: Q73 | B89: RW3 | C89: CENTRAL MANCHESTER UNIVERSITY HOSPITALS NHS FOUNDATION TRUST | D89: RW3XXX | E89: Non-hospital site - RW3XXX | F89: 0 | G89: 4 | H89: 0 | I89: NA | J89: NA | K89: 0 | L89: 0 | M89: 0 | N89: 0 | O89: 0 | P89: 0
A90: Q73 | B90: RW3 | C90: CENTRAL MANCHESTER UNIVERSITY HOSPITALS NHS FOUNDATION TRUST | D90: RW3SM | E90: St Mary's Hospital - RW3SM | F90: 51 | G90: 743 | H90: 0.06864064603 | I90: 0.9803921569 | J90: 0.01960784314 | K90: 45 | L90: 5 | M90: 0 | N90: 0 | O90: 1 | P90: 0
A91: Q73 | B91: RXR | C91: EAST LANCASHIRE HOSPITALS NHS TRUST | D91: RXR20 | E91: Royal Blackburn Hospital - RXR20 | F91: 170 | G91: 558 | H91: 0.3046594982 | I91: 0.9647058824 | J91: 0.01764705882 | K91: 142 | L91: 22 | M91: 3 | N91: 1 | O91: 2 | P91: 0
A92: Q73 | B92: RXN | C92: LANCASHIRE TEACHING HOSPITALS NHS FOUNDATION TRUST | D92: RXN01 | E92: Chorley and South Ribble Hospital - RXN01 | F92: 3 | G92: 11 | H92: 0.2727272727 | I92: * | J92: * | K92: * | L92: * | M92: * | N92: * | O92: * | P92: *
A93: Q73 | B93: RXN | C93: LANCASHIRE TEACHING HOSPITALS NHS FOUNDATION TRUST | D93: RXN02 | E93: Royal Preston Hospital - RXN02 | F93: 51 | G93: 302 | H93: 0.1688741722 | I93: 0.9607843137 | J93: 0.01960784314 | K93: * | L93: * | M93: * | N93: * | O93: * | P93: *
A94: Q73 | B94: RW6 | C94: PENNINE ACUTE HOSPITALS NHS TRUST | D94: RW6XXX | E94: Non-hospital site - RW6XXX | F94: 1 | G94: 29 | H94: 0.03448275862 | I94: * | J94: * | K94: * | L94: * | M94: * | N94: * | O94: * | P94: *
A95: Q73 | B95: RW6 | C95: PENNINE ACUTE HOSPITALS NHS TRUST | D95: RW602 | E95: North Manchester General Hospital - RW602 | F95: 26 | G95: 404 | H95: 0.06435643564 | I95: 1 | J95: 0 | K95: * | L95: * | M95: * | N95: * | O95: * | P95: *
A96: Q73 | B96: RW6 | C96: PENNINE ACUTE HOSPITALS NHS TRUST | D96: RW603 | E96: Royal Oldham Hospital - RW603 | F96: 80 | G96: 461 | H96: 0.1735357918 | I96: 0.925 | J96: 0.0125 | K96: 60 | L96: 14 | M96: 3 | N96: 1 | O96: 0 | P96: 2
A97: Q73 | B97: RWJ | C97: STOCKPORT NHS FOUNDATION TRUST | D97: RWJXXX | E97: Non-hospital site - RWJXXX | F97: 0 | G97: 10 | H97: 0 | I97: NA | J97: NA | K97: 0 | L97: 0 | M97: 0 | N97: 0 | O97: 0 | P97: 0
A98: Q73 | B98: RWJ | C98: STOCKPORT NHS FOUNDATION TRUST | D98: RWJ09 | E98: Stepping Hill Hospital - RWJ09 | F98: 157 | G98: 326 | H98: 0.481595092 | I98: 0.9681528662 | J98: 0.02547770701 | K98: 133 | L98: 19 | M98: 1 | N98: 1 | O98: 3 | P98: 0
A99: Q73 | B99: RMP | C99: TAMESIDE HOSPITAL NHS FOUNDATION TRUST | D99: RMP01 | E99: Tameside General Hospital - RMP01 | F99: 2 | G99: 219 | H99: 0.009132420091 | I99: * | J99: * | K99: * | L99: * | M99: * | N99: * | O99: * | P99: *
A100: Q73 | B100: RM2 | C100: UNIVERSITY HOSPITAL OF SOUTH MANCHESTER NHS FOUNDATION TRUST | D100: RM2XXX | E100: Non-hospital site - RM2XXX | F100: 0 | G100: 0 | H100: 0 | I100: NA | J100: NA | K100: 0 | L100: 0 | M100: 0 | N100: 0 | O100: 0 | P100: 0
A101: Q73 | B101: RM2 | C101: UNIVERSITY HOSPITAL OF SOUTH MANCHESTER NHS FOUNDATION TRUST | D101: RM202 | E101: Wythenshawe Hospital - RM202 | F101: 59 | G101: 317 | H101: 0.1861198738 | I101: 0.9661016949 | J101: 0.03389830508 | K101: 55 | L101: 2 | M101: 0 | N101: 1 | O101: 1 | P101: 0
A102: Q73 | B102: RRF | C102: WRIGHTINGTON, WIGAN AND LEIGH NHS FOUNDATION TRUST | D102: RRF02 | E102: Royal Albert Edward Infirmary - RRF02 | F102: 44 | G102: 296 | H102: 0.1486486486 | I102: 1 | J102: 0 | K102: 36 | L102: 8 | M102: 0 | N102: 0 | O102: 0 | P102: 0
A103: Q74 | B103: RLN | C103: CITY HOSPITALS SUNDERLAND NHS FOUNDATION TRUST | D103: RLNXXX | E103: Non-hospital site - RLNXXX | F103: 0 | G103: 0 | H103: 0 | I103: NA | J103: NA | K103: 0 | L103: 0 | M103: 0 | N103: 0 | O103: 0 | P103: 0
A104: Q74 | B104: RLN | C104: CITY HOSPITALS SUNDERLAND NHS FOUNDATION TRUST | D104: RLNGL | E104: Sunderland Royal Hospital - RLNGL | F104: 60 | G104: 263 | H104: 0.2281368821 | I104: 0.9833333333 | J104: 0 | K104: 53 | L104: 6 | M104: 1 | N104: 0 | O104: 0 | P104: 0
A105: Q74 | B105: RXP | C105: COUNTY DURHAM AND DARLINGTON NHS FOUNDATION TRUST | D105: RXPDA | E105: Darlington Memorial Hospital - RXPDA | F105: 95 | G105: 183 | H105: 0.5191256831 | I105: 0.9578947368 | J105: 0 | K105: 75 | L105: 16 | M105: 2 | N105: 0 | O105: 0 | P105: 2
A106: Q74 | B106: RXP | C106: COUNTY DURHAM AND DARLINGTON NHS FOUNDATION TRUST | D106: RXPXXX | E106: Non-hospital site - RXPXXX | F106: 0 | G106: 0 | H106: 0 | I106: NA | J106: NA | K106: 0 | L106: 0 | M106: 0 | N106: 0 | O106: 0 | P106: 0
A107: Q74 | B107: RXP | C107: COUNTY DURHAM AND DARLINGTON NHS FOUNDATION TRUST | D107: RXPCP | E107: University Hospital Of North Durham - RXPCP | F107: 111 | G107: 228 | H107: 0.4868421053 | I107: 0.990990991 | J107: 0 | K107: 93 | L107: 17 | M107: 0 | N107: 0 | O107: 0 | P107: 1
A108: Q74 | B108: RR7 | C108: GATESHEAD HEALTH NHS FOUNDATION TRUST | D108: RR7EN | E108: Queen Elizabeth Hospital - RR7EN | F108: 36 | G108: 161 | H108: 0.2236024845 | I108: 0.9444444444 | J108: 0.02777777778 | K108: 30 | L108: 4 | M108: 0 | N108: 1 | O108: 0 | P108: 1
A109: Q74 | B109: RNL | C109: NORTH CUMBRIA UNIVERSITY HOSPITALS NHS TRUST | D109: RNLAY | E109: Cumberland Infirmary - RNLAY | F109: 73 | G109: 147 | H109: 0.4965986395 | I109: 0.9863013699 | J109: 0 | K109: 51 | L109: 21 | M109: 0 | N109: 0 | O109: 0 | P109: 1
A110: Q74 | B110: RNL | C110: NORTH CUMBRIA UNIVERSITY HOSPITALS NHS TRUST | D110: RNLXXX | E110: Non-hospital site - RNLXXX | F110: 0 | G110: 3 | H110: 0 | I110: NA | J110: NA | K110: 0 | L110: 0 | M110: 0 | N110: 0 | O110: 0 | P110: 0
A111: Q74 | B111: RNL | C111: NORTH CUMBRIA UNIVERSITY HOSPITALS NHS TRUST | D111: RNLBE | E111: Penrith Hospital - RNLBE | F111: 0 | G111: 4 | H111: 0 | I111: NA | J111: NA | K111: 0 | L111: 0 | M111: 0 | N111: 0 | O111: 0 | P111: 0
A112: Q74 | B112: RNL | C112: NORTH CUMBRIA UNIVERSITY HOSPITALS NHS TRUST | D112: RNLBX | E112: West Cumberland Hospital - RNLBX | F112: 68 | G112: 83 | H112: 0.8192771084 | I112: 1 | J112: 0 | K112: 55 | L112: 13 | M112: 0 | N112: 0 | O112: 0 | P112: 0
A113: Q74 | B113: RVW | C113: NORTH TEES AND HARTLEPOOL NHS FOUNDATION TRUST | D113: RVWXXX | E113: Non-hospital site - RVWXXX | F113: 0 | G113: 7 | H113: 0 | I113: NA | J113: NA | K113: 0 | L113: 0 | M113: 0 | N113: 0 | O113: 0 | P113: 0
A114: Q74 | B114: RVW | C114: NORTH TEES AND HARTLEPOOL NHS FOUNDATION TRUST | D114: RVWAA | E114: University Hospital Of Hartlepool - RVWAA | F114: 0 | G114: 2 | H114: 0 | I114: NA | J114: NA | K114: 0 | L114: 0 | M114: 0 | N114: 0 | O114: 0 | P114: 0
A115: Q74 | B115: RVW | C115: NORTH TEES AND HARTLEPOOL NHS FOUNDATION TRUST | D115: RVWAE | E115: University Hospital Of North Tees - RVWAE | F115: 9 | G115: 279 | H115: 0.03225806452 | I115: 0.7777777778 | J115: 0.1111111111 | K115: 6 | L115: 1 | M115: 0 | N115: 0 | O115: 1 | P115: 1
A116: Q74 | B116: RTF | C116: NORTHUMBRIA HEALTHCARE NHS FOUNDATION TRUST | D116: RTFDJ | E116: Alnwick Infirmary - RTFDJ | F116: 0 | G116: 1 | H116: 0 | I116: NA | J116: NA | K116: 0 | L116: 0 | M116: 0 | N116: 0 | O116: 0 | P116: 0
A117: Q74 | B117: RTF | C117: NORTHUMBRIA HEALTHCARE NHS FOUNDATION TRUST | D117: RTFDH | E117: Berwick Infirmary - RTFDH | F117: 0 | G117: 1 | H117: 0 | I117: NA | J117: NA | K117: 0 | L117: 0 | M117: 0 | N117: 0 | O117: 0 | P117: 0
A118: Q74 | B118: RTF | C118: NORTHUMBRIA HEALTHCARE NHS FOUNDATION TRUST | D118: RTFDR | E118: Hexham General Hospital - RTFDR | F118: 0 | G118: 2 | H118: 0 | I118: NA | J118: NA | K118: 0 | L118: 0 | M118: 0 | N118: 0 | O118: 0 | P118: 0
A119: Q74 | B119: RTF | C119: NORTHUMBRIA HEALTHCARE NHS FOUNDATION TRUST | D119: RTFXXX | E119: Non-hospital site - RTFXXX | F119: 0 | G119: 7 | H119: 0 | I119: NA | J119: NA | K119: 0 | L119: 0 | M119: 0 | N119: 0 | O119: 0 | P119: 0
A120: Q74 | B120: RTF | C120: NORTHUMBRIA HEALTHCARE NHS FOUNDATION TRUST | D120: RTFFS | E120: North Tyneside General Hospital - RTFFS | F120: 0 | G120: 0 | H120: 0 | I120: NA | J120: NA | K120: 0 | L120: 0 | M120: 0 | N120: 0 | O120: 0 | P120: 0
A121: Q74 | B121: RTF | C121: NORTHUMBRIA HEALTHCARE NHS FOUNDATION TRUST | D121: RTF86 | E121: The Northumbria - RTF86 | F121: 91 | G121: 251 | H121: 0.3625498008 | I121: 0.989010989 | J121: 0.01098901099 | K121: 78 | L121: 12 | M121: 0 | N121: 1 | O121: 0 | P121: 0
A122: Q74 | B122: RTF | C122: NORTHUMBRIA HEALTHCARE NHS FOUNDATION TRUST | D122: RTFED | E122: Wansbeck Hospital - RTFED | F122: 0 | G122: 0 | H122: 0 | I122: NA | J122: NA | K122: 0 | L122: 0 | M122: 0 | N122: 0 | O122: 0 | P122: 0
A123: Q74 | B123: RTR | C123: SOUTH TEES HOSPITALS NHS FOUNDATION TRUST | D123: RTR45 | E123: Friarage Hospital Site - RTR45 | F123: 14 | G123: 21 | H123: 0.6666666667 | I123: 1 | J123: 0 | K123: 14 | L123: 0 | M123: 0 | N123: 0 | O123: 0 | P123: 0
A124: Q74 | B124: RTR | C124: SOUTH TEES HOSPITALS NHS FOUNDATION TRUST | D124: RTRXXX | E124: Non-hospital site - RTRXXX | F124: 0 | G124: 0 | H124: 0 | I124: NA | J124: NA | K124: 0 | L124: 0 | M124: 0 | N124: 0 | O124: 0 | P124: 0
A125: Q74 | B125: RTR | C125: SOUTH TEES HOSPITALS NHS FOUNDATION TRUST | D125: RTRAT | E125: The James Cook University Hospital - RTRAT | F125: 79 | G125: 400 | H125: 0.1975 | I125: 0.8860759494 | J125: 0 | K125: 58 | L125: 12 | M125: 2 | N125: 0 | O125: 0 | P125: 7
A126: Q74 | B126: RE9 | C126: SOUTH TYNESIDE NHS FOUNDATION TRUST | D126: RE9XXX | E126: Non-hospital site - RE9XXX | F126: 0 | G126: 1 | H126: 0 | I126: NA | J126: NA | K126: 0 | L126: 0 | M126: 0 | N126: 0 | O126: 0 | P126: 0
A127: Q74 | B127: RE9 | C127: SOUTH TYNESIDE NHS FOUNDATION TRUST | D127: RE9GA | E127: South Tyneside District Hospital - RE9GA | F127: 20 | G127: 119 | H127: 0.1680672269 | I127: 0.95 | J127: 0 | K127: 19 | L127: 0 | M127: 0 | N127: 0 | O127: 0 | P127: 1
A128: Q74 | B128: RTD | C128: THE NEWCASTLE UPON TYNE HOSPITALS NHS FOUNDATION TRUST | D128: RTD02 | E128: The Royal Victoria Infirmary - RTD02 | F128: 245 | G128: 628 | H128: 0.3901273885 | I128: 0.987755102 | J128: 0.004081632653 | K128: 217 | L128: 25 | M128: 0 | N128: 1 | O128: 0 | P128: 2
A129: Q74 | B129: RTX | C129: UNIVERSITY HOSPITALS OF MORECAMBE BAY NHS FOUNDATION TRUST | D129: RTXBU | E129: Furness General Hospital - RTXBU | F129: 13 | G129: 98 | H129: 0.1326530612 | I129: 1 | J129: 0 | K129: 10 | L129: 3 | M129: 0 | N129: 0 | O129: 0 | P129: 0
A130: Q74 | B130: RTX | C130: UNIVERSITY HOSPITALS OF MORECAMBE BAY NHS FOUNDATION TRUST | D130: RTX02 | E130: Royal Lancaster Infirmary - RTX02 | F130: 6 | G130: 188 | H130: 0.03191489362 | I130: 1 | J130: 0 | K130: * | L130: * | M130: * | N130: * | O130: * | P130: *
A131: Q74 | B131: RTX | C131: UNIVERSITY HOSPITALS OF MORECAMBE BAY NHS FOUNDATION TRUST | D131: RTXBW | E131: Westmorland General Hospital - RTXBW | F131: 2 | G131: 9 | H131: 0.2222222222 | I131: * | J131: * | K131: * | L131: * | M131: * | N131: * | O131: * | P131: *
A132: Q75 | B132: RJR | C132: COUNTESS OF CHESTER HOSPITAL NHS FOUNDATION TRUST | D132: RJR05 | E132: Countess Of Chester Hospital - RJR05 | F132: 77 | G132: 257 | H132: 0.2996108949 | I132: 0.9480519481 | J132: 0 | K132: 57 | L132: 16 | M132: 1 | N132: 0 | O132: 0 | P132: 3
A133: Q75 | B133: RJR | C133: COUNTESS OF CHESTER HOSPITAL NHS FOUNDATION TRUST | D133: RJRXXX | E133: Non-hospital site - RJRXXX | F133: 0 | G133: 0 | H133: 0 | I133: NA | J133: NA | K133: 0 | L133: 0 | M133: 0 | N133: 0 | O133: 0 | P133: 0
A134: Q75 | B134: RJN | C134: EAST CHESHIRE NHS TRUST | D134: RJN71 | E134: Macclesfield District General Hospital - RJN71 | F134: 40 | G134: 136 | H134: 0.2941176471 | I134: 0.95 | J134: 0 | K134: 27 | L134: 11 | M134: 0 | N134: 0 | O134: 0 | P134: 2
A135: Q75 | B135: REP | C135: LIVERPOOL WOMEN'S NHS FOUNDATION TRUST | D135: REP01 | E135: Liverpool Womens Hospital - REP01 | F135: 49 | G135: 732 | H135: 0.06693989071 | I135: 0.9387755102 | J135: 0.0612244898 | K135: 37 | L135: 9 | M135: 0 | N135: 0 | O135: 3 | P135: 0
A136: Q75 | B136: RBT | C136: MID CHESHIRE HOSPITALS NHS FOUNDATION TRUST | D136: RBT20 | E136: Leighton Hospital - RBT20 | F136: 50 | G136: 246 | H136: 0.2032520325 | I136: 1 | J136: 0 | K136: 41 | L136: 9 | M136: 0 | N136: 0 | O136: 0 | P136: 0
A137: Q75 | B137: RVY | C137: SOUTHPORT AND ORMSKIRK HOSPITAL NHS TRUST | D137: RVY02 | E137: Ormskirk and District General Hospital - RVY02 | F137: 44 | G137: 190 | H137: 0.2315789474 | I137: 0.8409090909 | J137: 0.09090909091 | K137: 23 | L137: 14 | M137: 1 | N137: 3 | O137: 1 | P137: 2
A138: Q75 | B138: RBN | C138: ST HELENS AND KNOWSLEY HOSPITALS NHS TRUST | D138: RBN01 | E138: Whiston Hospital - RBN01 | F138: 58 | G138: 313 | H138: 0.1853035144 | I138: 1 | J138: 0 | K138: 50 | L138: 8 | M138: 0 | N138: 0 | O138: 0 | P138: 0
A139: Q75 | B139: RWW | C139: WARRINGTON AND HALTON HOSPITALS NHS FOUNDATION TRUST | D139: RWWWH | E139: Warrington Hospital - RWWWH | F139: 45 | G139: 188 | H139: 0.2393617021 | I139: 0.9555555556 | J139: 0.02222222222 | K139: 33 | L139: 10 | M139: 1 | N139: 0 | O139: 1 | P139: 0
A140: Q75 | B140: RBL | C140: WIRRAL UNIVERSITY TEACHING HOSPITAL NHS FOUNDATION TRUST | D140: RBL14 | E140: Arrowe Park Hospital - RBL14 | F140: 86 | G140: 285 | H140: 0.301754386 | I140: 1 | J140: 0 | K140: 78 | L140: 8 | M140: 0 | N140: 0 | O140: 0 | P140: 0
A141: Q76 | B141: RJF | C141: BURTON HOSPITALS NHS FOUNDATION TRUST | D141: RJF02 | E141: Queen's Hospital, Burton Upon Trent - RJF02 | F141: 137 | G141: 203 | H141: 0.6748768473 | I141: 0.9781021898 | J141: 0.02189781022 | K141: 117 | L141: 17 | M141: 0 | N141: 2 | O141: 1 | P141: 0
A142: Q76 | B142: RFS | C142: CHESTERFIELD ROYAL HOSPITAL NHS FOUNDATION TRUST | D142: RFSDA | E142: Chesterfield Royal Hospital - RFSDA | F142: 84 | G142: 266 | H142: 0.3157894737 | I142: 0.9880952381 | J142: 0.0119047619 | K142: * | L142: * | M142: * | N142: * | O142: * | P142: *
A143: Q76 | B143: RFS | C143: CHESTERFIELD ROYAL HOSPITAL NHS FOUNDATION TRUST | D143: RFSXXX | E143: Non-hospital site - RFSXXX | F143: 1 | G143: 1 | H143: 1 | I143: * | J143: * | K143: * | L143: * | M143: * | N143: * | O143: * | P143: *
A144: Q76 | B144: RTG | C144: DERBY TEACHING HOSPITALS NHS FOUNDATION TRUST | D144: RTGFG | E144: Royal Derby Hospital - RTGFG | F144: 211 | G144: 527 | H144: 0.4003795066 | I144: 0.9857819905 | J144: 0 | K144: 164 | L144: 44 | M144: 1 | N144: 0 | O144: 0 | P144: 2
A145: Q76 | B145: RX1 | C145: NOTTINGHAM UNIVERSITY HOSPITALS NHS TRUST | D145: RX1XXX | E145: Non-hospital site - RX1XXX | F145: 0 | G145: 21 | H145: 0 | I145: NA | J145: NA | K145: 0 | L145: 0 | M145: 0 | N145: 0 | O145: 0 | P145: 0
A146: Q76 | B146: RX1 | C146: NOTTINGHAM UNIVERSITY HOSPITALS NHS TRUST | D146: RX1CC | E146: Nottingham University Hospitals NHS Trust - City Campus - RX1CC | F146: 87 | G146: 476 | H146: 0.1827731092 | I146: 1 | J146: 0 | K146: 79 | L146: 8 | M146: 0 | N146: 0 | O146: 0 | P146: 0
A147: Q76 | B147: RX1 | C147: NOTTINGHAM UNIVERSITY HOSPITALS NHS TRUST | D147: RX1RA | E147: Nottingham University Hospitals NHS Trust - Queen's Medical Centre Campus - RX1RA | F147: 55 | G147: 366 | H147: 0.150273224 | I147: 0.9818181818 | J147: 0 | K147: 53 | L147: 1 | M147: 0 | N147: 0 | O147: 0 | P147: 1
A148: Q76 | B148: RK5 | C148: SHERWOOD FOREST HOSPITALS NHS FOUNDATION TRUST | D148: RK5BC | E148: King's Mill Hospital - RK5BC | F148: 11 | G148: 267 | H148: 0.04119850187 | I148: 1 | J148: 0 | K148: 10 | L148: 1 | M148: 0 | N148: 0 | O148: 0 | P148: 0
A149: Q76 | B149: RK5 | C149: SHERWOOD FOREST HOSPITALS NHS FOUNDATION TRUST | D149: RK5XXX | E149: Non-hospital site - RK5XXX | F149: 0 | G149: 6 | H149: 0 | I149: NA | J149: NA | K149: 0 | L149: 0 | M149: 0 | N149: 0 | O149: 0 | P149: 0
A150: Q76 | B150: RXW | C150: SHREWSBURY AND TELFORD HOSPITAL NHS TRUST | D150: RXWMB | E150: Bridgnorth Hospital (Maternity) - RXWMB | F150: 6 | G150: 7 | H150: 0.8571428571 | I150: 1 | J150: 0 | K150: 6 | L150: 0 | M150: 0 | N150: 0 | O150: 0 | P150: 0
A151: Q76 | B151: RXW | C151: SHREWSBURY AND TELFORD HOSPITAL NHS TRUST | D151: RXWML | E151: Ludlow Hospital (Maternity) - RXWML | F151: 3 | G151: 3 | H151: 1 | I151: * | J151: * | K151: * | L151: * | M151: * | N151: * | O151: * | P151: *
A152: Q76 | B152: RXW | C152: SHREWSBURY AND TELFORD HOSPITAL NHS TRUST | D152: RXWXXX | E152: Non-hospital site - RXWXXX | F152: 0 | G152: 8 | H152: 0 | I152: NA | J152: NA | K152: 0 | L152: 0 | M152: 0 | N152: 0 | O152: 0 | P152: 0
A153: Q76 | B153: RXW | C153: SHREWSBURY AND TELFORD HOSPITAL NHS TRUST | D153: RXWMJ | E153: Robert Jones & Agnes Hunt Orthopaedic & District Hospital - RXWMJ | F153: 3 | G153: 3 | H153: 1 | I153: * | J153: * | K153: * | L153: * | M153: * | N153: * | O153: * | P153: *
A154: Q76 | B154: RXW | C154: SHREWSBURY AND TELFORD HOSPITAL NHS TRUST | D154: RXWAS | E154: Royal Shrewsbury Hospital - RXWAS | F154: 0 | G154: 12 | H154: 0 | I154: NA | J154: NA | K154: 0 | L154: 0 | M154: 0 | N154: 0 | O154: 0 | P154: 0
A155: Q76 | B155: RXW | C155: SHREWSBURY AND TELFORD HOSPITAL NHS TRUST | D155: RXWAT | E155: The Princess Royal Hospital - RXWAT | F155: 108 | G155: 364 | H155: 0.2967032967 | I155: 0.9907407407 | J155: 0.009259259259 | K155: 100 | L155: 7 | M155: 0 | N155: 0 | O155: 1 | P155: 0
A156: Q76 | B156: RJE | C156: UNIVERSITY HOSPITALS OF NORTH MIDLANDS NHS TRUST | D156: RJE09 | E156: County Hospital - RJE09 | F156: 0 | G156: 13 | H156: 0 | I156: NA | J156: NA | K156: 0 | L156: 0 | M156: 0 | N156: 0 | O156: 0 | P156: 0
A157: Q76 | B157: RJE | C157: UNIVERSITY HOSPITALS OF NORTH MIDLANDS NHS TRUST | D157: RJE01 | E157: Royal Stoke University Hospital - RJE01 | F157: 18 | G157: 532 | H157: 0.03383458647 | I157: 1 | J157: 0 | K157: 16 | L157: 2 | M157: 0 | N157: 0 | O157: 0 | P157: 0
A158: Q77 | B158: RLU | C158: BIRMINGHAM WOMEN'S NHS FOUNDATION TRUST | D158: RLU01 | E158: Birmingham Women's Hospital - RLU01 | F158: 162 | G158: 686 | H158: 0.2361516035 | I158: 0.950617284 | J158: 0.02469135802 | K158: 114 | L158: 40 | M158: 4 | N158: 4 | O158: 0 | P158: 0
A159: Q77 | B159: RLT | C159: GEORGE ELIOT HOSPITAL NHS TRUST | D159: RLT01 | E159: George Eliot Hospital - Acute Services - RLT01 | F159: 15 | G159: 189 | H159: 0.07936507937 | I159: 1 | J159: 0 | K159: * | L159: * | M159: * | N159: * | O159: * | P159: *
A160: Q77 | B160: RR1 | C160: HEART OF ENGLAND NHS FOUNDATION TRUST | D160: RR105 | E160: Good Hope Hospital - RR105 | F160: 16 | G160: 328 | H160: 0.0487804878 | I160: 1 | J160: 0 | K160: * | L160: * | M160: * | N160: * | O160: * | P160: *
A161: Q77 | B161: RR1 | C161: HEART OF ENGLAND NHS FOUNDATION TRUST | D161: RR101 | E161: Heartlands Hospital - RR101 | F161: 3 | G161: 525 | H161: 0.005714285714 | I161: * | J161: * | K161: * | L161: * | M161: * | N161: * | O161: * | P161: *
A162: Q77 | B162: RR1 | C162: HEART OF ENGLAND NHS FOUNDATION TRUST | D162: RR109 | E162: Solihull Hospital - RR109 | F162: 24 | G162: 13 | H162: 1.846153846 | I162: 1 | J162: 0 | K162: 23 | L162: 1 | M162: 0 | N162: 0 | O162: 0 | P162: 0
A163: Q77 | B163: RXK | C163: SANDWELL AND WEST BIRMINGHAM HOSPITALS NHS TRUST | D163: RXK02 | E163: City Hospital - RXK02 | F163: 2 | G163: 491 | H163: 0.004073319756 | I163: * | J163: * | K163: * | L163: * | M163: * | N163: * | O163: * | P163: *
A164: Q77 | B164: RJC | C164: SOUTH WARWICKSHIRE NHS FOUNDATION TRUST | D164: RJCXXX | E164: Non-hospital site - RJCXXX | F164: 2 | G164: 5 | H164: 0.4 | I164: * | J164: * | K164: * | L164: * | M164: * | N164: * | O164: * | P164: *
A165: Q77 | B165: RJC | C165: SOUTH WARWICKSHIRE NHS FOUNDATION TRUST | D165: RJC02 | E165: Warwick Hospital - RJC02 | F165: 22 | G165: 232 | H165: 0.09482758621 | I165: 0.9545454545 | J165: 0 | K165: * | L165: * | M165: * | N165: * | O165: * | P165: *
A166: Q77 | B166: RNA | C166: THE DUDLEY GROUP NHS FOUNDATION TRUST | D166: RNA01 | E166: Russells Hall Hospital - RNA01 | F166: 92 | G166: 416 | H166: 0.2211538462 | I166: 0.9891304348 | J166: 0 | K166: 83 | L166: 8 | M166: 1 | N166: 0 | O166: 0 | P166: 0
A167: Q77 | B167: RL4 | C167: THE ROYAL WOLVERHAMPTON NHS TRUST | D167: RL403 | E167: New Cross Hospital - RL403 | F167: 72 | G167: 401 | H167: 0.1795511222 | I167: 1 | J167: 0 | K167: 72 | L167: 0 | M167: 0 | N167: 0 | O167: 0 | P167: 0
A168: Q77 | B168: RKB | C168: UNIVERSITY HOSPITALS COVENTRY AND WARWICKSHIRE NHS TRUST | D168: RKB03 | E168: Hospital Of St Cross - RKB03 | F168: 0 | G168: 0 | H168: 0 | I168: NA | J168: NA | K168: 0 | L168: 0 | M168: 0 | N168: 0 | O168: 0 | P168: 0
A169: Q77 | B169: RKB | C169: UNIVERSITY HOSPITALS COVENTRY AND WARWICKSHIRE NHS TRUST | D169: RKBXXX | E169: Non-hospital site - RKBXXX | F169: 0 | G169: 3 | H169: 0 | I169: NA | J169: NA | K169: 0 | L169: 0 | M169: 0 | N169: 0 | O169: 0 | P169: 0
A170: Q77 | B170: RKB | C170: UNIVERSITY HOSPITALS COVENTRY AND WARWICKSHIRE NHS TRUST | D170: RKB01 | E170: University Hospital (Coventry) - RKB01 | F170: 131 | G170: 506 | H170: 0.2588932806 | I170: 0.9923664122 | J170: 0.007633587786 | K170: 125 | L170: 5 | M170: 0 | N170: 1 | O170: 0 | P170: 0
A171: Q77 | B171: RBK | C171: WALSALL HEALTHCARE NHS TRUST | D171: RBK02 | E171: Manor Hospital - RBK02 | F171: 38 | G171: 419 | H171: 0.09069212411 | I171: 1 | J171: 0 | K171: 33 | L171: 5 | M171: 0 | N171: 0 | O171: 0 | P171: 0
A172: Q77 | B172: RWP | C172: WORCESTERSHIRE ACUTE HOSPITALS NHS TRUST | D172: RWP01 | E172: Alexandra Hospital - RWP01 | F172: 41 | G172: 148 | H172: 0.277027027 | I172: 1 | J172: 0 | K172: 39 | L172: 2 | M172: 0 | N172: 0 | O172: 0 | P172: 0
A173: Q77 | B173: RWP | C173: WORCESTERSHIRE ACUTE HOSPITALS NHS TRUST | D173: RWP31 | E173: Kidderminster Hospital - RWP31 | F173: 0 | G173: 2 | H173: 0 | I173: NA | J173: NA | K173: 0 | L173: 0 | M173: 0 | N173: 0 | O173: 0 | P173: 0
A174: Q77 | B174: RWP | C174: WORCESTERSHIRE ACUTE HOSPITALS NHS TRUST | D174: RWP50 | E174: Worcestershire Royal Hospital - RWP50 | F174: 107 | G174: 352 | H174: 0.3039772727 | I174: 0.9906542056 | J174: 0 | K174: 97 | L174: 9 | M174: 0 | N174: 0 | O174: 0 | P174: 1
A175: Q77 | B175: RLQ | C175: WYE VALLEY NHS TRUST | D175: RLQ01 | E175: Hereford County Hospital - RLQ01 | F175: 67 | G175: 125 | H175: 0.536 | I175: 0.9552238806 | J175: 0.01492537313 | K175: 45 | L175: 19 | M175: 1 | N175: 1 | O175: 0 | P175: 1
A176: Q78 | B176: RC1 | C176: BEDFORD HOSPITAL NHS TRUST | D176: RC110 | E176: Bedford Hospital South Wing - RC110 | F176: 43 | G176: 70 | H176: 0.6142857143 | I176: 1 | J176: 0 | K176: 36 | L176: 7 | M176: 0 | N176: 0 | O176: 0 | P176: 0
A177: Q78 | B177: RWH | C177: EAST AND NORTH HERTFORDSHIRE NHS TRUST | D177: RWH01 | E177: Lister Hospital - RWH01 | F177: 230 | G177: 480 | H177: 0.4791666667 | I177: 0.9695652174 | J177: 0.01739130435 | K177: 170 | L177: 53 | M177: 2 | N177: 1 | O177: 3 | P177: 1
A178: Q78 | B178: RWH | C178: EAST AND NORTH HERTFORDSHIRE NHS TRUST | D178: RWHXXX | E178: Non-hospital site - RWHXXX | F178: 0 | G178: 11 | H178: 0 | I178: NA | J178: NA | K178: 0 | L178: 0 | M178: 0 | N178: 0 | O178: 0 | P178: 0
A179: Q78 | B179: RNQ | C179: KETTERING GENERAL HOSPITAL NHS FOUNDATION TRUST | D179: RNQ51 | E179: Kettering General Hospital - RNQ51 | F179: 90 | G179: 301 | H179: 0.2990033223 | I179: 0.9777777778 | J179: 0 | K179: 79 | L179: 9 | M179: 2 | N179: 0 | O179: 0 | P179: 0
A180: Q78 | B180: RC9 | C180: LUTON AND DUNSTABLE UNIVERSITY HOSPITAL NHS FOUNDATION TRUST | D180: RC971 | E180: Luton and Dunstable Hospital - RC971 | F180: 137 | G180: 467 | H180: 0.2933618844 | I180: 0.9927007299 | J180: 0 | K180: 124 | L180: 12 | M180: 1 | N180: 0 | O180: 0 | P180: 0
A181: Q78 | B181: RD8 | C181: MILTON KEYNES HOSPITAL NHS FOUNDATION TRUST | D181: RD816 | E181: Milton Keynes Hospital - RD816 | F181: 25 | G181: 338 | H181: 0.07396449704 | I181: 0.84 | J181: 0.04 | K181: 13 | L181: 8 | M181: 2 | N181: 1 | O181: 0 | P181: 1
A182: Q78 | B182: RNS | C182: NORTHAMPTON GENERAL HOSPITAL NHS TRUST | D182: RNS01 | E182: Northampton General Hospital (Acute) - RNS01 | F182: 180 | G182: 432 | H182: 0.4166666667 | I182: 0.9333333333 | J182: 0.05 | K182: 144 | L182: 24 | M182: 3 | N182: 4 | O182: 5 | P182: 0
A183: Q78 | B183: RWD | C183: UNITED LINCOLNSHIRE HOSPITALS NHS TRUST | D183: RWDLP | E183: Grantham and District Hospital - RWDLP | F183: 0 | G183: 7 | H183: 0 | I183: NA | J183: NA | K183: 0 | L183: 0 | M183: 0 | N183: 0 | O183: 0 | P183: 0
A184: Q78 | B184: RWD | C184: UNITED LINCOLNSHIRE HOSPITALS NHS TRUST | D184: RWDDA | E184: Lincoln County Hospital - RWDDA | F184: 51 | G184: 311 | H184: 0.1639871383 | I184: 0.9019607843 | J184: 0.03921568627 | K184: 38 | L184: 8 | M184: 2 | N184: 2 | O184: 0 | P184: 1
A185: Q78 | B185: RWD | C185: UNITED LINCOLNSHIRE HOSPITALS NHS TRUST | D185: RWDXXX | E185: Non-hospital site - RWDXXX | F185: 0 | G185: 0 | H185: 0 | I185: NA | J185: NA | K185: 0 | L185: 0 | M185: 0 | N185: 0 | O185: 0 | P185: 0
A186: Q78 | B186: RWD | C186: UNITED LINCOLNSHIRE HOSPITALS NHS TRUST | D186: RWDLA | E186: Pilgrim Hospital - RWDLA | F186: 21 | G186: 179 | H186: 0.1173184358 | I186: 0.9523809524 | J186: 0 | K186: 14 | L186: 6 | M186: 1 | N186: 0 | O186: 0 | P186: 0
A187: Q78 | B187: RWE | C187: UNIVERSITY HOSPITALS OF LEICESTER NHS TRUST | D187: RWEAK | E187: Leicester General Hospital - RWEAK | F187: 165 | G187: 401 | H187: 0.4114713217 | I187: 0.9696969697 | J187: 0.006060606061 | K187: 111 | L187: 49 | M187: 4 | N187: 1 | O187: 0 | P187: 0
A188: Q78 | B188: RWE | C188: UNIVERSITY HOSPITALS OF LEICESTER NHS TRUST | D188: RWEAA | E188: Leicester Royal Infirmary - RWEAA | F188: 225 | G188: 525 | H188: 0.4285714286 | I188: 0.9422222222 | J188: 0.02666666667 | K188: 147 | L188: 65 | M188: 5 | N188: 5 | O188: 1 | P188: 2
A189: Q78 | B189: RWE | C189: UNIVERSITY HOSPITALS OF LEICESTER NHS TRUST | D189: RWEXXX | E189: Non-hospital site - RWEXXX | F189: 4 | G189: 26 | H189: 0.1538461538 | I189: * | J189: * | K189: * | L189: * | M189: * | N189: * | O189: * | P189: *
A190: Q78 | B190: RWE | C190: UNIVERSITY HOSPITALS OF LEICESTER NHS TRUST | D190: RWE10 | E190: St Mary's Hospital - RWE10 | F190: 12 | G190: 16 | H190: 0.75 | I190: 1 | J190: 0 | K190: * | L190: * | M190: * | N190: * | O190: * | P190: *
A191: Q78 | B191: RWG | C191: WEST HERTFORDSHIRE HOSPITALS NHS TRUST | D191: RWG02 | E191: Watford General Hospital - RWG02 | F191: 165 | G191: 483 | H191: 0.3416149068 | I191: 0.9696969697 | J191: 0.01818181818 | K191: 127 | L191: 33 | M191: 1 | N191: 0 | O191: 3 | P191: 1
A192: Q79 | B192: RDD | C192: BASILDON AND THURROCK UNIVERSITY HOSPITALS NHS FOUNDATION TRUST | D192: RDDH0 | E192: Basildon University Hospital - RDDH0 | F192: 40 | G192: 157 | H192: 0.2547770701 | I192: 0.975 | J192: 0.025 | K192: 34 | L192: 5 | M192: 0 | N192: 0 | O192: 1 | P192: 0
A193: Q79 | B193: RGT | C193: CAMBRIDGE UNIVERSITY HOSPITALS NHS FOUNDATION TRUST | D193: RGT32 | E193: Rosie Hospital - RGT32 | F193: 145 | G193: 292 | H193: 0.4965753425 | I193: 0.9931034483 | J193: 0.006896551724 | K193: 124 | L193: 20 | M193: 0 | N193: 0 | O193: 1 | P193: 0
A194: Q79 | B194: RDE | C194: COLCHESTER HOSPITAL UNIVERSITY NHS FOUNDATION TRUST | D194: RDEE2 | E194: Clacton and District Hospital - RDEE2 | F194: 0 | G194: 7 | H194: 0 | I194: NA | J194: NA | K194: 0 | L194: 0 | M194: 0 | N194: 0 | O194: 0 | P194: 0
A195: Q79 | B195: RDE | C195: COLCHESTER HOSPITAL UNIVERSITY NHS FOUNDATION TRUST | D195: RDEE4 | E195: Colchester General Hospital - RDEE4 | F195: 33 | G195: 273 | H195: 0.1208791209 | I195: 0.9393939394 | J195: 0 | K195: 27 | L195: 4 | M195: 2 | N195: 0 | O195: 0 | P195: 0
A196: Q79 | B196: RDE | C196: COLCHESTER HOSPITAL UNIVERSITY NHS FOUNDATION TRUST | D196: RDEEE | E196: Harwich Maternity - RDEEE | F196: 0 | G196: 5 | H196: 0 | I196: NA | J196: NA | K196: 0 | L196: 0 | M196: 0 | N196: 0 | O196: 0 | P196: 0
A197: Q79 | B197: RDE | C197: COLCHESTER HOSPITAL UNIVERSITY NHS FOUNDATION TRUST | D197: RDEXXX | E197: Non-hospital site - RDEXXX | F197: 0 | G197: 10 | H197: 0 | I197: NA | J197: NA | K197: 0 | L197: 0 | M197: 0 | N197: 0 | O197: 0 | P197: 0
A198: Q79 | B198: RQQ | C198: HINCHINGBROOKE HEALTH CARE NHS TRUST | D198: RQQ31 | E198: Hinchingbrooke Hospital - RQQ31 | F198: 15 | G198: 223 | H198: 0.06726457399 | I198: 1 | J198: 0 | K198: 14 | L198: 1 | M198: 0 | N198: 0 | O198: 0 | P198: 0
A199: Q79 | B199: RGQ | C199: IPSWICH HOSPITAL NHS TRUST | D199: RGQ02 | E199: The Ipswich Hospital NHS Trust - RGQ02 | F199: 118 | G199: 341 | H199: 0.3460410557 | I199: 0.9915254237 | J199: 0 | K199: 92 | L199: 25 | M199: 0 | N199: 0 | O199: 0 | P199: 1
A200: Q79 | B200: RGP | C200: JAMES PAGET UNIVERSITY HOSPITALS NHS FOUNDATION TRUST | D200: RGP75 | E200: James Paget University Hospital - RGP75 | F200: 77 | G200: 151 | H200: 0.5099337748 | I200: 0.9480519481 | J200: 0.02597402597 | K200: 62 | L200: 11 | M200: 1 | N200: 1 | O200: 1 | P200: 1
A201: Q79 | B201: RQ8 | C201: MID ESSEX HOSPITAL SERVICES NHS TRUST | D201: RQ8L0 | E201: Broomfield Hospital - RQ8L0 | F201: 89 | G201: 412 | H201: 0.2160194175 | I201: 0.9325842697 | J201: 0.04494382022 | K201: 73 | L201: 10 | M201: 0 | N201: 1 | O201: 3 | P201: 2
A202: Q79 | B202: RM1 | C202: NORFOLK AND NORWICH UNIVERSITY HOSPITALS NHS FOUNDATION TRUST | D202: RM102 | E202: Norfolk and Norwich University Hospital - RM102 | F202: 39 | G202: 516 | H202: 0.07558139535 | I202: 1 | J202: 0 | K202: 37 | L202: 2 | M202: 0 | N202: 0 | O202: 0 | P202: 0
A203: Q79 | B203: RGN | C203: PETERBOROUGH AND STAMFORD HOSPITALS NHS FOUNDATION TRUST | D203: RGN80 | E203: Peterborough City Hospital - RGN80 | F203: 41 | G203: 445 | H203: 0.09213483146 | I203: 0.9756097561 | J203: 0 | K203: 39 | L203: 1 | M203: 0 | N203: 0 | O203: 0 | P203: 1
A204: Q79 | B204: RAJ | C204: SOUTHEND UNIVERSITY HOSPITAL NHS FOUNDATION TRUST | D204: RAJ01 | E204: Southend Hospital - RAJ01 | F204: 63 | G204: 322 | H204: 0.1956521739 | I204: 0.9682539683 | J204: 0 | K204: 52 | L204: 9 | M204: 1 | N204: 0 | O204: 0 | P204: 1
A205: Q79 | B205: RQW | C205: THE PRINCESS ALEXANDRA HOSPITAL NHS TRUST | D205: RQWG0 | E205: Princess Alexandra Hospital - RQWG0 | F205: 135 | G205: 358 | H205: 0.3770949721 | I205: 1 | J205: 0 | K205: 121 | L205: 14 | M205: 0 | N205: 0 | O205: 0 | P205: 0
A206: Q79 | B206: RCX | C206: THE QUEEN ELIZABETH HOSPITAL, KING'S LYNN, NHS FOUNDATION TRUST | D206: RCXXXX | E206: Non-hospital site - RCXXXX | F206: 0 | G206: 0 | H206: 0 | I206: NA | J206: NA | K206: 0 | L206: 0 | M206: 0 | N206: 0 | O206: 0 | P206: 0
A207: Q79 | B207: RCX | C207: THE QUEEN ELIZABETH HOSPITAL, KING'S LYNN, NHS FOUNDATION TRUST | D207: RCX70 | E207: The Queen Elizabeth Hospital - RCX70 | F207: 29 | G207: 188 | H207: 0.1542553191 | I207: 0.9655172414 | J207: 0 | K207: 24 | L207: 4 | M207: 0 | N207: 0 | O207: 0 | P207: 1
... 67 more rows

Sheet Region (Geography) Q3
B6: Sort data by:
A9: Region (Geo) Code | B9: Region (Geography) | C9: Total Responses | D9: Percentage Recommended | E9: Percentage Not Recommended | F9: Breakdown of Responses
F10: Extremely Likely | G10: Likely | H10: Neither | I10: Unlikely | J10: Extremely Unlikely | K10: Don't Know
B11: England | C11: 13142 | D11: 0.9420179577 | E11: 0.01704458986 | F11: 9338 | G11: 3042 | H11: 295 | I11: 117 | J11: 107 | K11: 243
B12: Selection (excluding suppressed data) | C12: =SUBTOTAL(9,C13:C39) -> 13142 | D12: =IFERROR((F12+G12)/SUM(F12:K12), "-") -> 0.9420179577 | E12: =IFERROR((I12+J12)/SUM(F12:K12), "-") -> 0.01704458986 | F12: =SUBTOTAL(9,F13:F39) -> 9338 | G12: =SUBTOTAL(9,G13:G39) -> 3042 | H12: 295 | I12: 117 | J12: 107 | K12: 243
A13: Q72 | B13: NHS England Yorkshire & Humber | C13: 1061 | D13: 0.9547596607 | E13: 0.008482563619 | F13: 743 | G13: 270 | H13: 23 | I13: 4 | J13: 5 | K13: 16
A14: Q73 | B14: NHS England Lancashire & Greater Manchester | C14: 905 | D14: 0.9425414365 | E14: 0.02762430939 | F14: 696 | G14: 157 | H14: 17 | I14: 12 | J14: 13 | K14: 10
A15: Q74 | B15: NHS England Cumbria & North East | C15: 923 | D15: 0.9479956663 | E15: 0.006500541712 | F15: 733 | G15: 142 | H15: 7 | I15: 5 | J15: 1 | K15: 35
A16: Q75 | B16: NHS England Cheshire & Merseyside | C16: 473 | D16: 0.9408033827 | E16: 0.01691331924 | F16: 361 | G16: 84 | H16: 7 | I16: 5 | J16: 3 | K16: 13
A17: Q76 | B17: NHS England North Midlands | C17: 864 | D17: 0.9791666667 | E17: 0.005787037037 | F17: 701 | G17: 145 | H17: 9 | I17: 3 | J17: 2 | K17: 4
A18: Q77 | B18: NHS England West Midlands | C18: 1443 | D18: 0.948024948 | E18: 0.02148302148 | F18: 1062 | G18: 306 | H18: 24 | I18: 16 | J18: 15 | K18: 20
A19: Q78 | B19: NHS England Central Midlands | C19: 1233 | D19: 0.9188969992 | E19: 0.02108678021 | F19: 773 | G19: 360 | H19: 53 | I19: 16 | J19: 10 | K19: 21
A20: Q79 | B20: NHS England East | C20: 945 | D20: 0.9650793651 | E20: 0.008465608466 | F20: 707 | G20: 205 | H20: 11 | I20: 4 | J20: 4 | K20: 14
A21: Q80 | B21: NHS England South West | C21: 612 | D21: 0.9673202614 | E21: 0.003267973856 | F21: 447 | G21: 145 | H21: 12 | I21: 0 | J21: 2 | K21: 6
A22: Q81 | B22: NHS England South East | C22: 1365 | D22: 0.9164835165 | E22: 0.01391941392 | F22: 1024 | G22: 227 | H22: 38 | I22: 10 | J22: 9 | K22: 57
A23: Q82 | B23: NHS England South Central | C23: 432 | D23: 0.9652777778 | E23: 0.006944444444 | F23: 337 | G23: 80 | H23: 2 | I23: 2 | J23: 1 | K23: 10
A24: Q70 | B24: NHS England Wessex | C24: 610 | D24: 0.9508196721 | E24: 0.0131147541 | F24: 441 | G24: 139 | H24: 15 | I24: 2 | J24: 6 | K24: 7
A25: Q71 | B25: NHS England London | C25: 2276 | D25: 0.9204745167 | E25: 0.03251318102 | F25: 1313 | G25: 782 | H25: 77 | I25: 38 | J25: 36 | K25: 30

Sheet Trusts Q3
B6: Sort data by:
A9: Region (Geo) Code | B9: Trust Code | C9: Trust Name | D9: Total Responses | E9: Percentage Recommended | F9: Percentage Not Recommended | G9: Breakdown of Responses | M9: Mode of Collection
G10: Extremely Likely | H10: Likely | I10: Neither | J10: Unlikely | K10: Extremely Unlikely | L10: Don't Know | M10: SMS/Text / Smartphone App | N10: Electronic tablet/kiosk at point of discharge | O10: Paper / postcard at point of discharge | P10: Paper survey sent to the patients home | Q10: Telephone survey once patient is home | R10: Online survey once patient is home | S10: Other
C11: England | D11: 13142 | E11: 0.9420179577 | F11: 0.01704458986 | G11: 9338 | H11: 3042 | I11: 295 | J11: 117 | K11: 107 | L11: 243 | M11: 627 | N11: 2254 | O11: 9507 | P11: 61 | Q11: 3 | R11: 414 | S11: 276
C12: Selection (excluding suppressed data) | D12: =SUBTOTAL(9,D13:D299) -> 13142 | E12: =IFERROR((G12+H12)/SUM(G12:L12), "-") -> 0.9418719963 | F12: =IFERROR((J12+K12)/SUM(G12:L12), "-") -> 0.01708749714 | G12: =SUBTOTAL(9,G13:G299) -> 9308 | H12: =SUBTOTAL(9,H13:H299) -> 3039 | I12: 295 | J12: 117 | K12: 107 | L12: 243 | M12: 627 | N12: 2254 | O12: 9474 | P12: 61 | Q12: 3 | R12: 414 | S12: 276
A13: Q70 | B13: RBD | C13: DORSET COUNTY HOSPITAL NHS FOUNDATION TRUST | D13: 52 | E13: 0.9615384615 | F13: 0 | G13: 46 | H13: 4 | I13: 2 | J13: 0 | K13: 0 | L13: 0 | M13: 52 | N13: 0 | O13: 0 | P13: 0 | Q13: 0 | R13: 0 | S13: 0
A14: Q70 | B14: RN5 | C14: HAMPSHIRE HOSPITALS NHS FOUNDATION TRUST | D14: 159 | E14: 0.9182389937 | F14: 0.03773584906 | G14: 101 | H14: 45 | I14: 6 | J14: 1 | K14: 5 | L14: 1 | M14: 0 | N14: 0 | O14: 159 | P14: 0 | Q14: 0 | R14: 0 | S14: 0
A15: Q70 | B15: R1F | C15: ISLE OF WIGHT NHS TRUST | D15: 31 | E15: 1 | F15: 0 | G15: * | H15: * | I15: * | J15: * | K15: * | L15: * | M15: * | N15: * | O15: * | P15: * | Q15: * | R15: * | S15: *
A16: Q70 | B16: RD3 | C16: POOLE HOSPITAL NHS FOUNDATION TRUST | D16: 99 | E16: 0.9898989899 | F16: 0 | G16: 74 | H16: 24 | I16: 1 | J16: 0 | K16: 0 | L16: 0 | M16: 47 | N16: 0 | O16: 52 | P16: 0 | Q16: 0 | R16: 0 | S16: 0
A17: Q70 | B17: RHU | C17: PORTSMOUTH HOSPITALS NHS TRUST | D17: 202 | E17: 0.9554455446 | F17: 0 | G17: 154 | H17: 39 | I17: 4 | J17: 0 | K17: 0 | L17: 5 | M17: 0 | N17: 0 | O17: 202 | P17: 0 | Q17: 0 | R17: 0 | S17: 0
A18: Q70 | B18: RDZ | C18: THE ROYAL BOURNEMOUTH AND CHRISTCHURCH HOSPITALS NHS FOUNDATION TRUST | D18: 2 | E18: * | F18: * | G18: * | H18: * | I18: * | J18: * | K18: * | L18: * | M18: * | N18: * | O18: * | P18: * | Q18: * | R18: * | S18: *
A19: Q70 | B19: RHM | C19: UNIVERSITY HOSPITAL SOUTHAMPTON NHS FOUNDATION TRUST | D19: 65 | E19: 0.9230769231 | F19: 0.03076923077 | G19: 36 | H19: 24 | I19: 2 | J19: 1 | K19: 1 | L19: 1 | M19: 0 | N19: 0 | O19: 65 | P19: 0 | Q19: 0 | R19: 0 | S19: 0
A20: Q71 | B20: RF4 | C20: BARKING, HAVERING AND REDBRIDGE UNIVERSITY HOSPITALS NHS TRUST | D20: 193 | E20: 0.9378238342 | F20: 0.0207253886 | G20: 96 | H20: 85 | I20: 7 | J20: 2 | K20: 2 | L20: 1 | M20: 0 | N20: 0 | O20: 193 | P20: 0 | Q20: 0 | R20: 0 | S20: 0
A21: Q71 | B21: R1H | C21: BARTS HEALTH NHS TRUST | D21: 56 | E21: 0.9464285714 | F21: 0.05357142857 | G21: 27 | H21: 26 | I21: 0 | J21: 1 | K21: 2 | L21: 0 | M21: 0 | N21: 0 | O21: 56 | P21: 0 | Q21: 0 | R21: 0 | S21: 0
A22: Q71 | B22: RQM | C22: CHELSEA AND WESTMINSTER HOSPITAL NHS FOUNDATION TRUST | D22: 115 | E22: 0.8956521739 | F22: 0.04347826087 | G22: 79 | H22: 24 | I22: 6 | J22: 3 | K22: 2 | L22: 1 | M22: 115 | N22: 0 | O22: 0 | P22: 0 | Q22: 0 | R22: 0 | S22: 0
A23: Q71 | B23: RJ6 | C23: CROYDON HEALTH SERVICES NHS TRUST | D23: 234 | E23: 0.952991453 | F23: 0.02991452991 | G23: 141 | H23: 82 | I23: 4 | J23: 4 | K23: 3 | L23: 0 | M23: 0 | N23: 0 | O23: 234 | P23: 0 | Q23: 0 | R23: 0 | S23: 0
A24: Q71 | B24: RVR | C24: EPSOM AND ST HELIER UNIVERSITY HOSPITALS NHS TRUST | D24: 106 | E24: 0.9811320755 | F24: 0 | G24: 85 | H24: 19 | I24: 2 | J24: 0 | K24: 0 | L24: 0 | M24: 0 | N24: 0 | O24: 106 | P24: 0 | Q24: 0 | R24: 0 | S24: 0
A25: Q71 | B25: RJ1 | C25: GUY'S AND ST THOMAS' NHS FOUNDATION TRUST | D25: 197 | E25: 0.8934010152 | F25: 0.03553299492 | G25: 109 | H25: 67 | I25: 12 | J25: 5 | K25: 2 | L25: 2 | M25: 0 | N25: 0 | O25: 197 | P25: 0 | Q25: 0 | R25: 0 | S25: 0
A26: Q71 | B26: RQX | C26: HOMERTON UNIVERSITY HOSPITAL NHS FOUNDATION TRUST | D26: 57 | E26: 0.9298245614 | F26: 0.05263157895 | G26: 29 | H26: 24 | I26: 1 | J26: 2 | K26: 1 | L26: 0 | M26: 0 | N26: 57 | O26: 0 | P26: 0 | Q26: 0 | R26: 0 | S26: 0
A27: Q71 | B27: RYJ | C27: IMPERIAL COLLEGE HEALTHCARE NHS TRUST | D27: 105 | E27: 0.9142857143 | F27: 0.01904761905 | G27: 60 | H27: 36 | I27: 4 | J27: 0 | K27: 2 | L27: 3 | M27: 0 | N27: 105 | O27: 0 | P27: 0 | Q27: 0 | R27: 0 | S27: 0
A28: Q71 | B28: RJZ | C28: KING'S COLLEGE HOSPITAL NHS FOUNDATION TRUST | D28: 48 | E28: 0.9791666667 | F28: 0.02083333333 | G28: 33 | H28: 14 | I28: 0 | J28: 0 | K28: 1 | L28: 0 | M28: 0 | N28: 0 | O28: 8 | P28: 0 | Q28: 0 | R28: 40 | S28: 0
A29: Q71 | B29: RAX | C29: KINGSTON HOSPITAL NHS FOUNDATION TRUST | D29: 82 | E29: 0.8780487805 | F29: 0.0487804878 | G29: 44 | H29: 28 | I29: 6 | J29: 2 | K29: 2 | L29: 0 | M29: 0 | N29: 82 | O29: 0 | P29: 0 | Q29: 0 | R29: 0 | S29: 0
A30: Q71 | B30: RJ2 | C30: LEWISHAM AND GREENWICH NHS TRUST | D30: 185 | E30: 0.9675675676 | F30: 0.005405405405 | G30: 115 | H30: 64 | I30: 2 | J30: 1 | K30: 0 | L30: 3 | M30: 0 | N30: 0 | O30: 185 | P30: 0 | Q30: 0 | R30: 0 | S30: 0
A31: Q71 | B31: R1K | C31: LONDON NORTH WEST HEALTHCARE NHS TRUST | D31: 88 | E31: 0.9318181818 | F31: 0.01136363636 | G31: 47 | H31: 35 | I31: 5 | J31: 1 | K31: 0 | L31: 0 | M31: 0 | N31: 0 | O31: 88 | P31: 0 | Q31: 0 | R31: 0 | S31: 0
A32: Q71 | B32: RAP | C32: NORTH MIDDLESEX UNIVERSITY HOSPITAL NHS TRUST | D32: 158 | E32: 0.9113924051 | F32: 0.05063291139 | G32: 68 | H32: 76 | I32: 4 | J32: 2 | K32: 6 | L32: 2 | M32: 0 | N32: 158 | O32: 0 | P32: 0 | Q32: 0 | R32: 0 | S32: 0
A33: Q71 | B33: RAL | C33: ROYAL FREE LONDON NHS FOUNDATION TRUST | D33: 102 | E33: 0.9607843137 | F33: 0 | G33: 71 | H33: 27 | I33: 4 | J33: 0 | K33: 0 | L33: 0 | M33: 0 | N33: 0 | O33: 102 | P33: 0 | Q33: 0 | R33: 0 | S33: 0
A34: Q71 | B34: RJ7 | C34: ST GEORGE'S UNIVERSITY HOSPITALS NHS FOUNDATION TRUST | D34: 200 | E34: 0.91 | F34: 0.045 | G34: 94 | H34: 88 | I34: 8 | J34: 8 | K34: 1 | L34: 1 | M34: 0 | N34: 200 | O34: 0 | P34: 0 | Q34: 0 | R34: 0 | S34: 0
A35: Q71 | B35: RAS | C35: THE HILLINGDON HOSPITALS NHS FOUNDATION TRUST | D35: 55 | E35: 0.8181818182 | F35: 0.03636363636 | G35: 27 | H35: 18 | I35: 1 | J35: 0 | K35: 2 | L35: 7 | M35: 0 | N35: 0 | O35: 55 | P35: 0 | Q35: 0 | R35: 0 | S35: 0
A36: Q71 | B36: RKE | C36: THE WHITTINGTON HOSPITAL NHS TRUST | D36: 35 | E36: 0.7714285714 | F36: 0 | G36: 22 | H36: 5 | I36: 2 | J36: 0 | K36: 0 | L36: 6 | M36: 0 | N36: 32 | O36: 3 | P36: 0 | Q36: 0 | R36: 0 | S36: 0
A37: Q71 | B37: RRV | C37: UNIVERSITY COLLEGE LONDON HOSPITALS NHS FOUNDATION TRUST | D37: 116 | E37: 0.8965517241 | F37: 0.04310344828 | G37: 79 | H37: 25 | I37: 4 | J37: 2 | K37: 3 | L37: 3 | M37: 0 | N37: 0 | O37: 0 | P37: 0 | Q37: 0 | R37: 116 | S37: 0
A38: Q71 | B38: RFW | C38: WEST MIDDLESEX UNIVERSITY HOSPITAL NHS TRUST | D38: 144 | E38: 0.875 | F38: 0.08333333333 | G38: 87 | H38: 39 | I38: 5 | J38: 5 | K38: 7 | L38: 1 | M38: 59 | N38: 0 | O38: 85 | P38: 0 | Q38: 0 | R38: 0 | S38: 0
A39: Q72 | B39: RCF | C39: AIREDALE NHS FOUNDATION TRUST | D39: 34 | E39: 0.9705882353 | F39: 0 | G39: 30 | H39: 3 | I39: 0 | J39: 0 | K39: 0 | L39: 1 | M39: 0 | N39: 0 | O39: 34 | P39: 0 | Q39: 0 | R39: 0 | S39: 0
A40: Q72 | B40: RFF | C40: BARNSLEY HOSPITAL NHS FOUNDATION TRUST | D40: 75 | E40: 0.9866666667 | F40: 0 | G40: 55 | H40: 19 | I40: 0 | J40: 0 | K40: 0 | L40: 1 | M40: 0 | N40: 0 | O40: 75 | P40: 0 | Q40: 0 | R40: 0 | S40: 0
A41: Q72 | B41: RAE | C41: BRADFORD TEACHING HOSPITALS NHS FOUNDATION TRUST | D41: 48 | E41: 0.9375 | F41: 0 | G41: 28 | H41: 17 | I41: 3 | J41: 0 | K41: 0 | L41: 0 | M41: 0 | N41: 0 | O41: 48 | P41: 0 | Q41: 0 | R41: 0 | S41: 0
A42: Q72 | B42: RWY | C42: CALDERDALE AND HUDDERSFIELD NHS FOUNDATION TRUST | D42: 83 | E42: 1 | F42: 0 | G42: 52 | H42: 31 | I42: 0 | J42: 0 | K42: 0 | L42: 0 | M42: 0 | N42: 0 | O42: 83 | P42: 0 | Q42: 0 | R42: 0 | S42: 0
A43: Q72 | B43: RP5 | C43: DONCASTER AND BASSETLAW HOSPITALS NHS FOUNDATION TRUST | D43: 205 | E43: 0.9317073171 | F43: 0.01463414634 | G43: 153 | H43: 38 | I43: 3 | J43: 2 | K43: 1 | L43: 8 | M43: 0 | N43: 0 | O43: 205 | P43: 0 | Q43: 0 | R43: 0 | S43: 0
A44: Q72 | B44: RCD | C44: HARROGATE AND DISTRICT NHS FOUNDATION TRUST | D44: 52 | E44: 0.9615384615 | F44: 0 | G44: 41 | H44: 9 | I44: 2 | J44: 0 | K44: 0 | L44: 0 | M44: 0 | N44: 0 | O44: 52 | P44: 0 | Q44: 0 | R44: 0 | S44: 0
A45: Q72 | B45: RWA | C45: HULL AND EAST YORKSHIRE HOSPITALS NHS TRUST | D45: 5 | E45: 1 | F45: 0 | G45: 5 | H45: 0 | I45: 0 | J45: 0 | K45: 0 | L45: 0 | M45: 0 | N45: 0 | O45: 5 | P45: 0 | Q45: 0 | R45: 0 | S45: 0
A46: Q72 | B46: RR8 | C46: LEEDS TEACHING HOSPITALS NHS TRUST | D46: 177 | E46: 0.9548022599 | F46: 0.005649717514 | G46: 118 | H46: 51 | I46: 4 | J46: 0 | K46: 1 | L46: 3 | M46: 0 | N46: 0 | O46: 175 | P46: 0 | Q46: 0 | R46: 2 | S46: 0
A47: Q72 | B47: RXF | C47: MID YORKSHIRE HOSPITALS NHS TRUST | D47: 125 | E47: 0.952 | F47: 0.024 | G47: 87 | H47: 32 | I47: 2 | J47: 1 | K47: 2 | L47: 1 | M47: 0 | N47: 0 | O47: 124 | P47: 0 | Q47: 0 | R47: 1 | S47: 0
A48: Q72 | B48: RJL | C48: NORTHERN LINCOLNSHIRE AND GOOLE NHS FOUNDATION TRUST | D48: 27 | E48: 1 | F48: 0 | G48: 13 | H48: 14 | I48: 0 | J48: 0 | K48: 0 | L48: 0 | M48: 0 | N48: 0 | O48: 27 | P48: 0 | Q48: 0 | R48: 0 | S48: 0
A49: Q72 | B49: RHQ | C49: SHEFFIELD TEACHING HOSPITALS NHS FOUNDATION TRUST | D49: 14 | E49: 0.8571428571 | F49: 0 | G49: 6 | H49: 6 | I49: 1 | J49: 0 | K49: 0 | L49: 1 | M49: 0 | N49: 0 | O49: 14 | P49: 0 | Q49: 0 | R49: 0 | S49: 0
A50: Q72 | B50: RFR | C50: THE ROTHERHAM NHS FOUNDATION TRUST | D50: 121 | E50: 0.9421487603 | F50: 0.01652892562 | G50: 89 | H50: 25 | I50: 4 | J50: 1 | K50: 1 | L50: 1 | M50: 0 | N50: 0 | O50: 121 | P50: 0 | Q50: 0 | R50: 0 | S50: 0
A51: Q72 | B51: RCB | C51: YORK TEACHING HOSPITAL NHS FOUNDATION TRUST | D51: 95 | E51: 0.9578947368 | F51: 0 | G51: 66 | H51: 25 | I51: 4 | J51: 0 | K51: 0 | L51: 0 | M51: 0 | N51: 0 | O51: 95 | P51: 0 | Q51: 0 | R51: 0 | S51: 0
A52: Q73 | B52: RXL | C52: BLACKPOOL TEACHING HOSPITALS NHS FOUNDATION TRUST | D52: 32 | E52: 1 | F52: 0 | G52: 25 | H52: 7 | I52: 0 | J52: 0 | K52: 0 | L52: 0 | M52: 0 | N52: 0 | O52: 32 | P52: 0 | Q52: 0 | R52: 0 | S52: 0
A53: Q73 | B53: RMC | C53: BOLTON NHS FOUNDATION TRUST | D53: 64 | E53: 0.828125 | F53: 0.140625 | G53: 49 | H53: 4 | I53: 2 | J53: 1 | K53: 8 | L53: 0 | M53: 64 | N53: 0 | O53: 0 | P53: 0 | Q53: 0 | R53: 0 | S53: 0
A54: Q73 | B54: RY2 | C54: BRIDGEWATER COMMUNITY HEALTHCARE NHS FOUNDATION TRUST | D54: 0 | E54: NA | F54: NA | G54: 0 | H54: 0 | I54: 0 | J54: 0 | K54: 0 | L54: 0 | M54: 0 | N54: 0 | O54: 0 | P54: 0 | Q54: 0 | R54: 0 | S54: 0
A55: Q73 | B55: RW3 | C55: CENTRAL MANCHESTER UNIVERSITY HOSPITALS NHS FOUNDATION TRUST | D55: 57 | E55: 0.9298245614 | F55: 0.0350877193 | G55: 29 | H55: 24 | I55: 2 | J55: 2 | K55: 0 | L55: 0 | M55: 0 | N55: 50 | O55: 0 | P55: 7 | Q55: 0 | R55: 0 | S55: 0
A56: Q73 | B56: RXR | C56: EAST LANCASHIRE HOSPITALS NHS TRUST | D56: 218 | E56: 0.9633027523 | F56: 0.03211009174 | G56: 188 | H56: 22 | I56: 1 | J56: 4 | K56: 3 | L56: 0 | M56: 51 | N56: 0 | O56: 0 | P56: 0 | Q56: 0 | R56: 167 | S56: 0
A57: Q73 | B57: RXN | C57: LANCASHIRE TEACHING HOSPITALS NHS FOUNDATION TRUST | D57: 62 | E57: 0.9516129032 | F57: 0.03225806452 | G57: 45 | H57: 14 | I57: 1 | J57: 1 | K57: 1 | L57: 0 | M57: 53 | N57: 9 | O57: 0 | P57: 0 | Q57: 0 | R57: 0 | S57: 0
A58: Q73 | B58: RW6 | C58: PENNINE ACUTE HOSPITALS NHS TRUST | D58: 222 | E58: 0.9054054054 | F58: 0.01801801802 | G58: 167 | H58: 34 | I58: 8 | J58: 3 | K58: 1 | L58: 9 | M58: 0 | N58: 0 | O58: 222 | P58: 0 | Q58: 0 | R58: 0 | S58: 0
A59: Q73 | B59: RWJ | C59: STOCKPORT NHS FOUNDATION TRUST | D59: 157 | E59: 0.9936305732 | F59: 0.006369426752 | G59: 120 | H59: 36 | I59: 0 | J59: 1 | K59: 0 | L59: 0 | M59: 0 | N59: 0 | O59: 157 | P59: 0 | Q59: 0 | R59: 0 | S59: 0
A60: Q73 | B60: RMP | C60: TAMESIDE HOSPITAL NHS FOUNDATION TRUST | D60: 8 | E60: 1 | F60: 0 | G60: 6 | H60: 2 | I60: 0 | J60: 0 | K60: 0 | L60: 0 | M60: 0 | N60: 0 | O60: 8 | P60: 0 | Q60: 0 | R60: 0 | S60: 0
A61: Q73 | B61: RM2 | C61: UNIVERSITY HOSPITAL OF SOUTH MANCHESTER NHS FOUNDATION TRUST | D61: 38 | E61: 0.9210526316 | F61: 0 | G61: 28 | H61: 7 | I61: 2 | J61: 0 | K61: 0 | L61: 1 | M61: 0 | N61: 0 | O61: 38 | P61: 0 | Q61: 0 | R61: 0 | S61: 0
A62: Q73 | B62: RRF | C62: WRIGHTINGTON, WIGAN AND LEIGH NHS FOUNDATION TRUST | D62: 47 | E62: 0.9787234043 | F62: 0 | G62: 39 | H62: 7 | I62: 1 | J62: 0 | K62: 0 | L62: 0 | M62: 0 | N62: 0 | O62: 47 | P62: 0 | Q62: 0 | R62: 0 | S62: 0
A63: Q74 | B63: RLN | C63: CITY HOSPITALS SUNDERLAND NHS FOUNDATION TRUST | D63: 47 | E63: 1 | F63: 0 | G63: 40 | H63: 7 | I63: 0 | J63: 0 | K63: 0 | L63: 0 | M63: 0 | N63: 0 | O63: 47 | P63: 0 | Q63: 0 | R63: 0 | S63: 0
A64: Q74 | B64: RXP | C64: COUNTY DURHAM AND DARLINGTON NHS FOUNDATION TRUST | D64: 202 | E64: 0.8564356436 | F64: 0.00495049505 | G64: 142 | H64: 31 | I64: 4 | J64: 1 | K64: 0 | L64: 24 | M64: 0 | N64: 0 | O64: 199 | P64: 0 | Q64: 0 | R64: 3 | S64: 0
A65: Q74 | B65: RR7 | C65: GATESHEAD HEALTH NHS FOUNDATION TRUST | D65: 36 | E65: 0.9722222222 | F65: 0 | G65: 29 | H65: 6 | I65: 1 | J65: 0 | K65: 0 | L65: 0 | M65: 0 | N65: 36 | O65: 0 | P65: 0 | Q65: 0 | R65: 0 | S65: 0
A66: Q74 | B66: RNL | C66: NORTH CUMBRIA UNIVERSITY HOSPITALS NHS TRUST | D66: 141 | E66: 0.9929078014 | F66: 0 | G66: 106 | H66: 34 | I66: 0 | J66: 0 | K66: 0 | L66: 1 | M66: 0 | N66: 0 | O66: 0 | P66: 0 | Q66: 0 | R66: 0 | S66: 141
A67: Q74 | B67: RVW | C67: NORTH TEES AND HARTLEPOOL NHS FOUNDATION TRUST | D67: 8 | E67: 1 | F67: 0 | G67: 6 | H67: 2 | I67: 0 | J67: 0 | K67: 0 | L67: 0 | M67: 0 | N67: 0 | O67: 8 | P67: 0 | Q67: 0 | R67: 0 | S67: 0
A68: Q74 | B68: RTF | C68: NORTHUMBRIA HEALTHCARE NHS FOUNDATION TRUST | D68: 91 | E68: 0.989010989 | F68: 0.01098901099 | G68: 78 | H68: 12 | I68: 0 | J68: 1 | K68: 0 | L68: 0 | M68: 0 | N68: 0 | O68: 91 | P68: 0 | Q68: 0 | R68: 0 | S68: 0
A69: Q74 | B69: RTR | C69: SOUTH TEES HOSPITALS NHS FOUNDATION TRUST | D69: 87 | E69: 0.8850574713 | F69: 0.02298850575 | G69: 75 | H69: 2 | I69: 1 | J69: 2 | K69: 0 | L69: 7 | M69: 0 | N69: 0 | O69: 87 | P69: 0 | Q69: 0 | R69: 0 | S69: 0
A70: Q74 | B70: RE9 | C70: SOUTH TYNESIDE NHS FOUNDATION TRUST | D70: 28 | E70: 0.9642857143 | F70: 0 | G70: 25 | H70: 2 | I70: 0 | J70: 0 | K70: 0 | L70: 1 | M70: 0 | N70: 0 | O70: 27 | P70: 0 | Q70: 0 | R70: 1 | S70: 0
A71: Q74 | B71: RTD | C71: THE NEWCASTLE UPON TYNE HOSPITALS NHS FOUNDATION TRUST | D71: 247 | E71: 0.979757085 | F71: 0.008097165992 | G71: 202 | H71: 40 | I71: 1 | J71: 1 | K71: 1 | L71: 2 | M71: 0 | N71: 0 | O71: 247 | P71: 0 | Q71: 0 | R71: 0 | S71: 0
A72: Q74 | B72: RTX | C72: UNIVERSITY HOSPITALS OF MORECAMBE BAY NHS FOUNDATION TRUST | D72: 36 | E72: 1 | F72: 0 | G72: 30 | H72: 6 | I72: 0 | J72: 0 | K72: 0 | L72: 0 | M72: 0 | N72: 0 | O72: 36 | P72: 0 | Q72: 0 | R72: 0 | S72: 0
A73: Q75 | B73: RJR | C73: COUNTESS OF CHESTER HOSPITAL NHS FOUNDATION TRUST | D73: 78 | E73: 0.8846153846 | F73: 0 | G73: 59 | H73: 10 | I73: 1 | J73: 0 | K73: 0 | L73: 8 | M73: 0 | N73: 0 | O73: 77 | P73: 0 | Q73: 0 | R73: 1 | S73: 0
A74: Q75 | B74: RJN | C74: EAST CHESHIRE NHS TRUST | D74: 39 | E74: 0.9230769231 | F74: 0 | G74: 29 | H74: 7 | I74: 1 | J74: 0 | K74: 0 | L74: 2 | M74: 0 | N74: 0 | O74: 39 | P74: 0 | Q74: 0 | R74: 0 | S74: 0
A75: Q75 | B75: REP | C75: LIVERPOOL WOMEN'S NHS FOUNDATION TRUST | D75: 67 | E75: 0.9402985075 | F75: 0.0447761194 | G75: 52 | H75: 11 | I75: 1 | J75: 1 | K75: 2 | L75: 0 | M75: 0 | N75: 0 | O75: 67 | P75: 0 | Q75: 0 | R75: 0 | S75: 0
A76: Q75 | B76: RBT | C76: MID CHESHIRE HOSPITALS NHS FOUNDATION TRUST | D76: 46 | E76: 0.9782608696 | F76: 0 | G76: 34 | H76: 11 | I76: 1 | J76: 0 | K76: 0 | L76: 0 | M76: 0 | N76: 0 | O76: 46 | P76: 0 | Q76: 0 | R76: 0 | S76: 0
A77: Q75 | B77: RVY | C77: SOUTHPORT AND ORMSKIRK HOSPITAL NHS TRUST | D77: 43 | E77: 0.9069767442 | F77: 0.04651162791 | G77: 29 | H77: 10 | I77: 0 | J77: 2 | K77: 0 | L77: 2 | M77: 0 | N77: 0 | O77: 43 | P77: 0 | Q77: 0 | R77: 0 | S77: 0
A78: Q75 | B78: RBN | C78: ST HELENS AND KNOWSLEY HOSPITALS NHS TRUST | D78: 59 | E78: 0.9491525424 | F78: 0.03389830508 | G78: 46 | H78: 10 | I78: 1 | J78: 2 | K78: 0 | L78: 0 | M78: 0 | N78: 0 | O78: 59 | P78: 0 | Q78: 0 | R78: 0 | S78: 0
A79: Q75 | B79: RWW | C79: WARRINGTON AND HALTON HOSPITALS NHS FOUNDATION TRUST | D79: 60 | E79: 0.9333333333 | F79: 0.01666666667 | G79: 40 | H79: 16 | I79: 2 | J79: 0 | K79: 1 | L79: 1 | M79: 0 | N79: 0 | O79: 59 | P79: 0 | Q79: 0 | R79: 1 | S79: 0
A80: Q75 | B80: RBL | C80: WIRRAL UNIVERSITY TEACHING HOSPITAL NHS FOUNDATION TRUST | D80: 81 | E80: 1 | F80: 0 | G80: 72 | H80: 9 | I80: 0 | J80: 0 | K80: 0 | L80: 0 | M80: 0 | N80: 0 | O80: 81 | P80: 0 | Q80: 0 | R80: 0 | S80: 0
A81: Q76 | B81: RJF | C81: BURTON HOSPITALS NHS FOUNDATION TRUST | D81: 156 | E81: 0.9871794872 | F81: 0.00641025641 | G81: 134 | H81: 20 | I81: 0 | J81: 0 | K81: 1 | L81: 1 | M81: 0 | N81: 0 | O81: 156 | P81: 0 | Q81: 0 | R81: 0 | S81: 0
A82: Q76 | B82: RFS | C82: CHESTERFIELD ROYAL HOSPITAL NHS FOUNDATION TRUST | D82: 94 | E82: 0.9468085106 | F82: 0.02127659574 | G82: 66 | H82: 23 | I82: 2 | J82: 1 | K82: 1 | L82: 1 | M82: 0 | N82: 0 | O82: 94 | P82: 0 | Q82: 0 | R82: 0 | S82: 0
A83: Q76 | B83: RTG | C83: DERBY TEACHING HOSPITALS NHS FOUNDATION TRUST | D83: 22 | E83: 1 | F83: 0 | G83: 19 | H83: 3 | I83: 0 | J83: 0 | K83: 0 | L83: 0 | M83: 0 | N83: 0 | O83: 22 | P83: 0 | Q83: 0 | R83: 0 | S83: 0
A84: Q76 | B84: RX1 | C84: NOTTINGHAM UNIVERSITY HOSPITALS NHS TRUST | D84: 293 | E84: 0.9795221843 | F84: 0 | G84: 217 | H84: 70 | I84: 5 | J84: 0 | K84: 0 | L84: 1 | M84: 0 | N84: 0 | O84: 293 | P84: 0 | Q84: 0 | R84: 0 | S84: 0
A85: Q76 | B85: RK5 | C85: SHERWOOD FOREST HOSPITALS NHS FOUNDATION TRUST | D85: 60 | E85: 0.9833333333 | F85: 0.01666666667 | G85: 48 | H85: 11 | I85: 0 | J85: 1 | K85: 0 | L85: 0 | M85: 0 | N85: 0 | O85: 59 | P85: 0 | Q85: 0 | R85: 1 | S85: 0
A86: Q76 | B86: RXW | C86: SHREWSBURY AND TELFORD HOSPITAL NHS TRUST | D86: 175 | E86: 0.9942857143 | F86: 0 | G86: 161 | H86: 13 | I86: 0 | J86: 0 | K86: 0 | L86: 1 | M86: 0 | N86: 0 | O86: 175 | P86: 0 | Q86: 0 | R86: 0 | S86: 0
A87: Q76 | B87: RJE | C87: UNIVERSITY HOSPITALS OF NORTH MIDLANDS NHS TRUST | D87: 64 | E87: 0.953125 | F87: 0.015625 | G87: 56 | H87: 5 | I87: 2 | J87: 1 | K87: 0 | L87: 0 | M87: 0 | N87: 0 | O87: 64 | P87: 0 | Q87: 0 | R87: 0 | S87: 0
A88: Q77 | B88: RLU | C88: BIRMINGHAM WOMEN'S NHS FOUNDATION TRUST | D88: 145 | E88: 0.9172413793 | F88: 0.01379310345 | G88: 97 | H88: 36 | I88: 7 | J88: 1 | K88: 1 | L88: 3 | M88: 0 | N88: 0 | O88: 136 | P88: 0 | Q88: 0 | R88: 9 | S88: 0
A89: Q77 | B89: RLT | C89: GEORGE ELIOT HOSPITAL NHS TRUST | D89: 70 | E89: 0.9857142857 | F89: 0 | G89: 66 | H89: 3 | I89: 0 | J89: 0 | K89: 0 | L89: 1 | M89: 0 | N89: 0 | O89: 70 | P89: 0 | Q89: 0 | R89: 0 | S89: 0
A90: Q77 | B90: RR1 | C90: HEART OF ENGLAND NHS FOUNDATION TRUST | D90: 72 | E90: 0.9444444444 | F90: 0.04166666667 | G90: 52 | H90: 16 | I90: 1 | J90: 1 | K90: 2 | L90: 0 | M90: 0 | N90: 0 | O90: 72 | P90: 0 | Q90: 0 | R90: 0 | S90: 0
A91: Q77 | B91: RXK | C91: SANDWELL AND WEST BIRMINGHAM HOSPITALS NHS TRUST | D91: 94 | E91: 0.914893617 | F91: 0.04255319149 | G91: 38 | H91: 48 | I91: 2 | J91: 2 | K91: 2 | L91: 2 | M91: 0 | N91: 94 | O91: 0 | P91: 0 | Q91: 0 | R91: 0 | S91: 0
A92: Q77 | B92: RJC | C92: SOUTH WARWICKSHIRE NHS FOUNDATION TRUST | D92: 81 | E92: 0.950617284 | F92: 0.03703703704 | G92: 59 | H92: 18 | I92: 1 | J92: 2 | K92: 1 | L92: 0 | M92: 0 | N92: 0 | O92: 77 | P92: 0 | Q92: 0 | R92: 4 | S92: 0
A93: Q77 | B93: RNA | C93: THE DUDLEY GROUP NHS FOUNDATION TRUST | D93: 108 | E93: 0.9814814815 | F93: 0.009259259259 | G93: 94 | H93: 12 | I93: 1 | J93: 0 | K93: 1 | L93: 0 | M93: 0 | N93: 0 | O93: 108 | P93: 0 | Q93: 0 | R93: 0 | S93: 0
A94: Q77 | B94: RL4 | C94: THE ROYAL WOLVERHAMPTON NHS TRUST | D94: 128 | E94: 0.8671875 | F94: 0.1015625 | G94: 86 | H94: 25 | I94: 4 | J94: 6 | K94: 7 | L94: 0 | M94: 73 | N94: 0 | O94: 53 | P94: 0 | Q94: 2 | R94: 0 | S94: 0
A95: Q77 | B95: RKB | C95: UNIVERSITY HOSPITALS COVENTRY AND WARWICKSHIRE NHS TRUST | D95: 164 | E95: 0.9756097561 | F95: 0.006097560976 | G95: 129 | H95: 31 | I95: 3 | J95: 0 | K95: 1 | L95: 0 | M95: 0 | N95: 0 | O95: 164 | P95: 0 | Q95: 0 | R95: 0 | S95: 0
A96: Q77 | B96: RBK | C96: WALSALL HEALTHCARE NHS TRUST | D96: 395 | E96: 0.9569620253 | F96: 0.005063291139 | G96: 296 | H96: 82 | I96: 3 | J96: 2 | K96: 0 | L96: 12 | M96: 0 | N96: 0 | O96: 395 | P96: 0 | Q96: 0 | R96: 0 | S96: 0
A97: Q77 | B97: RWP | C97: WORCESTERSHIRE ACUTE HOSPITALS NHS TRUST | D97: 124 | E97: 0.9758064516 | F97: 0.008064516129 | G97: 105 | H97: 16 | I97: 2 | J97: 1 | K97: 0 | L97: 0 | M97: 0 | N97: 0 | O97: 124 | P97: 0 | Q97: 0 | R97: 0 | S97: 0
A98: Q77 | B98: RLQ | C98: WYE VALLEY NHS TRUST | D98: 62 | E98: 0.9516129032 | F98: 0.01612903226 | G98: 40 | H98: 19 | I98: 0 | J98: 1 | K98: 0 | L98: 2 | M98: 0 | N98: 0 | O98: 62 | P98: 0 | Q98: 0 | R98: 0 | S98: 0
A99: Q78 | B99: RC1 | C99: BEDFORD HOSPITAL NHS TRUST | D99: 70 | E99: 0.9857142857 | F99: 0 | G99: 55 | H99: 14 | I99: 1 | J99: 0 | K99: 0 | L99: 0 | M99: 70 | N99: 0 | O99: 0 | P99: 0 | Q99: 0 | R99: 0 | S99: 0
A100: Q78 | B100: RWH | C100: EAST AND NORTH HERTFORDSHIRE NHS TRUST | D100: 230 | E100: 0.8913043478 | F100: 0.01739130435 | G100: 133 | H100: 72 | I100: 16 | J100: 3 | K100: 1 | L100: 5 | M100: 0 | N100: 230 | O100: 0 | P100: 0 | Q100: 0 | R100: 0 | S100: 0
A101: Q78 | B101: RNQ | C101: KETTERING GENERAL HOSPITAL NHS FOUNDATION TRUST | D101: 44 | E101: 0.9772727273 | F101: 0 | G101: 38 | H101: 5 | I101: 1 | J101: 0 | K101: 0 | L101: 0 | M101: 0 | N101: 0 | O101: 44 | P101: 0 | Q101: 0 | R101: 0 | S101: 0
A102: Q78 | B102: RC9 | C102: LUTON AND DUNSTABLE UNIVERSITY HOSPITAL NHS FOUNDATION TRUST | D102: 129 | E102: 0.984496124 | F102: 0.007751937984 | G102: 91 | H102: 36 | I102: 1 | J102: 1 | K102: 0 | L102: 0 | M102: 0 | N102: 129 | O102: 0 | P102: 0 | Q102: 0 | R102: 0 | S102: 0
A103: Q78 | B103: RD8 | C103: MILTON KEYNES HOSPITAL NHS FOUNDATION TRUST | D103: 57 | E103: 0.8947368421 | F103: 0.05263157895 | G103: 26 | H103: 25 | I103: 2 | J103: 1 | K103: 2 | L103: 1 | M103: 0 | N103: 0 | O103: 57 | P103: 0 | Q103: 0 | R103: 0 | S103: 0
A104: Q78 | B104: RNS | C104: NORTHAMPTON GENERAL HOSPITAL NHS TRUST | D104: 112 | E104: 0.9821428571 | F104: 0.008928571429 | G104: 88 | H104: 22 | I104: 0 | J104: 1 | K104: 0 | L104: 1 | M104: 15 | N104: 0 | O104: 96 | P104: 0 | Q104: 1 | R104: 0 | S104: 0
A105: Q78 | B105: RWD | C105: UNITED LINCOLNSHIRE HOSPITALS NHS TRUST | D105: 82 | E105: 0.9024390244 | F105: 0.07317073171 | G105: 63 | H105: 11 | I105: 2 | J105: 1 | K105: 5 | L105: 0 | M105: 0 | N105: 0 | O105: 82 | P105: 0 | Q105: 0 | R105: 0 | S105: 0
A106: Q78 | B106: RWE | C106: UNIVERSITY HOSPITALS OF LEICESTER NHS TRUST | D106: 360 | E106: 0.9194444444 | F106: 0.02222222222 | G106: 191 | H106: 140 | I106: 20 | J106: 7 | K106: 1 | L106: 1 | M106: 0 | N106: 360 | O106: 0 | P106: 0 | Q106: 0 | R106: 0 | S106: 0
A107: Q78 | B107: RWG | C107: WEST HERTFORDSHIRE HOSPITALS NHS TRUST | D107: 149 | E107: 0.8255033557 | F107: 0.02013422819 | G107: 88 | H107: 35 | I107: 10 | J107: 2 | K107: 1 | L107: 13 | M107: 0 | N107: 0 | O107: 149 | P107: 0 | Q107: 0 | R107: 0 | S107: 0
A108: Q79 | B108: RDD | C108: BASILDON AND THURROCK UNIVERSITY HOSPITALS NHS FOUNDATION TRUST | D108: 98 | E108: 0.9387755102 | F108: 0.01020408163 | G108: 63 | H108: 29 | I108: 4 | J108: 0 | K108: 1 | L108: 1 | M108: 0 | N108: 0 | O108: 98 | P108: 0 | Q108: 0 | R108: 0 | S108: 0
A109: Q79 | B109: RGT | C109: CAMBRIDGE UNIVERSITY HOSPITALS NHS FOUNDATION TRUST | D109: 79 | E109: 0.9873417722 | F109: 0 | G109: 61 | H109: 17 | I109: 1 | J109: 0 | K109: 0 | L109: 0 | M109: 0 | N109: 77 | O109: 2 | P109: 0 | Q109: 0 | R109: 0 | S109: 0
A110: Q79 | B110: RDE | C110: COLCHESTER HOSPITAL UNIVERSITY NHS FOUNDATION TRUST | D110: 60 | E110: 0.9666666667 | F110: 0.01666666667 | G110: 44 | H110: 14 | I110: 1 | J110: 1 | K110: 0 | L110: 0 | M110: 0 | N110: 0 | O110: 60 | P110: 0 | Q110: 0 | R110: 0 | S110: 0
A111: Q79 | B111: RQQ | C111: HINCHINGBROOKE HEALTH CARE NHS TRUST | D111: 7 | E111: 1 | F111: 0 | G111: 7 | H111: 0 | I111: 0 | J111: 0 | K111: 0 | L111: 0 | M111: 0 | N111: 0 | O111: 7 | P111: 0 | Q111: 0 | R111: 0 | S111: 0
A112: Q79 | B112: RGQ | C112: IPSWICH HOSPITAL NHS TRUST | D112: 114 | E112: 0.9736842105 | F112: 0.008771929825 | G112: 81 | H112: 30 | I112: 2 | J112: 1 | K112: 0 | L112: 0 | M112: 0 | N112: 113 | O112: 1 | P112: 0 | Q112: 0 | R112: 0 | S112: 0
A113: Q79 | B113: RGP | C113: JAMES PAGET UNIVERSITY HOSPITALS NHS FOUNDATION TRUST | D113: 69 | E113: 0.9710144928 | F113: 0.01449275362 | G113: 50 | H113: 17 | I113: 0 | J113: 1 | K113: 0 | L113: 1 | M113: 0 | N113: 0 | O113: 69 | P113: 0 | Q113: 0 | R113: 0 | S113: 0
A114: Q79 | B114: RQ8 | C114: MID ESSEX HOSPITAL SERVICES NHS TRUST | D114: 86 | E114: 0.9651162791 | F114: 0.02325581395 | G114: 57 | H114: 26 | I114: 0 | J114: 1 | K114: 1 | L114: 1 | M114: 0 | N114: 86 | O114: 0 | P114: 0 | Q114: 0 | R114: 0 | S114: 0
A115: Q79 | B115: RM1 | C115: NORFOLK AND NORWICH UNIVERSITY HOSPITALS NHS FOUNDATION TRUST | D115: 52 | E115: 1 | F115: 0 | G115: 43 | H115: 9 | I115: 0 | J115: 0 | K115: 0 | L115: 0 | M115: 0 | N115: 52 | O115: 0 | P115: 0 | Q115: 0 | R115: 0 | S115: 0
A116: Q79 | B116: RGN | C116: PETERBOROUGH AND STAMFORD HOSPITALS NHS FOUNDATION TRUST | D116: 33 | E116: 0.7878787879 | F116: 0 | G116: 23 | H116: 3 | I116: 0 | J116: 0 | K116: 0 | L116: 7 | M116: 0 | N116: 0 | O116: 33 | P116: 0 | Q116: 0 | R116: 0 | S116: 0
A117: Q79 | B117: RAJ | C117: SOUTHEND UNIVERSITY HOSPITAL NHS FOUNDATION TRUST | D117: 56 | E117: 0.9464285714 | F117: 0 | G117: 44 | H117: 9 | I117: 2 | J117: 0 | K117: 0 | L117: 1 | M117: 0 | N117: 0 | O117: 56 | P117: 0 | Q117: 0 | R117: 0 | S117: 0
A118: Q79 | B118: RQW | C118: THE PRINCESS ALEXANDRA HOSPITAL NHS TRUST | D118: 135 | E118: 1 | F118: 0 | G118: 121 | H118: 14 | I118: 0 | J118: 0 | K118: 0 | L118: 0 | M118: 0 | N118: 0 | O118: 0 | P118: 0 | Q118: 0 | R118: 0 | S118: 135
A119: Q79 | B119: RCX | C119: THE QUEEN ELIZABETH HOSPITAL, KING'S LYNN, NHS FOUNDATION TRUST | D119: 64 | E119: 0.9375 | F119: 0.03125 | G119: 44 | H119: 16 | I119: 1 | J119: 0 | K119: 2 | L119: 1 | M119: 0 | N119: 0 | O119: 64 | P119: 0 | Q119: 0 | R119: 0 | S119: 0
A120: Q79 | B120: RGR | C120: WEST SUFFOLK NHS FOUNDATION TRUST | D120: 92 | E120: 0.9782608696 | F120: 0 | G120: 69 | H120: 21 | I120: 0 | J120: 0 | K120: 0 | L120: 2 | M120: 0 | N120: 91 | O120: 1 | P120: 0 | Q120: 0 | R120: 0 | S120: 0
A121: Q80 | B121: RVJ | C121: NORTH BRISTOL NHS TRUST | D121: 84 | E121: 0.9761904762 | F121: 0 | G121: 56 | H121: 26 | I121: 2 | J121: 0 | K121: 0 | L121: 0 | M121: 0 | N121: 0 | O121: 84 | P121: 0 | Q121: 0 | R121: 0 | S121: 0
A122: Q80 | B122: RBZ | C122: NORTHERN DEVON HEALTHCARE NHS TRUST | D122: 27 | E122: 0.962962963 | F122: 0 | G122: 23 | H122: 3 | I122: 0 | J122: 0 | K122: 0 | L122: 1 | M122: 0 | N122: 0 | O122: 27 | P122: 0 | Q122: 0 | R122: 0 | S122: 0
A123: Q80 | B123: RK9 | C123: PLYMOUTH HOSPITALS NHS TRUST | D123: 180 | E123: 0.9444444444 | F123: 0 | G123: 122 | H123: 48 | I123: 6 | J123: 0 | K123: 0 | L123: 4 | M123: 0 | N123: 179 | O123: 1 | P123: 0 | Q123: 0 | R123: 0 | S123: 0
A124: Q80 | B124: REF | C124: ROYAL CORNWALL HOSPITALS NHS TRUST | D124: 16 | E124: 0.8125 | F124: 0.0625 | G124: 10 | H124: 3 | I124: 1 | J124: 0 | K124: 1 | L124: 1 | M124: 0 | N124: 0 | O124: 16 | P124: 0 | Q124: 0 | R124: 0 | S124: 0
A125: Q80 | B125: RH8 | C125: ROYAL DEVON AND EXETER NHS FOUNDATION TRUST | D125: 51 | E125: 0.9607843137 | F125: 0.01960784314 | G125: 38 | H125: 11 | I125: 1 | J125: 0 | K125: 1 | L125: 0 | M125: 0 | N125: 0 | O125: 51 | P125: 0 | Q125: 0 | R125: 0 | S125: 0
A126: Q80 | B126: RA9 | C126: SOUTH DEVON HEALTHCARE NHS FOUNDATION TRUST | D126: 45 | E126: 0.9777777778 | F126: 0 | G126: 35 | H126: 9 | I126: 1 | J126: 0 | K126: 0 | L126: 0 | M126: 0 | N126: 0 | O126: 45 | P126: 0 | Q126: 0 | R126: 0 | S126: 0
A127: Q80 | B127: RBA | C127: TAUNTON AND SOMERSET NHS FOUNDATION TRUST | D127: 117 | E127: 0.9914529915 | F127: 0 | G127: 87 | H127: 29 | I127: 1 | J127: 0 | K127: 0 | L127: 0 | M127: 0 | N127: 0 | O127: 117 | P127: 0 | Q127: 0 | R127: 0 | S127: 0
A128: Q80 | B128: RA7 | C128: UNIVERSITY HOSPITALS BRISTOL NHS FOUNDATION TRUST | D128: 62 | E128: 1 | F128: 0 | G128: 49 | H128: 13 | I128: 0 | J128: 0 | K128: 0 | L128: 0 | M128: 0 | N128: 0 | O128: 62 | P128: 0 | Q128: 0 | R128: 0 | S128: 0
A129: Q80 | B129: RA3 | C129: WESTON AREA HEALTH NHS TRUST | D129: 30 | E129: 1 | F129: 0 | G129: 27 | H129: 3 | I129: 0 | J129: 0 | K129: 0 | L129: 0 | M129: 0 | N129: 0 | O129: 30 | P129: 0 | Q129: 0 | R129: 0 | S129: 0
A130: Q80 | B130: RA4 | C130: YEOVIL DISTRICT HOSPITAL NHS FOUNDATION TRUST | D130: 0 | E130: NA | F130: NA | G130: 0 | H130: 0 | I130: 0 | J130: 0 | K130: 0 | L130: 0 | M130: 0 | N130: 0 | O130: 0 | P130: 0 | Q130: 0 | R130: 0 | S130: 0
A131: Q81 | B131: RTK | C131: ASHFORD AND ST PETER'S HOSPITALS NHS FOUNDATION TRUST | D131: 30 | E131: 1 | F131: 0 | G131: 22 | H131: 8 | I131: 0 | J131: 0 | K131: 0 | L131: 0 | M131: 0 | N131: 0 | O131: 28 | P131: 0 | Q131: 0 | R131: 2 | S131: 0
A132: Q81 | B132: RXH | C132: BRIGHTON AND SUSSEX UNIVERSITY HOSPITALS NHS TRUST | D132: 188 | E132: 0.9627659574 | F132: 0.005319148936 | G132: 141 | H132: 40 | I132: 5 | J132: 1 | K132: 0 | L132: 1 | M132: 0 | N132: 0 | O132: 188 | P132: 0 | Q132: 0 | R132: 0 | S132: 0
A133: Q81 | B133: RN7 | C133: DARTFORD AND GRAVESHAM NHS TRUST | D133: 149 | E133: 1 | F133: 0 | G133: 127 | H133: 22 | I133: 0 | J133: 0 | K133: 0 | L133: 0 | M133: 0 | N133: 0 | O133: 149 | P133: 0 | Q133: 0 | R133: 0 | S133: 0
A134: Q81 | B134: RVV | C134: EAST KENT HOSPITALS UNIVERSITY NHS FOUNDATION TRUST | D134: 109 | E134: 0.8990825688 | F134: 0.02752293578 | G134: 84 | H134: 14 | I134: 8 | J134: 0 | K134: 3 | L134: 0 | M134: 0 | N134: 0 | O134: 109 | P134: 0 | Q134: 0 | R134: 0 | S134: 0
A135: Q81 | B135: RXC | C135: EAST SUSSEX HEALTHCARE NHS TRUST | D135: 80 | E135: 0.925 | F135: 0.0375 | G135: 59 | H135: 15 | I135: 1 | J135: 2 | K135: 1 | L135: 2 | M135: 0 | N135: 79 | O135: 0 | P135: 0 | Q135: 0 | R135: 1 | S135: 0
A136: Q81 | B136: RDU | C136: FRIMLEY HEALTH NHS FOUNDATION TRUST | D136: 413 | E136: 0.8353510896 | F136: 0.01452784504 | G136: 273 | H136: 72 | I136: 16 | J136: 3 | K136: 3 | L136: 46 | M136: 0 | N136: 9 | O136: 400 | P136: 0 | Q136: 0 | R136: 4 | S136: 0
A137: Q81 | B137: RWF | C137: MAIDSTONE AND TUNBRIDGE WELLS NHS TRUST | D137: 57 | E137: 0.9298245614 | F137: 0 | G137: 50 | H137: 3 | I137: 2 | J137: 0 | K137: 0 | L137: 2 | M137: 0 | N137: 0 | O137: 57 | P137: 0 | Q137: 0 | R137: 0 | S137: 0
A138: Q81 | B138: RPA | C138: MEDWAY NHS FOUNDATION TRUST | D138: 126 | E138: 0.9603174603 | F138: 0.007936507937 | G138: 105 | H138: 16 | I138: 4 | J138: 0 | K138: 1 | L138: 0 | M138: 0 | N138: 0 | O138: 126 | P138: 0 | Q138: 0 | R138: 0 | S138: 0
A139: Q81 | B139: RA2 | C139: ROYAL SURREY COUNTY HOSPITAL NHS FOUNDATION TRUST | D139: 110 | E139: 0.9636363636 | F139: 0.02727272727 | G139: 98 | H139: 8 | I139: 0 | J139: 3 | K139: 0 | L139: 1 | M139: 27 | N139: 0 | O139: 83 | P139: 0 | Q139: 0 | R139: 0 | S139: 0
A140: Q81 | B140: RTP | C140: SURREY AND SUSSEX HEALTHCARE NHS TRUST | D140: 60 | E140: 0.9 | F140: 0 | G140: 31 | H140: 23 | I140: 2 | J140: 0 | K140: 0 | L140: 4 | M140: 0 | N140: 0 | O140: 2 | P140: 0 | Q140: 0 | R140: 58 | S140: 0
A141: Q81 | B141: RYR | C141: WESTERN SUSSEX HOSPITALS NHS FOUNDATION TRUST | D141: 43 | E141: 0.9302325581 | F141: 0.04651162791 | G141: 34 | H141: 6 | I141: 0 | J141: 1 | K141: 1 | L141: 1 | M141: 1 | N141: 26 | O141: 14 | P141: 0 | Q141: 0 | R141: 2 | S141: 0
A142: Q82 | B142: RXQ | C142: BUCKINGHAMSHIRE HEALTHCARE NHS TRUST | D142: 67 | E142: 0.9701492537 | F142: 0.01492537313 | G142: 49 | H142: 16 | I142: 0 | J142: 0 | K142: 1 | L142: 1 | M142: 0 | N142: 0 | O142: 67 | P142: 0 | Q142: 0 | R142: 0 | S142: 0
A143: Q82 | B143: RTE | C143: GLOUCESTERSHIRE HOSPITALS NHS FOUNDATION TRUST | D143: 8 | E143: 1 | F143: 0 | G143: 8 | H143: 0 | I143: 0 | J143: 0 | K143: 0 | L143: 0 | M143: 0 | N143: 0 | O143: 8 | P143: 0 | Q143: 0 | R143: 0 | S143: 0
A144: Q82 | B144: RN3 | C144: GREAT WESTERN HOSPITALS NHS FOUNDATION TRUST | D144: 15 | E144: 1 | F144: 0 | G144: 12 | H144: 3 | I144: 0 | J144: 0 | K144: 0 | L144: 0 | M144: 0 | N144: 0 | O144: 15 | P144: 0 | Q144: 0 | R144: 0 | S144: 0
A145: Q82 | B145: RTH | C145: OXFORD UNIVERSITY HOSPITALS NHS TRUST | D145: 55 | E145: 0.9272727273 | F145: 0 | G145: 45 | H145: 6 | I145: 0 | J145: 0 | K145: 0 | L145: 4 | M145: 0 | N145: 0 | O145: 55 | P145: 0 | Q145: 0 | R145: 0 | S145: 0
A146: Q82 | B146: RHW | C146: ROYAL BERKSHIRE NHS FOUNDATION TRUST | D146: 106 | E146: 0.9622641509 | F146: 0.01886792453 | G146: 73 | H146: 29 | I146: 1 | J146: 2 | K146: 0 | L146: 1 | M146: 0 | N146: 0 | O146: 106 | P146: 0 | Q146: 0 | R146: 0 | S146: 0
A147: Q82 | B147: RD1 | C147: ROYAL UNITED HOSPITALS BATH NHS FOUNDATION TRUST | D147: 127 | E147: 0.9921259843 | F147: 0 | G147: 103 | H147: 23 | I147: 1 | J147: 0 | K147: 0 | L147: 0 | M147: 0 | N147: 0 | O147: 126 | P147: 0 | Q147: 0 | R147: 1 | S147: 0
A148: Q82 | B148: RNZ | C148: SALISBURY NHS FOUNDATION TRUST | D148: 54 | E148: 0.9259259259 | F148: 0 | G148: 47 | H148: 3 | I148: 0 | J148: 0 | K148: 0 | L148: 4 | M148: 0 | N148: 0 | O148: 0 | P148: 54 | Q148: 0 | R148: 0 | S148: 0

Sheet Sites Q3
B6: Sort data by:
A9: Region (Geo) Code | B9: Trust Code | C9: Trust Name | D9: Site Code | E9: Site Name | F9: Total Responses | G9: Percentage Recommended | H9: Percentage Not Recommended | I9: Breakdown of Responses
I10: Extremely Likely | J10: Likely | K10: Neither | L10: Unlikely | M10: Extremely Unlikely | N10: Don't Know
E11: England | F11: 13142 | G11: 0.9420179577 | H11: 0.01704458986 | I11: 9338 | J11: 3042 | K11: 295 | L11: 117 | M11: 107 | N11: 243
E12: Selection (excluding suppressed data) | F12: =SUBTOTAL(9,F13:F298) -> 13142 | G12: =IFERROR((I12+J12)/SUM(I12:N12), "-") -> 0.9410015649 | H12: =IFERROR((L12+M12)/SUM(I12:N12), "-") -> 0.01729264476 | I12: =SUBTOTAL(9,I13:I298) -> 9062 | J12: =SUBTOTAL(9,J13:J298) -> 2964 | K12: 291 | L12: 115 | M12: 106 | N12: 242
A13: Q70 | B13: RBD | C13: DORSET COUNTY HOSPITAL NHS FOUNDATION TRUST | D13: RBD01 | E13: Dorset County Hospital - RBD01 | F13: 52 | G13: 0.9615384615 | H13: 0 | I13: 46 | J13: 4 | K13: 2 | L13: 0 | M13: 0 | N13: 0
A14: Q70 | B14: RN5 | C14: HAMPSHIRE HOSPITALS NHS FOUNDATION TRUST | D14: RN506 | E14: Basingstoke and North Hampshire Hospital - RN506 | F14: 111 | G14: 0.9279279279 | H14: 0.03603603604 | I14: 66 | J14: 37 | K14: 4 | L14: 1 | M14: 3 | N14: 0
A15: Q70 | B15: RN5 | C15: HAMPSHIRE HOSPITALS NHS FOUNDATION TRUST | D15: RN541 | E15: Royal Hampshire County Hospital - RN541 | F15: 48 | G15: 0.8958333333 | H15: 0.04166666667 | I15: 35 | J15: 8 | K15: 2 | L15: 0 | M15: 2 | N15: 1
A16: Q70 | B16: R1F | C16: ISLE OF WIGHT NHS TRUST | D16: R1F01 | E16: St Mary's Hospital - R1F01 | F16: 31 | G16: 1 | H16: 0 | I16: * | J16: * | K16: * | L16: * | M16: * | N16: *
A17: Q70 | B17: RD3 | C17: POOLE HOSPITAL NHS FOUNDATION TRUST | D17: RD304 | E17: Poole General Hospital NHS Trust HQ - RD304 | F17: 99 | G17: 0.9898989899 | H17: 0 | I17: 74 | J17: 24 | K17: 1 | L17: 0 | M17: 0 | N17: 0
A18: Q70 | B18: RHU | C18: PORTSMOUTH HOSPITALS NHS TRUST | D18: RHU10 | E18: Gosport War Memorial Hospital - RHU10 | F18: 1 | G18: * | H18: * | I18: * | J18: * | K18: * | L18: * | M18: * | N18: *
A19: Q70 | B19: RHU | C19: PORTSMOUTH HOSPITALS NHS TRUST | D19: RHU04 | E19: Petersfield Community Hospital - RHU04 | F19: 6 | G19: 1 | H19: 0 | I19: 5 | J19: 1 | K19: 0 | L19: 0 | M19: 0 | N19: 0
A20: Q70 | B20: RHU | C20: PORTSMOUTH HOSPITALS NHS TRUST | D20: RHU03 | E20: Queen Alexandra Hospital - RHU03 | F20: 190 | G20: 0.9526315789 | H20: 0 | I20: 143 | J20: 38 | K20: 4 | L20: 0 | M20: 0 | N20: 5
A21: Q70 | B21: RHU | C21: PORTSMOUTH HOSPITALS NHS TRUST | D21: RHU02 | E21: St Mary's Hospital - RHU02 | F21: 5 | G21: 1 | H21: 0 | I21: * | J21: * | K21: * | L21: * | M21: * | N21: *
A22: Q70 | B22: RDZ | C22: THE ROYAL BOURNEMOUTH AND CHRISTCHURCH HOSPITALS NHS FOUNDATION TRUST | D22: RDZ20 | E22: Royal Bournemouth General Hospital - RDZ20 | F22: 2 | G22: * | H22: * | I22: * | J22: * | K22: * | L22: * | M22: * | N22: *
A23: Q70 | B23: RHM | C23: UNIVERSITY HOSPITAL SOUTHAMPTON NHS FOUNDATION TRUST | D23: RHM12 | E23: Princess Anne Hospital - RHM12 | F23: 65 | G23: 0.9230769231 | H23: 0.03076923077 | I23: 36 | J23: 24 | K23: 2 | L23: 1 | M23: 1 | N23: 1
A24: Q71 | B24: RF4 | C24: BARKING, HAVERING AND REDBRIDGE UNIVERSITY HOSPITALS NHS TRUST | D24: RF4QH | E24: Queen's Hospital - RF4QH | F24: 193 | G24: 0.9378238342 | H24: 0.0207253886 | I24: 96 | J24: 85 | K24: 7 | L24: 2 | M24: 2 | N24: 1
A25: Q71 | B25: R1H | C25: BARTS HEALTH NHS TRUST | D25: R1HNH | E25: Newham General Hospital - R1HNH | F25: 8 | G25: 1 | H25: 0 | I25: 5 | J25: 3 | K25: 0 | L25: 0 | M25: 0 | N25: 0
A26: Q71 | B26: R1H | C26: BARTS HEALTH NHS TRUST | D26: R1H12 | E26: The Royal London Hospital - R1H12 | F26: 18 | G26: 0.9444444444 | H26: 0.05555555556 | I26: 9 | J26: 8 | K26: 0 | L26: 1 | M26: 0 | N26: 0
A27: Q71 | B27: R1H | C27: BARTS HEALTH NHS TRUST | D27: R1HKH | E27: Whipps Cross University Hospital - R1HKH | F27: 30 | G27: 0.9333333333 | H27: 0.06666666667 | I27: 13 | J27: 15 | K27: 0 | L27: 0 | M27: 2 | N27: 0
A28: Q71 | B28: RQM | C28: CHELSEA AND WESTMINSTER HOSPITAL NHS FOUNDATION TRUST | D28: RQM01 | E28: Chelsea and Westminster Hospital - RQM01 | F28: 115 | G28: 0.8956521739 | H28: 0.04347826087 | I28: 79 | J28: 24 | K28: 6 | L28: 3 | M28: 2 | N28: 1
A29: Q71 | B29: RJ6 | C29: CROYDON HEALTH SERVICES NHS TRUST | D29: RJ611 | E29: Mayday University Hospital - RJ611 | F29: 234 | G29: 0.952991453 | H29: 0.02991452991 | I29: 141 | J29: 82 | K29: 4 | L29: 4 | M29: 3 | N29: 0
A30: Q71 | B30: RVR | C30: EPSOM AND ST HELIER UNIVERSITY HOSPITALS NHS TRUST | D30: RVR50 | E30: Epsom Hospital - RVR50 | F30: 74 | G30: 0.9864864865 | H30: 0 | I30: 63 | J30: 10 | K30: 1 | L30: 0 | M30: 0 | N30: 0
A31: Q71 | B31: RVR | C31: EPSOM AND ST HELIER UNIVERSITY HOSPITALS NHS TRUST | D31: RVR05 | E31: St Helier Hospital - RVR05 | F31: 32 | G31: 0.96875 | H31: 0 | I31: 22 | J31: 9 | K31: 1 | L31: 0 | M31: 0 | N31: 0
A32: Q71 | B32: RJ1 | C32: GUY'S AND ST THOMAS' NHS FOUNDATION TRUST | D32: RJ122 | E32: St Thomas' Hospital - RJ122 | F32: 197 | G32: 0.8934010152 | H32: 0.03553299492 | I32: 109 | J32: 67 | K32: 12 | L32: 5 | M32: 2 | N32: 2
A33: Q71 | B33: RQX | C33: HOMERTON UNIVERSITY HOSPITAL NHS FOUNDATION TRUST | D33: RQXM1 | E33: Homerton University Hospital - RQXM1 | F33: 57 | G33: 0.9298245614 | H33: 0.05263157895 | I33: 29 | J33: 24 | K33: 1 | L33: 2 | M33: 1 | N33: 0
A34: Q71 | B34: RYJ | C34: IMPERIAL COLLEGE HEALTHCARE NHS TRUST | D34: RYJ04 | E34: Queen Charlotte's Hospital - RYJ04 | F34: 26 | G34: 0.9230769231 | H34: 0.03846153846 | I34: 15 | J34: 9 | K34: 1 | L34: 0 | M34: 1 | N34: 0
A35: Q71 | B35: RYJ | C35: IMPERIAL COLLEGE HEALTHCARE NHS TRUST | D35: RYJ01 | E35: St Mary's Hospital (HQ) - RYJ01 | F35: 79 | G35: 0.9113924051 | H35: 0.01265822785 | I35: 45 | J35: 27 | K35: 3 | L35: 0 | M35: 1 | N35: 3
A36: Q71 | B36: RJZ | C36: KING'S COLLEGE HOSPITAL NHS FOUNDATION TRUST | D36: RJZ01 | E36: King's College Hospital (Denmark Hill) - RJZ01 | F36: 12 | G36: 1 | H36: 0 | I36: 9 | J36: 3 | K36: 0 | L36: 0 | M36: 0 | N36: 0
A37: Q71 | B37: RJZ | C37: KING'S COLLEGE HOSPITAL NHS FOUNDATION TRUST | D37: RJZ30 | E37: Princess Royal University Hospital - RJZ30 | F37: 36 | G37: 0.9722222222 | H37: 0.02777777778 | I37: 24 | J37: 11 | K37: 0 | L37: 0 | M37: 1 | N37: 0
A38: Q71 | B38: RAX | C38: KINGSTON HOSPITAL NHS FOUNDATION TRUST | D38: RAX01 | E38: Kingston Hospital - RAX01 | F38: 82 | G38: 0.8780487805 | H38: 0.0487804878 | I38: 44 | J38: 28 | K38: 6 | L38: 2 | M38: 2 | N38: 0
A39: Q71 | B39: RJ2 | C39: LEWISHAM AND GREENWICH NHS TRUST | D39: RJ231 | E39: Queen Elizabeth Hospital - RJ231 | F39: 113 | G39: 0.9646017699 | H39: 0 | I39: 66 | J39: 43 | K39: 1 | L39: 0 | M39: 0 | N39: 3
A40: Q71 | B40: RJ2 | C40: LEWISHAM AND GREENWICH NHS TRUST | D40: RJ224 | E40: University Hospital Lewisham - RJ224 | F40: 72 | G40: 0.9722222222 | H40: 0.01388888889 | I40: 49 | J40: 21 | K40: 1 | L40: 1 | M40: 0 | N40: 0
A41: Q71 | B41: R1K | C41: LONDON NORTH WEST HEALTHCARE NHS TRUST | D41: R1K01 | E41: Northwick Park Hospital - R1K01 | F41: 88 | G41: 0.9318181818 | H41: 0.01136363636 | I41: 47 | J41: 35 | K41: 5 | L41: 1 | M41: 0 | N41: 0
A42: Q71 | B42: RAP | C42: NORTH MIDDLESEX UNIVERSITY HOSPITAL NHS TRUST | D42: RAPNM | E42: North Middlesex Hospital - RAPNM | F42: 158 | G42: 0.9113924051 | H42: 0.05063291139 | I42: 68 | J42: 76 | K42: 4 | L42: 2 | M42: 6 | N42: 2
A43: Q71 | B43: RAL | C43: ROYAL FREE LONDON NHS FOUNDATION TRUST | D43: RAL26 | E43: Barnet Hospital - RAL26 | F43: 29 | G43: 0.9655172414 | H43: 0 | I43: 23 | J43: 5 | K43: 1 | L43: 0 | M43: 0 | N43: 0
A44: Q71 | B44: RAL | C44: ROYAL FREE LONDON NHS FOUNDATION TRUST | D44: RAL01 | E44: Royal Free Hospital - RAL01 | F44: 73 | G44: 0.9589041096 | H44: 0 | I44: 48 | J44: 22 | K44: 3 | L44: 0 | M44: 0 | N44: 0
A45: Q71 | B45: RJ7 | C45: ST GEORGE'S UNIVERSITY HOSPITALS NHS FOUNDATION TRUST | D45: RJ701 | E45: St George's Hospital (Tooting) - RJ701 | F45: 200 | G45: 0.91 | H45: 0.045 | I45: 94 | J45: 88 | K45: 8 | L45: 8 | M45: 1 | N45: 1
A46: Q71 | B46: RAS | C46: THE HILLINGDON HOSPITALS NHS FOUNDATION TRUST | D46: RAS01 | E46: Hillingdon Hospital - RAS01 | F46: 55 | G46: 0.8181818182 | H46: 0.03636363636 | I46: 27 | J46: 18 | K46: 1 | L46: 0 | M46: 2 | N46: 7
A47: Q71 | B47: RKE | C47: THE WHITTINGTON HOSPITAL NHS TRUST | D47: RKEQ4 | E47: The Whittington Hospital - RKEQ4 | F47: 35 | G47: 0.7714285714 | H47: 0 | I47: 22 | J47: 5 | K47: 2 | L47: 0 | M47: 0 | N47: 6
A48: Q71 | B48: RRV | C48: UNIVERSITY COLLEGE LONDON HOSPITALS NHS FOUNDATION TRUST | D48: RRV11 | E48: University College Hospital Elizabeth Garrett Anderson Wing - RRV11 | F48: 116 | G48: 0.8965517241 | H48: 0.04310344828 | I48: 79 | J48: 25 | K48: 4 | L48: 2 | M48: 3 | N48: 3
A49: Q71 | B49: RFW | C49: WEST MIDDLESEX UNIVERSITY HOSPITAL NHS TRUST | D49: RFW01 | E49: West Middlesex University Hospital - RFW01 | F49: 144 | G49: 0.875 | H49: 0.08333333333 | I49: 87 | J49: 39 | K49: 5 | L49: 5 | M49: 7 | N49: 1
A50: Q72 | B50: RCF | C50: AIREDALE NHS FOUNDATION TRUST | D50: RCF22 | E50: Airedale General Hospital - RCF22 | F50: 34 | G50: 0.9705882353 | H50: 0 | I50: 30 | J50: 3 | K50: 0 | L50: 0 | M50: 0 | N50: 1
A51: Q72 | B51: RFF | C51: BARNSLEY HOSPITAL NHS FOUNDATION TRUST | D51: RFFAA | E51: Barnsley Hospital NHS Foundation Trust HQ - RFFAA | F51: 75 | G51: 0.9866666667 | H51: 0 | I51: 55 | J51: 19 | K51: 0 | L51: 0 | M51: 0 | N51: 1
A52: Q72 | B52: RAE | C52: BRADFORD TEACHING HOSPITALS NHS FOUNDATION TRUST | D52: RAE01 | E52: Bradford Royal Infirmary - RAE01 | F52: 48 | G52: 0.9375 | H52: 0 | I52: 28 | J52: 17 | K52: 3 | L52: 0 | M52: 0 | N52: 0
A53: Q72 | B53: RWY | C53: CALDERDALE AND HUDDERSFIELD NHS FOUNDATION TRUST | D53: RWY02 | E53: Calderdale Royal Hospital - RWY02 | F53: 77 | G53: 1 | H53: 0 | I53: 47 | J53: 30 | K53: 0 | L53: 0 | M53: 0 | N53: 0
A54: Q72 | B54: RWY | C54: CALDERDALE AND HUDDERSFIELD NHS FOUNDATION TRUST | D54: RWY01 | E54: Huddersfield Royal Infirmary - RWY01 | F54: 6 | G54: 1 | H54: 0 | I54: 5 | J54: 1 | K54: 0 | L54: 0 | M54: 0 | N54: 0
A55: Q72 | B55: RP5 | C55: DONCASTER AND BASSETLAW HOSPITALS NHS FOUNDATION TRUST | D55: RP5BA | E55: Bassetlaw Hospital - RP5BA | F55: 82 | G55: 0.9756097561 | H55: 0.01219512195 | I55: 71 | J55: 9 | K55: 1 | L55: 1 | M55: 0 | N55: 0
A56: Q72 | B56: RP5 | C56: DONCASTER AND BASSETLAW HOSPITALS NHS FOUNDATION TRUST | D56: RP5DR | E56: Doncaster Royal Infirmary - RP5DR | F56: 123 | G56: 0.9024390244 | H56: 0.0162601626 | I56: 82 | J56: 29 | K56: 2 | L56: 1 | M56: 1 | N56: 8
A57: Q72 | B57: RCD | C57: HARROGATE AND DISTRICT NHS FOUNDATION TRUST | D57: RCD01 | E57: Harrogate District Hospital - RCD01 | F57: 52 | G57: 0.9615384615 | H57: 0 | I57: 41 | J57: 9 | K57: 2 | L57: 0 | M57: 0 | N57: 0
A58: Q72 | B58: RWA | C58: HULL AND EAST YORKSHIRE HOSPITALS NHS TRUST | D58: RWA01 | E58: Hull Royal Infirmary - RWA01 | F58: 5 | G58: 1 | H58: 0 | I58: 5 | J58: 0 | K58: 0 | L58: 0 | M58: 0 | N58: 0
A59: Q72 | B59: RR8 | C59: LEEDS TEACHING HOSPITALS NHS TRUST | D59: RR801 | E59: Leeds General Infirmary - RR801 | F59: 125 | G59: 0.944 | H59: 0.008 | I59: 78 | J59: 40 | K59: 3 | L59: 0 | M59: 1 | N59: 3
A60: Q72 | B60: RR8 | C60: LEEDS TEACHING HOSPITALS NHS TRUST | D60: RR813 | E60: St James's University Hospital - RR813 | F60: 52 | G60: 0.9807692308 | H60: 0 | I60: 40 | J60: 11 | K60: 1 | L60: 0 | M60: 0 | N60: 0
A61: Q72 | B61: RXF | C61: MID YORKSHIRE HOSPITALS NHS TRUST | D61: RXF10 | E61: Dewsbury and District Hospital - RXF10 | F61: 54 | G61: 0.9444444444 | H61: 0.03703703704 | I61: 41 | J61: 10 | K61: 1 | L61: 1 | M61: 1 | N61: 0
A62: Q72 | B62: RXF | C62: MID YORKSHIRE HOSPITALS NHS TRUST | D62: RXF05 | E62: Pinderfields General Hospital - RXF05 | F62: 71 | G62: 0.9577464789 | H62: 0.01408450704 | I62: 46 | J62: 22 | K62: 1 | L62: 0 | M62: 1 | N62: 1
A63: Q72 | B63: RJL | C63: NORTHERN LINCOLNSHIRE AND GOOLE NHS FOUNDATION TRUST | D63: RJL30 | E63: Diana, Princess Of Wales Hospital - RJL30 | F63: 0 | G63: NA | H63: NA | I63: 0 | J63: 0 | K63: 0 | L63: 0 | M63: 0 | N63: 0
A64: Q72 | B64: RJL | C64: NORTHERN LINCOLNSHIRE AND GOOLE NHS FOUNDATION TRUST | D64: RJL31 | E64: Goole and District Hospital (Acute) - RJL31 | F64: 0 | G64: NA | H64: NA | I64: 0 | J64: 0 | K64: 0 | L64: 0 | M64: 0 | N64: 0
A65: Q72 | B65: RJL | C65: NORTHERN LINCOLNSHIRE AND GOOLE NHS FOUNDATION TRUST | D65: RJL32 | E65: Scunthorpe General Hospital - RJL32 | F65: 27 | G65: 1 | H65: 0 | I65: 13 | J65: 14 | K65: 0 | L65: 0 | M65: 0 | N65: 0
A66: Q72 | B66: RHQ | C66: SHEFFIELD TEACHING HOSPITALS NHS FOUNDATION TRUST | D66: RHQHH | E66: Royal Hallamshire Hospital - RHQHH | F66: 14 | G66: 0.8571428571 | H66: 0 | I66: 6 | J66: 6 | K66: 1 | L66: 0 | M66: 0 | N66: 1
A67: Q72 | B67: RFR | C67: THE ROTHERHAM NHS FOUNDATION TRUST | D67: RFRPA | E67: Rotherham District General Hospital - RFRPA | F67: 121 | G67: 0.9421487603 | H67: 0.01652892562 | I67: 89 | J67: 25 | K67: 4 | L67: 1 | M67: 1 | N67: 1
A68: Q72 | B68: RCB | C68: YORK TEACHING HOSPITAL NHS FOUNDATION TRUST | D68: RCBCA | E68: Scarborough General Hospital - RCBCA | F68: 44 | G68: 1 | H68: 0 | I68: 35 | J68: 9 | K68: 0 | L68: 0 | M68: 0 | N68: 0
A69: Q72 | B69: RCB | C69: YORK TEACHING HOSPITAL NHS FOUNDATION TRUST | D69: RCB55 | E69: York Hospital - RCB55 | F69: 51 | G69: 0.9215686275 | H69: 0 | I69: 31 | J69: 16 | K69: 4 | L69: 0 | M69: 0 | N69: 0
A70: Q73 | B70: RXL | C70: BLACKPOOL TEACHING HOSPITALS NHS FOUNDATION TRUST | D70: RXL01 | E70: Blackpool Victoria Hospital - RXL01 | F70: 32 | G70: 1 | H70: 0 | I70: 25 | J70: 7 | K70: 0 | L70: 0 | M70: 0 | N70: 0
A71: Q73 | B71: RXL | C71: BLACKPOOL TEACHING HOSPITALS NHS FOUNDATION TRUST | D71: RXLXXX | E71: Non-hospital site - RXLXXX | F71: 0 | G71: NA | H71: NA | I71: 0 | J71: 0 | K71: 0 | L71: 0 | M71: 0 | N71: 0
A72: Q73 | B72: RMC | C72: BOLTON NHS FOUNDATION TRUST | D72: RMC01 | E72: Royal Bolton Hospital - RMC01 | F72: 64 | G72: 0.828125 | H72: 0.140625 | I72: 49 | J72: 4 | K72: 2 | L72: 1 | M72: 8 | N72: 0
A73: Q73 | B73: RY2 | C73: BRIDGEWATER COMMUNITY HEALTHCARE NHS FOUNDATION TRUST | D73: RY28P | E73: Health Care Resource Centre - RY28P | F73: 0 | G73: NA | H73: NA | I73: 0 | J73: 0 | K73: 0 | L73: 0 | M73: 0 | N73: 0
A74: Q73 | B74: RY2 | C74: BRIDGEWATER COMMUNITY HEALTHCARE NHS FOUNDATION TRUST | D74: RY2XXX | E74: Non-hospital site - RY2XXX | F74: 0 | G74: NA | H74: NA | I74: 0 | J74: 0 | K74: 0 | L74: 0 | M74: 0 | N74: 0
A75: Q73 | B75: RW3 | C75: CENTRAL MANCHESTER UNIVERSITY HOSPITALS NHS FOUNDATION TRUST | D75: RW3SM | E75: St Mary's Hospital - RW3SM | F75: 57 | G75: 0.9298245614 | H75: 0.0350877193 | I75: 29 | J75: 24 | K75: 2 | L75: 2 | M75: 0 | N75: 0
A76: Q73 | B76: RXR | C76: EAST LANCASHIRE HOSPITALS NHS TRUST | D76: RXR20 | E76: Royal Blackburn Hospital - RXR20 | F76: 218 | G76: 0.9633027523 | H76: 0.03211009174 | I76: 188 | J76: 22 | K76: 1 | L76: 4 | M76: 3 | N76: 0
A77: Q73 | B77: RXN | C77: LANCASHIRE TEACHING HOSPITALS NHS FOUNDATION TRUST | D77: RXN01 | E77: Chorley and South Ribble Hospital - RXN01 | F77: 4 | G77: * | H77: * | I77: * | J77: * | K77: * | L77: * | M77: * | N77: *
A78: Q73 | B78: RXN | C78: LANCASHIRE TEACHING HOSPITALS NHS FOUNDATION TRUST | D78: RXN02 | E78: Royal Preston Hospital - RXN02 | F78: 58 | G78: 0.9482758621 | H78: 0.03448275862 | I78: * | J78: * | K78: * | L78: * | M78: * | N78: *
A79: Q73 | B79: RW6 | C79: PENNINE ACUTE HOSPITALS NHS TRUST | D79: RW602 | E79: North Manchester General Hospital - RW602 | F79: 151 | G79: 0.9337748344 | H79: 0.006622516556 | I79: 121 | J79: 20 | K79: 2 | L79: 1 | M79: 0 | N79: 7
A80: Q73 | B80: RW6 | C80: PENNINE ACUTE HOSPITALS NHS TRUST | D80: RW603 | E80: Royal Oldham Hospital - RW603 | F80: 71 | G80: 0.8450704225 | H80: 0.04225352113 | I80: 46 | J80: 14 | K80: 6 | L80: 2 | M80: 1 | N80: 2
A81: Q73 | B81: RWJ | C81: STOCKPORT NHS FOUNDATION TRUST | D81: RWJ09 | E81: Stepping Hill Hospital - RWJ09 | F81: 157 | G81: 0.9936305732 | H81: 0.006369426752 | I81: 120 | J81: 36 | K81: 0 | L81: 1 | M81: 0 | N81: 0
A82: Q73 | B82: RMP | C82: TAMESIDE HOSPITAL NHS FOUNDATION TRUST | D82: RMP01 | E82: Tameside General Hospital - RMP01 | F82: 8 | G82: 1 | H82: 0 | I82: 6 | J82: 2 | K82: 0 | L82: 0 | M82: 0 | N82: 0
A83: Q73 | B83: RM2 | C83: UNIVERSITY HOSPITAL OF SOUTH MANCHESTER NHS FOUNDATION TRUST | D83: RM202 | E83: Wythenshawe Hospital - RM202 | F83: 38 | G83: 0.9210526316 | H83: 0 | I83: 28 | J83: 7 | K83: 2 | L83: 0 | M83: 0 | N83: 1
A84: Q73 | B84: RRF | C84: WRIGHTINGTON, WIGAN AND LEIGH NHS FOUNDATION TRUST | D84: RRF02 | E84: Royal Albert Edward Infirmary - RRF02 | F84: 47 | G84: 0.9787234043 | H84: 0 | I84: 39 | J84: 7 | K84: 1 | L84: 0 | M84: 0 | N84: 0
A85: Q74 | B85: RLN | C85: CITY HOSPITALS SUNDERLAND NHS FOUNDATION TRUST | D85: RLNGL | E85: Sunderland Royal Hospital - RLNGL | F85: 47 | G85: 1 | H85: 0 | I85: 40 | J85: 7 | K85: 0 | L85: 0 | M85: 0 | N85: 0
A86: Q74 | B86: RXP | C86: COUNTY DURHAM AND DARLINGTON NHS FOUNDATION TRUST | D86: RXPDA | E86: Darlington Memorial Hospital - RXPDA | F86: 91 | G86: 0.8351648352 | H86: 0 | I86: 60 | J86: 16 | K86: 2 | L86: 0 | M86: 0 | N86: 13
A87: Q74 | B87: RXP | C87: COUNTY DURHAM AND DARLINGTON NHS FOUNDATION TRUST | D87: RXPCP | E87: University Hospital Of North Durham - RXPCP | F87: 111 | G87: 0.8738738739 | H87: 0.009009009009 | I87: 82 | J87: 15 | K87: 2 | L87: 1 | M87: 0 | N87: 11
A88: Q74 | B88: RR7 | C88: GATESHEAD HEALTH NHS FOUNDATION TRUST | D88: RR7EN | E88: Queen Elizabeth Hospital - RR7EN | F88: 36 | G88: 0.9722222222 | H88: 0 | I88: 29 | J88: 6 | K88: 1 | L88: 0 | M88: 0 | N88: 0
A89: Q74 | B89: RNL | C89: NORTH CUMBRIA UNIVERSITY HOSPITALS NHS TRUST | D89: RNLAY | E89: Cumberland Infirmary - RNLAY | F89: 73 | G89: 0.9863013699 | H89: 0 | I89: 51 | J89: 21 | K89: 0 | L89: 0 | M89: 0 | N89: 1
A90: Q74 | B90: RNL | C90: NORTH CUMBRIA UNIVERSITY HOSPITALS NHS TRUST | D90: RNLBX | E90: West Cumberland Hospital - RNLBX | F90: 68 | G90: 1 | H90: 0 | I90: 55 | J90: 13 | K90: 0 | L90: 0 | M90: 0 | N90: 0
A91: Q74 | B91: RVW | C91: NORTH TEES AND HARTLEPOOL NHS FOUNDATION TRUST | D91: RVWAA | E91: University Hospital Of Hartlepool - RVWAA | F91: 0 | G91: NA | H91: NA | I91: 0 | J91: 0 | K91: 0 | L91: 0 | M91: 0 | N91: 0
A92: Q74 | B92: RVW | C92: NORTH TEES AND HARTLEPOOL NHS FOUNDATION TRUST | D92: RVWAE | E92: University Hospital Of North Tees - RVWAE | F92: 8 | G92: 1 | H92: 0 | I92: 6 | J92: 2 | K92: 0 | L92: 0 | M92: 0 | N92: 0
A93: Q74 | B93: RTF | C93: NORTHUMBRIA HEALTHCARE NHS FOUNDATION TRUST | D93: RTFDJ | E93: Alnwick Infirmary - RTFDJ | F93: 0 | G93: NA | H93: NA | I93: 0 | J93: 0 | K93: 0 | L93: 0 | M93: 0 | N93: 0
A94: Q74 | B94: RTF | C94: NORTHUMBRIA HEALTHCARE NHS FOUNDATION TRUST | D94: RTFDH | E94: Berwick Infirmary - RTFDH | F94: 0 | G94: NA | H94: NA | I94: 0 | J94: 0 | K94: 0 | L94: 0 | M94: 0 | N94: 0
A95: Q74 | B95: RTF | C95: NORTHUMBRIA HEALTHCARE NHS FOUNDATION TRUST | D95: RTFDR | E95: Hexham General Hospital - RTFDR | F95: 0 | G95: NA | H95: NA | I95: 0 | J95: 0 | K95: 0 | L95: 0 | M95: 0 | N95: 0
A96: Q74 | B96: RTF | C96: NORTHUMBRIA HEALTHCARE NHS FOUNDATION TRUST | D96: RTFFS | E96: North Tyneside General Hospital - RTFFS | F96: 0 | G96: NA | H96: NA | I96: 0 | J96: 0 | K96: 0 | L96: 0 | M96: 0 | N96: 0
A97: Q74 | B97: RTF | C97: NORTHUMBRIA HEALTHCARE NHS FOUNDATION TRUST | D97: RTF86 | E97: The Northumbria - RTF86 | F97: 91 | G97: 0.989010989 | H97: 0.01098901099 | I97: 78 | J97: 12 | K97: 0 | L97: 1 | M97: 0 | N97: 0
A98: Q74 | B98: RTF | C98: NORTHUMBRIA HEALTHCARE NHS FOUNDATION TRUST | D98: RTFED | E98: Wansbeck Hospital - RTFED | F98: 0 | G98: NA | H98: NA | I98: 0 | J98: 0 | K98: 0 | L98: 0 | M98: 0 | N98: 0
A99: Q74 | B99: RTR | C99: SOUTH TEES HOSPITALS NHS FOUNDATION TRUST | D99: RTR45 | E99: Friarage Hospital Site - RTR45 | F99: 14 | G99: 1 | H99: 0 | I99: 14 | J99: 0 | K99: 0 | L99: 0 | M99: 0 | N99: 0
A100: Q74 | B100: RTR | C100: SOUTH TEES HOSPITALS NHS FOUNDATION TRUST | D100: RTRAT | E100: The James Cook University Hospital - RTRAT | F100: 73 | G100: 0.8630136986 | H100: 0.02739726027 | I100: 61 | J100: 2 | K100: 1 | L100: 2 | M100: 0 | N100: 7
A101: Q74 | B101: RE9 | C101: SOUTH TYNESIDE NHS FOUNDATION TRUST | D101: RE9GA | E101: South Tyneside District Hospital - RE9GA | F101: 28 | G101: 0.9642857143 | H101: 0 | I101: 25 | J101: 2 | K101: 0 | L101: 0 | M101: 0 | N101: 1
A102: Q74 | B102: RTD | C102: THE NEWCASTLE UPON TYNE HOSPITALS NHS FOUNDATION TRUST | D102: RTD02 | E102: The Royal Victoria Infirmary - RTD02 | F102: 247 | G102: 0.979757085 | H102: 0.008097165992 | I102: 202 | J102: 40 | K102: 1 | L102: 1 | M102: 1 | N102: 2
A103: Q74 | B103: RTX | C103: UNIVERSITY HOSPITALS OF MORECAMBE BAY NHS FOUNDATION TRUST | D103: RTXBU | E103: Furness General Hospital - RTXBU | F103: 35 | G103: 1 | H103: 0 | I103: * | J103: * | K103: * | L103: * | M103: * | N103: *
A104: Q74 | B104: RTX | C104: UNIVERSITY HOSPITALS OF MORECAMBE BAY NHS FOUNDATION TRUST | D104: RTX02 | E104: Royal Lancaster Infirmary - RTX02 | F104: 1 | G104: * | H104: * | I104: * | J104: * | K104: * | L104: * | M104: * | N104: *
A105: Q74 | B105: RTX | C105: UNIVERSITY HOSPITALS OF MORECAMBE BAY NHS FOUNDATION TRUST | D105: RTXBW | E105: Westmorland General Hospital - RTXBW | F105: 0 | G105: NA | H105: NA | I105: 0 | J105: 0 | K105: 0 | L105: 0 | M105: 0 | N105: 0
A106: Q75 | B106: RJR | C106: COUNTESS OF CHESTER HOSPITAL NHS FOUNDATION TRUST | D106: RJR05 | E106: Countess Of Chester Hospital - RJR05 | F106: 78 | G106: 0.8846153846 | H106: 0 | I106: 59 | J106: 10 | K106: 1 | L106: 0 | M106: 0 | N106: 8
A107: Q75 | B107: RJN | C107: EAST CHESHIRE NHS TRUST | D107: RJN71 | E107: Macclesfield District General Hospital - RJN71 | F107: 39 | G107: 0.9230769231 | H107: 0 | I107: 29 | J107: 7 | K107: 1 | L107: 0 | M107: 0 | N107: 2
A108: Q75 | B108: REP | C108: LIVERPOOL WOMEN'S NHS FOUNDATION TRUST | D108: REP01 | E108: Liverpool Womens Hospital - REP01 | F108: 67 | G108: 0.9402985075 | H108: 0.0447761194 | I108: 52 | J108: 11 | K108: 1 | L108: 1 | M108: 2 | N108: 0
A109: Q75 | B109: RBT | C109: MID CHESHIRE HOSPITALS NHS FOUNDATION TRUST | D109: RBT20 | E109: Leighton Hospital - RBT20 | F109: 46 | G109: 0.9782608696 | H109: 0 | I109: 34 | J109: 11 | K109: 1 | L109: 0 | M109: 0 | N109: 0
A110: Q75 | B110: RVY | C110: SOUTHPORT AND ORMSKIRK HOSPITAL NHS TRUST | D110: RVY02 | E110: Ormskirk and District General Hospital - RVY02 | F110: 43 | G110: 0.9069767442 | H110: 0.04651162791 | I110: 29 | J110: 10 | K110: 0 | L110: 2 | M110: 0 | N110: 2
A111: Q75 | B111: RBN | C111: ST HELENS AND KNOWSLEY HOSPITALS NHS TRUST | D111: RBN01 | E111: Whiston Hospital - RBN01 | F111: 59 | G111: 0.9491525424 | H111: 0.03389830508 | I111: 46 | J111: 10 | K111: 1 | L111: 2 | M111: 0 | N111: 0
A112: Q75 | B112: RWW | C112: WARRINGTON AND HALTON HOSPITALS NHS FOUNDATION TRUST | D112: RWWWH | E112: Warrington Hospital - RWWWH | F112: 60 | G112: 0.9333333333 | H112: 0.01666666667 | I112: 40 | J112: 16 | K112: 2 | L112: 0 | M112: 1 | N112: 1
A113: Q75 | B113: RBL | C113: WIRRAL UNIVERSITY TEACHING HOSPITAL NHS FOUNDATION TRUST | D113: RBL14 | E113: Arrowe Park Hospital - RBL14 | F113: 81 | G113: 1 | H113: 0 | I113: 72 | J113: 9 | K113: 0 | L113: 0 | M113: 0 | N113: 0
A114: Q76 | B114: RJF | C114: BURTON HOSPITALS NHS FOUNDATION TRUST | D114: RJF02 | E114: Queen's Hospital, Burton Upon Trent - RJF02 | F114: 156 | G114: 0.9871794872 | H114: 0.00641025641 | I114: 134 | J114: 20 | K114: 0 | L114: 0 | M114: 1 | N114: 1
A115: Q76 | B115: RFS | C115: CHESTERFIELD ROYAL HOSPITAL NHS FOUNDATION TRUST | D115: RFSDA | E115: Chesterfield Royal Hospital - RFSDA | F115: 94 | G115: 0.9468085106 | H115: 0.02127659574 | I115: 66 | J115: 23 | K115: 2 | L115: 1 | M115: 1 | N115: 1
A116: Q76 | B116: RTG | C116: DERBY TEACHING HOSPITALS NHS FOUNDATION TRUST | D116: RTGFG | E116: Royal Derby Hospital - RTGFG | F116: 22 | G116: 1 | H116: 0 | I116: 19 | J116: 3 | K116: 0 | L116: 0 | M116: 0 | N116: 0
A117: Q76 | B117: RX1 | C117: NOTTINGHAM UNIVERSITY HOSPITALS NHS TRUST | D117: RX1CC | E117: Nottingham University Hospitals NHS Trust - City Campus - RX1CC | F117: 148 | G117: 0.9864864865 | H117: 0 | I117: 122 | J117: 24 | K117: 2 | L117: 0 | M117: 0 | N117: 0
A118: Q76 | B118: RX1 | C118: NOTTINGHAM UNIVERSITY HOSPITALS NHS TRUST | D118: RX1RA | E118: Nottingham University Hospitals NHS Trust - Queen's Medical Centre Campus - RX1RA | F118: 145 | G118: 0.9724137931 | H118: 0 | I118: 95 | J118: 46 | K118: 3 | L118: 0 | M118: 0 | N118: 1
A119: Q76 | B119: RK5 | C119: SHERWOOD FOREST HOSPITALS NHS FOUNDATION TRUST | D119: RK5BC | E119: King's Mill Hospital - RK5BC | F119: 60 | G119: 0.9833333333 | H119: 0.01666666667 | I119: 48 | J119: 11 | K119: 0 | L119: 1 | M119: 0 | N119: 0
A120: Q76 | B120: RXW | C120: SHREWSBURY AND TELFORD HOSPITAL NHS TRUST | D120: RXWMB | E120: Bridgnorth Hospital (Maternity) - RXWMB | F120: 11 | G120: 1 | H120: 0 | I120: 11 | J120: 0 | K120: 0 | L120: 0 | M120: 0 | N120: 0
A121: Q76 | B121: RXW | C121: SHREWSBURY AND TELFORD HOSPITAL NHS TRUST | D121: RXWML | E121: Ludlow Hospital (Maternity) - RXWML | F121: 11 | G121: 1 | H121: 0 | I121: 11 | J121: 0 | K121: 0 | L121: 0 | M121: 0 | N121: 0
A122: Q76 | B122: RXW | C122: SHREWSBURY AND TELFORD HOSPITAL NHS TRUST | D122: RXWMJ | E122: Robert Jones & Agnes Hunt Orthopaedic & District Hospital - RXWMJ | F122: 15 | G122: 1 | H122: 0 | I122: 15 | J122: 0 | K122: 0 | L122: 0 | M122: 0 | N122: 0
A123: Q76 | B123: RXW | C123: SHREWSBURY AND TELFORD HOSPITAL NHS TRUST | D123: RXWAS | E123: Royal Shrewsbury Hospital - RXWAS | F123: 16 | G123: 1 | H123: 0 | I123: 14 | J123: 2 | K123: 0 | L123: 0 | M123: 0 | N123: 0
A124: Q76 | B124: RXW | C124: SHREWSBURY AND TELFORD HOSPITAL NHS TRUST | D124: RXWAT | E124: The Princess Royal Hospital - RXWAT | F124: 122 | G124: 0.9918032787 | H124: 0 | I124: 110 | J124: 11 | K124: 0 | L124: 0 | M124: 0 | N124: 1
A125: Q76 | B125: RJE | C125: UNIVERSITY HOSPITALS OF NORTH MIDLANDS NHS TRUST | D125: RJE01 | E125: Royal Stoke University Hospital - RJE01 | F125: 64 | G125: 0.953125 | H125: 0.015625 | I125: 56 | J125: 5 | K125: 2 | L125: 1 | M125: 0 | N125: 0
A126: Q77 | B126: RLU | C126: BIRMINGHAM WOMEN'S NHS FOUNDATION TRUST | D126: RLU01 | E126: Birmingham Women's Hospital - RLU01 | F126: 145 | G126: 0.9172413793 | H126: 0.01379310345 | I126: 97 | J126: 36 | K126: 7 | L126: 1 | M126: 1 | N126: 3
A127: Q77 | B127: RLT | C127: GEORGE ELIOT HOSPITAL NHS TRUST | D127: RLT01 | E127: George Eliot Hospital - Acute Services - RLT01 | F127: 70 | G127: 0.9857142857 | H127: 0 | I127: 66 | J127: 3 | K127: 0 | L127: 0 | M127: 0 | N127: 1
A128: Q77 | B128: RR1 | C128: HEART OF ENGLAND NHS FOUNDATION TRUST | D128: RR105 | E128: Good Hope Hospital - RR105 | F128: 24 | G128: 0.9166666667 | H128: 0.04166666667 | I128: 20 | J128: 2 | K128: 1 | L128: 0 | M128: 1 | N128: 0
A129: Q77 | B129: RR1 | C129: HEART OF ENGLAND NHS FOUNDATION TRUST | D129: RR101 | E129: Heartlands Hospital - RR101 | F129: 48 | G129: 0.9583333333 | H129: 0.04166666667 | I129: 32 | J129: 14 | K129: 0 | L129: 1 | M129: 1 | N129: 0
A130: Q77 | B130: RXK | C130: SANDWELL AND WEST BIRMINGHAM HOSPITALS NHS TRUST | D130: RXK02 | E130: City Hospital - RXK02 | F130: 94 | G130: 0.914893617 | H130: 0.04255319149 | I130: 38 | J130: 48 | K130: 2 | L130: 2 | M130: 2 | N130: 2
A131: Q77 | B131: RJC | C131: SOUTH WARWICKSHIRE NHS FOUNDATION TRUST | D131: RJCXXX | E131: Non-hospital site - RJCXXX | F131: 11 | G131: 1 | H131: 0 | I131: 8 | J131: 3 | K131: 0 | L131: 0 | M131: 0 | N131: 0
A132: Q77 | B132: RJC | C132: SOUTH WARWICKSHIRE NHS FOUNDATION TRUST | D132: RJC02 | E132: Warwick Hospital - RJC02 | F132: 70 | G132: 0.9428571429 | H132: 0.04285714286 | I132: 51 | J132: 15 | K132: 1 | L132: 2 | M132: 1 | N132: 0
A133: Q77 | B133: RNA | C133: THE DUDLEY GROUP NHS FOUNDATION TRUST | D133: RNA01 | E133: Russells Hall Hospital - RNA01 | F133: 108 | G133: 0.9814814815 | H133: 0.009259259259 | I133: 94 | J133: 12 | K133: 1 | L133: 0 | M133: 1 | N133: 0
A134: Q77 | B134: RL4 | C134: THE ROYAL WOLVERHAMPTON NHS TRUST | D134: RL403 | E134: New Cross Hospital - RL403 | F134: 128 | G134: 0.8671875 | H134: 0.1015625 | I134: 86 | J134: 25 | K134: 4 | L134: 6 | M134: 7 | N134: 0
A135: Q77 | B135: RKB | C135: UNIVERSITY HOSPITALS COVENTRY AND WARWICKSHIRE NHS TRUST | D135: RKB01 | E135: University Hospital (Coventry) - RKB01 | F135: 164 | G135: 0.9756097561 | H135: 0.006097560976 | I135: 129 | J135: 31 | K135: 3 | L135: 0 | M135: 1 | N135: 0
A136: Q77 | B136: RBK | C136: WALSALL HEALTHCARE NHS TRUST | D136: RBK02 | E136: Manor Hospital - RBK02 | F136: 395 | G136: 0.9569620253 | H136: 0.005063291139 | I136: 296 | J136: 82 | K136: 3 | L136: 2 | M136: 0 | N136: 12
A137: Q77 | B137: RWP | C137: WORCESTERSHIRE ACUTE HOSPITALS NHS TRUST | D137: RWP01 | E137: Alexandra Hospital - RWP01 | F137: 40 | G137: 0.975 | H137: 0 | I137: 38 | J137: 1 | K137: 1 | L137: 0 | M137: 0 | N137: 0
A138: Q77 | B138: RWP | C138: WORCESTERSHIRE ACUTE HOSPITALS NHS TRUST | D138: RWP50 | E138: Worcestershire Royal Hospital - RWP50 | F138: 84 | G138: 0.9761904762 | H138: 0.0119047619 | I138: 67 | J138: 15 | K138: 1 | L138: 1 | M138: 0 | N138: 0
A139: Q77 | B139: RLQ | C139: WYE VALLEY NHS TRUST | D139: RLQ01 | E139: Hereford County Hospital - RLQ01 | F139: 62 | G139: 0.9516129032 | H139: 0.01612903226 | I139: 40 | J139: 19 | K139: 0 | L139: 1 | M139: 0 | N139: 2
A140: Q78 | B140: RC1 | C140: BEDFORD HOSPITAL NHS TRUST | D140: RC110 | E140: Bedford Hospital South Wing - RC110 | F140: 70 | G140: 0.9857142857 | H140: 0 | I140: 55 | J140: 14 | K140: 1 | L140: 0 | M140: 0 | N140: 0
A141: Q78 | B141: RWH | C141: EAST AND NORTH HERTFORDSHIRE NHS TRUST | D141: RWH01 | E141: Lister Hospital - RWH01 | F141: 230 | G141: 0.8913043478 | H141: 0.01739130435 | I141: 133 | J141: 72 | K141: 16 | L141: 3 | M141: 1 | N141: 5
A142: Q78 | B142: RNQ | C142: KETTERING GENERAL HOSPITAL NHS FOUNDATION TRUST | D142: RNQ51 | E142: Kettering General Hospital - RNQ51 | F142: 44 | G142: 0.9772727273 | H142: 0 | I142: 38 | J142: 5 | K142: 1 | L142: 0 | M142: 0 | N142: 0
A143: Q78 | B143: RC9 | C143: LUTON AND DUNSTABLE UNIVERSITY HOSPITAL NHS FOUNDATION TRUST | D143: RC971 | E143: Luton and Dunstable Hospital - RC971 | F143: 129 | G143: 0.984496124 | H143: 0.007751937984 | I143: 91 | J143: 36 | K143: 1 | L143: 1 | M143: 0 | N143: 0
A144: Q78 | B144: RD8 | C144: MILTON KEYNES HOSPITAL NHS FOUNDATION TRUST | D144: RD816 | E144: Milton Keynes Hospital - RD816 | F144: 57 | G144: 0.8947368421 | H144: 0.05263157895 | I144: 26 | J144: 25 | K144: 2 | L144: 1 | M144: 2 | N144: 1
A145: Q78 | B145: RNS | C145: NORTHAMPTON GENERAL HOSPITAL NHS TRUST | D145: RNS01 | E145: Northampton General Hospital (Acute) - RNS01 | F145: 112 | G145: 0.9821428571 | H145: 0.008928571429 | I145: 88 | J145: 22 | K145: 0 | L145: 1 | M145: 0 | N145: 1
A146: Q78 | B146: RWD | C146: UNITED LINCOLNSHIRE HOSPITALS NHS TRUST | D146: RWDLP | E146: Grantham and District Hospital - RWDLP | F146: 0 | G146: NA | H146: NA | I146: 0 | J146: 0 | K146: 0 | L146: 0 | M146: 0 | N146: 0
A147: Q78 | B147: RWD | C147: UNITED LINCOLNSHIRE HOSPITALS NHS TRUST | D147: RWDDA | E147: Lincoln County Hospital - RWDDA | F147: 51 | G147: 0.9019607843 | H147: 0.07843137255 | I147: 40 | J147: 6 | K147: 1 | L147: 1 | M147: 3 | N147: 0
A148: Q78 | B148: RWD | C148: UNITED LINCOLNSHIRE HOSPITALS NHS TRUST | D148: RWDXXX | E148: Non-hospital site - RWDXXX | F148: 0 | G148: NA | H148: NA | I148: 0 | J148: 0 | K148: 0 | L148: 0 | M148: 0 | N148: 0
A149: Q78 | B149: RWD | C149: UNITED LINCOLNSHIRE HOSPITALS NHS TRUST | D149: RWDLA | E149: Pilgrim Hospital - RWDLA | F149: 31 | G149: 0.9032258065 | H149: 0.06451612903 | I149: 23 | J149: 5 | K149: 1 | L149: 0 | M149: 2 | N149: 0
A150: Q78 | B150: RWE | C150: UNIVERSITY HOSPITALS OF LEICESTER NHS TRUST | D150: RWEAK | E150: Leicester General Hospital - RWEAK | F150: 64 | G150: 0.90625 | H150: 0.03125 | I150: 30 | J150: 28 | K150: 3 | L150: 2 | M150: 0 | N150: 1
A151: Q78 | B151: RWE | C151: UNIVERSITY HOSPITALS OF LEICESTER NHS TRUST | D151: RWEAA | E151: Leicester Royal Infirmary - RWEAA | F151: 273 | G151: 0.9157509158 | H151: 0.02197802198 | I151: 139 | J151: 111 | K151: 17 | L151: 5 | M151: 1 | N151: 0
A152: Q78 | B152: RWE | C152: UNIVERSITY HOSPITALS OF LEICESTER NHS TRUST | D152: RWE10 | E152: St Mary's Hospital - RWE10 | F152: 23 | G152: 1 | H152: 0 | I152: 22 | J152: 1 | K152: 0 | L152: 0 | M152: 0 | N152: 0
A153: Q78 | B153: RWG | C153: WEST HERTFORDSHIRE HOSPITALS NHS TRUST | D153: RWG02 | E153: Watford General Hospital - RWG02 | F153: 149 | G153: 0.8255033557 | H153: 0.02013422819 | I153: 88 | J153: 35 | K153: 10 | L153: 2 | M153: 1 | N153: 13
A154: Q79 | B154: RDD | C154: BASILDON AND THURROCK UNIVERSITY HOSPITALS NHS FOUNDATION TRUST | D154: RDDH0 | E154: Basildon University Hospital - RDDH0 | F154: 98 | G154: 0.9387755102 | H154: 0.01020408163 | I154: 63 | J154: 29 | K154: 4 | L154: 0 | M154: 1 | N154: 1
A155: Q79 | B155: RGT | C155: CAMBRIDGE UNIVERSITY HOSPITALS NHS FOUNDATION TRUST | D155: RGT32 | E155: Rosie Hospital - RGT32 | F155: 79 | G155: 0.9873417722 | H155: 0 | I155: 61 | J155: 17 | K155: 1 | L155: 0 | M155: 0 | N155: 0
A156: Q79 | B156: RDE | C156: COLCHESTER HOSPITAL UNIVERSITY NHS FOUNDATION TRUST | D156: RDEE4 | E156: Colchester General Hospital - RDEE4 | F156: 60 | G156: 0.9666666667 | H156: 0.01666666667 | I156: 44 | J156: 14 | K156: 1 | L156: 1 | M156: 0 | N156: 0
A157: Q79 | B157: RQQ | C157: HINCHINGBROOKE HEALTH CARE NHS TRUST | D157: RQQ31 | E157: Hinchingbrooke Hospital - RQQ31 | F157: 7 | G157: 1 | H157: 0 | I157: 7 | J157: 0 | K157: 0 | L157: 0 | M157: 0 | N157: 0
A158: Q79 | B158: RGQ | C158: IPSWICH HOSPITAL NHS TRUST | D158: RGQ02 | E158: The Ipswich Hospital NHS Trust - RGQ02 | F158: 114 | G158: 0.9736842105 | H158: 0.008771929825 | I158: 81 | J158: 30 | K158: 2 | L158: 1 | M158: 0 | N158: 0
A159: Q79 | B159: RGP | C159: JAMES PAGET UNIVERSITY HOSPITALS NHS FOUNDATION TRUST | D159: RGP75 | E159: James Paget University Hospital - RGP75 | F159: 69 | G159: 0.9710144928 | H159: 0.01449275362 | I159: 50 | J159: 17 | K159: 0 | L159: 1 | M159: 0 | N159: 1
A160: Q79 | B160: RQ8 | C160: MID ESSEX HOSPITAL SERVICES NHS TRUST | D160: RQ8L0 | E160: Broomfield Hospital - RQ8L0 | F160: 86 | G160: 0.9651162791 | H160: 0.02325581395 | I160: 57 | J160: 26 | K160: 0 | L160: 1 | M160: 1 | N160: 1
A161: Q79 | B161: RM1 | C161: NORFOLK AND NORWICH UNIVERSITY HOSPITALS NHS FOUNDATION TRUST | D161: RM102 | E161: Norfolk and Norwich University Hospital - RM102 | F161: 52 | G161: 1 | H161: 0 | I161: 43 | J161: 9 | K161: 0 | L161: 0 | M161: 0 | N161: 0
A162: Q79 | B162: RGN | C162: PETERBOROUGH AND STAMFORD HOSPITALS NHS FOUNDATION TRUST | D162: RGN80 | E162: Peterborough City Hospital - RGN80 | F162: 33 | G162: 0.7878787879 | H162: 0 | I162: 23 | J162: 3 | K162: 0 | L162: 0 | M162: 0 | N162: 7
A163: Q79 | B163: RAJ | C163: SOUTHEND UNIVERSITY HOSPITAL NHS FOUNDATION TRUST | D163: RAJ01 | E163: Southend Hospital - RAJ01 | F163: 56 | G163: 0.9464285714 | H163: 0 | I163: 44 | J163: 9 | K163: 2 | L163: 0 | M163: 0 | N163: 1
A164: Q79 | B164: RQW | C164: THE PRINCESS ALEXANDRA HOSPITAL NHS TRUST | D164: RQWG0 | E164: Princess Alexandra Hospital - RQWG0 | F164: 135 | G164: 1 | H164: 0 | I164: 121 | J164: 14 | K164: 0 | L164: 0 | M164: 0 | N164: 0
A165: Q79 | B165: RCX | C165: THE QUEEN ELIZABETH HOSPITAL, KING'S LYNN, NHS FOUNDATION TRUST | D165: RCX70 | E165: The Queen Elizabeth Hospital - RCX70 | F165: 64 | G165: 0.9375 | H165: 0.03125 | I165: 44 | J165: 16 | K165: 1 | L165: 0 | M165: 2 | N165: 1
A166: Q79 | B166: RGR | C166: WEST SUFFOLK NHS FOUNDATION TRUST | D166: RGR50 | E166: West Suffolk Hospital - RGR50 | F166: 92 | G166: 0.9782608696 | H166: 0 | I166: 69 | J166: 21 | K166: 0 | L166: 0 | M166: 0 | N166: 2
A167: Q80 | B167: RVJ | C167: NORTH BRISTOL NHS TRUST | D167: RVJ01 | E167: Southmead Hospital - RVJ01 | F167: 84 | G167: 0.9761904762 | H167: 0 | I167: 56 | J167: 26 | K167: 2 | L167: 0 | M167: 0 | N167: 0
A168: Q80 | B168: RBZ | C168: NORTHERN DEVON HEALTHCARE NHS TRUST | D168: RBZ12 | E168: North Devon District Hospital - RBZ12 | F168: 27 | G168: 0.962962963 | H168: 0 | I168: 23 | J168: 3 | K168: 0 | L168: 0 | M168: 0 | N168: 1
A169: Q80 | B169: RK9 | C169: PLYMOUTH HOSPITALS NHS TRUST | D169: RK950 | E169: Derriford Hospital - RK950 | F169: 180 | G169: 0.9444444444 | H169: 0 | I169: 122 | J169: 48 | K169: 6 | L169: 0 | M169: 0 | N169: 4
A170: Q80 | B170: REF | C170: ROYAL CORNWALL HOSPITALS NHS TRUST | D170: REF12 | E170: Royal Cornwall Hospital (Treliske) - REF12 | F170: 16 | G170: 0.8125 | H170: 0.0625 | I170: 10 | J170: 3 | K170: 1 | L170: 0 | M170: 1 | N170: 1
A171: Q80 | B171: RH8 | C171: ROYAL DEVON AND EXETER NHS FOUNDATION TRUST | D171: RH854 | E171: Honiton Hospital - RH 854 | F171: 0 | G171: NA | H171: NA | I171: 0 | J171: 0 | K171: 0 | L171: 0 | M171: 0 | N171: 0
A172: Q80 | B172: RH8 | C172: ROYAL DEVON AND EXETER NHS FOUNDATION TRUST | D172: RH833 | E172: Okehampton Community Hospital - RH833 | F172: 6 | G172: 1 | H172: 0 | I172: 5 | J172: 1 | K172: 0 | L172: 0 | M172: 0 | N172: 0
A173: Q80 | B173: RH8 | C173: ROYAL DEVON AND EXETER NHS FOUNDATION TRUST | D173: RH801 | E173: Royal Devon and Exeter Hospital (Wonford) - RH801 | F173: 40 | G173: 0.95 | H173: 0.025 | I173: 30 | J173: 8 | K173: 1 | L173: 0 | M173: 1 | N173: 0
A174: Q80 | B174: RH8 | C174: ROYAL DEVON AND EXETER NHS FOUNDATION TRUST | D174: RH853 | E174: Tiverton and District Hospital - RH853 | F174: 5 | G174: 1 | H174: 0 | I174: 3 | J174: 2 | K174: 0 | L174: 0 | M174: 0 | N174: 0
A175: Q80 | B175: RA9 | C175: SOUTH DEVON HEALTHCARE NHS FOUNDATION TRUST | D175: RA901 | E175: Torbay Hospital - RA901 | F175: 45 | G175: 0.9777777778 | H175: 0 | I175: 35 | J175: 9 | K175: 1 | L175: 0 | M175: 0 | N175: 0
A176: Q80 | B176: RBA | C176: TAUNTON AND SOMERSET NHS FOUNDATION TRUST | D176: RBA11 | E176: Musgrove Park Hospital - RBA11 | F176: 114 | G176: 0.9912280702 | H176: 0 | I176: * | J176: * | K176: * | L176: * | M176: * | N176: *
A177: Q80 | B177: RBA | C177: TAUNTON AND SOMERSET NHS FOUNDATION TRUST | D177: RBAXXX | E177: Non-hospital site - RBAXXX | F177: 3 | G177: * | H177: * | I177: * | J177: * | K177: * | L177: * | M177: * | N177: *
A178: Q80 | B178: RA7 | C178: UNIVERSITY HOSPITALS BRISTOL NHS FOUNDATION TRUST | D178: RA707 | E178: St Michael's Hospital - RA707 | F178: 62 | G178: 1 | H178: 0 | I178: 49 | J178: 13 | K178: 0 | L178: 0 | M178: 0 | N178: 0
A179: Q80 | B179: RA3 | C179: WESTON AREA HEALTH NHS TRUST | D179: RA301 | E179: Weston General Hospital - RA301 | F179: 30 | G179: 1 | H179: 0 | I179: 27 | J179: 3 | K179: 0 | L179: 0 | M179: 0 | N179: 0
A180: Q80 | B180: RA4 | C180: YEOVIL DISTRICT HOSPITAL NHS FOUNDATION TRUST | D180: RA430 | E180: Yeovil District Hospital - RA430 | F180: 0 | G180: NA | H180: NA | I180: 0 | J180: 0 | K180: 0 | L180: 0 | M180: 0 | N180: 0
A181: Q81 | B181: RTK | C181: ASHFORD AND ST PETER'S HOSPITALS NHS FOUNDATION TRUST | D181: RTK01 | E181: St Peter's Hospital - RTK01 | F181: 30 | G181: 1 | H181: 0 | I181: 22 | J181: 8 | K181: 0 | L181: 0 | M181: 0 | N181: 0
A182: Q81 | B182: RXH | C182: BRIGHTON AND SUSSEX UNIVERSITY HOSPITALS NHS TRUST | D182: RXHXXX | E182: Non-hospital site - RXHXXX | F182: 4 | G182: * | H182: * | I182: * | J182: * | K182: * | L182: * | M182: * | N182: *
A183: Q81 | B183: RXH | C183: BRIGHTON AND SUSSEX UNIVERSITY HOSPITALS NHS TRUST | D183: RXH09 | E183: Princess Royal Hospital - RXH09 | F183: 94 | G183: 0.9680851064 | H183: 0 | I183: 75 | J183: 16 | K183: 3 | L183: 0 | M183: 0 | N183: 0
A184: Q81 | B184: RXH | C184: BRIGHTON AND SUSSEX UNIVERSITY HOSPITALS NHS TRUST | D184: RXH01 | E184: Royal Sussex County Hospital - RXH01 | F184: 90 | G184: 0.9555555556 | H184: 0.01111111111 | I184: * | J184: * | K184: * | L184: * | M184: * | N184: *
A185: Q81 | B185: RN7 | C185: DARTFORD AND GRAVESHAM NHS TRUST | D185: RN707 | E185: Darent Valley Hospital - RN707 | F185: 149 | G185: 1 | H185: 0 | I185: 127 | J185: 22 | K185: 0 | L185: 0 | M185: 0 | N185: 0
A186: Q81 | B186: RVV | C186: EAST KENT HOSPITALS UNIVERSITY NHS FOUNDATION TRUST | D186: RVV09 | E186: Queen Elizabeth The Queen Mother Hospital - RVV09 | F186: 25 | G186: 0.92 | H186: 0 | I186: 19 | J186: 4 | K186: 2 | L186: 0 | M186: 0 | N186: 0
A187: Q81 | B187: RVV | C187: EAST KENT HOSPITALS UNIVERSITY NHS FOUNDATION TRUST | D187: RVV01 | E187: William Harvey Hospital (Ashford) - RVV01 | F187: 84 | G187: 0.8928571429 | H187: 0.03571428571 | I187: 65 | J187: 10 | K187: 6 | L187: 0 | M187: 3 | N187: 0
A188: Q81 | B188: RXC | C188: EAST SUSSEX HEALTHCARE NHS TRUST | D188: RXC01 | E188: Conquest Hospital - RXC01 | F188: 53 | G188: 0.9056603774 | H188: 0.03773584906 | I188: 34 | J188: 14 | K188: 1 | L188: 1 | M188: 1 | N188: 2
A189: Q81 | B189: RXC | C189: EAST SUSSEX HEALTHCARE NHS TRUST | D189: RXC14 | E189: Crowborough Birthing Centre - RXC14 | F189: 10 | G189: 1 | H189: 0 | I189: 10 | J189: 0 | K189: 0 | L189: 0 | M189: 0 | N189: 0
A190: Q81 | B190: RXC | C190: EAST SUSSEX HEALTHCARE NHS TRUST | D190: RXC02 | E190: Eastbourne District General Hospital - RXC02 | F190: 17 | G190: 0.9411764706 | H190: 0.05882352941 | I190: 15 | J190: 1 | K190: 0 | L190: 1 | M190: 0 | N190: 0
A191: Q81 | B191: RXC | C191: EAST SUSSEX HEALTHCARE NHS TRUST | D191: RXCXXX | E191: Non-hospital site - RXCXXX | F191: 0 | G191: NA | H191: NA | I191: 0 | J191: 0 | K191: 0 | L191: 0 | M191: 0 | N191: 0
A192: Q81 | B192: RDU | C192: FRIMLEY HEALTH NHS FOUNDATION TRUST | D192: RDU01 | E192: Frimley Park Hospital - RDU01 | F192: 269 | G192: 0.7732342007 | H192: 0.01115241636 | I192: 178 | J192: 30 | K192: 12 | L192: 0 | M192: 3 | N192: 46
A193: Q81 | B193: RDU | C193: FRIMLEY HEALTH NHS FOUNDATION TRUST | D193: RDU50 | E193: Wexham Park Hospital - RDU50 | F193: 144 | G193: 0.9513888889 | H193: 0.02083333333 | I193: 95 | J193: 42 | K193: 4 | L193: 3 | M193: 0 | N193: 0
A194: Q81 | B194: RWF | C194: MAIDSTONE AND TUNBRIDGE WELLS NHS TRUST | D194: RWF03 | E194: Maidstone District General Hospital - RWF03 | F194: 30 | G194: 0.9333333333 | H194: 0 | I194: 27 | J194: 1 | K194: 0 | L194: 0 | M194: 0 | N194: 2
A195: Q81 | B195: RWF | C195: MAIDSTONE AND TUNBRIDGE WELLS NHS TRUST | D195: RWFTW | E195: The Tunbridge Wells Hospital - RWFTW | F195: 27 | G195: 0.9259259259 | H195: 0 | I195: 23 | J195: 2 | K195: 2 | L195: 0 | M195: 0 | N195: 0
A196: Q81 | B196: RPA | C196: MEDWAY NHS FOUNDATION TRUST | D196: RPA02 | E196: Medway Maritime Hospital - RPA02 | F196: 126 | G196: 0.9603174603 | H196: 0.007936507937 | I196: 105 | J196: 16 | K196: 4 | L196: 0 | M196: 1 | N196: 0
A197: Q81 | B197: RA2 | C197: ROYAL SURREY COUNTY HOSPITAL NHS FOUNDATION TRUST | D197: RA201 | E197: Royal Surrey County Hospital - RA201 | F197: 110 | G197: 0.9636363636 | H197: 0.02727272727 | I197: 98 | J197: 8 | K197: 0 | L197: 3 | M197: 0 | N197: 1
A198: Q81 | B198: RTP | C198: SURREY AND SUSSEX HEALTHCARE NHS TRUST | D198: RTP04 | E198: East Surrey Hospital - RTP04 | F198: 60 | G198: 0.9 | H198: 0 | I198: 31 | J198: 23 | K198: 2 | L198: 0 | M198: 0 | N198: 4
A199: Q81 | B199: RYR | C199: WESTERN SUSSEX HOSPITALS NHS FOUNDATION TRUST | D199: RYR16 | E199: St Richard's Hospital - RYR16 | F199: 9 | G199: 0.6666666667 | H199: 0.2222222222 | I199: 5 | J199: 1 | K199: 0 | L199: 1 | M199: 1 | N199: 1
A200: Q81 | B200: RYR | C200: WESTERN SUSSEX HOSPITALS NHS FOUNDATION TRUST | D200: RYR18 | E200: Worthing Hospital - RYR18 | F200: 34 | G200: 1 | H200: 0 | I200: 29 | J200: 5 | K200: 0 | L200: 0 | M200: 0 | N200: 0
A201: Q82 | B201: RXQ | C201: BUCKINGHAMSHIRE HEALTHCARE NHS TRUST | D201: RXQ02 | E201: Stoke Mandeville Hospital - RXQ02 | F201: 67 | G201: 0.9701492537 | H201: 0.01492537313 | I201: 49 | J201: 16 | K201: 0 | L201: 0 | M201: 1 | N201: 1
A202: Q82 | B202: RXQ | C202: BUCKINGHAMSHIRE HEALTHCARE NHS TRUST | D202: RXQ50 | E202: Wycombe Hospital - RXQ50 | F202: 0 | G202: NA | H202: NA | I202: 0 | J202: 0 | K202: 0 | L202: 0 | M202: 0 | N202: 0
A203: Q82 | B203: RTE | C203: GLOUCESTERSHIRE HOSPITALS NHS FOUNDATION TRUST | D203: RTE03 | E203: Gloucestershire Royal Hospital - RTE03 | F203: 3 | G203: * | H203: * | I203: * | J203: * | K203: * | L203: * | M203: * | N203: *
A204: Q82 | B204: RTE | C204: GLOUCESTERSHIRE HOSPITALS NHS FOUNDATION TRUST | D204: RTE26 | E204: Stroud General Hospital - RTE26 | F204: 5 | G204: 1 | H204: 0 | I204: * | J204: * | K204: * | L204: * | M204: * | N204: *
A205: Q82 | B205: RN3 | C205: GREAT WESTERN HOSPITALS NHS FOUNDATION TRUST | D205: RN325 | E205: The Great Western Hospital - RN325 | F205: 15 | G205: 1 | H205: 0 | I205: 12 | J205: 3 | K205: 0 | L205: 0 | M205: 0 | N205: 0
A206: Q82 | B206: RTH | C206: OXFORD UNIVERSITY HOSPITALS NHS TRUST | D206: RTH19 | E206: Chipping Norton Community Hospital - RTH19 | F206: 2 | G206: * | H206: * | I206: * | J206: * | K206: * | L206: * | M206: * | N206: *
A207: Q82 | B207: RTH | C207: OXFORD UNIVERSITY HOSPITALS NHS TRUST | D207: RTH05 | E207: Horton General Hospital - RTH05 | F207: 24 | G207: 0.9166666667 | H207: 0 | I207: 20 | J207: 2 | K207: 0 | L207: 0 | M207: 0 | N207: 2
... 8 more rows

Sheet Region (Geography) Q4
B6: Sort data by:
A9: Region (Geo) Code | B9: Region (Geography) | C9: Total Responses | D9: Percentage Recommended | E9: Percentage Not Recommended | F9: Breakdown of Responses
F10: Extremely Likely | G10: Likely | H10: Neither | I10: Unlikely | J10: Extremely Unlikely | K10: Don't Know
B11: England | C11: 6826 | D11: 0.9752417228 | E11: 0.008789920891 | F11: 5385 | G11: 1272 | H11: 97 | I11: 31 | J11: 29 | K11: 12
B12: Selection (excluding suppressed data) | C12: =SUBTOTAL(9,C13:C39) -> 6826 | D12: =IFERROR((F12+G12)/SUM(F12:K12), "-") -> 0.9752417228 | E12: =IFERROR((I12+J12)/SUM(F12:K12), "-") -> 0.008789920891 | F12: =SUBTOTAL(9,F13:F39) -> 5385 | G12: =SUBTOTAL(9,G13:G39) -> 1272 | H12: 97 | I12: 31 | J12: 29 | K12: 12
A13: Q72 | B13: NHS England Yorkshire & Humber | C13: 671 | D13: 0.9910581222 | E13: 0.004470938897 | F13: 559 | G13: 106 | H13: 3 | I13: 1 | J13: 2 | K13: 0
A14: Q73 | B14: NHS England Lancashire & Greater Manchester | C14: 527 | D14: 0.9582542694 | E14: 0.03225806452 | F14: 417 | G14: 88 | H14: 5 | I14: 9 | J14: 8 | K14: 0
A15: Q74 | B15: NHS England Cumbria & North East | C15: 315 | D15: 0.9873015873 | E15: 0 | F15: 266 | G15: 45 | H15: 4 | I15: 0 | J15: 0 | K15: 0
A16: Q75 | B16: NHS England Cheshire & Merseyside | C16: 171 | D16: 0.9941520468 | E16: 0.005847953216 | F16: 151 | G16: 19 | H16: 0 | I16: 0 | J16: 1 | K16: 0
A17: Q76 | B17: NHS England North Midlands | C17: 424 | D17: 0.9811320755 | E17: 0.004716981132 | F17: 338 | G17: 78 | H17: 4 | I17: 1 | J17: 1 | K17: 2
A18: Q77 | B18: NHS England West Midlands | C18: 603 | D18: 0.9850746269 | E18: 0.006633499171 | F18: 502 | G18: 92 | H18: 5 | I18: 1 | J18: 3 | K18: 0
A19: Q78 | B19: NHS England Central Midlands | C19: 1200 | D19: 0.9525 | E19: 0.015 | F19: 795 | G19: 348 | H19: 36 | I19: 14 | J19: 4 | K19: 3
A20: Q79 | B20: NHS England East | C20: 385 | D20: 0.9922077922 | E20: 0.002597402597 | F20: 315 | G20: 67 | H20: 2 | I20: 0 | J20: 1 | K20: 0
A21: Q80 | B21: NHS England South West | C21: 451 | D21: 0.9822616408 | E21: 0.0022172949 | F21: 384 | G21: 59 | H21: 7 | I21: 0 | J21: 1 | K21: 0
A22: Q81 | B22: NHS England South East | C22: 421 | D22: 0.9881235154 | E22: 0.002375296912 | F22: 370 | G22: 46 | H22: 2 | I22: 1 | J22: 0 | K22: 2
A23: Q82 | B23: NHS England South Central | C23: 285 | D23: 0.9824561404 | E23: 0.00350877193 | F23: 237 | G23: 43 | H23: 3 | I23: 0 | J23: 1 | K23: 1
A24: Q70 | B24: NHS England Wessex | C24: 308 | D24: 0.9512987013 | E24: 0.01298701299 | F24: 234 | G24: 59 | H24: 9 | I24: 1 | J24: 3 | K24: 2
A25: Q71 | B25: NHS England London | C25: 1065 | D25: 0.9755868545 | E25: 0.006572769953 | F25: 817 | G25: 222 | H25: 17 | I25: 3 | J25: 4 | K25: 2

Sheet Trusts Q4
B6: Sort data by:
A9: Region (Geo) Code | B9: Trust Code | C9: Trust Name | D9: Total Responses | E9: Percentage Recommended | F9: Percentage Not Recommended | G9: Breakdown of Responses | M9: Mode of Collection
G10: Extremely Likely | H10: Likely | I10: Neither | J10: Unlikely | K10: Extremely Unlikely | L10: Don't Know | M10: SMS/Text / Smartphone App | N10: Electronic tablet/kiosk at point of discharge | O10: Paper / postcard at point of discharge | P10: Paper survey sent to the patients home | Q10: Telephone survey once patient is home | R10: Online survey once patient is home | S10: Other
C11: England | D11: 6826 | E11: 0.9752417228 | F11: 0.008789920891 | G11: 5385 | H11: 1272 | I11: 97 | J11: 31 | K11: 29 | L11: 12 | M11: 409 | N11: 488 | O11: 5637 | P11: 136 | Q11: 0 | R11: 72 | S11: 84
C12: Selection (excluding suppressed data) | D12: =SUBTOTAL(9,D13:D299) -> 6826 | E12: =IFERROR((G12+H12)/SUM(G12:L12), "-") -> 0.9757790577 | F12: =IFERROR((J12+K12)/SUM(G12:L12), "-") -> 0.008565942992 | G12: =SUBTOTAL(9,G13:G299) -> 5342 | H12: =SUBTOTAL(9,H13:H299) -> 1265 | I12: 95 | J12: 31 | K12: 27 | L12: 11 | M12: 399 | N12: 484 | O12: 5605 | P12: 136 | Q12: 0 | R12: 63 | S12: 84
A13: Q70 | B13: RBD | C13: DORSET COUNTY HOSPITAL NHS FOUNDATION TRUST | D13: 29 | E13: 1 | F13: 0 | G13: 23 | H13: 6 | I13: 0 | J13: 0 | K13: 0 | L13: 0 | M13: 29 | N13: 0 | O13: 0 | P13: 0 | Q13: 0 | R13: 0 | S13: 0
A14: Q70 | B14: RN5 | C14: HAMPSHIRE HOSPITALS NHS FOUNDATION TRUST | D14: 10 | E14: 0.9 | F14: 0 | G14: * | H14: * | I14: * | J14: * | K14: * | L14: * | M14: * | N14: * | O14: * | P14: * | Q14: * | R14: * | S14: *
A15: Q70 | B15: R1F | C15: ISLE OF WIGHT NHS TRUST | D15: 1 | E15: * | F15: * | G15: * | H15: * | I15: * | J15: * | K15: * | L15: * | M15: * | N15: * | O15: * | P15: * | Q15: * | R15: * | S15: *
A16: Q70 | B16: RD3 | C16: POOLE HOSPITAL NHS FOUNDATION TRUST | D16: 13 | E16: 1 | F16: 0 | G16: 10 | H16: 3 | I16: 0 | J16: 0 | K16: 0 | L16: 0 | M16: 0 | N16: 0 | O16: 13 | P16: 0 | Q16: 0 | R16: 0 | S16: 0
A17: Q70 | B17: RHU | C17: PORTSMOUTH HOSPITALS NHS TRUST | D17: 152 | E17: 0.9605263158 | F17: 0.01315789474 | G17: 121 | H17: 25 | I17: 3 | J17: 0 | K17: 2 | L17: 1 | M17: 0 | N17: 0 | O17: 152 | P17: 0 | Q17: 0 | R17: 0 | S17: 0
A18: Q70 | B18: RDZ | C18: THE ROYAL BOURNEMOUTH AND CHRISTCHURCH HOSPITALS NHS FOUNDATION TRUST | D18: 52 | E18: 0.9230769231 | F18: 0.01923076923 | G18: 43 | H18: 5 | I18: 3 | J18: 0 | K18: 1 | L18: 0 | M18: 0 | N18: 0 | O18: 52 | P18: 0 | Q18: 0 | R18: 0 | S18: 0
A19: Q70 | B19: RHM | C19: UNIVERSITY HOSPITAL SOUTHAMPTON NHS FOUNDATION TRUST | D19: 51 | E19: 0.9215686275 | F19: 0.01960784314 | G19: 29 | H19: 18 | I19: 3 | J19: 1 | K19: 0 | L19: 0 | M19: 0 | N19: 0 | O19: 51 | P19: 0 | Q19: 0 | R19: 0 | S19: 0
A20: Q71 | B20: RF4 | C20: BARKING, HAVERING AND REDBRIDGE UNIVERSITY HOSPITALS NHS TRUST | D20: 256 | E20: 0.9921875 | F20: 0 | G20: 202 | H20: 52 | I20: 2 | J20: 0 | K20: 0 | L20: 0 | M20: 0 | N20: 0 | O20: 256 | P20: 0 | Q20: 0 | R20: 0 | S20: 0
A21: Q71 | B21: R1H | C21: BARTS HEALTH NHS TRUST | D21: 4 | E21: * | F21: * | G21: * | H21: * | I21: * | J21: * | K21: * | L21: * | M21: * | N21: * | O21: * | P21: * | Q21: * | R21: * | S21: *
A22: Q71 | B22: RQM | C22: CHELSEA AND WESTMINSTER HOSPITAL NHS FOUNDATION TRUST | D22: 43 | E22: 0.8604651163 | F22: 0.04651162791 | G22: 28 | H22: 9 | I22: 4 | J22: 1 | K22: 1 | L22: 0 | M22: 43 | N22: 0 | O22: 0 | P22: 0 | Q22: 0 | R22: 0 | S22: 0
A23: Q71 | B23: RJ6 | C23: CROYDON HEALTH SERVICES NHS TRUST | D23: 36 | E23: 1 | F23: 0 | G23: 26 | H23: 10 | I23: 0 | J23: 0 | K23: 0 | L23: 0 | M23: 0 | N23: 36 | O23: 0 | P23: 0 | Q23: 0 | R23: 0 | S23: 0
A24: Q71 | B24: RVR | C24: EPSOM AND ST HELIER UNIVERSITY HOSPITALS NHS TRUST | D24: 88 | E24: 0.9659090909 | F24: 0.02272727273 | G24: 63 | H24: 22 | I24: 1 | J24: 1 | K24: 1 | L24: 0 | M24: 23 | N24: 0 | O24: 65 | P24: 0 | Q24: 0 | R24: 0 | S24: 0
A25: Q71 | B25: RJ1 | C25: GUY'S AND ST THOMAS' NHS FOUNDATION TRUST | D25: 9 | E25: 1 | F25: 0 | G25: 6 | H25: 3 | I25: 0 | J25: 0 | K25: 0 | L25: 0 | M25: 0 | N25: 0 | O25: 9 | P25: 0 | Q25: 0 | R25: 0 | S25: 0
A26: Q71 | B26: RQX | C26: HOMERTON UNIVERSITY HOSPITAL NHS FOUNDATION TRUST | D26: 122 | E26: 0.9754098361 | F26: 0 | G26: 93 | H26: 26 | I26: 3 | J26: 0 | K26: 0 | L26: 0 | M26: 0 | N26: 22 | O26: 100 | P26: 0 | Q26: 0 | R26: 0 | S26: 0
A27: Q71 | B27: RYJ | C27: IMPERIAL COLLEGE HEALTHCARE NHS TRUST | D27: 12 | E27: 1 | F27: 0 | G27: 11 | H27: 1 | I27: 0 | J27: 0 | K27: 0 | L27: 0 | M27: 0 | N27: 12 | O27: 0 | P27: 0 | Q27: 0 | R27: 0 | S27: 0
A28: Q71 | B28: RJZ | C28: KING'S COLLEGE HOSPITAL NHS FOUNDATION TRUST | D28: 8 | E28: 1 | F28: 0 | G28: 6 | H28: 2 | I28: 0 | J28: 0 | K28: 0 | L28: 0 | M28: 0 | N28: 0 | O28: 7 | P28: 0 | Q28: 0 | R28: 1 | S28: 0
A29: Q71 | B29: RAX | C29: KINGSTON HOSPITAL NHS FOUNDATION TRUST | D29: 48 | E29: 0.9791666667 | F29: 0 | G29: 40 | H29: 7 | I29: 1 | J29: 0 | K29: 0 | L29: 0 | M29: 0 | N29: 48 | O29: 0 | P29: 0 | Q29: 0 | R29: 0 | S29: 0
A30: Q71 | B30: RJ2 | C30: LEWISHAM AND GREENWICH NHS TRUST | D30: 60 | E30: 0.9333333333 | F30: 0.01666666667 | G30: 41 | H30: 15 | I30: 2 | J30: 0 | K30: 1 | L30: 1 | M30: 0 | N30: 0 | O30: 60 | P30: 0 | Q30: 0 | R30: 0 | S30: 0
A31: Q71 | B31: R1K | C31: LONDON NORTH WEST HEALTHCARE NHS TRUST | D31: 28 | E31: 1 | F31: 0 | G31: 22 | H31: 6 | I31: 0 | J31: 0 | K31: 0 | L31: 0 | M31: 0 | N31: 0 | O31: 28 | P31: 0 | Q31: 0 | R31: 0 | S31: 0
A32: Q71 | B32: RAP | C32: NORTH MIDDLESEX UNIVERSITY HOSPITAL NHS TRUST | D32: 98 | E32: 0.9897959184 | F32: 0 | G32: 81 | H32: 16 | I32: 1 | J32: 0 | K32: 0 | L32: 0 | M32: 0 | N32: 0 | O32: 98 | P32: 0 | Q32: 0 | R32: 0 | S32: 0
A33: Q71 | B33: RAL | C33: ROYAL FREE LONDON NHS FOUNDATION TRUST | D33: 53 | E33: 0.9433962264 | F33: 0.03773584906 | G33: 41 | H33: 9 | I33: 1 | J33: 1 | K33: 1 | L33: 0 | M33: 0 | N33: 18 | O33: 35 | P33: 0 | Q33: 0 | R33: 0 | S33: 0
A34: Q71 | B34: RJ7 | C34: ST GEORGE'S UNIVERSITY HOSPITALS NHS FOUNDATION TRUST | D34: 65 | E34: 0.9846153846 | F34: 0 | G34: 57 | H34: 7 | I34: 1 | J34: 0 | K34: 0 | L34: 0 | M34: 0 | N34: 65 | O34: 0 | P34: 0 | Q34: 0 | R34: 0 | S34: 0
A35: Q71 | B35: RAS | C35: THE HILLINGDON HOSPITALS NHS FOUNDATION TRUST | D35: 7 | E35: 1 | F35: 0 | G35: * | H35: * | I35: * | J35: * | K35: * | L35: * | M35: * | N35: * | O35: * | P35: * | Q35: * | R35: * | S35: *
A36: Q71 | B36: RKE | C36: THE WHITTINGTON HOSPITAL NHS TRUST | D36: 32 | E36: 0.96875 | F36: 0 | G36: 26 | H36: 5 | I36: 1 | J36: 0 | K36: 0 | L36: 0 | M36: 0 | N36: 32 | O36: 0 | P36: 0 | Q36: 0 | R36: 0 | S36: 0
A37: Q71 | B37: RRV | C37: UNIVERSITY COLLEGE LONDON HOSPITALS NHS FOUNDATION TRUST | D37: 36 | E37: 1 | F37: 0 | G37: 28 | H37: 8 | I37: 0 | J37: 0 | K37: 0 | L37: 0 | M37: 0 | N37: 0 | O37: 0 | P37: 0 | Q37: 0 | R37: 36 | S37: 0
A38: Q71 | B38: RFW | C38: WEST MIDDLESEX UNIVERSITY HOSPITAL NHS TRUST | D38: 60 | E38: 0.9833333333 | F38: 0 | G38: 39 | H38: 20 | I38: 0 | J38: 0 | K38: 0 | L38: 1 | M38: 0 | N38: 0 | O38: 60 | P38: 0 | Q38: 0 | R38: 0 | S38: 0
A39: Q72 | B39: RCF | C39: AIREDALE NHS FOUNDATION TRUST | D39: 33 | E39: 1 | F39: 0 | G39: 27 | H39: 6 | I39: 0 | J39: 0 | K39: 0 | L39: 0 | M39: 0 | N39: 0 | O39: 33 | P39: 0 | Q39: 0 | R39: 0 | S39: 0
A40: Q72 | B40: RFF | C40: BARNSLEY HOSPITAL NHS FOUNDATION TRUST | D40: 62 | E40: 0.9838709677 | F40: 0 | G40: 53 | H40: 8 | I40: 1 | J40: 0 | K40: 0 | L40: 0 | M40: 0 | N40: 0 | O40: 62 | P40: 0 | Q40: 0 | R40: 0 | S40: 0
A41: Q72 | B41: RAE | C41: BRADFORD TEACHING HOSPITALS NHS FOUNDATION TRUST | D41: 32 | E41: 1 | F41: 0 | G41: 27 | H41: 5 | I41: 0 | J41: 0 | K41: 0 | L41: 0 | M41: 0 | N41: 0 | O41: 32 | P41: 0 | Q41: 0 | R41: 0 | S41: 0
A42: Q72 | B42: RWY | C42: CALDERDALE AND HUDDERSFIELD NHS FOUNDATION TRUST | D42: 85 | E42: 0.9647058824 | F42: 0.01176470588 | G42: 68 | H42: 14 | I42: 2 | J42: 0 | K42: 1 | L42: 0 | M42: 0 | N42: 0 | O42: 85 | P42: 0 | Q42: 0 | R42: 0 | S42: 0
A43: Q72 | B43: RP5 | C43: DONCASTER AND BASSETLAW HOSPITALS NHS FOUNDATION TRUST | D43: 47 | E43: 0.9787234043 | F43: 0.02127659574 | G43: 41 | H43: 5 | I43: 0 | J43: 1 | K43: 0 | L43: 0 | M43: 0 | N43: 0 | O43: 47 | P43: 0 | Q43: 0 | R43: 0 | S43: 0
A44: Q72 | B44: RCD | C44: HARROGATE AND DISTRICT NHS FOUNDATION TRUST | D44: 20 | E44: 1 | F44: 0 | G44: 18 | H44: 2 | I44: 0 | J44: 0 | K44: 0 | L44: 0 | M44: 0 | N44: 0 | O44: 20 | P44: 0 | Q44: 0 | R44: 0 | S44: 0
A45: Q72 | B45: RWA | C45: HULL AND EAST YORKSHIRE HOSPITALS NHS TRUST | D45: 44 | E45: 1 | F45: 0 | G45: 40 | H45: 4 | I45: 0 | J45: 0 | K45: 0 | L45: 0 | M45: 0 | N45: 0 | O45: 42 | P45: 0 | Q45: 0 | R45: 2 | S45: 0
A46: Q72 | B46: RR8 | C46: LEEDS TEACHING HOSPITALS NHS TRUST | D46: 54 | E46: 0.9814814815 | F46: 0.01851851852 | G46: 45 | H46: 8 | I46: 0 | J46: 0 | K46: 1 | L46: 0 | M46: 0 | N46: 0 | O46: 54 | P46: 0 | Q46: 0 | R46: 0 | S46: 0
A47: Q72 | B47: RXF | C47: MID YORKSHIRE HOSPITALS NHS TRUST | D47: 42 | E47: 1 | F47: 0 | G47: 33 | H47: 9 | I47: 0 | J47: 0 | K47: 0 | L47: 0 | M47: 0 | N47: 0 | O47: 41 | P47: 0 | Q47: 0 | R47: 1 | S47: 0
A48: Q72 | B48: RJL | C48: NORTHERN LINCOLNSHIRE AND GOOLE NHS FOUNDATION TRUST | D48: 20 | E48: 1 | F48: 0 | G48: 13 | H48: 7 | I48: 0 | J48: 0 | K48: 0 | L48: 0 | M48: 0 | N48: 0 | O48: 20 | P48: 0 | Q48: 0 | R48: 0 | S48: 0
A49: Q72 | B49: RHQ | C49: SHEFFIELD TEACHING HOSPITALS NHS FOUNDATION TRUST | D49: 53 | E49: 1 | F49: 0 | G49: 41 | H49: 12 | I49: 0 | J49: 0 | K49: 0 | L49: 0 | M49: 0 | N49: 0 | O49: 53 | P49: 0 | Q49: 0 | R49: 0 | S49: 0
A50: Q72 | B50: RFR | C50: THE ROTHERHAM NHS FOUNDATION TRUST | D50: 99 | E50: 1 | F50: 0 | G50: 85 | H50: 14 | I50: 0 | J50: 0 | K50: 0 | L50: 0 | M50: 0 | N50: 3 | O50: 96 | P50: 0 | Q50: 0 | R50: 0 | S50: 0
A51: Q72 | B51: RCB | C51: YORK TEACHING HOSPITAL NHS FOUNDATION TRUST | D51: 80 | E51: 1 | F51: 0 | G51: 68 | H51: 12 | I51: 0 | J51: 0 | K51: 0 | L51: 0 | M51: 0 | N51: 0 | O51: 79 | P51: 0 | Q51: 0 | R51: 1 | S51: 0
A52: Q73 | B52: RXL | C52: BLACKPOOL TEACHING HOSPITALS NHS FOUNDATION TRUST | D52: 17 | E52: 1 | F52: 0 | G52: 14 | H52: 3 | I52: 0 | J52: 0 | K52: 0 | L52: 0 | M52: 0 | N52: 0 | O52: 17 | P52: 0 | Q52: 0 | R52: 0 | S52: 0
A53: Q73 | B53: RMC | C53: BOLTON NHS FOUNDATION TRUST | D53: 59 | E53: 0.9491525424 | F53: 0.05084745763 | G53: 46 | H53: 10 | I53: 0 | J53: 0 | K53: 3 | L53: 0 | M53: 59 | N53: 0 | O53: 0 | P53: 0 | Q53: 0 | R53: 0 | S53: 0
A54: Q73 | B54: RY2 | C54: BRIDGEWATER COMMUNITY HEALTHCARE NHS FOUNDATION TRUST | D54: 21 | E54: 1 | F54: 0 | G54: 20 | H54: 1 | I54: 0 | J54: 0 | K54: 0 | L54: 0 | M54: 0 | N54: 0 | O54: 21 | P54: 0 | Q54: 0 | R54: 0 | S54: 0
A55: Q73 | B55: RW3 | C55: CENTRAL MANCHESTER UNIVERSITY HOSPITALS NHS FOUNDATION TRUST | D55: 0 | E55: NA | F55: NA | G55: 0 | H55: 0 | I55: 0 | J55: 0 | K55: 0 | L55: 0 | M55: 0 | N55: 0 | O55: 0 | P55: 0 | Q55: 0 | R55: 0 | S55: 0
A56: Q73 | B56: RXR | C56: EAST LANCASHIRE HOSPITALS NHS TRUST | D56: 115 | E56: 0.9130434783 | F56: 0.06086956522 | G56: 84 | H56: 21 | I56: 3 | J56: 4 | K56: 3 | L56: 0 | M56: 104 | N56: 0 | O56: 0 | P56: 0 | Q56: 0 | R56: 11 | S56: 0
A57: Q73 | B57: RXN | C57: LANCASHIRE TEACHING HOSPITALS NHS FOUNDATION TRUST | D57: 98 | E57: 0.9285714286 | F57: 0.0612244898 | G57: 76 | H57: 15 | I57: 1 | J57: 5 | K57: 1 | L57: 0 | M57: 98 | N57: 0 | O57: 0 | P57: 0 | Q57: 0 | R57: 0 | S57: 0
A58: Q73 | B58: RW6 | C58: PENNINE ACUTE HOSPITALS NHS TRUST | D58: 42 | E58: 1 | F58: 0 | G58: 34 | H58: 8 | I58: 0 | J58: 0 | K58: 0 | L58: 0 | M58: 0 | N58: 0 | O58: 42 | P58: 0 | Q58: 0 | R58: 0 | S58: 0
A59: Q73 | B59: RWJ | C59: STOCKPORT NHS FOUNDATION TRUST | D59: 36 | E59: 1 | F59: 0 | G59: 30 | H59: 6 | I59: 0 | J59: 0 | K59: 0 | L59: 0 | M59: 0 | N59: 0 | O59: 36 | P59: 0 | Q59: 0 | R59: 0 | S59: 0
A60: Q73 | B60: RMP | C60: TAMESIDE HOSPITAL NHS FOUNDATION TRUST | D60: 12 | E60: 1 | F60: 0 | G60: 6 | H60: 6 | I60: 0 | J60: 0 | K60: 0 | L60: 0 | M60: 0 | N60: 0 | O60: 12 | P60: 0 | Q60: 0 | R60: 0 | S60: 0
A61: Q73 | B61: RM2 | C61: UNIVERSITY HOSPITAL OF SOUTH MANCHESTER NHS FOUNDATION TRUST | D61: 104 | E61: 1 | F61: 0 | G61: 89 | H61: 15 | I61: 0 | J61: 0 | K61: 0 | L61: 0 | M61: 0 | N61: 0 | O61: 103 | P61: 0 | Q61: 0 | R61: 1 | S61: 0
A62: Q73 | B62: RRF | C62: WRIGHTINGTON, WIGAN AND LEIGH NHS FOUNDATION TRUST | D62: 23 | E62: 0.9130434783 | F62: 0.04347826087 | G62: 18 | H62: 3 | I62: 1 | J62: 0 | K62: 1 | L62: 0 | M62: 0 | N62: 0 | O62: 22 | P62: 0 | Q62: 0 | R62: 1 | S62: 0
A63: Q74 | B63: RLN | C63: CITY HOSPITALS SUNDERLAND NHS FOUNDATION TRUST | D63: 18 | E63: 1 | F63: 0 | G63: 17 | H63: 1 | I63: 0 | J63: 0 | K63: 0 | L63: 0 | M63: 0 | N63: 0 | O63: 18 | P63: 0 | Q63: 0 | R63: 0 | S63: 0
A64: Q74 | B64: RXP | C64: COUNTY DURHAM AND DARLINGTON NHS FOUNDATION TRUST | D64: 82 | E64: 0.9756097561 | F64: 0 | G64: 64 | H64: 16 | I64: 2 | J64: 0 | K64: 0 | L64: 0 | M64: 0 | N64: 0 | O64: 82 | P64: 0 | Q64: 0 | R64: 0 | S64: 0
A65: Q74 | B65: RR7 | C65: GATESHEAD HEALTH NHS FOUNDATION TRUST | D65: 16 | E65: 1 | F65: 0 | G65: 15 | H65: 1 | I65: 0 | J65: 0 | K65: 0 | L65: 0 | M65: 0 | N65: 0 | O65: 16 | P65: 0 | Q65: 0 | R65: 0 | S65: 0
A66: Q74 | B66: RNL | C66: NORTH CUMBRIA UNIVERSITY HOSPITALS NHS TRUST | D66: 47 | E66: 0.9787234043 | F66: 0 | G66: 44 | H66: 2 | I66: 1 | J66: 0 | K66: 0 | L66: 0 | M66: 0 | N66: 0 | O66: 0 | P66: 0 | Q66: 0 | R66: 0 | S66: 47
A67: Q74 | B67: RVW | C67: NORTH TEES AND HARTLEPOOL NHS FOUNDATION TRUST | D67: 22 | E67: 0.9545454545 | F67: 0 | G67: 17 | H67: 4 | I67: 1 | J67: 0 | K67: 0 | L67: 0 | M67: 0 | N67: 0 | O67: 22 | P67: 0 | Q67: 0 | R67: 0 | S67: 0
A68: Q74 | B68: RTF | C68: NORTHUMBRIA HEALTHCARE NHS FOUNDATION TRUST | D68: 52 | E68: 1 | F68: 0 | G68: 42 | H68: 10 | I68: 0 | J68: 0 | K68: 0 | L68: 0 | M68: 0 | N68: 0 | O68: 52 | P68: 0 | Q68: 0 | R68: 0 | S68: 0
A69: Q74 | B69: RTR | C69: SOUTH TEES HOSPITALS NHS FOUNDATION TRUST | D69: 3 | E69: * | F69: * | G69: * | H69: * | I69: * | J69: * | K69: * | L69: * | M69: * | N69: * | O69: * | P69: * | Q69: * | R69: * | S69: *
A70: Q74 | B70: RE9 | C70: SOUTH TYNESIDE NHS FOUNDATION TRUST | D70: 35 | E70: 1 | F70: 0 | G70: 30 | H70: 5 | I70: 0 | J70: 0 | K70: 0 | L70: 0 | M70: 0 | N70: 0 | O70: 35 | P70: 0 | Q70: 0 | R70: 0 | S70: 0
A71: Q74 | B71: RTD | C71: THE NEWCASTLE UPON TYNE HOSPITALS NHS FOUNDATION TRUST | D71: 4 | E71: * | F71: * | G71: * | H71: * | I71: * | J71: * | K71: * | L71: * | M71: * | N71: * | O71: * | P71: * | Q71: * | R71: * | S71: *
A72: Q74 | B72: RTX | C72: UNIVERSITY HOSPITALS OF MORECAMBE BAY NHS FOUNDATION TRUST | D72: 36 | E72: 1 | F72: 0 | G72: 30 | H72: 6 | I72: 0 | J72: 0 | K72: 0 | L72: 0 | M72: 0 | N72: 0 | O72: 36 | P72: 0 | Q72: 0 | R72: 0 | S72: 0
A73: Q75 | B73: RJR | C73: COUNTESS OF CHESTER HOSPITAL NHS FOUNDATION TRUST | D73: 1 | E73: * | F73: * | G73: * | H73: * | I73: * | J73: * | K73: * | L73: * | M73: * | N73: * | O73: * | P73: * | Q73: * | R73: * | S73: *
A74: Q75 | B74: RJN | C74: EAST CHESHIRE NHS TRUST | D74: 42 | E74: 1 | F74: 0 | G74: 32 | H74: 10 | I74: 0 | J74: 0 | K74: 0 | L74: 0 | M74: 0 | N74: 0 | O74: 42 | P74: 0 | Q74: 0 | R74: 0 | S74: 0
A75: Q75 | B75: REP | C75: LIVERPOOL WOMEN'S NHS FOUNDATION TRUST | D75: 4 | E75: * | F75: * | G75: * | H75: * | I75: * | J75: * | K75: * | L75: * | M75: * | N75: * | O75: * | P75: * | Q75: * | R75: * | S75: *
A76: Q75 | B76: RBT | C76: MID CHESHIRE HOSPITALS NHS FOUNDATION TRUST | D76: 17 | E76: 1 | F76: 0 | G76: 15 | H76: 2 | I76: 0 | J76: 0 | K76: 0 | L76: 0 | M76: 0 | N76: 0 | O76: 17 | P76: 0 | Q76: 0 | R76: 0 | S76: 0
A77: Q75 | B77: RVY | C77: SOUTHPORT AND ORMSKIRK HOSPITAL NHS TRUST | D77: 29 | E77: 1 | F77: 0 | G77: 26 | H77: 3 | I77: 0 | J77: 0 | K77: 0 | L77: 0 | M77: 0 | N77: 0 | O77: 29 | P77: 0 | Q77: 0 | R77: 0 | S77: 0
A78: Q75 | B78: RBN | C78: ST HELENS AND KNOWSLEY HOSPITALS NHS TRUST | D78: 63 | E78: 1 | F78: 0 | G78: 60 | H78: 3 | I78: 0 | J78: 0 | K78: 0 | L78: 0 | M78: 0 | N78: 0 | O78: 63 | P78: 0 | Q78: 0 | R78: 0 | S78: 0
A79: Q75 | B79: RWW | C79: WARRINGTON AND HALTON HOSPITALS NHS FOUNDATION TRUST | D79: 10 | E79: 1 | F79: 0 | G79: 10 | H79: 0 | I79: 0 | J79: 0 | K79: 0 | L79: 0 | M79: 0 | N79: 0 | O79: 10 | P79: 0 | Q79: 0 | R79: 0 | S79: 0
A80: Q75 | B80: RBL | C80: WIRRAL UNIVERSITY TEACHING HOSPITAL NHS FOUNDATION TRUST | D80: 5 | E80: 1 | F80: 0 | G80: 4 | H80: 1 | I80: 0 | J80: 0 | K80: 0 | L80: 0 | M80: 0 | N80: 0 | O80: 5 | P80: 0 | Q80: 0 | R80: 0 | S80: 0
A81: Q76 | B81: RJF | C81: BURTON HOSPITALS NHS FOUNDATION TRUST | D81: 8 | E81: 1 | F81: 0 | G81: 8 | H81: 0 | I81: 0 | J81: 0 | K81: 0 | L81: 0 | M81: 0 | N81: 0 | O81: 8 | P81: 0 | Q81: 0 | R81: 0 | S81: 0
A82: Q76 | B82: RFS | C82: CHESTERFIELD ROYAL HOSPITAL NHS FOUNDATION TRUST | D82: 68 | E82: 0.9411764706 | F82: 0.01470588235 | G82: 34 | H82: 30 | I82: 2 | J82: 1 | K82: 0 | L82: 1 | M82: 0 | N82: 0 | O82: 68 | P82: 0 | Q82: 0 | R82: 0 | S82: 0
A83: Q76 | B83: RTG | C83: DERBY TEACHING HOSPITALS NHS FOUNDATION TRUST | D83: 46 | E83: 0.9782608696 | F83: 0 | G83: 39 | H83: 6 | I83: 1 | J83: 0 | K83: 0 | L83: 0 | M83: 0 | N83: 0 | O83: 46 | P83: 0 | Q83: 0 | R83: 0 | S83: 0
A84: Q76 | B84: RX1 | C84: NOTTINGHAM UNIVERSITY HOSPITALS NHS TRUST | D84: 225 | E84: 0.9911111111 | F84: 0.004444444444 | G84: 188 | H84: 35 | I84: 0 | J84: 0 | K84: 1 | L84: 1 | M84: 0 | N84: 0 | O84: 225 | P84: 0 | Q84: 0 | R84: 0 | S84: 0
A85: Q76 | B85: RK5 | C85: SHERWOOD FOREST HOSPITALS NHS FOUNDATION TRUST | D85: 23 | E85: 0.9565217391 | F85: 0 | G85: 19 | H85: 3 | I85: 1 | J85: 0 | K85: 0 | L85: 0 | M85: 0 | N85: 0 | O85: 22 | P85: 0 | Q85: 0 | R85: 1 | S85: 0
A86: Q76 | B86: RXW | C86: SHREWSBURY AND TELFORD HOSPITAL NHS TRUST | D86: 15 | E86: 1 | F86: 0 | G86: 14 | H86: 1 | I86: 0 | J86: 0 | K86: 0 | L86: 0 | M86: 0 | N86: 0 | O86: 15 | P86: 0 | Q86: 0 | R86: 0 | S86: 0
A87: Q76 | B87: RJE | C87: UNIVERSITY HOSPITALS OF NORTH MIDLANDS NHS TRUST | D87: 39 | E87: 1 | F87: 0 | G87: 36 | H87: 3 | I87: 0 | J87: 0 | K87: 0 | L87: 0 | M87: 0 | N87: 0 | O87: 39 | P87: 0 | Q87: 0 | R87: 0 | S87: 0
A88: Q77 | B88: RLU | C88: BIRMINGHAM WOMEN'S NHS FOUNDATION TRUST | D88: 2 | E88: * | F88: * | G88: * | H88: * | I88: * | J88: * | K88: * | L88: * | M88: * | N88: * | O88: * | P88: * | Q88: * | R88: * | S88: *
A89: Q77 | B89: RLT | C89: GEORGE ELIOT HOSPITAL NHS TRUST | D89: 46 | E89: 1 | F89: 0 | G89: 44 | H89: 2 | I89: 0 | J89: 0 | K89: 0 | L89: 0 | M89: 0 | N89: 0 | O89: 46 | P89: 0 | Q89: 0 | R89: 0 | S89: 0
A90: Q77 | B90: RR1 | C90: HEART OF ENGLAND NHS FOUNDATION TRUST | D90: 1 | E90: * | F90: * | G90: * | H90: * | I90: * | J90: * | K90: * | L90: * | M90: * | N90: * | O90: * | P90: * | Q90: * | R90: * | S90: *
A91: Q77 | B91: RXK | C91: SANDWELL AND WEST BIRMINGHAM HOSPITALS NHS TRUST | D91: 60 | E91: 0.9666666667 | F91: 0 | G91: 44 | H91: 14 | I91: 2 | J91: 0 | K91: 0 | L91: 0 | M91: 0 | N91: 60 | O91: 0 | P91: 0 | Q91: 0 | R91: 0 | S91: 0
A92: Q77 | B92: RJC | C92: SOUTH WARWICKSHIRE NHS FOUNDATION TRUST | D92: 0 | E92: NA | F92: NA | G92: 0 | H92: 0 | I92: 0 | J92: 0 | K92: 0 | L92: 0 | M92: 0 | N92: 0 | O92: 0 | P92: 0 | Q92: 0 | R92: 0 | S92: 0
A93: Q77 | B93: RNA | C93: THE DUDLEY GROUP NHS FOUNDATION TRUST | D93: 18 | E93: 0.9444444444 | F93: 0.05555555556 | G93: 15 | H93: 2 | I93: 0 | J93: 0 | K93: 1 | L93: 0 | M93: 0 | N93: 0 | O93: 18 | P93: 0 | Q93: 0 | R93: 0 | S93: 0
A94: Q77 | B94: RL4 | C94: THE ROYAL WOLVERHAMPTON NHS TRUST | D94: 89 | E94: 0.9887640449 | F94: 0.01123595506 | G94: 74 | H94: 14 | I94: 0 | J94: 1 | K94: 0 | L94: 0 | M94: 0 | N94: 0 | O94: 89 | P94: 0 | Q94: 0 | R94: 0 | S94: 0
A95: Q77 | B95: RKB | C95: UNIVERSITY HOSPITALS COVENTRY AND WARWICKSHIRE NHS TRUST | D95: 182 | E95: 0.989010989 | F95: 0.01098901099 | G95: 136 | H95: 44 | I95: 0 | J95: 0 | K95: 2 | L95: 0 | M95: 0 | N95: 0 | O95: 182 | P95: 0 | Q95: 0 | R95: 0 | S95: 0
A96: Q77 | B96: RBK | C96: WALSALL HEALTHCARE NHS TRUST | D96: 15 | E96: 1 | F96: 0 | G96: 15 | H96: 0 | I96: 0 | J96: 0 | K96: 0 | L96: 0 | M96: 0 | N96: 0 | O96: 15 | P96: 0 | Q96: 0 | R96: 0 | S96: 0
A97: Q77 | B97: RWP | C97: WORCESTERSHIRE ACUTE HOSPITALS NHS TRUST | D97: 121 | E97: 0.9917355372 | F97: 0 | G97: 110 | H97: 10 | I97: 1 | J97: 0 | K97: 0 | L97: 0 | M97: 0 | N97: 0 | O97: 121 | P97: 0 | Q97: 0 | R97: 0 | S97: 0
A98: Q77 | B98: RLQ | C98: WYE VALLEY NHS TRUST | D98: 69 | E98: 0.9710144928 | F98: 0 | G98: 61 | H98: 6 | I98: 2 | J98: 0 | K98: 0 | L98: 0 | M98: 0 | N98: 0 | O98: 69 | P98: 0 | Q98: 0 | R98: 0 | S98: 0
A99: Q78 | B99: RC1 | C99: BEDFORD HOSPITAL NHS TRUST | D99: 36 | E99: 0.9722222222 | F99: 0 | G99: 28 | H99: 7 | I99: 1 | J99: 0 | K99: 0 | L99: 0 | M99: 36 | N99: 0 | O99: 0 | P99: 0 | Q99: 0 | R99: 0 | S99: 0
A100: Q78 | B100: RWH | C100: EAST AND NORTH HERTFORDSHIRE NHS TRUST | D100: 33 | E100: 1 | F100: 0 | G100: 27 | H100: 6 | I100: 0 | J100: 0 | K100: 0 | L100: 0 | M100: 0 | N100: 0 | O100: 33 | P100: 0 | Q100: 0 | R100: 0 | S100: 0
A101: Q78 | B101: RNQ | C101: KETTERING GENERAL HOSPITAL NHS FOUNDATION TRUST | D101: 38 | E101: 1 | F101: 0 | G101: 36 | H101: 2 | I101: 0 | J101: 0 | K101: 0 | L101: 0 | M101: 0 | N101: 0 | O101: 38 | P101: 0 | Q101: 0 | R101: 0 | S101: 0
A102: Q78 | B102: RC9 | C102: LUTON AND DUNSTABLE UNIVERSITY HOSPITAL NHS FOUNDATION TRUST | D102: 24 | E102: 0.9166666667 | F102: 0 | G102: 11 | H102: 11 | I102: 2 | J102: 0 | K102: 0 | L102: 0 | M102: 0 | N102: 24 | O102: 0 | P102: 0 | Q102: 0 | R102: 0 | S102: 0
A103: Q78 | B103: RD8 | C103: MILTON KEYNES HOSPITAL NHS FOUNDATION TRUST | D103: 1 | E103: * | F103: * | G103: * | H103: * | I103: * | J103: * | K103: * | L103: * | M103: * | N103: * | O103: * | P103: * | Q103: * | R103: * | S103: *
A104: Q78 | B104: RNS | C104: NORTHAMPTON GENERAL HOSPITAL NHS TRUST | D104: 36 | E104: 1 | F104: 0 | G104: 31 | H104: 5 | I104: 0 | J104: 0 | K104: 0 | L104: 0 | M104: 5 | N104: 0 | O104: 31 | P104: 0 | Q104: 0 | R104: 0 | S104: 0
A105: Q78 | B105: RWD | C105: UNITED LINCOLNSHIRE HOSPITALS NHS TRUST | D105: 42 | E105: 1 | F105: 0 | G105: 36 | H105: 6 | I105: 0 | J105: 0 | K105: 0 | L105: 0 | M105: 0 | N105: 0 | O105: 42 | P105: 0 | Q105: 0 | R105: 0 | S105: 0
A106: Q78 | B106: RWE | C106: UNIVERSITY HOSPITALS OF LEICESTER NHS TRUST | D106: 989 | E106: 0.9464105157 | F106: 0.01820020222 | G106: 625 | H106: 311 | I106: 32 | J106: 14 | K106: 4 | L106: 3 | M106: 0 | N106: 0 | O106: 989 | P106: 0 | Q106: 0 | R106: 0 | S106: 0
A107: Q78 | B107: RWG | C107: WEST HERTFORDSHIRE HOSPITALS NHS TRUST | D107: 1 | E107: * | F107: * | G107: * | H107: * | I107: * | J107: * | K107: * | L107: * | M107: * | N107: * | O107: * | P107: * | Q107: * | R107: * | S107: *
A108: Q79 | B108: RDD | C108: BASILDON AND THURROCK UNIVERSITY HOSPITALS NHS FOUNDATION TRUST | D108: 7 | E108: 0.7142857143 | F108: 0.1428571429 | G108: * | H108: * | I108: * | J108: * | K108: * | L108: * | M108: * | N108: * | O108: * | P108: * | Q108: * | R108: * | S108: *
A109: Q79 | B109: RGT | C109: CAMBRIDGE UNIVERSITY HOSPITALS NHS FOUNDATION TRUST | D109: 19 | E109: 1 | F109: 0 | G109: 10 | H109: 9 | I109: 0 | J109: 0 | K109: 0 | L109: 0 | M109: 0 | N109: 0 | O109: 19 | P109: 0 | Q109: 0 | R109: 0 | S109: 0
A110: Q79 | B110: RDE | C110: COLCHESTER HOSPITAL UNIVERSITY NHS FOUNDATION TRUST | D110: 8 | E110: 1 | F110: 0 | G110: 8 | H110: 0 | I110: 0 | J110: 0 | K110: 0 | L110: 0 | M110: 0 | N110: 0 | O110: 8 | P110: 0 | Q110: 0 | R110: 0 | S110: 0
A111: Q79 | B111: RQQ | C111: HINCHINGBROOKE HEALTH CARE NHS TRUST | D111: 18 | E111: 1 | F111: 0 | G111: 17 | H111: 1 | I111: 0 | J111: 0 | K111: 0 | L111: 0 | M111: 0 | N111: 0 | O111: 18 | P111: 0 | Q111: 0 | R111: 0 | S111: 0
A112: Q79 | B112: RGQ | C112: IPSWICH HOSPITAL NHS TRUST | D112: 90 | E112: 1 | F112: 0 | G112: 71 | H112: 19 | I112: 0 | J112: 0 | K112: 0 | L112: 0 | M112: 0 | N112: 90 | O112: 0 | P112: 0 | Q112: 0 | R112: 0 | S112: 0
A113: Q79 | B113: RGP | C113: JAMES PAGET UNIVERSITY HOSPITALS NHS FOUNDATION TRUST | D113: 108 | E113: 1 | F113: 0 | G113: 93 | H113: 15 | I113: 0 | J113: 0 | K113: 0 | L113: 0 | M113: 0 | N113: 0 | O113: 108 | P113: 0 | Q113: 0 | R113: 0 | S113: 0
A114: Q79 | B114: RQ8 | C114: MID ESSEX HOSPITAL SERVICES NHS TRUST | D114: 2 | E114: * | F114: * | G114: * | H114: * | I114: * | J114: * | K114: * | L114: * | M114: * | N114: * | O114: * | P114: * | Q114: * | R114: * | S114: *
A115: Q79 | B115: RM1 | C115: NORFOLK AND NORWICH UNIVERSITY HOSPITALS NHS FOUNDATION TRUST | D115: 12 | E115: 1 | F115: 0 | G115: 11 | H115: 1 | I115: 0 | J115: 0 | K115: 0 | L115: 0 | M115: 0 | N115: 12 | O115: 0 | P115: 0 | Q115: 0 | R115: 0 | S115: 0
A116: Q79 | B116: RGN | C116: PETERBOROUGH AND STAMFORD HOSPITALS NHS FOUNDATION TRUST | D116: 13 | E116: 1 | F116: 0 | G116: 11 | H116: 2 | I116: 0 | J116: 0 | K116: 0 | L116: 0 | M116: 0 | N116: 0 | O116: 13 | P116: 0 | Q116: 0 | R116: 0 | S116: 0
A117: Q79 | B117: RAJ | C117: SOUTHEND UNIVERSITY HOSPITAL NHS FOUNDATION TRUST | D117: 0 | E117: NA | F117: NA | G117: 0 | H117: 0 | I117: 0 | J117: 0 | K117: 0 | L117: 0 | M117: 0 | N117: 0 | O117: 0 | P117: 0 | Q117: 0 | R117: 0 | S117: 0
A118: Q79 | B118: RQW | C118: THE PRINCESS ALEXANDRA HOSPITAL NHS TRUST | D118: 37 | E118: 0.972972973 | F118: 0 | G118: 28 | H118: 8 | I118: 1 | J118: 0 | K118: 0 | L118: 0 | M118: 0 | N118: 0 | O118: 0 | P118: 0 | Q118: 0 | R118: 0 | S118: 37
A119: Q79 | B119: RCX | C119: THE QUEEN ELIZABETH HOSPITAL, KING'S LYNN, NHS FOUNDATION TRUST | D119: 29 | E119: 1 | F119: 0 | G119: 23 | H119: 6 | I119: 0 | J119: 0 | K119: 0 | L119: 0 | M119: 0 | N119: 0 | O119: 29 | P119: 0 | Q119: 0 | R119: 0 | S119: 0
A120: Q79 | B120: RGR | C120: WEST SUFFOLK NHS FOUNDATION TRUST | D120: 42 | E120: 1 | F120: 0 | G120: 36 | H120: 6 | I120: 0 | J120: 0 | K120: 0 | L120: 0 | M120: 0 | N120: 42 | O120: 0 | P120: 0 | Q120: 0 | R120: 0 | S120: 0
A121: Q80 | B121: RVJ | C121: NORTH BRISTOL NHS TRUST | D121: 76 | E121: 1 | F121: 0 | G121: 61 | H121: 15 | I121: 0 | J121: 0 | K121: 0 | L121: 0 | M121: 0 | N121: 0 | O121: 0 | P121: 76 | Q121: 0 | R121: 0 | S121: 0
A122: Q80 | B122: RBZ | C122: NORTHERN DEVON HEALTHCARE NHS TRUST | D122: 5 | E122: 1 | F122: 0 | G122: * | H122: * | I122: * | J122: * | K122: * | L122: * | M122: * | N122: * | O122: * | P122: * | Q122: * | R122: * | S122: *
A123: Q80 | B123: RK9 | C123: PLYMOUTH HOSPITALS NHS TRUST | D123: 88 | E123: 0.9772727273 | F123: 0.01136363636 | G123: 72 | H123: 14 | I123: 1 | J123: 0 | K123: 1 | L123: 0 | M123: 0 | N123: 7 | O123: 81 | P123: 0 | Q123: 0 | R123: 0 | S123: 0
A124: Q80 | B124: REF | C124: ROYAL CORNWALL HOSPITALS NHS TRUST | D124: 66 | E124: 0.9393939394 | F124: 0 | G124: 56 | H124: 6 | I124: 4 | J124: 0 | K124: 0 | L124: 0 | M124: 0 | N124: 0 | O124: 66 | P124: 0 | Q124: 0 | R124: 0 | S124: 0
A125: Q80 | B125: RH8 | C125: ROYAL DEVON AND EXETER NHS FOUNDATION TRUST | D125: 33 | E125: 1 | F125: 0 | G125: 31 | H125: 2 | I125: 0 | J125: 0 | K125: 0 | L125: 0 | M125: 0 | N125: 0 | O125: 33 | P125: 0 | Q125: 0 | R125: 0 | S125: 0
A126: Q80 | B126: RA9 | C126: SOUTH DEVON HEALTHCARE NHS FOUNDATION TRUST | D126: 28 | E126: 0.9642857143 | F126: 0 | G126: 22 | H126: 5 | I126: 1 | J126: 0 | K126: 0 | L126: 0 | M126: 0 | N126: 0 | O126: 28 | P126: 0 | Q126: 0 | R126: 0 | S126: 0
A127: Q80 | B127: RBA | C127: TAUNTON AND SOMERSET NHS FOUNDATION TRUST | D127: 34 | E127: 1 | F127: 0 | G127: 26 | H127: 8 | I127: 0 | J127: 0 | K127: 0 | L127: 0 | M127: 0 | N127: 0 | O127: 34 | P127: 0 | Q127: 0 | R127: 0 | S127: 0
A128: Q80 | B128: RA7 | C128: UNIVERSITY HOSPITALS BRISTOL NHS FOUNDATION TRUST | D128: 100 | E128: 0.99 | F128: 0 | G128: 92 | H128: 7 | I128: 1 | J128: 0 | K128: 0 | L128: 0 | M128: 0 | N128: 0 | O128: 100 | P128: 0 | Q128: 0 | R128: 0 | S128: 0
A129: Q80 | B129: RA3 | C129: WESTON AREA HEALTH NHS TRUST | D129: 19 | E129: 1 | F129: 0 | G129: 18 | H129: 1 | I129: 0 | J129: 0 | K129: 0 | L129: 0 | M129: 0 | N129: 0 | O129: 19 | P129: 0 | Q129: 0 | R129: 0 | S129: 0
A130: Q80 | B130: RA4 | C130: YEOVIL DISTRICT HOSPITAL NHS FOUNDATION TRUST | D130: 2 | E130: * | F130: * | G130: * | H130: * | I130: * | J130: * | K130: * | L130: * | M130: * | N130: * | O130: * | P130: * | Q130: * | R130: * | S130: *
A131: Q81 | B131: RTK | C131: ASHFORD AND ST PETER'S HOSPITALS NHS FOUNDATION TRUST | D131: 27 | E131: 1 | F131: 0 | G131: 26 | H131: 1 | I131: 0 | J131: 0 | K131: 0 | L131: 0 | M131: 0 | N131: 0 | O131: 27 | P131: 0 | Q131: 0 | R131: 0 | S131: 0
A132: Q81 | B132: RXH | C132: BRIGHTON AND SUSSEX UNIVERSITY HOSPITALS NHS TRUST | D132: 51 | E132: 0.9803921569 | F132: 0.01960784314 | G132: 41 | H132: 9 | I132: 0 | J132: 1 | K132: 0 | L132: 0 | M132: 0 | N132: 0 | O132: 51 | P132: 0 | Q132: 0 | R132: 0 | S132: 0
A133: Q81 | B133: RN7 | C133: DARTFORD AND GRAVESHAM NHS TRUST | D133: 0 | E133: NA | F133: NA | G133: 0 | H133: 0 | I133: 0 | J133: 0 | K133: 0 | L133: 0 | M133: 0 | N133: 0 | O133: 0 | P133: 0 | Q133: 0 | R133: 0 | S133: 0
A134: Q81 | B134: RVV | C134: EAST KENT HOSPITALS UNIVERSITY NHS FOUNDATION TRUST | D134: 20 | E134: 0.95 | F134: 0 | G134: 16 | H134: 3 | I134: 1 | J134: 0 | K134: 0 | L134: 0 | M134: 0 | N134: 0 | O134: 20 | P134: 0 | Q134: 0 | R134: 0 | S134: 0
A135: Q81 | B135: RXC | C135: EAST SUSSEX HEALTHCARE NHS TRUST | D135: 13 | E135: 1 | F135: 0 | G135: 12 | H135: 1 | I135: 0 | J135: 0 | K135: 0 | L135: 0 | M135: 0 | N135: 13 | O135: 0 | P135: 0 | Q135: 0 | R135: 0 | S135: 0
A136: Q81 | B136: RDU | C136: FRIMLEY HEALTH NHS FOUNDATION TRUST | D136: 224 | E136: 0.9866071429 | F136: 0 | G136: 198 | H136: 23 | I136: 1 | J136: 0 | K136: 0 | L136: 2 | M136: 0 | N136: 0 | O136: 224 | P136: 0 | Q136: 0 | R136: 0 | S136: 0
A137: Q81 | B137: RWF | C137: MAIDSTONE AND TUNBRIDGE WELLS NHS TRUST | D137: 12 | E137: 1 | F137: 0 | G137: 11 | H137: 1 | I137: 0 | J137: 0 | K137: 0 | L137: 0 | M137: 0 | N137: 0 | O137: 11 | P137: 0 | Q137: 0 | R137: 1 | S137: 0
A138: Q81 | B138: RPA | C138: MEDWAY NHS FOUNDATION TRUST | D138: 21 | E138: 1 | F138: 0 | G138: 19 | H138: 2 | I138: 0 | J138: 0 | K138: 0 | L138: 0 | M138: 0 | N138: 0 | O138: 21 | P138: 0 | Q138: 0 | R138: 0 | S138: 0
A139: Q81 | B139: RA2 | C139: ROYAL SURREY COUNTY HOSPITAL NHS FOUNDATION TRUST | D139: 41 | E139: 1 | F139: 0 | G139: 38 | H139: 3 | I139: 0 | J139: 0 | K139: 0 | L139: 0 | M139: 1 | N139: 0 | O139: 0 | P139: 40 | Q139: 0 | R139: 0 | S139: 0
A140: Q81 | B140: RTP | C140: SURREY AND SUSSEX HEALTHCARE NHS TRUST | D140: 5 | E140: 1 | F140: 0 | G140: 3 | H140: 2 | I140: 0 | J140: 0 | K140: 0 | L140: 0 | M140: 0 | N140: 0 | O140: 5 | P140: 0 | Q140: 0 | R140: 0 | S140: 0
A141: Q81 | B141: RYR | C141: WESTERN SUSSEX HOSPITALS NHS FOUNDATION TRUST | D141: 7 | E141: 1 | F141: 0 | G141: 6 | H141: 1 | I141: 0 | J141: 0 | K141: 0 | L141: 0 | M141: 1 | N141: 0 | O141: 3 | P141: 0 | Q141: 0 | R141: 3 | S141: 0
A142: Q82 | B142: RXQ | C142: BUCKINGHAMSHIRE HEALTHCARE NHS TRUST | D142: 68 | E142: 0.9852941176 | F142: 0 | G142: 54 | H142: 13 | I142: 1 | J142: 0 | K142: 0 | L142: 0 | M142: 0 | N142: 0 | O142: 68 | P142: 0 | Q142: 0 | R142: 0 | S142: 0
A143: Q82 | B143: RTE | C143: GLOUCESTERSHIRE HOSPITALS NHS FOUNDATION TRUST | D143: 0 | E143: NA | F143: NA | G143: 0 | H143: 0 | I143: 0 | J143: 0 | K143: 0 | L143: 0 | M143: 0 | N143: 0 | O143: 0 | P143: 0 | Q143: 0 | R143: 0 | S143: 0
A144: Q82 | B144: RN3 | C144: GREAT WESTERN HOSPITALS NHS FOUNDATION TRUST | D144: 28 | E144: 0.9642857143 | F144: 0 | G144: 21 | H144: 6 | I144: 0 | J144: 0 | K144: 0 | L144: 1 | M144: 0 | N144: 0 | O144: 27 | P144: 0 | Q144: 0 | R144: 1 | S144: 0
A145: Q82 | B145: RTH | C145: OXFORD UNIVERSITY HOSPITALS NHS TRUST | D145: 18 | E145: 1 | F145: 0 | G145: 16 | H145: 2 | I145: 0 | J145: 0 | K145: 0 | L145: 0 | M145: 0 | N145: 0 | O145: 16 | P145: 0 | Q145: 0 | R145: 2 | S145: 0
A146: Q82 | B146: RHW | C146: ROYAL BERKSHIRE NHS FOUNDATION TRUST | D146: 81 | E146: 0.975308642 | F146: 0 | G146: 64 | H146: 15 | I146: 2 | J146: 0 | K146: 0 | L146: 0 | M146: 0 | N146: 0 | O146: 81 | P146: 0 | Q146: 0 | R146: 0 | S146: 0
A147: Q82 | B147: RD1 | C147: ROYAL UNITED HOSPITALS BATH NHS FOUNDATION TRUST | D147: 70 | E147: 1 | F147: 0 | G147: 64 | H147: 6 | I147: 0 | J147: 0 | K147: 0 | L147: 0 | M147: 0 | N147: 0 | O147: 69 | P147: 0 | Q147: 0 | R147: 1 | S147: 0
A148: Q82 | B148: RNZ | C148: SALISBURY NHS FOUNDATION TRUST | D148: 20 | E148: 0.95 | F148: 0.05 | G148: 18 | H148: 1 | I148: 0 | J148: 0 | K148: 1 | L148: 0 | M148: 0 | N148: 0 | O148: 0 | P148: 20 | Q148: 0 | R148: 0 | S148: 0

Sheet BSQ1 (hidden)
A1: Please select criteria… | B1: 1 | C1: Code… | D1: Name… | E1: Code… | F1: Name… | K1: Dropdown linked cells | M1: Please select criteria… | N1: 1 | O1: Code… | P1: Name… | U1: Dropdown linked cells | W1: Please select criteria… | X1: 1 | Y1: Code… | Z1: Name… | AD1: 1 | AE1: Dropdown linked cells | AH1: Code… | AI1: Code… | AJ1: Name… | AK1: Code… | AL1: Name… | AM1: <---fixed lists | AO1: linked lists Trust tab---> | AP1: Code… | AQ1: Name… | AR1: linked lists site tab---> | AS1: Code… | AT1: Name… | AU1: Code… | AV1: Name…
A2: Region (Geo) Code | C2: Q70 | D2: NHS England Wessex | E2: Q70 | F2: NHS England Central Midlands | J2: Area Code = | K2: 1 | M2: Region (Geo) Code | O2: RBD | P2: DORSET COUNTY HOSPITAL NHS FOUNDATION TRUST | T2: Area Code = | U2: 1 | W2: Region (Geo) Code | Y2: RBD01 | Z2: Dorset County Hospital - RBD01 | AD2: Area Code = | AE2: 1 | AH2: Q70 | AI2: RBD | AJ2: DORSET COUNTY HOSPITAL NHS FOUNDATION TRUST | AK2: RBD01 | AL2: Dorset County Hospital - RBD01 | AP2: R1F | AQ2: AIREDALE NHS FOUNDATION TRUST | AS2: R1F | AT2: AIREDALE NHS FOUNDATION TRUST | AU2: R1F01 | AV2: Airedale General Hospital - RCF22
A3: Region (Geography) | C3: Q71 | D3: NHS England London | E3: Q71 | F3: NHS England Cheshire & Merseyside | J3: Area Name = | K3: 1 | M3: Trust Code | O3: RN5 | P3: HAMPSHIRE HOSPITALS NHS FOUNDATION TRUST | T3: Area Name = | U3: 1 | W3: Trust Code | Y3: RN542 | Z3: Andover War Memorial Hospital - RN542 | AD3: Area Name = | AE3: 1 | AH3: Q70 | AI3: RN5 | AJ3: HAMPSHIRE HOSPITALS NHS FOUNDATION TRUST | AK3: RN542 | AL3: Andover War Memorial Hospital - RN542 | AP3: R1H | AQ3: ASHFORD AND ST PETER'S HOSPITALS NHS FOUNDATION TRUST | AS3: R1H | AT3: ASHFORD AND ST PETER'S HOSPITALS NHS FOUNDATION TRUST | AU3: R1H90 | AV3: Alexandra Hospital - RWP01
A4: Total Responses | C4: Q72 | D4: NHS England Yorkshire & Humber | E4: Q72 | F4: NHS England Cumbria & North East | K4: N/A | M4: Trust Name | O4: R1F | P4: ISLE OF WIGHT NHS TRUST | T4: Trust Code = | U4: 1 | W4: Trust Name | Y4: RN506 | Z4: Basingstoke and North Hampshire Hospital - RN506 | AD4: Trust Code = | AE4: 1 | AH4: Q70 | AI4: RN5 | AJ4: HAMPSHIRE HOSPITALS NHS FOUNDATION TRUST | AK4: RN506 | AL4: Basingstoke and North Hampshire Hospital - RN506 | AP4: R1K | AQ4: BARKING, HAVERING AND REDBRIDGE UNIVERSITY HOSPITALS NHS TRUST | AS4: R1K | AT4: BARKING, HAVERING AND REDBRIDGE UNIVERSITY HOSPITALS NHS TRUST | AU4: R1K02 | AV4: Andover War Memorial Hospital - RN542
A5: Percentage Recommended | C5: Q73 | D5: NHS England Lancashire & Greater Manchester | E5: Q73 | F5: NHS England East | K5: N/A | M5: Total Responses | O5: RD3 | P5: POOLE HOSPITAL NHS FOUNDATION TRUST | T5: Trust Name = | U5: 1 | W5: Site Code | Y5: RN541 | Z5: Royal Hampshire County Hospital - RN541 | AD5: Trust Name = | AE5: 1 | AH5: Q70 | AI5: RN5 | AJ5: HAMPSHIRE HOSPITALS NHS FOUNDATION TRUST | AK5: RN541 | AL5: Royal Hampshire County Hospital - RN541 | AP5: RA2 | AQ5: BARNSLEY HOSPITAL NHS FOUNDATION TRUST | AS5: RA2 | AT5: BARNSLEY HOSPITAL NHS FOUNDATION TRUST | AU5: RA201 | AV5: Arrowe Park Hospital - RBL14
A6: Percentage Not Recommended | C6: Q74 | D6: NHS England Cumbria & North East | E6: Q74 | F6: NHS England Lancashire & Greater Manchester | K6: N/A | M6: Percentage Recommended | O6: RHU | P6: PORTSMOUTH HOSPITALS NHS TRUST | U6: N/A | W6: Site Name | Y6: R1F01 | Z6: St Mary's Hospital - R1F01 | AD6: Site Code = | AE6: 1 | AH6: Q70 | AI6: R1F | AJ6: ISLE OF WIGHT NHS TRUST | AK6: R1F01 | AL6: St Mary's Hospital - R1F01 | AP6: RA3 | AQ6: BARTS HEALTH NHS TRUST | AS6: RA3 | AT6: BARTS HEALTH NHS TRUST | AU6: RA301 | AV6: Barnet Hospital - RAL26
A7: Extremely Likely | C7: Q75 | D7: NHS England Cheshire & Merseyside | E7: Q75 | F7: NHS England London | K7: N/A | M7: Percentage Not Recommended | O7: RDZ | P7: THE ROYAL BOURNEMOUTH AND CHRISTCHURCH HOSPITALS NHS FOUNDATION TRUST | U7: N/A | W7: Total Responses | Y7: RD304 | Z7: Poole General Hospital NHS Trust HQ - RD304 | AD7: Site Name = | AE7: 1 | AH7: Q70 | AI7: RD3 | AJ7: POOLE HOSPITAL NHS FOUNDATION TRUST | AK7: RD304 | AL7: Poole General Hospital NHS Trust HQ - RD304 | AP7: RA4 | AQ7: BASILDON AND THURROCK UNIVERSITY HOSPITALS NHS FOUNDATION TRUST | AS7: RA4 | AT7: BASILDON AND THURROCK UNIVERSITY HOSPITALS NHS FOUNDATION TRUST | AU7: RA430 | AV7: Barnsley Hospital NHS Foundation Trust HQ - RFFAA
A8: Likely | C8: Q76 | D8: NHS England North Midlands | E8: Q76 | F8: NHS England North Midlands | M8: Extremely Likely | O8: RHM | P8: UNIVERSITY HOSPITAL SOUTHAMPTON NHS FOUNDATION TRUST | W8: Percentage Recommended | Y8: RHU10 | Z8: Gosport War Memorial Hospital - RHU10 | AH8: Q70 | AI8: RHU | AJ8: PORTSMOUTH HOSPITALS NHS TRUST | AK8: RHU10 | AL8: Gosport War Memorial Hospital - RHU10 | AP8: RA7 | AQ8: BEDFORD HOSPITAL NHS TRUST | AS8: RA7 | AT8: BEDFORD HOSPITAL NHS TRUST | AU8: RA707 | AV8: Basildon University Hospital - RDDH0
A9: Neither | C9: Q77 | D9: NHS England West Midlands | E9: Q77 | F9: NHS England South Central | M9: Likely | O9: RF4 | P9: BARKING, HAVERING AND REDBRIDGE UNIVERSITY HOSPITALS NHS TRUST | W9: Percentage Not Recommended | Y9: RHU04 | Z9: Petersfield Community Hospital - RHU04 | AH9: Q70 | AI9: RHU | AJ9: PORTSMOUTH HOSPITALS NHS TRUST | AK9: RHU04 | AL9: Petersfield Community Hospital - RHU04 | AP9: RA9 | AQ9: BIRMINGHAM WOMEN'S NHS FOUNDATION TRUST | AS9: RA9 | AT9: BIRMINGHAM WOMEN'S NHS FOUNDATION TRUST | AU9: RA9XXX | AV9: Bassetlaw Hospital - RP5BA
A10: Unlikely | C10: Q78 | D10: NHS England Central Midlands | E10: Q78 | F10: NHS England South East | M10: Neither | O10: R1H | P10: BARTS HEALTH NHS TRUST | W10: Extremely Likely | Y10: RHU03 | Z10: Queen Alexandra Hospital - RHU03 | AH10: Q70 | AI10: RHU | AJ10: PORTSMOUTH HOSPITALS NHS TRUST | AK10: RHU03 | AL10: Queen Alexandra Hospital - RHU03 | AP10: RAE | AQ10: BLACKPOOL TEACHING HOSPITALS NHS FOUNDATION TRUST | AS10: RAE | AT10: BLACKPOOL TEACHING HOSPITALS NHS FOUNDATION TRUST | AU10: RAE01 | AV10: Bedford Hospital South Wing - RC110
A11: Extremely Unlikely | C11: Q79 | D11: NHS England East | E11: Q79 | F11: NHS England South West | M11: Unlikely | O11: RQM | P11: CHELSEA AND WESTMINSTER HOSPITAL NHS FOUNDATION TRUST | W11: Likely | Y11: RHU02 | Z11: St Mary's Hospital - RHU02 | AH11: Q70 | AI11: RHU | AJ11: PORTSMOUTH HOSPITALS NHS TRUST | AK11: RHU02 | AL11: St Mary's Hospital - RHU02 | AP11: RAJ | AQ11: BOLTON NHS FOUNDATION TRUST | AS11: RAJ | AT11: BOLTON NHS FOUNDATION TRUST | AU11: RAJ01 | AV11: Birmingham Women's Hospital - RLU01
A12: Don't Know | C12: Q80 | D12: NHS England South West | E12: Q80 | F12: NHS England Wessex | M12: Extremely Unlikely | O12: RJ6 | P12: CROYDON HEALTH SERVICES NHS TRUST | W12: Neither | Y12: RDZ20 | Z12: Royal Bournemouth General Hospital - RDZ20 | AH12: Q70 | AI12: RDZ | AJ12: THE ROYAL BOURNEMOUTH AND CHRISTCHURCH HOSPITALS NHS FOUNDATION TRUST | AK12: RDZ20 | AL12: Royal Bournemouth General Hospital - RDZ20 | AP12: RAL | AQ12: BRADFORD TEACHING HOSPITALS NHS FOUNDATION TRUST | AS12: RAL | AT12: BRADFORD TEACHING HOSPITALS NHS FOUNDATION TRUST | AU12: RAL26 | AV12: Blackpool Victoria Hospital - RXL01
C13: Q81 | D13: NHS England South East | E13: Q81 | F13: NHS England West Midlands | M13: Don't Know | O13: RVR | P13: EPSOM AND ST HELIER UNIVERSITY HOSPITALS NHS TRUST | W13: Unlikely | Y13: RHM12 | Z13: Princess Anne Hospital - RHM12 | AH13: Q70 | AI13: RHM | AJ13: UNIVERSITY HOSPITAL SOUTHAMPTON NHS FOUNDATION TRUST | AK13: RHM12 | AL13: Princess Anne Hospital - RHM12 | AP13: RAP | AQ13: BRIDGEWATER COMMUNITY HEALTHCARE NHS FOUNDATION TRUST | AS13: RAP | AT13: BRIDGEWATER COMMUNITY HEALTHCARE NHS FOUNDATION TRUST | AU13: RAPNM | AV13: Blt Birth Centre - R1H90
C14: Q82 | D14: NHS England South Central | E14: Q82 | F14: NHS England Yorkshire & Humber | M14: SMS/Text / Smartphone App | O14: RJ1 | P14: GUY'S AND ST THOMAS' NHS FOUNDATION TRUST | W14: Extremely Unlikely | Y14: RF4QH | Z14: Queen's Hospital - RF4QH | AH14: Q71 | AI14: RF4 | AJ14: BARKING, HAVERING AND REDBRIDGE UNIVERSITY HOSPITALS NHS TRUST | AK14: RF4QH | AL14: Queen's Hospital - RF4QH | AP14: RAS | AQ14: BRIGHTON AND SUSSEX UNIVERSITY HOSPITALS NHS TRUST | AS14: RAS | AT14: BRIGHTON AND SUSSEX UNIVERSITY HOSPITALS NHS TRUST | AU14: RAS01 | AV14: Bradford Royal Infirmary - RAE01
M15: Electronic tablet/kiosk at point of discharge | O15: RQX | P15: HOMERTON UNIVERSITY HOSPITAL NHS FOUNDATION TRUST | W15: Don't Know | Y15: R1H90 | Z15: Blt Birth Centre - R1H90 | AH15: Q71 | AI15: R1H | AJ15: BARTS HEALTH NHS TRUST | AK15: R1H90 | AL15: Blt Birth Centre - R1H90 | AP15: RAX | AQ15: BUCKINGHAMSHIRE HEALTHCARE NHS TRUST | AS15: RAX | AT15: BUCKINGHAMSHIRE HEALTHCARE NHS TRUST | AU15: RAX01 | AV15: Broomfield Hospital - RQ8L0
C16: code and name linked | E16: alphabeticalized lists code and name not linked | M16: Paper / postcard at point of discharge | O16: RYJ | P16: IMPERIAL COLLEGE HEALTHCARE NHS TRUST | Y16: R1HNH | Z16: Newham General Hospital - R1HNH | AH16: Q71 | AI16: R1H | AJ16: BARTS HEALTH NHS TRUST | AK16: R1HNH | AL16: Newham General Hospital - R1HNH | AP16: RBA | AQ16: BURTON HOSPITALS NHS FOUNDATION TRUST | AS16: RBA | AT16: BURTON HOSPITALS NHS FOUNDATION TRUST | AU16: RBA11 | AV16: Central Middlesex Hospital - R1K02
M17: Paper survey, sent to the patients home | O17: RJZ | P17: KING'S COLLEGE HOSPITAL NHS FOUNDATION TRUST | Y17: R1HXXX | Z17: Non-hospital site - R1HXXX | AH17: Q71 | AI17: R1H | AJ17: BARTS HEALTH NHS TRUST | AK17: R1HXXX | AL17: Non-hospital site - R1HXXX | AP17: RBD | AQ17: CALDERDALE AND HUDDERSFIELD NHS FOUNDATION TRUST | AS17: RBD | AT17: CALDERDALE AND HUDDERSFIELD NHS FOUNDATION TRUST | AU17: RBD01 | AV17: Chelsea and Westminster Hospital - RQM01
M18: Telephone survey once patient is home | O18: RAX | P18: KINGSTON HOSPITAL NHS FOUNDATION TRUST | Y18: R1H12 | Z18: The Royal London Hospital - R1H12 | AH18: Q71 | AI18: R1H | AJ18: BARTS HEALTH NHS TRUST | AK18: R1H12 | AL18: The Royal London Hospital - R1H12 | AP18: RBK | AQ18: CAMBRIDGE UNIVERSITY HOSPITALS NHS FOUNDATION TRUST | AS18: RBK | AT18: CAMBRIDGE UNIVERSITY HOSPITALS NHS FOUNDATION TRUST | AU18: RBK02 | AV18: Cheltenham General Hospital - RTE01
M19: Online survey once patient is home | O19: RJ2 | P19: LEWISHAM AND GREENWICH NHS TRUST | Y19: R1HKH | Z19: Whipps Cross University Hospital - R1HKH | AH19: Q71 | AI19: R1H | AJ19: BARTS HEALTH NHS TRUST | AK19: R1HKH | AL19: Whipps Cross University Hospital - R1HKH | AP19: RBL | AQ19: CENTRAL MANCHESTER UNIVERSITY HOSPITALS NHS FOUNDATION TRUST | AS19: RBL | AT19: CENTRAL MANCHESTER UNIVERSITY HOSPITALS NHS FOUNDATION TRUST | AU19: RBL14 | AV19: Chesterfield Royal Hospital - RFSDA
M20: Other | O20: R1K | P20: LONDON NORTH WEST HEALTHCARE NHS TRUST | Y20: RQM01 | Z20: Chelsea and Westminster Hospital - RQM01 | AH20: Q71 | AI20: RQM | AJ20: CHELSEA AND WESTMINSTER HOSPITAL NHS FOUNDATION TRUST | AK20: RQM01 | AL20: Chelsea and Westminster Hospital - RQM01 | AP20: RBN | AQ20: CHELSEA AND WESTMINSTER HOSPITAL NHS FOUNDATION TRUST | AS20: RBN | AT20: CHELSEA AND WESTMINSTER HOSPITAL NHS FOUNDATION TRUST | AU20: RBN01 | AV20: Chippenham Community Hospital -RD102
